Workbook

Sheet Instruções
A1: =CONCATENATE(DG!H1," ",DG!H2) -> Agrupamento de Escolas Augusto Cabrita Sede – Escola Secundária Augusto Cabrita
A3: AvA - Avaliação de atividades
A5: Introdução
A6: Desde há alguns anos, mas com maior incidência no ano lectivo 2009/2010, têm vindo a ser construídos um conjunto de instrumentos em formato digital, tendo por base o Excel, com a finalidade de: uniformizar procedimentos; reduzir o tempo dispendido pelos professores nas tarefas burocráticas associadas às suas funções; constituir de forma automática bases de dados com informação tratada, organizada, de fácil acesso e de rapida difusão. Acrescem ainda os aspectos económicos relacionados com os custos imediatos com o papel, impressões e arquivamento, os custos ambientais e o próprio espaço físico necessário para esse arquivamento.
A8: Objectivos
A9: Este ficheiro em particular, Av. de atividades (AvA) constitui um formulário de suporte para a organização e avaliação das atividades. O AvA está associado ao ficheiro do Plano Anual de atividades (PAA), o que irá permitir fazer um continuo acompanhamento da execução do PAA, assim como, da sua avaliação. Por esta razão, a utilização deste ficheiro tem que necessariamente ser obrigatória no que se refere às folhas PLANO e Relatório. Relativamente às restantes folhas, como por exemplo as Listagens de alunos nas atividades de Visita de Estudo ou outras em que os seja necessário fazer seguro, poderão seguir estes modelos ou não, contudo a partir do momento em que se preenche o PLANO, todas as restantes folhas ficam automaticamente preenchidas e é seguramente mais vantajoso utilizar este ficheiro.
A11: Procedimentos
A12: Para os professores que ainda não tenham tido contacto com este ficheiro, serão marcadas as necessárias sessões de esclarecimento sobre o mesmo. Contudo, as informações e os procedimentos associados a cada Folha do ficheiro AvA, estão a seguir descritas com algum detalhe para, de certa forma, possam servir de manual de instruções.
A14: Folha | C14: Procedimentos / Objectivos
A15: DG | B15: Dados Gerais | C15: A folha DG reúne à partida todos os dados relativos aos alunos, professores e assistentes do Agrupamento, que sejam necessários para a organização de qualquer atividade do PAA. Este folha tem ainda como função reunir, posteriormente e de forma automática, toda a informação referente à organização e avaliação da atividade. Informação que depois de terminado o Relatório de avaliação deve ser transferida para o PAA, copiando as duas células com fundo amarelo (número da atividade e estatistica) e colando nas células do PAA da respetiva atividade. A indicação de "Erro" significa que na folha Relatório existem informações em falta, nomeadamente, a avaliação, o custo com a transportadora ou o nome da transportadora.
A16: PLANO | B16: Plano da atividade | C16: Esta folha, de preenchimento obrigatório, tem como função receber toda a informação relativa à organização da atividade. Nesta folha deve ser indicado o seguinte: número da atividade; assinalar se for uma visita de estudo; designação; órgão, grupo, projecto ou clube que a organiza; local de realização; data e hora; preço e meio de transporte; objectivos e programa; professores organizadores / acompanhantes; o ciclo a que pertencem os alunos; as turmas que participam (se as turmas pertencerem a diferentes ciclos deve indicar quais essas turma nas colunas à direita) ; o número provável de alunos que se esperam vir a participar; outras indicações. Importa salientar que toda esta informação passará de forma automática para todas as outras folhas. Após o preenchimento desta folha deve a mesma ser impressa (IMPORTANTE: IMPRIMIR DA PÁGINA 1 ATÉ À PÁGINA 1), entregue na Direcção para ser assinada e depois entregue no SASE. Ter em atenção se o nº de alunos por professor cumpre os mínimos legais.
A17: DI | B17: Declaração de Idoneidade | C17: No caso de Visitas de Estudo ou outras atividades no exterior da escola que envolvam transporte dos alunos, esta declaração deve ser impressa e acompanhar a respetiva deslocação. (Imprimir uma por cada autocarro)
A18: C | B18: Credencial | C18: Imprimir sempre que seja solicitada nos locais a visitar.
A19: Plano EE | B19: Plano da atividade / Outorização do EE | C19: O Plano da atividade deve ser impresso sempre que seja imperativo que os encarregados de educação autorizem ou não a participação do aluno na atividade. Sempre que a informação puder ser via Caderneta do Aluno deve-se privilegiar essa forma; No caso do ensino secundário, não havendo Caderneta poderão utilizar o meio que vos parecer mais adequado para passar esta informação . O Plano está feito em formato A5, pelo que , o número de cópias deve ser metade do número total de alunos. No destacável a devolver pelo aluno, o encarregado de educação tem que assinalar se autoriza ou não que o aluno participe na atividade, ou seja, mesmo que o aluno não participe na atividade deve entregar o destacável assinado. Desta forma garante-se que todos os encarregados de educação tiveram conhecimento da atividade e permite ao professor fazer um melhor e mais atempado planeamento da atividade.
A20: Listagens | B20: Listagens dos Alunos | C20: As listagens das turmas assinaladas no PLANO ficam automáticamente disponíveis. Imprimir as listagens de acordo com o número associado a cada turma. Estas listagens permitem ir registando os alunos que vão entregando o destacável e os pagamentos (estas listagens servem também para fazer as chamadas dos alunos durante a atividade). Depois de ter toda a informação relativamente aos alunos participantes, passar esses dados para o ficheiro e voltar a imprimir as folhas para deixar nos Livros de Ponto no dia da atividade. Para facilitar os procedimentos em termos de seguro, este é feito para a totalidade dos alunos das turmas assinaladas na folha de Proposta. Não usar o icon de impressáo rápida porque irão sair serca de 40 cópias, imprima apenas os nº de páginas correspondentes às turmas partucipantes.
A21: Imprimir Lista | B21: Listagens dos Alunos | C21: Depois de registar informaticamente, nas respetivas listagens, os alunos que participam na atividade, devem-se imprimir estas listagens para deixar no Livro de Ponto e que posteriormente ficarão para o Diretor de Turma, conforme já foi referido. Contudo, há que que entregar no SASE a listagem dos alunos participantes e, para reduzir o número de páginas a imprir (1 por turma) criou-se esta folha que reúne todos os alunos de todas as turma. Assim, devem imprimir as páginas necessárias desta folha e entregar no SASE.
A22: Relatório | B22: Relatório de Avaliação | C22: Esta folha é também de preenchimento obrigatório, seja qual for o tipo de atividade. A folha Relatório reúne toda a informação referente à atividade, incluíndo a sua avaliação, informação essa que irá ser "Colada" no ficheiro do PAA. Os dados estatísticos, caso utilize todas as funcionalidades deste ficheiro, ficam automaticamente preenchidos com excepção do número de familiares participantes. Se não se optar pelas listagens de alunos ou pelo inquérito deste ficheiro, devem introduzi o nº total de alunos e avaliação estatistica nas respetivas células, que por este motivo estão desprotegidas. Caso a avaliação não tenha por base nenhum inquérito, os organizadores poderão estimar e atribuir uma avaliação de 0 a 20. No caso das visitas de estudo não esquecer de referir o custo com a transportadora e o nome da transportador. Faz ainda parte da avaliação uma sintese onde se incluem, até um máximo de três aspectos positivos, três aspectos negativos e três sugestões de melhoria. Solicita-se ainda que assinalem uma opinião sobre as vantagens de voltar a incluir a atividade num próximo PAA. Se se considerar que esta síntese avaliativa não é suficiente para caracterizar a atividade, pode-se juntar um anexo utilizando o Anexo deste ficheiro ou outro.
A23: Anexo | B23: Anexo ao Relatório | C23: Caso se queira juntar uma avaliação descritiva ao relatório. O formato do anexo não tem que ser obrigatoriamente este, poderá ser um ficheiro em Word. Se que se junte um anexo ao relatório, esta opção deve ser assinalada no relatório, o anexo de ve ser impresso e entregue na direção.
A24: Contac | B24: Contactos | C24: Nesta folha encontram-se os contactos e número de contribuinte do Agrupamento e pode registar-se o contacto da escola. Podem também registar-se os contactos e orçamentos das transportadoras e os contactos dos locais a visitar, no sentido de concentrar toda a informação relativa à atividade num único ficheiro. Informações que poderão voltar a ser úteis em anos seguintes.
A25: Orç | B25: Orçamento | C25: A folha de Orçamente poderá ser útil para registar a estimativa dos custos e receitas e, no caso das visitas de estudo, com base no provável número de alunos participantes, estimar o valor a pedir a cada um deles.
A26: Contab | B26: Contabilidade | C26: Caso se utilizem e preencham as listagens dos alunos com os valores pagos por estes, a contabilidade das receitas fica automaticamente pronta. Juntando os valores dos despesas a contabilidade fica feita. No caso das visitas de estudo, é obrigatório que nesta folha se registe qual o nome da transportadora e qual o valor total do transporte pago a essa empresa.
A27: Inq | B27: Inquérito de Avaliação | C27: Este inquérito tipo, elaborado em duas versões: visitas de estudo e outras atividades, pode ser ajustado às especificidades de cada atividade. Contudo, se se fizer alguma adaptação já não poderá ser contabilizado para a avaliação global do PAA. O número de inquéritos, nas atividades de visitas de estudo deverá ser entre os 10% e os 20% dos alunos participantes e, nas outras atividades os organizadores devem determinar um número que lhes pareça adequado à situação.
A28: Trat.Inq | B28: Tratamento do Inquérito | C28: Esta folha serve para que, ao introduzir as respostas aos inquéritos, o tratamento do inquérito fique automaticamente feito e os resultados passam também automáticamente para a folha Resultados e folha Relatório.
A29: Resul | B29: Resultados do Inquérito | C29: Mostra os resultados do tratamento do inquérito.
A30: CPA | B30: Certificado de Participação para Alunos | C30: Caso se queira entregar um certificado de participação aos alunos, este será um modelo possível que estará automaticamente disponível.
A31: CPP | B31: Certificado de Participação para Professores | C31: Tal como foi referido para os alunos, o mesmo se passa relativamente aos professores participantes.
A34: Considerações finais
A35: 1. Sempre que os alunos não constem nas Listagens, os mesmos podem ser acrescentados na Folha DG, no final da respectiva listagem. Contudo, ao longo do ano lectivo, sempre que este ficheiro seja actualizado será fornecida uma nova versão para a organização de atividades futuras, ou seja, para as atividades já realizadas não será necessária qualquer reformulação. O mesmo procedimento deverá ser feito se algum propfessor não constar na listagem que se abre na Folha PLANO
A37: 3. Conforme já foi referido, este processo termina com a transferência de dados deste ficheiro para o ficheiro PAA que irá estar disponível nos computadores da sala de professores e sala de diretores de turma das escolas EB23PAM e ESAC.Nas restates escolas e jardins-de-infância o ficheiro estará num computador ainda a definir. Esta transferência consiste em Copiar as duas células com fundo amarelo na folha DG e Colar essas células no ficheiro PAA, na folha da respectiva disciplina, projecto, clube ou órgão, na linha e células relativa a esta atividade.
A38: 4. Ao imprimir, não utilizar o modo rápido (clicando no ícone da barra de ferramentas) porque isso pode levar a que sejam impressas folhas que não são necessárias. Devemos ir ao Menu e imprimir da folha 1 até à folha 1. Nas Listagens dos alunos imprimir as páginas respectivas às turmas participantes, de acordo com o número (de 1 a 48) atribuído a cada turma.
A39: 5.

Sheet DG
H1: Agrupamento de Escolas Augusto Cabrita | S1: d | T1: Ano Escolar | EC1: 15 | ED1: / | EE1: 16 | EI1: Ficheiro de Preparação e Avaliação de atividades / Visitas de Estudo
H2: Sede – Escola Secundária Augusto Cabrita | U2: PLANO | AL2: PROPOSTA | AM2: PROPOSTA | BW2: RELATÓRIO | CB2: RESULT | DF2: CONTAB | DI2: € a devolver aos alunos | DL2: RELATÓRIO | DW2: ORÇ | DY2: RELATÓRIO
H3: Rua Maria Lamas – Alto Seixalinho – 2830-088 Barreiro | T3: Act | U3: Data | V3: horas | W3: $ / Aluno | X3: Turmas | Y3: Prof | Z3: Ass | AA3: Fam | AB3: Nº ASE A | AC3: % ASE A | AD3: Nº ASE B | AE3: % ASE B | AF3: Nº s/ASE | AG3: % s/ASE | AH3: Nº Total | AI3: % Total | AJ3: Nº Alu/Prof | AK3: Alunos c/ MD | AL3: NºProvável | AM3: NC Prof. organizadores | AS3: Número de contrato dos Professores e Assistentes Acompanhantes | BW3: NºInqAlunos | BX3: AvInqAlunos | BY3: NºInqOutros | BZ3: AvInqOutros | CA3: AvEstimada | CB3: Avaliação dos Inquéritos dos alunos | CP3: Avaliação dos Inquéritosfeita por outros inquíridos | DD3: Transportadora | DE3: € Transporte | DF3: Custo Total | DG3: Receita Total | DH3: Saldo | DI3: s/ASE | DJ3: ASE A | DK3: ASE B | DL3: Asp +1 | DM3: Asp +2 | DN3: Asp +3 | DO3: Asp -1 | DP3: Asp -2 | DQ3: Asp -3 | DR3: Sug 1 | DS3: Sug 2 | DT3: Sug 3 | DU3: Futuro | DV3: Anexo | DW3: Custos | DX3: Receitas | DY3: Designação | EB3: Estatística | EC3: Copiar as 2 células com fundo amarelo para Colar no PAA
H4: Tel 212059220 - Fax 212059228 - E-mail: direcao@aeaugustocabrita.edu.pt | T4: =PLANO!AG9 -> 0 | U4: =IF(PLANO!R14="","",DATE(PLANO!V14,PLANO!T14,PLANO!R14)) ->  | V4: =Relatório!U27 -> 0 | W4: =Relatório!U28 -> 0 | X4: =Relatório!D27 -> 0 | Y4: =Relatório!D28 -> 6 | Z4: =Relatório!D29 -> 0 | AA4: =Relatório!D30 -> 0 | AB4: =Relatório!I27 -> 0 | AC4: =Relatório!K27 -> 0 | AD4: =Relatório!I28 -> 0 | AE4: =Relatório!K28 -> 0 | AF4: =Relatório!I29 -> 0 | AG4: =Relatório!K29 -> 0 | AH4: =Relatório!I30 -> 0 | AI4: =Relatório!K30 -> 0 | AJ4: =PLANO!AG57 -> 3.333333333 | AK4: =Relatório!AG32 -> 0 | AL4: =PLANO!W57 -> 20 | AM4: =PLANO!L32 ->  | AN4: =PLANO!L33 ->  | AO4: =PLANO!W32 ->  | AP4: =PLANO!W33 ->  | AQ4: =PLANO!AH32 ->  | AR4: =PLANO!AH33 ->  | AS4: =PLANO!L36 ->  | AT4: =PLANO!L37 ->  | AU4: =PLANO!L38 ->  | AV4: =PLANO!L39 ->  | AW4: =PLANO!L40 ->  | AX4: =PLANO!L41 ->  | AY4: =PLANO!L42 ->  | AZ4: =PLANO!L43 ->  | BA4: =PLANO!L44 ->  | BB4: =PLANO!L45 ->  | BC4: =PLANO!W36 ->  | BD4: =PLANO!W37 ->  | BE4: =PLANO!W38 ->  | BF4: =PLANO!W39 ->  | BG4: =PLANO!W40 ->  | BH4: =PLANO!W41 ->  | BI4: =PLANO!W42 ->  | BJ4: =PLANO!W43 ->  | BK4: =PLANO!W44 ->  | BL4: =PLANO!W45 ->  | BM4: =PLANO!AH36 ->  | BN4: =PLANO!AH37 ->  | BO4: =PLANO!AH38 ->  | BP4: =PLANO!AH39 ->  | BQ4: =PLANO!AH40 ->  | BR4: =PLANO!AH41 ->  | BS4: =PLANO!AH42 ->  | BT4: =PLANO!AH43 ->  | BU4: =PLANO!AH44 ->  | BV4: =PLANO!AH45 ->  | BW4: =Relatório!AE27 ->  | BX4: =Relatório!AE28 ->  | BY4: =Relatório!AG27 ->  | BZ4: =Relatório!AG28 ->  | CA4: =Relatório!AG30 -> 0 | CB4: =Result!AL13 -> 0 | CC4: =Result!AM13 -> 0 | CD4: =Result!AN13 -> 0 | CE4: =Result!AO13 -> 0 | CF4: =Result!AP13 -> 0 | CG4: =Result!AQ13 -> 0 | CH4: =Result!AR13 -> 0 | CI4: =Result!AS13 -> 0 | CJ4: =Result!AT13 -> 0 | CK4: =Result!AU13 -> 0 | CL4: =Result!AV13 -> 0 | CM4: =Result!AW13 -> 0 | CN4: =Result!AX13 -> 0 | CO4: =Result!AY13 -> 0 | CP4: =Result!AL14 -> 0 | CQ4: =Result!AM14 -> 0 | CR4: =Result!AN14 -> 0 | CS4: =Result!AO14 -> 0 | CT4: =Result!AP14 -> 0 | CU4: =Result!AQ14 -> 0 | CV4: =Result!AR14 -> 0 | CW4: =Result!AS14 -> 0 | CX4: =Result!AT14 -> 0 | CY4: =Result!AU14 -> 0 | CZ4: =Result!AV14 -> 0 | DA4: =Result!AW14 -> 0 | DB4: =Result!AX14 -> 0 | DC4: =Result!AY14 -> 0 | DD4: =Relatório!R30 -> 0 | DE4: =Relatório!U29 -> 0 | DF4: =Contab!AD29 -> 0 | DG4: =Contab!AD40 -> 0 | DH4: =Contab!AD46 -> 0 | DI4: =Contab!T50 -> 0 | DJ4: =Contab!Y50 -> 0 | DK4: =Contab!AD50 -> 0 | DL4: =Relatório!B36 -> Os alunos participaram todos com interesse e entusiasmo. | DM4: =Relatório!B37 -> 0 | DN4: =Relatório!B38 -> 0 | DO4: =Relatório!B41 -> Os alunos conhecem as regras mas têm dificuldade na tomada de decisão durante o jogo. | DP4: =Relatório!B42 -> Pouco tempo de prática. | DQ4: =Relatório!B43 -> 0 | DR4: =Relatório!B46 -> 0 | DS4: =Relatório!B47 -> 0 | DT4: =Relatório!B48 -> 0 | DU4: =Relatório!AG55 -> A | DV4: =Relatório!AG56 -> N | DW4: =Orç!AD26 -> 155 | DX4: =Orç!AD36 -> 0 | DY4: =Relatório!K8 -> Eco-ementas | EA4: =Relatório!AH33 -> Falta a Avaliação. | EB4: =IF(EA4="","OK","ERRO") -> ERRO
FO5: 0LUA | FQ5: 1 | FR5: SNS - Norte
H6: Se faltar algum aluno nas listagens, insira-o no início ou no fim desta listagem. | EB6: Se faltar algum docente nas listagens, insira-o aqui. | FO6: 0SOL | FQ6: 2 | FR6: SNS - Centro
A7: Ref | B7: ATN | C7: Esc Ano | D7: Escola | E7: Ano/Turma | F7: Sala | G7: Esc ASE | H7: Nº P | I7: Aº | J7: Tª | K7: Nº | L7: Nome Abrev | M7: ASE | N7: SS | O7: Nº SS | P7: MD | Q7: Ano Turma | R7: Contacto EE | EB7: Prof. / Educ. / Ass. | EC7: Escola | ED7: Grupo | EE7: NC | EL7: Nº de Alunos / Escola | EW7: Nº Alunos / Ciclo | FC7: J1 | FE7: J3 | FG7: J5 | FI7: JP | FO7: 0SALA1 | FQ7: 3 | FR7: SNS - LVT
B8: =CONCATENATE(E8,K8) ->  | C8: =IF(E8="","",CONCATENATE(D8,I8)) ->  | D8: =IF(E8="","",IF(E8=0,"",VLOOKUP(E8,$EW$23:$EY$134,2,FALSE))) ->  | E8: =IF(L8="","",IF(OR(RIGHT(J8,2)="E5",RIGHT(J8,2)="E6",RIGHT(J8,2)="E8",LEFT(J8,3)="CEF"),J8,IF(I8=0,J8,CONCATENATE(I8,J8)))) ->  | F8: =IF(I8="","",IF(I8=0,J8,IF(AND(I8>0,I8<5,LEFT(J8,3)<>"CEF"),RIGHT(J8,2),"E23"))) ->  | G8: =CONCATENATE(D8,M8) ->  | Q8: =IF(I8="","",IF(I8=0,J8,IF(OR(RIGHT(J8,2)="E5",RIGHT(J8,2)="E6",RIGHT(J8,2)="E8"),J8,CONCATENATE(I8,J8)))) ->  | EB8: EDUCADORAS | FC8: AMAR | FE8: ESTRE | FG8: Sala1 | FI8: PALM | FO8: 0PALM | FQ8: 4 | FR8: SNS - Alentejo
B9: =CONCATENATE(E9,K9) ->  | C9: =IF(E9="","",CONCATENATE(D9,I9)) ->  | Q9: =IF(I9="","",IF(I9=0,J9,IF(OR(RIGHT(J9,2)="E5",RIGHT(J9,2)="E6",RIGHT(J9,2)="E8"),J9,CONCATENATE(I9,J9)))) ->  | EG9: Ano | EH9: JP | EI9: J1 | EJ9: J3 | EK9: J5 | EL9: E5 | EM9: E6 | EN9: E8 | EO9: PAM | EP9: AC S | EQ9: AC P | ER9: AC V | ES9: AC | ET9: Totais | EW9: Ciclo | EX9: Totais | EY9: Média /Ano Esc | FC9: AZUL | FE9: LUA | FO9: 1A-E5 | FQ9: 5 | FR9: SNS - Algarve
EB10: Florbela Matos | ED10: 100 | EE10: 647 | EG10: 0 | EH10: =COUNTIF($C$8:$C$2508,CONCATENATE($EH$9,$EG10)) -> 18 | EI10: =COUNTIF($C$8:$C$2508,CONCATENATE($EI$9,$EG10)) -> 69 | EJ10: =COUNTIF($C$8:$C$2508,CONCATENATE($EJ$9,$EG10)) -> 59 | EK10: =COUNTIF($C$8:$C$2508,CONCATENATE($EK$9,$EG10)) -> 25 | ET10: =SUM(EH10:ER10) -> 171 | EW10: Pré | EX10: =ET10 -> 171 | FC10: VMLH | FE10: SOL | FO10: 1A-E6 | FQ10: 6 | FR10: ADSE
C11: =IF(E11="","",CONCATENATE(D11,I11)) ->  | EB11: Graça Oliveira | ED11: 100 | EE11: 639 | EG11: 1 | EL11: =COUNTIF($C$8:$C$2508,CONCATENATE($EL$9,$EG11)) -> 26 | EM11: =COUNTIF($C$8:$C$2508,CONCATENATE($EM$9,$EG11)) -> 20 | EN11: =COUNTIF($C$8:$C$2508,CONCATENATE($EN$9,$EG11)) -> 36 | ET11: =SUM(EH11:ER11) -> 82 | EW11: 1ºCiclo | EX11: =SUM(ET11:ET14) -> 392 | EY11: =ROUND(EX11/4,0) -> 98 | FO11: 1A-E8 | FQ11: 7 | FR11: ADME
EB12: Helena Esteves | ED12: 100 | EE12: 398 | EG12: 2 | EL12: =COUNTIF($C$8:$C$2508,CONCATENATE($EL$9,$EG12)) -> 25 | EM12: =COUNTIF($C$8:$C$2508,CONCATENATE($EM$9,$EG12)) -> 27 | EN12: =COUNTIF($C$8:$C$2508,CONCATENATE($EN$9,$EG12)) -> 44 | ET12: =SUM(EH12:ER12) -> 96 | EW12: 2ºCiclo | EX12: =SUM(ET15:ET16) -> 215 | EY12: =ROUND(EX12/2,0) -> 108 | FO12: 1B-E8 | FQ12: 8 | FR12: ADMA
A13: 1 | B13: AMAR1 | C13: J10 | D13: =IF(E13="","",IF(E13=0,"",VLOOKUP(E13,$EW$23:$EY$134,2,FALSE))) -> J1 | E13: AMAR | F13: AMAR | G13: J1A | H13: 21002 | I13: 0 | J13: AMAR | K13: 1 | L13: Daniel Couto | M13: A | N13: SNS - LVT | O13: 362930884 | Q13: AMAR | R13: 963321550 | EB13: Júlia Soares | ED13: 100 | EE13: 734 | EG13: 3 | EL13: =COUNTIF($C$8:$C$2508,CONCATENATE($EL$9,$EG13)) -> 26 | EM13: =COUNTIF($C$8:$C$2508,CONCATENATE($EM$9,$EG13)) -> 56 | EN13: =COUNTIF($C$8:$C$2508,CONCATENATE($EN$9,$EG13)) -> 39 | ET13: 121 | EW13: 3ºCiclo | EX13: =SUM(EO17:EO19) -> 344 | EY13: =ROUND(EX13/3,0) -> 115 | FO13: 2A-E5 | FQ13: 9 | FR13: ADMFA
A14: =1+A13 -> 2 | B14: AMAR2 | C14: J10 | D14: =IF(E14="","",IF(E14=0,"",VLOOKUP(E14,$EW$23:$EY$134,2,FALSE))) -> J1 | E14: AMAR | F14: AMAR | G14: J1 | H14: 21373 | I14: 0 | J14: AMAR | K14: 2 | L14: David Pinto | O14: 356241997 | Q14: AMAR | R14: 913405719 | EB14: Julieta Magalhães | ED14: 100 | EE14: 480 | EG14: 4 | EL14: =COUNTIF($C$8:$C$2508,CONCATENATE($EL$9,$EG14)) -> 24 | EM14: =COUNTIF($C$8:$C$2508,CONCATENATE($EM$9,$EG14)) -> 26 | EN14: =COUNTIF($C$8:$C$2508,CONCATENATE($EN$9,$EG14)) -> 43 | ET14: 93 | EW14: 3ºCiclo Voc | EX14: =SUM(ER17:ER19) -> 51 | EY14: =ROUND(EX14/3,0) -> 17 | FO14: 2A-E6 | FQ14: 10 | FR14: ADMGNR
A15: 3 | B15: AMAR3 | C15: J10 | D15: J1 | E15: AMAR | F15: AMAR | G15: J1B | H15: 20416 | I15: 0 | J15: AMAR | K15: 3 | L15: Diogo Graça | M15: B | N15: SNS - LVT | O15: 312045100 | Q15: AMAR | R15: 961803660 | EB15: Lina Cardoso | ED15: 100 | EE15: 711 | EG15: 5 | EO15: =COUNTIF($C$8:$C$2508,CONCATENATE($EO$9,$EG15)) -> 105 | ET15: 105 | EW15: Sec. Regular | EX15: =SUM(EP20:EP22) -> 447 | EY15: =ROUND(EX15/3,0) -> 149 | FO15: 2A-E8 | FQ15: 11 | FR15: SAD - PSP
A16: 4 | B16: AMAR4 | C16: J10 | D16: J1 | E16: AMAR | F16: AMAR | G16: J1A | H16: 20996 | I16: 0 | J16: AMAR | K16: 4 | L16: Ezequiel Dias | M16: A | N16: SNS - LVT | O16: 389074910 | Q16: AMAR | R16: 933507264 | EB16: Lisa Gonçalves | ED16: 100 | EE16: 1196 | EG16: 6 | EO16: =COUNTIF($C$8:$C$2508,CONCATENATE($EO$9,$EG16)) -> 110 | ET16: 110 | EW16: Sec. Profissional | EX16: =SUM(EQ20:EQ22) -> 333 | EY16: =ROUND(EX16/3,0) -> 111 | FO16: 2B-E8 | FQ16: 12 | FR16: SS - CGD
A17: 5 | B17: AMAR5 | C17: J10 | D17: J1 | E17: AMAR | F17: AMAR | G17: J1 | H17: 20978 | I17: 0 | J17: AMAR | K17: 5 | L17: Filipe Antunes | O17: 363018530 | Q17: AMAR | R17: 962804134 | EB17: Perpétua Alves | ED17: 100 | EE17: 400 | EG17: 7 | EO17: =COUNTIF($C$8:$C$2508,CONCATENATE($EO$9,$EG17)) -> 113 | ER17: =COUNTIF($C$8:$C$2508,CONCATENATE($ER$9,LEFT($EG17,1))) -> 24 | ES17: =SUM(EP17:ER17) -> 24 | ET17: 137 | EW17: Sec. Voc | EX17: =SUM(ER20:ER22) -> 44 | EY17: =ROUND(EX17/2,0) -> 22 | FO17: 3A-E5 | FQ17: 13 | FR17: SAMS - Bancários N
A18: 6 | B18: AMAR6 | C18: J10 | D18: J1 | E18: AMAR | F18: AMAR | G18: J1 | H18: 21329 | I18: 0 | J18: AMAR | K18: 6 | L18: Hélio Polite | N18: SNS - LVT | O18: 354575397 | Q18: AMAR | R18: 920041731 | EB18: Susana Canas | ED18: 100 | EE18: 1059 | EG18: 8 | EO18: =COUNTIF($C$8:$C$2508,CONCATENATE($EO$9,$EG18)) -> 116 | ET18: 116 | EW18: Total | EX18: =SUM(EX10:EX17) -> 1997 | FC18: E5 | FE18: E6 | FG18: E8 | FI18: E8 | FO18: 3A-E6 | FQ18: 14 | FR18: SAMS - Bancários C
A19: 7 | B19: AMAR7 | C19: J10 | D19: J1 | E19: AMAR | F19: AMAR | G19: J1B | H19: 21322 | I19: 0 | J19: AMAR | K19: 7 | L19: Iara Sequeiro | M19: B | N19: SNS - LVT | O19: 363040755 | Q19: AMAR | R19: 933640024 | EG19: 9 | EO19: =COUNTIF($C$8:$C$2508,CONCATENATE($EO$9,$EG19)) -> 115 | ER19: =COUNTIF($C$8:$C$2508,CONCATENATE($ER$9,LEFT($EG19,1))) -> 27 | ES19: =SUM(EP19:ER19) -> 27 | ET19: 142 | FC19: 1A-E5 | FE19: 1A-E6 | FG19: 1A-E8 | FO19: 3B-E6 | FQ19: 15 | FR19: SAMS - Bancários S I
A20: 8 | B20: AMAR8 | C20: J10 | D20: J1 | E20: AMAR | F20: AMAR | G20: J1A | H20: 21252 | I20: 0 | J20: AMAR | K20: 8 | L20: Inês Pinto | M20: A | N20: SNS - LVT | O20: 363033442 | Q20: AMAR | R20: 925518799 | EG20: 10 | EP20: =COUNTIF($C$8:$C$2508,CONCATENATE($EP$9,$EG20)) -> 148 | EQ20: =COUNTIF($C$8:$C$2508,CONCATENATE($EQ$9,$EG20)) -> 122 | ER20: =COUNTIF($C$8:$C$2508,CONCATENATE($ER$9,$EG20)) -> 31 | ES20: 301 | ET20: 301 | FC20: 2A-E5 | FE20: 2A-E6 | FG20: 1B-E8 | FO20: 3C-E6 | FQ20: 16 | FR20: CNSD - Profissionais
A21: 9 | B21: AMAR9 | C21: J10 | D21: J1 | E21: AMAR | F21: AMAR | G21: J1B | H21: 20423 | I21: 0 | J21: AMAR | K21: 9 | L21: João Novais | M21: B | N21: SNS - LVT | O21: 363126262 | Q21: AMAR | R21: 915360360 | EB21: DOCENTES - EB1 | EG21: 11 | EP21: =COUNTIF($C$8:$C$2508,CONCATENATE($EP$9,$EG21)) -> 159 | EQ21: =COUNTIF($C$8:$C$2508,CONCATENATE($EQ$9,$EG21)) -> 92 | ER21: =COUNTIF($C$8:$C$2508,CONCATENATE($ER$9,$EG21)) -> 13 | ES21: 264 | ET21: 264 | EY21: =SUM(EY23:EY132) -> 1997 | FC21: 3A-E5 | FE21: 3A-E6 | FG21: 2A-E8 | FO21: 3A-E8 | FQ21: 17 | FR21: CFP - CP
A22: 10 | B22: AMAR10 | C22: J10 | D22: J1 | E22: AMAR | F22: AMAR | G22: J1 | H22: 21012 | I22: 0 | J22: AMAR | K22: 10 | L22: Lara Sampaio | N22: SNS - LVT | O22: 356089331 | Q22: AMAR | R22: 926249280 | EG22: 12 | EP22: =COUNTIF($C$8:$C$2508,CONCATENATE($EP$9,$EG22)) -> 140 | EQ22: =COUNTIF($C$8:$C$2508,CONCATENATE($EQ$9,$EG22)) -> 119 | ER22: =COUNTIF($C$8:$C$2508,CONCATENATE($ER$9,$EG22)) -> 0 | ES22: 259 | ET22: =SUM(EH22:ER22) -> 259 | EW22: Turmas | EX22: Escola | EY22: NºAlunos | FC22: 4A-E5 | FE22: 3B-E6 | FG22: 2B-E8 | FO22: 3B-E8 | FQ22: 18 | FR22: SSA - Porto de Lisboa
A23: 11 | B23: AMAR11 | C23: J10 | D23: J1 | E23: AMAR | F23: AMAR | G23: J1A | H23: 20998 | I23: 0 | J23: AMAR | K23: 11 | L23: Lara Dias | M23: A | N23: SNS - LVT | O23: 363107080 | Q23: AMAR | R23: 962607511 | EB23: Carla Domingos | ED23: 110 | EE23: 578 | EG23: Totais | EH23: =SUM(EH10:EH22) -> 18 | EI23: =SUM(EI10:EI22) -> 69 | EJ23: =SUM(EJ10:EJ22) -> 59 | EK23: =SUM(EK10:EK22) -> 25 | EL23: =SUM(EL10:EL22) -> 101 | EM23: =SUM(EM10:EM22) -> 129 | EN23: =SUM(EN10:EN22) -> 162 | EO23: =SUM(EO10:EO22) -> 559 | EP23: =SUM(EP10:EP22) -> 447 | EQ23: =SUM(EQ10:EQ22) -> 333 | ER23: =SUM(ER10:ER22) -> 95 | ES23: 875 | ET23: =SUM(EH23:ER23) -> 1997 | EW23: AMAR | EX23: J1 | EY23: =COUNTIF($E$8:$E$2508,EW23) -> 24 | FE23: 3C-E6 | FG23: 3A-E8 | FO23: 4A-E5 | FQ23: 19 | FR23: SSA - Portos Douro e Leixões
A24: 12 | B24: AMAR12 | C24: J10 | D24: J1 | E24: AMAR | F24: AMAR | G24: J1A | H24: 20997 | I24: 0 | J24: AMAR | K24: 12 | L24: Lisandro Duarte | M24: A | N24: SNS - LVT | O24: 363008819 | Q24: AMAR | R24: 966728065 | EB24: Cláudia Couveiro | ED24: 110 | EE24: 469 | EW24: AZUL | EX24: J1 | EY24: =COUNTIF($E$8:$E$2508,EW24) -> 20 | FE24: 4A-E6 | FG24: 3B-E8 | FO24: 4A-E6 | FQ24: 20 | FR24: SSA - Porto de Lisboa
A25: 13 | B25: AMAR13 | C25: J10 | D25: J1 | E25: AMAR | F25: AMAR | G25: J1A | H25: 21001 | I25: 0 | J25: AMAR | K25: 13 | L25: Lúcia Neves | M25: A | N25: SNS - LVT | O25: 362974527 | Q25: AMAR | R25: 919398768 | EB25: Etelvina Teixeira | ED25: 110 | EE25: 693 | EG25: ASE A | EH25: =COUNTIF($G$8:$G$2508,CONCATENATE($EH$9,"A")) -> 9 | EI25: =COUNTIF($G$8:$G$2508,CONCATENATE($EI$9,"A")) -> 20 | EJ25: =COUNTIF($G$8:$G$2508,CONCATENATE($EJ$9,"A")) -> 12 | EK25: =COUNTIF($G$8:$G$2508,CONCATENATE($EK$9,"A")) -> 7 | EL25: =COUNTIF($G$8:$G$2508,CONCATENATE($EL$9,"A")) -> 26 | EM25: =COUNTIF($G$8:$G$2508,CONCATENATE($EM$9,"A")) -> 47 | EN25: =COUNTIF($G$8:$G$2508,CONCATENATE($EN$9,"A")) -> 51 | EO25: =COUNTIF($G$8:$G$2508,CONCATENATE($EO$9,"A")) -> 137 | EP25: =COUNTIF($G$8:$G$2508,CONCATENATE($EP$9,"A")) -> 69 | EQ25: =COUNTIF($G$8:$G$2508,CONCATENATE($EQ$9,"A")) -> 77 | ER25: =COUNTIF($G$8:$G$2508,CONCATENATE($ER$9,"A")) -> 29 | ES25: =SUM(EP25:ER25) -> 175 | ET25: =SUM(EH25:ER25) -> 484 | EU25: =ET25/$ET$23 -> 0.2423635453 | EW25: VMLH | EX25: J1 | EY25: 25 | FG25: 4A-E8 | FO25: 4A-E8 | FQ25: 99 | FR25: Outro
A26: 14 | B26: AMAR14 | C26: J10 | D26: J1 | E26: AMAR | F26: AMAR | G26: J1B | H26: 21387 | I26: 0 | J26: AMAR | K26: 14 | L26: Luís Amareleja | M26: B | N26: SNS - LVT | O26: 35587367 | Q26: AMAR | R26: 964510394 | EB26: Fátima Soares | ED26: 110 | EE26: 577 | EG26: ASE B | EH26: =COUNTIF($G$8:$G$2508,CONCATENATE($EH$9,"B")) -> 0 | EI26: =COUNTIF($G$8:$G$2508,CONCATENATE($EI$9,"B")) -> 10 | EJ26: =COUNTIF($G$8:$G$2508,CONCATENATE($EJ$9,"B")) -> 7 | EK26: =COUNTIF($G$8:$G$2508,CONCATENATE($EK$9,"B")) -> 4 | EL26: =COUNTIF($G$8:$G$2508,CONCATENATE($EL$9,"B")) -> 23 | EM26: =COUNTIF($G$8:$G$2508,CONCATENATE($EM$9,"B")) -> 12 | EN26: =COUNTIF($G$8:$G$2508,CONCATENATE($EN$9,"B")) -> 17 | EO26: =COUNTIF($G$8:$G$2508,CONCATENATE($EO$9,"B")) -> 70 | EP26: =COUNTIF($G$8:$G$2508,CONCATENATE($EP$9,"B")) -> 55 | EQ26: =COUNTIF($G$8:$G$2508,CONCATENATE($EQ$9,"B")) -> 44 | ER26: =COUNTIF($G$8:$G$2508,CONCATENATE($ER$9,"B")) -> 15 | ES26: 114 | ET26: =SUM(EH26:ER26) -> 257 | EU26: =ET26/$ET$23 -> 0.1286930396 | EW26: ESTRE | EX26: J3 | EY26: 20 | FG26: 4B-E8 | FO26: 4B-E8
A27: 15 | B27: AMAR15 | C27: J10 | D27: J1 | E27: AMAR | F27: AMAR | G27: J1 | H27: 21354 | I27: 0 | J27: AMAR | K27: 15 | L27: Margarida Batista | N27: SNS - LVT | O27: 312045564 | Q27: AMAR | R27: 926588993 | EB27: Gracinda Charneca | ED27: 110 | EE27: 410 | EG27: ASE T | EH27: =EH25+EH26 -> 9 | EI27: 30 | EJ27: 19 | EK27: 11 | EL27: 49 | EM27: 59 | EN27: 68 | EO27: 207 | EP27: 124 | EQ27: =EQ25+EQ26 -> 121 | ER27: =ER25+ER26 -> 44 | ES27: =SUM(EP27:ER27) -> 289 | ET27: =ET25+ET26 -> 741 | EU27: =ET27/$ET$23 -> 0.3710565849 | EW27: LUA | EX27: J3 | EY27: 19 | FO27: 5A
A28: 16 | B28: AMAR16 | C28: J10 | D28: J1 | E28: AMAR | F28: AMAR | G28: J1 | H28: 21004 | I28: 0 | J28: AMAR | K28: 16 | L28: Martim Vinhais | N28: SNS - LVT | O28: 358278182 | Q28: AMAR | R28: 961778079 | EB28: Helena Antunes | ED28: 110 | EE28: 633 | EW28: SOL | EX28: J3 | EY28: 20 | FO28: 5B
A29: 17 | B29: AMAR17 | C29: J10 | D29: J1 | E29: AMAR | F29: AMAR | G29: J1 | H29: 21331 | I29: 0 | J29: AMAR | K29: 17 | L29: Melissa Ferraz | O29: 356072990 | Q29: AMAR | R29: 913736299 | EB29: Ilda Santos | ED29: 110 | EE29: 1197 | EW29: SALA1 | EX29: J5 | EY29: 25 | FC29: Turma | FE29: Turma | FG29: Turma | FI29: Turma | FK29: Turma | FM29: Turma | FO29: 5C
A30: 18 | B30: AMAR18 | C30: J10 | D30: J1 | E30: AMAR | F30: AMAR | G30: J1A | H30: 20982 | I30: 0 | J30: AMAR | K30: 18 | L30: Nuria Guedes | M30: A | N30: SNS - LVT | O30: 358645164 | Q30: AMAR | R30: 911863195 | EB30: Isabel Colaço | ED30: 110 | EE30: 685 | EW30: PALM | EX30: JP | EY30: 18 | FC30: 5A | FE30: 6A | FG30: 7A | FI30: 8A | FK30: 9A | FM30: 7F | FO30: 5D
A31: 19 | B31: AMAR19 | C31: J10 | D31: J1 | E31: AMAR | F31: AMAR | G31: J1 | H31: 20986 | I31: 0 | J31: AMAR | K31: 19 | L31: Rodrigo Mariano | N31: SNS - LVT | O31: 362965692 | Q31: AMAR | R31: 917035817 | EB31: Isilda Gomes | ED31: 110 | EE31: 474 | EW31: 1A-E5 | EX31: =RIGHT(EW31,2) -> E5 | EY31: 26 | FC31: 5B | FE31: 6B | FG31: 7B | FI31: 8B | FK31: 9B | FM31: 9F | FO31: 5E
A32: 20 | B32: AMAR20 | C32: J10 | D32: J1 | E32: AMAR | F32: AMAR | G32: J1A | H32: 20995 | I32: 0 | J32: AMAR | K32: 20 | L32: Rui Silva | M32: A | N32: SNS - LVT | O32: 308065573 | Q32: AMAR | R32: 932242289 | EB32: João Soares | ED32: 110 | EE32: 1204 | EW32: 1A-E6 | EX32: E6 | EY32: 20 | FC32: 5C | FE32: 6C | FG32: 7C | FI32: 8C | FK32: 9C | FM32: 9G | FO32: 6A
A33: 21 | B33: AMAR21 | C33: J10 | D33: J1 | E33: AMAR | F33: AMAR | G33: J1 | H33: 20949 | I33: 0 | J33: AMAR | K33: 21 | L33: Samuel Abrantes | O33: 382938483 | Q33: AMAR | R33: 938885638 | EB33: Joaquina Ruivo | ED33: 110 | EE33: 473 | EW33: 1A-E8 | EX33: E8 | EY33: 18 | FC33: 5D | FE33: 6D | FG33: 7D | FI33: 8D | FK33: 9D | FO33: 6B
A34: 22 | B34: AMAR22 | C34: J10 | D34: J1 | E34: AMAR | F34: AMAR | G34: J1 | H34: 20408 | I34: 0 | J34: AMAR | K34: 22 | L34: Sofia Brito | N34: SNS - LVT | O34: 304698946 | Q34: AMAR | R34: 963204277 | EB34: Mafalda Antunes | ED34: 110 | EE34: 467 | EW34: 1B-E8 | EX34: E8 | EY34: 25 | FC34: 5E | FE34: 6E | FG34: 7E | FI34: 8E | FK34: 9E | FO34: 6C
A35: 23 | B35: AMAR23 | C35: J10 | D35: J1 | E35: AMAR | F35: AMAR | G35: J1A | H35: 21323 | I35: 0 | J35: AMAR | K35: 23 | L35: Tiago Cabaço | M35: A | N35: SNS - LVT | O35: 362745604 | Q35: AMAR | R35: 926780804 | EB35: Manuela Costa | ED35: 110 | EE35: 406 | EW35: 2A-E5 | EX35: E5 | EY35: 25 | FO35: 6D
A36: 24 | B36: AMAR24 | C36: J10 | D36: J1 | E36: AMAR | F36: AMAR | G36: J1B | H36: 21334 | I36: 0 | J36: AMAR | K36: 24 | L36: Vitória Marques | M36: B | N36: SNS - LVT | O36: 355881709 | Q36: AMAR | R36: 933870900 | EB36: Mário Azevedo | ED36: 110 | EE36: 712 | EW36: 2A-E6 | EX36: E6 | EY36: 24 | FO36: 6E
A37: 25 | B37: AZUL1 | C37: J10 | D37: J1 | E37: AZUL | F37: AZUL | G37: J1 | H37: 20975 | I37: 0 | J37: AZUL | K37: 1 | L37: Ana Santos | O37: 306844990 | Q37: AZUL | R37: 920084920 | EB37: Natacha Cardoso | ED37: 110 | EE37: 1198 | EW37: 2A-E8 | EX37: E8 | EY37: 18 | FO37: 7A
A38: 26 | B38: AZUL2 | C38: J10 | D38: J1 | E38: AZUL | F38: AZUL | G38: J1B | H38: 21325 | I38: 0 | J38: AZUL | K38: 2 | L38: Bianca Fernandes | M38: B | N38: SNS - LVT | O38: 356154359 | Q38: AZUL | R38: 968304064 | EB38: Paula Velhinho | ED38: 110 | EE38: 717 | EW38: 2B-E8 | EX38: E8 | EY38: 19 | FO38: 7B
A39: 27 | B39: AZUL3 | C39: J10 | D39: J1 | E39: AZUL | F39: AZUL | G39: J1 | H39: 20980 | I39: 0 | J39: AZUL | K39: 3 | L39: Daniela Figueiredo | O39: 360452110 | Q39: AZUL | R39: 967227599 | EB39: Paulo Gomes | ED39: 110 | EE39: 687 | EW39: 3A-E5 | EX39: E5 | EY39: 26 | FO39: 7C
A40: 28 | B40: AZUL4 | C40: J10 | D40: J1 | E40: AZUL | F40: AZUL | G40: J1B | H40: 21011 | I40: 0 | J40: AZUL | K40: 4 | L40: Dinis Guerreiro | M40: B | N40: SNS - LVT | O40: 356229337 | Q40: AZUL | R40: 917641326 | EB40: Sandra Carrasqueira | ED40: 110 | EE40: 686 | EW40: 3A-E6 | EX40: E6 | EY40: 24 | FC40: Turma | FE40: Turma | FG40: Turma | FI40: Turma | FK40: Turma | FM40: Turma | FO40: 7D
A41: 29 | B41: AZUL5 | C41: J10 | D41: J1 | E41: AZUL | F41: AZUL | G41: J1A | H41: 20977 | I41: 0 | J41: AZUL | K41: 5 | L41: Iris Pedroso | M41: A | N41: SNS - LVT | O41: 363118965 | Q41: AZUL | R41: 964562247 | EB41: Sandra Silvares | ED41: 110 | EE41: 544 | EW41: 3B-E6 | EX41: E6 | EY41: 20 | FC41: 10A | FE41: 11A | FG41: 12A | FI41: 10G | FK41: 11H | FM41: 12F | FO41: 7E
A42: 30 | B42: AZUL6 | C42: J10 | D42: J1 | E42: AZUL | F42: AZUL | G42: J1 | H42: 20484 | I42: 0 | J42: AZUL | K42: 6 | L42: José Benedito | N42: SNS - LVT | O42: 308469157 | Q42: AZUL | R42: 969361126 | EB42: Sandra Vinhas | ED42: 110 | EE42: 1202 | EW42: 3C-E6 | EX42: E6 | EY42: 17 | FC42: 10B | FE42: 11B | FG42: 12B | FI42: 10H | FK42: 11I | FM42: 12G | FO42: 7F
A43: 31 | B43: AZUL7 | C43: J10 | D43: J1 | E43: AZUL | F43: AZUL | G43: J1A | H43: 20979 | I43: 0 | J43: AZUL | K43: 7 | L43: Leandro Guedes | M43: A | N43: SNS - LVT | O43: 989819038 | Q43: AZUL | R43: 965716571 | EB43: Sónia Candeias | ED43: 110 | EE43: 1208 | EW43: 3A-E8 | EX43: E8 | EY43: 20 | FC43: 10C | FE43: 11C | FG43: 12C | FI43: 10I | FK43: 11J | FM43: 12H | FO43: 8A
A44: 32 | B44: AZUL8 | C44: J10 | D44: J1 | E44: AZUL | F44: AZUL | G44: J1 | H44: 20974 | I44: 0 | J44: AZUL | K44: 8 | L44: Leonardo Ventura | N44: SNS - LVT | O44: 305228277 | Q44: AZUL | R44: 963936287 | EB44: Sónia Cardador | ED44: 110 | EE44: 522 | EW44: 3B-E8 | EX44: E8 | EY44: 19 | FC44: 10D | FE44: 11D | FG44: 12D | FI44: 10J | FK44: 11K | FM44: 12I | FO44: 8B
A45: 33 | B45: AZUL9 | C45: J10 | D45: J1 | E45: AZUL | F45: AZUL | G45: J1 | H45: 21303 | I45: 0 | J45: AZUL | K45: 9 | L45: Martim Miranda | O45: 363130063 | Q45: AZUL | R45: 916063515 | EB45: Teresa Serras | ED45: 110 | EE45: 455 | EW45: 4A-E5 | EX45: E5 | EY45: 24 | FC45: 10E | FE45: 11E | FG45: 12E | FI45: 10K | FK45: 11L | FM45: 12J | FO45: 8C
A46: 34 | B46: AZUL10 | C46: J10 | D46: J1 | E46: AZUL | F46: AZUL | G46: J1A | H46: 20994 | I46: 0 | J46: AZUL | K46: 10 | L46: Miriam Ferreira | M46: A | N46: SNS - LVT | O46: 317040918 | Q46: AZUL | R46: 913048290 | EB46: Verónica Alpalhão | ED46: 110 | EE46: 634 | EW46: 4A-E6 | EX46: E6 | EY46: 24 | FC46: 10F | FE46: 11F | FK46: 11M | FM46: 12K | FO46: 8D
A47: 35 | B47: AZUL11 | C47: J10 | D47: J1 | E47: AZUL | F47: AZUL | G47: J1 | H47: 20415 | I47: 0 | J47: AZUL | K47: 11 | L47: Philipp Santos | N47: SNS - LVT | O47: 993997263 | Q47: AZUL | R47: 912314454 | EW47: 4A-E8 | EX47: E8 | EY47: 18 | FE47: 11G | FM47: 12L | FO47: 8E
A48: 36 | B48: AZUL12 | C48: J10 | D48: J1 | E48: AZUL | F48: AZUL | G48: J1 | H48: 20413 | I48: 0 | J48: AZUL | K48: 12 | L48: Rafael Calvinho | N48: SNS - LVT | O48: 313005499 | Q48: AZUL | R48: 925510157 | EW48: 4B-E8 | EX48: =RIGHT(EW48,2) -> E8 | EY48: 25 | FO48: 9A
A49: 37 | B49: AZUL13 | C49: J10 | D49: J1 | E49: AZUL | F49: AZUL | G49: J1 | H49: 20973 | I49: 0 | J49: AZUL | K49: 13 | L49: Rodrigo Vinagre | O49: 308873380 | Q49: AZUL | R49: 966695736 | EB49: EDUCAÇÂO ESPECIAL | EW49: 5A | EX49: PAM | EY49: 19 | FO49: 9B
A50: 38 | B50: AZUL14 | C50: J10 | D50: J1 | E50: AZUL | F50: AZUL | G50: J1 | H50: 20972 | I50: 0 | J50: AZUL | K50: 14 | L50: Sofia Silva | O50: 309602644 | Q50: AZUL | R50: 967125027 | EW50: 5B | EX50: PAM | EY50: 20 | FO50: 9C
A51: 39 | B51: AZUL15 | C51: J10 | D51: J1 | E51: AZUL | F51: AZUL | G51: J1A | H51: 20969 | I51: 0 | J51: AZUL | K51: 15 | L51: Tamára Bolota | M51: A | N51: SNS - LVT | O51: 309255787 | Q51: AZUL | R51: 934867636 | EB51: Ana Rego | ED51: 910 | EE51: 1231 | EW51: 5C | EX51: PAM | EY51: 27 | FO51: 9D
A52: 40 | B52: AZUL16 | C52: J10 | D52: J1 | E52: AZUL | F52: AZUL | G52: J1 | H52: 21319 | I52: 0 | J52: AZUL | K52: 16 | L52: Tiago Sousa | O52: 312188874 | Q52: AZUL | R52: 961093374 | EB52: Ana Rosado | ED52: 910 | EE52: 19 | EW52: 5D | EX52: PAM | EY52: 21 | FO52: 9E
A53: 41 | B53: AZUL17 | C53: J10 | D53: J1 | E53: AZUL | F53: AZUL | G53: J1 | H53: 20976 | I53: 0 | J53: AZUL | K53: 17 | L53: Tiago Costa | N53: SNS - LVT | O53: 371910016 | Q53: AZUL | R53: 212160800 | EB53: Clotilde Nascimento | ED53: 910 | EE53: 721 | EW53: 5E | EX53: PAM | EY53: 18 | FO53: 9F
A54: 42 | B54: AZUL18 | C54: J10 | D54: J1 | E54: AZUL | F54: AZUL | G54: J1 | H54: 21677 | I54: 0 | J54: AZUL | K54: 18 | L54: Alana Mendes | N54: SNS - LVT | O54: 984482494 | Q54: AZUL | R54: 969199115 | EB54: Elisa Algarvio | ED54: 910 | EE54: 584 | EW54: 6A | EX54: PAM | EY54: 22 | FO54: 9G
A55: 43 | B55: AZUL19 | C55: J10 | D55: J1 | E55: AZUL | F55: AZUL | G55: J1 | H55: 21337 | I55: 0 | J55: AZUL | K55: 19 | L55: Yara Lopes | O55: 355795153 | Q55: AZUL | R55: 919156922 | EB55: Mª José Rosado | ED55: 910 | EE55: 476 | EW55: 6B | EX55: PAM | EY55: 21 | FO55: 10A
A56: 44 | B56: AZUL20 | C56: J10 | D56: J1 | E56: AZUL | F56: AZUL | G56: J1 | H56: 21345 | I56: 0 | J56: AZUL | K56: 20 | L56: Iris Batista | N56: SNS - LVT | O56: 355664717 | Q56: AZUL | R56: 937660392 | EB56: Paula Roças | ED56: 910 | EE56: 718 | EW56: 6C | EX56: PAM | EY56: 23 | FO56: 10B
A57: 45 | B57: ESTRE1 | C57: J30 | D57: J3 | E57: ESTRE | F57: ESTRE | G57: J3 | H57: 21355 | I57: 0 | J57: ESTRE | K57: 1 | L57: Afonso Rodrigues | O57: 0 | Q57: ESTRE | R57: 935994265 | EB57: Rosa Puga | ED57: 910 | EE57: 1082 | EW57: 6D | EX57: PAM | EY57: 25 | FO57: 10C
A58: 46 | B58: ESTRE2 | C58: J30 | D58: J3 | E58: ESTRE | F58: ESTRE | G58: J3 | H58: 20999 | I58: 0 | J58: ESTRE | K58: 2 | L58: Daniel Velez | N58: SNS - LVT | O58: 363099835 | Q58: ESTRE | R58: 916683359 | EB58: Susana Castim | ED58: 910 | EE58: 745 | EW58: 6E | EX58: PAM | EY58: 19 | FO58: 10D
A59: 47 | B59: ESTRE3 | C59: J30 | D59: J3 | E59: ESTRE | F59: ESTRE | G59: J3 | H59: 21357 | I59: 0 | J59: ESTRE | K59: 3 | L59: Dinis Trilho | O59: 304640153 | Q59: ESTRE | R59: 966894929 | EB59: Tânia Couveiro | ED59: 910 | EE59: 1237 | EW59: 7A | EX59: PAM | EY59: 19 | FO59: 10E
A60: 48 | B60: ESTRE4 | C60: J30 | D60: J3 | E60: ESTRE | F60: ESTRE | G60: J3 | H60: 21379 | I60: 0 | J60: ESTRE | K60: 4 | L60: Diogo Montani | O60: 355894380 | Q60: ESTRE | R60: 916938021 | EB60: Sérgio Rocha | ED60: 999 | EE60: 1124 | EW60: 7B | EX60: PAM | EY60: 28 | FO60: 10F
A61: 49 | B61: ESTRE5 | C61: J30 | D61: J3 | E61: ESTRE | F61: ESTRE | G61: J3 | H61: 21374 | I61: 0 | J61: ESTRE | K61: 5 | L61: Eduardo Costa | O61: 356226517 | Q61: ESTRE | R61: 963552909 | EW61: 7C | EX61: PAM | EY61: 23 | FO61: 10G
A62: 50 | B62: ESTRE6 | C62: J30 | D62: J3 | E62: ESTRE | F62: ESTRE | G62: J3 | H62: 21382 | I62: 0 | J62: ESTRE | K62: 6 | L62: Gonçalo Casimiro | O62: 356063288 | Q62: ESTRE | R62: 968392368 | EW62: 7D | EX62: PAM | EY62: 20 | FO62: 10H
A63: 51 | B63: ESTRE7 | C63: J30 | D63: J3 | E63: ESTRE | F63: ESTRE | G63: J3B | H63: 20948 | I63: 0 | J63: ESTRE | K63: 7 | L63: Joana tavares | M63: B | N63: SNS - LVT | O63: 304601252 | Q63: ESTRE | R63: 212026629 | EB63: DOCENTES - EB23/S | EW63: 7E | EX63: PAM | EY63: 23 | FO63: 10I
A64: 52 | B64: ESTRE8 | C64: J30 | D64: J3 | E64: ESTRE | F64: ESTRE | G64: J3A | H64: 21376 | I64: 0 | J64: ESTRE | K64: 8 | L64: João Berjano | M64: A | N64: SNS - LVT | O64: 356123747 | Q64: ESTRE | R64: 962140323 | EW64: 7F | EX64: AC V | EY64: 24 | FO64: 10J
A65: 53 | B65: ESTRE9 | C65: J30 | D65: J3 | E65: ESTRE | F65: ESTRE | G65: J3 | H65: 20963 | I65: 0 | J65: ESTRE | K65: 9 | L65: Lia Ramos | O65: 275269477 | Q65: ESTRE | R65: 935869240 | EB65: Adriana Santos | ED65: 430 | EE65: 780 | EW65: 8A | EX65: PAM | EY65: 24 | FO65: 10K
A66: 54 | B66: ESTRE10 | C66: J30 | D66: J3 | E66: ESTRE | F66: ESTRE | G66: J3 | H66: 21362 | I66: 0 | J66: ESTRE | K66: 10 | L66: Madalena Lourenço | O66: 360004559 | Q66: ESTRE | R66: 969871254 | EB66: Agostinho Monteiro | ED66: 300 | EE66: 784 | EW66: 8B | EX66: PAM | EY66: 24 | FO66: 11A
A67: 55 | B67: ESTRE11 | C67: J30 | D67: J3 | E67: ESTRE | F67: ESTRE | G67: J3A | H67: 21254 | I67: 0 | J67: ESTRE | K67: 11 | L67: Mariana Ribeiro | M67: A | N67: SNS - LVT | O67: 356210842 | Q67: ESTRE | R67: 964607132 | EB67: Alexandra Ruivo | ED67: 300 | EE67: 783 | EW67: 8C | EX67: PAM | EY67: 23 | FO67: 11B
A68: 56 | B68: ESTRE12 | C68: J30 | D68: J3 | E68: ESTRE | F68: ESTRE | G68: J3 | H68: 21377 | I68: 0 | J68: ESTRE | K68: 12 | L68: Martim Cerqueira | O68: 356174925 | Q68: ESTRE | R68: 962656699 | EB68: Ana Batalha | ED68: 410 | EE68: 875 | EW68: 8D | EX68: PAM | EY68: 25 | FO68: 11C
A69: 57 | B69: ESTRE13 | C69: J30 | D69: J3 | E69: ESTRE | F69: ESTRE | G69: J3 | H69: 21378 | I69: 0 | J69: ESTRE | K69: 13 | L69: Matilde Alves | O69: 356172737 | Q69: ESTRE | R69: 939458204 | EB69: Ana Bento | ED69: 400 | EE69: 97 | EW69: 8E | EX69: PAM | EY69: 20 | FO69: 11D
A70: 58 | B70: ESTRE14 | C70: J30 | D70: J3 | E70: ESTRE | F70: ESTRE | G70: J3 | H70: 21359 | I70: 0 | J70: ESTRE | K70: 14 | L70: 0 | O70: 634105 | Q70: ESTRE | EB70: Ana Camões | ED70: 330 | EE70: 828 | EW70: 9A | EX70: PAM | EY70: 24 | FO70: 11E
A71: 59 | B71: ESTRE15 | C71: J30 | D71: J3 | E71: ESTRE | F71: ESTRE | G71: J3A | H71: 21372 | I71: 0 | J71: ESTRE | K71: 15 | L71: Pedro Miranda | M71: A | N71: SNS - LVT | O71: 356246894 | Q71: ESTRE | R71: 963821479 | EB71: Ana Canas | ED71: 500 | EE71: 840 | EW71: 9B | EX71: PAM | EY71: 24 | FO71: 11F
A72: 60 | B72: ESTRE16 | C72: J30 | D72: J3 | E72: =IF(L72="","",IF(OR(RIGHT(J72,2)="E5",RIGHT(J72,2)="E6",RIGHT(J72,2)="E8",LEFT(J72,3)="CEF"),J72,IF(I72=0,J72,CONCATENATE(I72,J72)))) -> ESTRE | F72: =IF(I72="","",IF(I72=0,J72,IF(AND(I72>0,I72<5,LEFT(J72,3)<>"CEF"),RIGHT(J72,2),"E23"))) -> ESTRE | G72: =CONCATENATE(D72,M72) -> J3A | H72: 21358 | I72: 0 | J72: ESTRE | K72: 16 | L72: Tiago Santos | M72: A | N72: SNS - LVT | O72: 305818269 | Q72: ESTRE | R72: 913350074 | EB72: Ana Carmo | ED72: 220 | EE72: 641 | EW72: 9C | EX72: PAM | EY72: 21 | FO72: 11G
A73: =1+A72 -> 61 | B73: =CONCATENATE(E73,K73) -> ESTRE17 | C73: J30 | D73: J3 | E73: ESTRE | F73: ESTRE | G73: J3 | H73: 21375 | I73: 0 | J73: ESTRE | K73: 17 | L73: Vanessa Carvalho | O73: 356202328 | Q73: =IF(I73="","",IF(I73=0,J73,IF(OR(RIGHT(J73,2)="E5",RIGHT(J73,2)="E6",RIGHT(J73,2)="E8"),J73,CONCATENATE(I73,J73)))) -> ESTRE | R73: 936131150 | EB73: Ana Paula Costa | ED73: 430 | EE73: 855 | EW73: 9D | EX73: PAM | EY73: 21 | FO73: 11H
A74: 62 | B74: ESTRE18 | C74: J30 | D74: J3 | E74: ESTRE | F74: ESTRE | G74: J3 | H74: 21371 | I74: 0 | J74: ESTRE | K74: 18 | L74: Xing Qi | O74: 356249452 | Q74: ESTRE | R74: 968845822 | EB74: Ana Paula Dias | ED74: 430 | EE74: 830 | EW74: 9E | EX74: PAM | EY74: 25 | FO74: 11I
A75: 63 | B75: ESTRE19 | C75: =IF(E75="","",CONCATENATE(D75,I75)) -> J30 | D75: J3 | E75: ESTRE | F75: ESTRE | G75: J3A | H75: 21338 | I75: 0 | J75: ESTRE | K75: 19 | L75: Kevin Gideão | M75: A | N75: SNS - LVT | O75: 355773989 | Q75: ESTRE | R75: 963584821 | EB75: Ana Paula Lopes | ED75: 530 | EE75: 1242 | EW75: 9F | EX75: AC V | EY75: 12 | FO75: 11J
A76: 64 | B76: ESTRE20 | C76: J30 | D76: J3 | E76: ESTRE | F76: ESTRE | G76: J3 | H76: 21531 | I76: 0 | J76: ESTRE | K76: 20 | L76: Tiago Barroso | N76: SNS - LVT | O76: 355431217 | Q76: ESTRE | R76: 964406030 | EB76: Ana Silva | ED76: 510 | EE76: 630 | EW76: 9G | EX76: AC V | EY76: 15 | FO76: 11K
A77: 65 | B77: LUA1 | C77: J30 | D77: J3 | E77: LUA | F77: LUA | G77: J3B | H77: 21258 | I77: 0 | J77: LUA | K77: 1 | L77: Catarina Pereira | M77: B | N77: SNS - LVT | O77: 356396420 | Q77: LUA | R77: 966633083 | EB77: Ana Silva | ED77: 620 | EE77: 1065 | EW77: 10A | EX77: AC S | EY77: 23 | FO77: 11L
A78: 66 | B78: LUA2 | C78: J30 | D78: =IF(E78="","",IF(E78=0,"",VLOOKUP(E78,$EW$23:$EY$134,2,FALSE))) -> J3 | E78: LUA | F78: LUA | G78: J3A | H78: 21361 | I78: 0 | J78: LUA | K78: 2 | L78: Daniel Silva | M78: A | N78: SNS - LVT | O78: 360032171 | Q78: LUA | R78: 931633478 | EB78: Ana Soares | ED78: 410 | EE78: 884 | EW78: 10B | EX78: AC S | EY78: 18 | FO78: 11M
A79: 67 | B79: LUA3 | C79: J30 | D79: J3 | E79: LUA | F79: LUA | G79: J3A | H79: 21310 | I79: 0 | J79: LUA | K79: 3 | L79: David Pinto | M79: A | N79: SNS - LVT | O79: 355583169 | Q79: LUA | R79: 965399241 | EB79: Ana Verdasca | ED79: 510 | EE79: 833 | EW79: 10C | EX79: AC S | EY79: 30 | FO79: 11N
A80: 68 | B80: LUA4 | C80: J30 | D80: J3 | E80: LUA | F80: LUA | G80: J3 | H80: 20943 | I80: 0 | J80: LUA | K80: 4 | L80: Diego Martim das Dores Soares | N80: SNS - LVT | O80: 309066428 | Q80: LUA | R80: 218061945 | EB80: Anabela Cardoso | ED80: 620 | EE80: 1063 | EW80: 10D | EX80: AC S | EY80: 25 | FO80: 12A
A81: 69 | B81: LUA5 | C81: J30 | D81: J3 | E81: LUA | F81: LUA | G81: J3 | H81: 21368 | I81: 0 | J81: LUA | K81: 5 | L81: Emma Tarnavetskyy | N81: SNS - LVT | O81: 356283692 | Q81: LUA | R81: 967015737 | EB81: Anabela Piquete | ED81: 530 | EE81: 30 | EW81: 10E | EX81: AC S | EY81: 27 | FO81: 12B
A82: 70 | B82: LUA6 | C82: J30 | D82: J3 | E82: LUA | F82: LUA | G82: J3 | H82: 21007 | I82: 0 | J82: LUA | K82: 6 | L82: Íris Tinoco | N82: SNS - LVT | O82: 994770128 | Q82: LUA | R82: 910755651 | EB82: Anabela Rosmaninho | ED82: 410 | EE82: 874 | EW82: 10F | EX82: AC S | EY82: 25 | FO82: 12C
A83: 71 | B83: LUA7 | C83: J30 | D83: J3 | E83: LUA | F83: LUA | G83: J3A | H83: 21363 | I83: 0 | J83: LUA | K83: 7 | L83: Leano Monteiro | M83: A | N83: SNS - LVT | O83: 359081439 | Q83: LUA | R83: 913007297 | EB83: Anabela Soares | ED83: 400 | EE83: 831 | EW83: 10G | EX83: AC V | EY83: 31 | FO83: 12D
A84: 72 | B84: LUA8 | C84: J30 | D84: J3 | E84: LUA | F84: LUA | G84: J3A | H84: 20482 | I84: 0 | J84: LUA | K84: 8 | L84: Leonor | M84: A | N84: SNS - LVT | O84: 371922927 | Q84: LUA | R84: 218201058 | EB84: André Sousa | ED84: 620 | EE84: 1199 | EW84: 10H | EX84: AC P | EY84: 32 | FO84: 12E
A85: 73 | B85: LUA9 | C85: J30 | D85: J3 | E85: LUA | F85: LUA | G85: J3 | H85: 21385 | I85: 0 | J85: LUA | K85: 9 | L85: Lucas Garcia | O85: 990950189 | Q85: LUA | R85: 911132598 | EB85: António Alves | ED85: 240 | EE85: 575 | EW85: 10I | EX85: AC P | EY85: 27 | FO85: 12F
A86: 74 | B86: LUA10 | C86: J30 | D86: J3 | E86: LUA | F86: LUA | G86: J3 | H86: 21360 | I86: 0 | J86: LUA | K86: 10 | L86: Mariana Mateus | O86: 360764908 | Q86: LUA | R86: 965552368 | EB86: António Campos | ED86: 240 | EE86: 1192 | EW86: 10J | EX86: AC P | EY86: 34 | FO86: 12G
A87: 75 | B87: LUA11 | C87: J30 | D87: J3 | E87: LUA | F87: LUA | G87: J3 | H87: 21259 | I87: 0 | J87: LUA | K87: 11 | L87: Martim Batista | N87: SNS - LVT | O87: 356186654 | Q87: LUA | R87: 966322959 | EB87: António Pereira | ED87: 400 | EE87: 235 | EW87: 10K | EX87: AC P | EY87: 29 | FO87: 12H
A88: 76 | B88: LUA12 | C88: J30 | D88: J3 | E88: LUA | F88: LUA | G88: J3 | H88: 20937 | I88: 0 | J88: LUA | K88: 12 | L88: Miguel Santiago Garcia Ruivo | N88: SNS - LVT | O88: 358903009 | Q88: LUA | R88: 214402564 | EB88: Antonio Serro | ED88: 200 | EE88: 496 | EW88: 11A | EX88: AC S | EY88: =COUNTIF($E$8:$E$2508,EW88) -> 25 | FO88: 12I
A89: 77 | B89: LUA13 | C89: J30 | D89: J3 | E89: LUA | F89: LUA | G89: J3 | H89: 21366 | I89: 0 | J89: LUA | K89: 13 | L89: Nadia Isabel | O89: 356332333 | Q89: LUA | R89: 914312478 | EB89: Armando Pedrosa | ED89: 510 | EE89: 853 | EW89: 11B | EX89: AC S | EY89: 23 | FO89: 12J
A90: 78 | B90: LUA14 | C90: J30 | D90: J3 | E90: LUA | F90: LUA | G90: J3 | H90: 20424 | I90: 0 | J90: LUA | K90: 14 | L90: Nelson Cadeirinhas | N90: SNS - LVT | O90: 363207881 | Q90: LUA | R90: 212049492 | EB90: Bárbara Esteves | ED90: 300 | EE90: 782 | EW90: 11C | EX90: AC S | EY90: 21 | FO90: 12K
A91: 79 | B91: LUA15 | C91: J30 | D91: J3 | E91: LUA | F91: LUA | G91: J3A | H91: 20851 | I91: 0 | J91: LUA | K91: 15 | L91: Núria Benbelgagem | M91: A | N91: SNS - LVT | O91: 305179441 | Q91: LUA | R91: 913575249 | EB91: Berta Sucena | ED91: 410 | EE91: 1191 | EW91: 11D | EX91: AC S | EY91: 22 | FO91: 12L
A92: 80 | B92: LUA16 | C92: J30 | D92: J3 | E92: LUA | F92: LUA | G92: J3B | H92: 20947 | I92: 0 | J92: LUA | K92: 16 | L92: Rodrigo Malacute | M92: B | N92: SNS - LVT | O92: 305421692 | Q92: LUA | R92: 961508347 | EB92: Carlos Santos | ED92: 550 | EE92: 869 | EW92: 11E | EX92: AC S | EY92: 23
A93: 81 | B93: LUA17 | C93: J30 | D93: J3 | E93: LUA | F93: LUA | G93: J3B | H93: 21289 | I93: 0 | J93: LUA | K93: 17 | L93: Steven Yang | M93: B | N93: SNS - LVT | O93: 171662341 | Q93: LUA | R93: 910383483 | EB93: Catarina Figueiredo | ED93: 400 | EE93: 1246 | EW93: 11F | EX93: AC S | EY93: 27
A94: 82 | B94: LUA18 | C94: J30 | D94: J3 | E94: LUA | F94: LUA | G94: J3 | H94: 20940 | I94: 0 | J94: LUA | K94: 18 | L94: Tiago Luís Guia dos Santos | O94: 312688705 | Q94: LUA | R94: 968847676 | EB94: Catarina Freitas | ED94: 620 | EE94: 1216 | EW94: 11G | EX94: AC S | EY94: 18
A95: 83 | B95: LUA19 | C95: J30 | D95: J3 | E95: LUA | F95: LUA | G95: J3 | H95: 20939 | I95: 0 | J95: LUA | K95: 19 | L95: Tomás Bartolomeu Costa G. Rosa | N95: SNS - LVT | O95: 312415241 | Q95: LUA | R95: 966115051 | EB95: Cecília Santos | ED95: 200 | EE95: 1203 | EW95: 11H | EX95: AC P | EY95: 30
A96: 84 | B96: PALM1 | C96: JP0 | D96: JP | E96: PALM | F96: PALM | G96: JPA | H96: 21009 | I96: 0 | J96: PALM | K96: 1 | L96: Candice Ramos | M96: A | N96: SNS - LVT | O96: 356402625 | Q96: PALM | R96: 912023892 | EB96: Celestino Mendes | ED96: 510 | EE96: 186 | EW96: 11I | EX96: AC V | EY96: 13
A97: 85 | B97: PALM2 | C97: JP0 | D97: JP | E97: PALM | F97: PALM | G97: JPA | H97: 21658 | I97: 0 | J97: PALM | K97: 2 | L97: Daniela Martins | M97: A | N97: SNS - LVT | O97: 0 | Q97: PALM | R97: 963678780 | EB97: Célia Corujo | ED97: 400 | EE97: 899 | EW97: 11J | EX97: AC P | EY97: 12
A98: 86 | B98: PALM3 | C98: JP0 | D98: JP | E98: PALM | F98: PALM | G98: JP | H98: 21678 | I98: 0 | J98: PALM | K98: 3 | L98: Filipe Melo | N98: SNS - LVT | O98: 355035014 | Q98: PALM | R98: 938337389 | EB98: Cesaltina Martinho | ED98: 300 | EE98: 785 | EW98: 11K | EX98: AC P | EY98: 18
A99: 87 | B99: PALM4 | C99: JP0 | D99: JP | E99: PALM | F99: PALM | G99: JPA | H99: 21532 | I99: 0 | J99: PALM | K99: 4 | L99: João Jerónimo | M99: A | N99: SNS - LVT | O99: 0 | Q99: PALM | R99: 920093477 | EB99: Clara Ribeiro | ED99: 300 | EE99: 781 | EW99: 11L | EX99: AC P | EY99: 11
A100: 88 | B100: PALM5 | C100: JP0 | D100: JP | E100: PALM | F100: PALM | G100: JPA | H100: 21314 | I100: 0 | J100: PALM | K100: 5 | L100: Jorge Gutierres | M100: A | N100: SNS - LVT | O100: 355292345 | Q100: PALM | R100: 936907388 | EB100: Clara Soares | ED100: 330 | EE100: 806 | EW100: 11M | EX100: AC P | EY100: 15
A101: 89 | B101: PALM6 | C101: JP0 | D101: JP | E101: PALM | F101: PALM | G101: JP | H101: 21356 | I101: 0 | J101: PALM | K101: 6 | L101: Leonardo Matias | O101: 493753723 | Q101: PALM | R101: 936087890 | EB101: Clarisse Sim | ED101: 260 | EE101: 1067 | EW101: 11N | EX101: AC P | EY101: 6
A102: 90 | B102: PALM7 | C102: JP0 | D102: JP | E102: PALM | F102: PALM | G102: JP | H102: 21312 | I102: 0 | J102: PALM | K102: 7 | L102: Leonardo Cabrita | N102: SNS - LVT | O102: 355483650 | Q102: PALM | R102: 926335755 | EB102: Claudio Chaparro | ED102: 420 | EE102: 1215 | EW102: 12A | EX102: AC S | EY102: 26
A103: 91 | B103: PALM8 | C103: JP0 | D103: JP | E103: PALM | F103: PALM | G103: JP | H103: 20430 | I103: 0 | J103: PALM | K103: 8 | L103: Luís Serrano | N103: SNS - LVT | O103: 313477282 | Q103: PALM | R103: 925547414 | EB103: Conceição Correia | ED103: 530 | EE103: 800 | EW103: 12B | EX103: AC S | EY103: 31
A104: 92 | B104: PALM9 | C104: JP0 | D104: JP | E104: PALM | F104: PALM | G104: JP | H104: 21217 | I104: 0 | J104: PALM | K104: 9 | L104: Maria Oliveira | N104: SNS - LVT | O104: 3566234764 | Q104: PALM | R104: 934585778 | EB104: Conceição Moura | ED104: 210 | EE104: 583 | EW104: 12C | EX104: AC S | EY104: 25
A105: 93 | B105: PALM10 | C105: JP0 | D105: JP | E105: PALM | F105: PALM | G105: JPA | H105: 21659 | I105: 0 | J105: PALM | K105: 10 | L105: Mariana Martins | M105: A | N105: SNS - LVT | O105: 0 | Q105: PALM | R105: 968347446 | EB105: Cristina Fortes | ED105: 300 | EE105: 827 | EW105: 12D | EX105: AC S | EY105: 27
A106: 94 | B106: PALM11 | C106: JP0 | D106: JP | E106: PALM | F106: PALM | G106: JP | H106: 21270 | I106: 0 | J106: PALM | K106: 11 | L106: Melanie Cachola | N106: SNS - LVT | O106: 355909456 | Q106: PALM | R106: 938337389 | EB106: Cristina Luis | ED106: 500 | EE106: 212 | EW106: 12E | EX106: AC S | EY106: 31
A107: 95 | B107: PALM12 | C107: JP0 | D107: JP | E107: PALM | F107: PALM | G107: JP | H107: 21313 | I107: 0 | J107: PALM | K107: 12 | L107: Melissa Cardoso | O107: 355457389 | Q107: PALM | R107: 927021466 | EB107: Cristina Melo | ED107: 620 | EE107: 44 | EW107: 12F | EX107: AC P | EY107: 25
A108: 96 | B108: PALM13 | C108: JP0 | D108: JP | E108: PALM | F108: PALM | G108: JP | H108: 21315 | I108: 0 | J108: PALM | K108: 13 | L108: Mirela Matias | O108: 305969968 | Q108: PALM | R108: 963895915 | EB108: Cristina Pimentel | ED108: 320 | EE108: 1209 | EW108: 12G | EX108: AC P | EY108: 8
A109: 97 | B109: PALM14 | C109: JP0 | D109: JP | E109: PALM | F109: PALM | G109: JPA | H109: 21308 | I109: 0 | J109: PALM | K109: 14 | L109: Rita Araujo | M109: A | N109: SNS - LVT | O109: 356499686 | Q109: PALM | EB109: Dolores Santos | ED109: 550 | EE109: 871 | EW109: 12H | EX109: AC P | EY109: 22
A110: 98 | B110: PALM15 | C110: JP0 | D110: JP | E110: PALM | F110: PALM | G110: JPA | H110: 20427 | I110: 0 | J110: PALM | K110: 15 | L110: Samanta Vitória | M110: A | N110: SNS - LVT | O110: 362951414 | Q110: PALM | R110: 925740940 | EB110: Dora Raio | ED110: 500 | EE110: 836 | EW110: 12I | EX110: AC P | EY110: 15
A111: 99 | B111: PALM16 | C111: JP0 | D111: JP | E111: PALM | F111: PALM | G111: JPA | H111: 20429 | I111: 0 | J111: PALM | K111: 16 | L111: Soraia Gutierres | M111: A | N111: SNS - LVT | O111: 304780364 | Q111: PALM | R111: 934831494 | EB111: Dulce Bandeira | ED111: 510 | EE111: 778 | EW111: 12J | EX111: AC P | EY111: 22
A112: 100 | B112: PALM17 | C112: JP0 | D112: JP | E112: PALM | F112: PALM | G112: JP | H112: 21271 | I112: 0 | J112: PALM | K112: 17 | L112: Steven Moreno | N112: SNS - LVT | O112: 0 | Q112: PALM | R112: 936838731 | EB112: Elina Machado | ED112: 320 | EE112: 786 | EW112: 12K | EX112: AC P | EY112: 14
A113: 101 | B113: PALM18 | C113: JP0 | D113: JP | E113: PALM | F113: PALM | G113: JPA | H113: 21667 | I113: 0 | J113: PALM | K113: 18 | L113: Vitorina Ramos | M113: A | N113: SNS - LVT | O113: 312228780 | Q113: PALM | R113: 924293723 | EB113: Elisabete Gonçalves | ED113: 410 | EE113: 1234 | EW113: 12L | EX113: AC P | EY113: 13
A114: 102 | B114: SALA11 | C114: J50 | D114: J5 | E114: SALA1 | F114: SALA1 | G114: J5A | H114: 20422 | I114: 0 | J114: SALA1 | K114: 1 | L114: Alberto Nunes | M114: A | N114: SNS - LVT | O114: 365730014 | Q114: SALA1 | R114: 933318321 | EB114: Elisabete Pama | ED114: 430 | EE114: 832 | EY114: 0
A115: 103 | B115: SALA12 | C115: J50 | D115: J5 | E115: SALA1 | F115: SALA1 | G115: J5A | H115: 20924 | I115: 0 | J115: SALA1 | K115: 2 | L115: Carolina Marques | M115: A | N115: SNS - LVT | O115: 312687743 | Q115: SALA1 | R115: 935707107 | EB115: Elsa Gomes | ED115: 350 | EE115: 1193 | EY115: 0
A116: 104 | B116: SALA13 | C116: J50 | D116: J5 | E116: SALA1 | F116: SALA1 | G116: J5 | H116: 21301 | I116: 0 | J116: SALA1 | K116: 3 | L116: Catarina Muge | O116: 306862874 | Q116: SALA1 | R116: 934427699 | EB116: Eugenia Pinheiro | ED116: 430 | EE116: 886 | EY116: 0
A117: 105 | B117: SALA14 | C117: J50 | D117: J5 | E117: SALA1 | F117: SALA1 | G117: J5B | H117: 20933 | I117: 0 | J117: SALA1 | K117: 4 | L117: Diogo Alexandre Vieira Gomes | M117: B | N117: SNS - LVT | O117: 362941593 | Q117: SALA1 | R117: 929306829 | EB117: Eulália Moreno | ED117: 240 | EE117: 454 | EY117: 0
A118: 106 | B118: SALA15 | C118: J50 | D118: J5 | E118: SALA1 | F118: SALA1 | G118: J5A | H118: 21386 | I118: 0 | J118: SALA1 | K118: 5 | L118: Gabriel Guilherme | M118: A | N118: SNS - LVT | O118: 355896264 | Q118: SALA1 | R118: 968918505 | EB118: Eva Crespo | ED118: 350 | EE118: 1239 | EY118: 0
A119: 107 | B119: SALA16 | C119: J50 | D119: J5 | E119: SALA1 | F119: SALA1 | G119: J5B | H119: 21304 | I119: 0 | J119: SALA1 | K119: 6 | L119: Guilherme Clement | M119: B | N119: SNS - LVT | O119: 360013479 | Q119: SALA1 | R119: 938412975 | EB119: Fatima Bernardo | ED119: 300 | EE119: 96 | EY119: 0
A120: 108 | B120: SALA17 | C120: J50 | D120: J5 | E120: SALA1 | F120: SALA1 | G120: J5 | H120: 20936 | I120: 0 | J120: SALA1 | K120: 7 | L120: Guilerme Filipe Silva Simôes | N120: SNS - LVT | O120: 359898324 | Q120: SALA1 | EB120: Fátima Fontinha | ED120: 330 | EE120: 789 | EY120: 0
A121: 109 | B121: SALA18 | C121: J50 | D121: J5 | E121: SALA1 | F121: SALA1 | G121: J5 | H121: 20953 | I121: 0 | J121: SALA1 | K121: 8 | L121: Inês Gonçalves | N121: SNS - LVT | O121: 863174366 | Q121: SALA1 | R121: 932800853 | EB121: Fátima Garnacho | ED121: 230 | EE121: 58
A122: 110 | B122: SALA19 | C122: J50 | D122: J5 | E122: SALA1 | F122: SALA1 | G122: J5 | H122: 20926 | I122: 0 | J122: SALA1 | K122: 9 | L122: Inês Agostinho | N122: SNS - LVT | O122: 309570619 | Q122: SALA1 | R122: 927751160 | EB122: Fátima Martins BG | ED122: 520 | EE122: 795
A123: 111 | B123: SALA110 | C123: J50 | D123: J5 | E123: SALA1 | F123: SALA1 | G123: J5 | H123: 21302 | I123: 0 | J123: SALA1 | K123: 10 | L123: Inês Lopes | N123: SNS - LVT | O123: 304587942 | Q123: SALA1 | R123: 939546739 | EB123: Fátima Martins Ing | ED123: 330 | EE123: 77
A124: 112 | B124: SALA111 | C124: J50 | D124: J5 | E124: SALA1 | F124: SALA1 | G124: J5B | H124: 20934 | I124: 0 | J124: SALA1 | K124: 11 | L124: Íris Libório Francisco | M124: B | N124: SNS - LVT | O124: 362917371 | Q124: SALA1 | R124: 916568475 | EB124: Fátima Pedreiro | ED124: 530 | EE124: 192
A125: 113 | B125: SALA112 | C125: J50 | D125: J5 | E125: SALA1 | F125: SALA1 | G125: J5 | H125: 20925 | I125: 0 | J125: SALA1 | K125: 12 | L125: Isaac Figueiredo | N125: SNS - LVT | O125: 311869918 | Q125: SALA1 | R125: 917719955 | EB125: Fátima Pereira | ED125: 550 | EE125: 849
A126: 114 | B126: SALA113 | C126: J50 | D126: J5 | E126: SALA1 | F126: SALA1 | G126: J5A | H126: 21305 | I126: 0 | J126: SALA1 | K126: 13 | L126: Israel Castanheiro | M126: A | N126: SNS - LVT | O126: 359268040 | Q126: SALA1 | R126: 965062584 | EB126: Fernanda Cristóvão | ED126: 430 | EE126: 821
A127: 115 | B127: SALA114 | C127: J50 | D127: J5 | E127: SALA1 | F127: SALA1 | G127: J5 | H127: 21340 | I127: 0 | J127: SALA1 | K127: 14 | L127: João Conduto | N127: SNS - LVT | O127: 355756591 | Q127: SALA1 | R127: 932157707 | EB127: Fernanda Delgado | ED127: 320 | EE127: 23
A128: 116 | B128: SALA115 | C128: J50 | D128: J5 | E128: SALA1 | F128: SALA1 | G128: J5A | H128: 20935 | I128: 0 | J128: SALA1 | K128: 15 | L128: Leticia Maria da Cruz Veiga | M128: A | N128: SNS - LVT | O128: 360032616 | Q128: SALA1 | R128: 915412414 | EB128: Fernanda Tibério | ED128: 620 | EE128: 894
A129: 117 | B129: SALA116 | C129: J50 | D129: J5 | E129: SALA1 | F129: SALA1 | G129: J5 | H129: 21657 | I129: 0 | J129: SALA1 | K129: 16 | L129: Lia Bernardeco | N129: SNS - LVT | O129: 356366002 | Q129: SALA1 | R129: 967429461 | EB129: Fernando Franco | ED129: 300 | EE129: 1194
A130: 118 | B130: SALA117 | C130: J50 | D130: J5 | E130: SALA1 | F130: SALA1 | G130: J5A | H130: 21299 | I130: 0 | J130: SALA1 | K130: 17 | L130: Maria Oliveira | M130: A | N130: SNS - LVT | O130: 312267648 | Q130: SALA1 | R130: 916159070 | EB130: Filomena Barroqueiro | ED130: 520 | EE130: 868
A131: 119 | B131: SALA118 | C131: J50 | D131: J5 | E131: SALA1 | F131: SALA1 | G131: J5 | H131: 20928 | I131: 0 | J131: SALA1 | K131: 18 | L131: Maria Mendes | N131: SNS - LVT | O131: 307881878 | Q131: SALA1 | R131: 927078313 | EB131: Filomena Maia | ED131: 420 | EE131: 861
A132: 120 | B132: SALA119 | C132: J50 | D132: J5 | E132: SALA1 | F132: SALA1 | G132: J5 | H132: 20930 | I132: 0 | J132: SALA1 | K132: 19 | L132: Mariana Costa | N132: SNS - LVT | O132: 306641349 | Q132: SALA1 | R132: 932680441 | EB132: Filomena Martins | ED132: 400 | EE132: 841
A133: 121 | B133: SALA120 | C133: J50 | D133: J5 | E133: SALA1 | F133: SALA1 | G133: J5 | H133: 21300 | I133: 0 | J133: SALA1 | K133: 20 | L133: Mariana Garcia | O133: 310183721 | Q133: SALA1 | R133: 967925069 | EB133: Francisco Bóia | ED133: 420 | EE133: 791
A134: 122 | B134: SALA121 | C134: J50 | D134: J5 | E134: SALA1 | F134: SALA1 | G134: J5 | H134: 21307 | I134: 0 | J134: SALA1 | K134: 21 | L134: Matilde Pais | O134: 356478419 | Q134: SALA1 | R134: 212026619 | EB134: Francisco Ferreira | ED134: 410 | EE134: 843
A135: 123 | B135: SALA122 | C135: J50 | D135: J5 | E135: SALA1 | F135: SALA1 | G135: J5 | H135: 21306 | I135: 0 | J135: SALA1 | K135: 22 | L135: Ricardo Canastra | O135: 3582644917 | Q135: SALA1 | R135: 968186571 | EB135: Georgina Cruz | ED135: 420 | EE135: 261
A136: 124 | B136: SALA123 | C136: J50 | D136: J5 | E136: =IF(L136="","",IF(OR(RIGHT(J136,2)="E5",RIGHT(J136,2)="E6",RIGHT(J136,2)="E8",LEFT(J136,3)="CEF"),J136,IF(I136=0,J136,CONCATENATE(I136,J136)))) -> SALA1 | F136: =IF(I136="","",IF(I136=0,J136,IF(AND(I136>0,I136<5,LEFT(J136,3)<>"CEF"),RIGHT(J136,2),"E23"))) -> SALA1 | G136: =CONCATENATE(D136,M136) -> J5B | H136: 20932 | I136: 0 | J136: SALA1 | K136: 23 | L136: Rúben Martim Oliveira Piedade | M136: B | N136: SNS - LVT | O136: 363010919 | Q136: SALA1 | R136: 916850728 | EB136: Gina Fortuna | ED136: 330 | EE136: 788
A137: =1+A136 -> 125 | B137: =CONCATENATE(E137,K137) -> SALA124 | C137: J50 | D137: J5 | E137: SALA1 | F137: SALA1 | G137: J5 | H137: 21256 | I137: 0 | J137: SALA1 | K137: 24 | L137: Salvador Machado | N137: SNS - LVT | O137: 356395599 | Q137: =IF(I137="","",IF(I137=0,J137,IF(OR(RIGHT(J137,2)="E5",RIGHT(J137,2)="E6",RIGHT(J137,2)="E8"),J137,CONCATENATE(I137,J137)))) -> SALA1 | R137: 914222735 | EB137: Graça Barrocas | ED137: 300 | EE137: 787
A138: 126 | B138: SALA125 | C138: J50 | D138: J5 | E138: SALA1 | F138: SALA1 | G138: J5A | H138: 21369 | I138: 0 | J138: SALA1 | K138: 25 | L138: William Lourenço | M138: A | N138: SNS - LVT | O138: 356265241 | Q138: SALA1 | R138: 932002319 | EB138: Graça Pereira | ED138: 520 | EE138: 796
A139: 127 | B139: SOL1 | C139: =IF(E139="","",CONCATENATE(D139,I139)) -> J30 | D139: J3 | E139: SOL | F139: SOL | G139: J3 | H139: 21253 | I139: 0 | J139: SOL | K139: 1 | L139: Dilan Rosário | N139: SNS - LVT | O139: 362972332 | Q139: SOL | R139: 926248802 | EB139: Graça Ribeiro | ED139: 520 | EE139: 1236
A140: 128 | B140: SOL2 | C140: J30 | D140: J3 | E140: SOL | F140: SOL | G140: J3 | H140: 21380 | I140: 0 | J140: SOL | K140: 2 | L140: Diogo Portela | O140: 356141652 | Q140: SOL | R140: 216037893 | EB140: Graça Silva | ED140: 520 | EE140: 793
A141: 129 | B141: SOL3 | C141: J30 | D141: J3 | E141: SOL | F141: SOL | G141: J3 | H141: 21251 | I141: 0 | J141: SOL | K141: 3 | L141: Eva Cristóvão | N141: SNS - LVT | O141: 356517234 | Q141: SOL | R141: 916232386 | EB141: Helder Silva | ED141: 620 | EE141: 829
A142: 130 | B142: SOL4 | C142: J30 | D142: =IF(E142="","",IF(E142=0,"",VLOOKUP(E142,$EW$23:$EY$134,2,FALSE))) -> J3 | E142: SOL | F142: SOL | G142: J3 | H142: 20968 | I142: 0 | J142: SOL | K142: 4 | L142: Francisco Quina | O142: 363030501 | Q142: SOL | R142: 968085216 | EB142: Helena Flores | ED142: 260 | EE142: 737
A143: 131 | B143: SOL5 | C143: J30 | D143: J3 | E143: SOL | F143: SOL | G143: J3A | H143: 20897 | I143: 0 | J143: SOL | K143: 5 | L143: Gonçalo Mendonça | M143: A | N143: SNS - LVT | O143: 363085164 | Q143: SOL | R143: 963574854 | EB143: Helena Vaz | ED143: 520 | EE143: 794
A144: 132 | B144: SOL6 | C144: J30 | D144: J3 | E144: SOL | F144: SOL | G144: J3 | H144: 21370 | I144: 0 | J144: SOL | K144: 6 | L144: Guilherme Azevedo | O144: 356131193 | Q144: SOL | R144: 916788331 | EB144: Irene Lopes | ED144: 400 | EE144: 628
A145: 133 | B145: SOL7 | C145: J30 | D145: J3 | E145: SOL | F145: SOL | G145: J3 | H145: 21367 | I145: 0 | J145: SOL | K145: 7 | L145: Gustavo Covas | O145: 992818029 | Q145: SOL | R145: 966360938 | EB145: Isabel Braga | ED145: 330 | EE145: 24
A146: 134 | B146: SOL8 | C146: J30 | D146: J3 | E146: SOL | F146: SOL | G146: J3B | H146: 21383 | I146: 0 | J146: SOL | K146: 8 | L146: Inês Santos | M146: B | N146: SNS - LVT | O146: 356010670 | Q146: SOL | R146: 917704055 | EB146: Isabel Carapinha | ED146: 210 | EE146: 248
A147: 135 | B147: SOL9 | C147: J30 | D147: J3 | E147: SOL | F147: SOL | G147: J3A | H147: 20961 | I147: 0 | J147: SOL | K147: 9 | L147: Ivan Andrade | M147: A | N147: SNS - LVT | O147: 360455428 | Q147: SOL | R147: 968935168 | EB147: Isabel Lourenço | ED147: 520 | EE147: 819
A148: 136 | B148: SOL10 | C148: J30 | D148: J3 | E148: SOL | F148: SOL | G148: J3 | H148: 20965 | I148: 0 | J148: SOL | K148: 10 | L148: Lara Gil | N148: SNS - LVT | O148: 306210942 | Q148: SOL | R148: 925376533 | EB148: Jessica Nova | ED148: 500 | EE148: 847
A149: 137 | B149: SOL11 | C149: J30 | D149: J3 | E149: SOL | F149: SOL | G149: J3 | H149: 20967 | I149: 0 | J149: SOL | K149: 11 | L149: Leonardo Quina | O149: 363030544 | Q149: SOL | R149: 915186605 | EB149: Joâo Pereira | ED149: 260 | EE149: 1226
A150: 138 | B150: SOL12 | C150: J30 | D150: J3 | E150: SOL | F150: SOL | G150: J3 | H150: 20960 | I150: 0 | J150: SOL | K150: 12 | L150: Letícia Monteiro | O150: 304698962 | Q150: SOL | R150: 963574854 | EB150: João Lopes | ED150: 420 | EE150: 629
A151: 139 | B151: SOL13 | C151: J30 | D151: J3 | E151: SOL | F151: SOL | G151: J3 | H151: 21381 | I151: 0 | J151: SOL | K151: 13 | L151: Luana Abrantes | O151: 356082510 | Q151: SOL | R151: 918615231 | EB151: João Navalho | ED151: 620 | EE151: 719
A152: 140 | B152: SOL14 | C152: J30 | D152: J3 | E152: SOL | F152: SOL | G152: J3 | H152: 21365 | I152: 0 | J152: SOL | K152: 14 | L152: Luana Fernades | O152: 0 | Q152: SOL | R152: 917205375 | EB152: João Ribeiro | ED152: 620 | EE152: 1060
A153: 141 | B153: SOL15 | C153: J30 | D153: J3 | E153: SOL | F153: SOL | G153: J3B | H153: 20962 | I153: 0 | J153: SOL | K153: 15 | L153: Marco Diogo | M153: B | N153: SNS - LVT | O153: 307843983 | Q153: SOL | R153: 966450030 | EB153: Joaquim Silva | ED153: 250 | EE153: 529
A154: 142 | B154: SOL16 | C154: J30 | D154: J3 | E154: SOL | F154: SOL | G154: J3B | H154: 20964 | I154: 0 | J154: SOL | K154: 16 | L154: Pedro Oliveira | M154: B | N154: SNS - LVT | O154: 304508430 | Q154: SOL | R154: 914073752 | EB154: José Carlos Sousa | ED154: 500 | EE154: 775
A155: 143 | B155: SOL17 | C155: J30 | D155: J3 | E155: SOL | F155: SOL | G155: J3 | H155: 21384 | I155: 0 | J155: SOL | K155: 17 | L155: Rafael Cândido | O155: 355917171 | Q155: SOL | R155: 936006736 | EB155: José Correia | ED155: 500 | EE155: 804
A156: 144 | B156: SOL18 | C156: J30 | D156: J3 | E156: SOL | F156: SOL | G156: J3 | H156: 20966 | I156: 0 | J156: SOL | K156: 18 | L156: Rodrigo Cabaça | O156: 305497892 | Q156: SOL | R156: 968281685 | EB156: José Toureiro | ED156: 620 | EE156: 842
A157: 145 | B157: SOL19 | C157: J30 | D157: J3 | E157: SOL | F157: SOL | G157: J3 | H157: 21364 | I157: 0 | J157: SOL | K157: 19 | L157: Ruben Melício | O157: 356369011 | Q157: SOL | R157: 911598859 | EB157: Josefa Cruz | ED157: 500 | EE157: 1195
A158: 146 | B158: SOL20 | C158: J30 | D158: J3 | E158: SOL | F158: SOL | G158: J3 | H158: 21335 | I158: 0 | J158: SOL | K158: 20 | L158: Martim Silva | O158: 355846075 | Q158: SOL | R158: 969433440 | EB158: Josete Oliveira | ED158: 320 | EE158: 822
A159: 147 | B159: VMLH1 | C159: J10 | D159: J1 | E159: VMLH | F159: VMLH | G159: J1 | H159: 20989 | I159: 0 | J159: VMLH | K159: 1 | L159: Bruna caeiro | O159: 361372385 | Q159: VMLH | R159: 929033816 | EB159: Lina Soares | ED159: 300 | EE159: 878
A160: 148 | B160: VMLH2 | C160: J10 | D160: J1 | E160: VMLH | F160: VMLH | G160: J1 | H160: 21353 | I160: 0 | J160: VMLH | K160: 2 | L160: Carolina Batista | N160: SNS - LVT | O160: 355583265 | Q160: VMLH | R160: 962786790 | EB160: Lúcia Ventura | ED160: 230 | EE160: 487
A161: 149 | B161: VMLH3 | C161: J10 | D161: J1 | E161: VMLH | F161: VMLH | G161: J1 | H161: 20988 | I161: 0 | J161: VMLH | K161: 3 | L161: Clara Rodrigues | O161: 362914742 | Q161: VMLH | R161: 926588993 | EB161: Luis Dourado | ED161: 550 | EE161: 879
A162: 150 | B162: VMLH4 | C162: J10 | D162: J1 | E162: VMLH | F162: VMLH | G162: J1 | H162: 21344 | I162: 0 | J162: VMLH | K162: 4 | L162: Constança Ruivo | N162: SNS - LVT | O162: 355691250 | Q162: VMLH | R162: 917744882 | EB162: Luisa Canilhas | ED162: 300 | EE162: 859
A163: 151 | B163: VMLH5 | C163: J10 | D163: J1 | E163: VMLH | F163: VMLH | G163: J1A | H163: 20793 | I163: 0 | J163: VMLH | K163: 5 | L163: Délcio Mané | M163: A | N163: SNS - LVT | O163: 355675718 | Q163: VMLH | R163: 968034541 | EB163: Lurdes Monteiro | ED163: 230 | EE163: 266
A164: 152 | B164: VMLH6 | C164: J10 | D164: J1 | E164: VMLH | F164: VMLH | G164: J1 | H164: 21324 | I164: 0 | J164: VMLH | K164: 6 | L164: Flávio Santos | O164: 358644715 | Q164: VMLH | R164: 962070182 | EB164: Lurdes Rodrigues | ED164: 530 | EE164: 798
A165: 153 | B165: VMLH7 | C165: J10 | D165: J1 | E165: VMLH | F165: VMLH | G165: J1B | H165: 20941 | I165: 0 | J165: VMLH | K165: 7 | L165: Guilherme Alexandre M. Lança | M165: B | N165: SNS - LVT | O165: 312586191 | Q165: VMLH | R165: 938669514 | EB165: Mª Céu Gomes | ED165: 530 | EE165: 31
A166: 154 | B166: VMLH8 | C166: J10 | D166: J1 | E166: VMLH | F166: VMLH | G166: J1A | H166: 20417 | I166: 0 | J166: VMLH | K166: 8 | L166: Guilherme Fernandes | M166: A | N166: SNS - LVT | O166: 310187675 | Q166: VMLH | R166: 964746952 | EB166: Mª Céu Jesus | ED166: 510 | EE166: 848
A167: 155 | B167: VMLH9 | C167: J10 | D167: J1 | E167: VMLH | F167: VMLH | G167: J1 | H167: 21257 | I167: 0 | J167: VMLH | K167: 9 | L167: Laura Tomás | N167: SNS - LVT | O167: 356423215 | Q167: VMLH | R167: 968459973 | EB167: Mª Céu Vicente | ED167: 300 | EE167: 1201
A168: 156 | B168: VMLH10 | C168: J10 | D168: J1 | E168: VMLH | F168: VMLH | G168: J1 | H168: 21328 | I168: 0 | J168: VMLH | K168: 10 | L168: Leonor Semedo | N168: SNS - LVT | O168: 356327602 | Q168: VMLH | R168: 934949010 | EB168: Mª João Bica | ED168: 250 | EE168: 727
A169: 157 | B169: VMLH11 | C169: J10 | D169: J1 | E169: VMLH | F169: VMLH | G169: J1A | H169: 21309 | I169: 0 | J169: VMLH | K169: 11 | L169: Letícia Gonçalves | M169: A | N169: SNS - LVT | O169: 0 | Q169: VMLH | R169: 930657943 | EB169: Mª João Grilo | ED169: 300 | EE169: 342
A170: 158 | B170: VMLH12 | C170: J10 | D170: J1 | E170: VMLH | F170: VMLH | G170: J1A | H170: 20421 | I170: 0 | J170: VMLH | K170: 12 | L170: Liedson Lopes | M170: A | N170: SNS - LVT | O170: 355302296 | Q170: VMLH | R170: 918242774 | EB170: Mª José Moreno | ED170: 230 | EE170: 310
A171: 159 | B171: VMLH13 | C171: J10 | D171: J1 | E171: VMLH | F171: VMLH | G171: J1A | H171: 20794 | I171: 0 | J171: VMLH | K171: 13 | L171: Luna Soares | M171: A | N171: SNS - LVT | O171: 311355504 | Q171: VMLH | R171: 966684257 | EB171: Mª Luz Cavaco | ED171: 230 | EE171: 138
A172: 160 | B172: VMLH14 | C172: J10 | D172: J1 | E172: VMLH | F172: VMLH | G172: J1 | H172: 20985 | I172: 0 | J172: VMLH | K172: 14 | L172: Maria Mendy | N172: SNS - LVT | O172: 362977465 | Q172: VMLH | R172: 927805191 | EB172: Manuel Russo | ED172: 550 | EE172: 880
A173: 161 | B173: VMLH15 | C173: J10 | D173: J1 | E173: VMLH | F173: VMLH | G173: J1 | H173: 21330 | I173: 0 | J173: VMLH | K173: 15 | L173: Marta | O173: 356133749 | Q173: VMLH | R173: 962556259 | EB173: Manuela Lopes | ED173: 300 | EE173: 204
A174: 162 | B174: VMLH16 | C174: J10 | D174: J1 | E174: VMLH | F174: VMLH | G174: J1 | H174: 21000 | I174: 0 | J174: VMLH | K174: 16 | L174: Miguel Marques | N174: SNS - LVT | O174: 363019284 | Q174: VMLH | R174: 914996017 | EB174: Marcial Tavares | ED174: 500 | EE174: 308
A175: 163 | B175: VMLH17 | C175: J10 | D175: J1 | E175: VMLH | F175: VMLH | G175: J1 | H175: 21245 | I175: 0 | J175: VMLH | K175: 17 | L175: Pedro Bento | N175: SNS - LVT | O175: 356202947 | Q175: VMLH | R175: 962040020 | EB175: Marco Garcia | ED175: 550 | EE175: 876
A176: 164 | B176: VMLH18 | C176: J10 | D176: J1 | E176: VMLH | F176: VMLH | G176: J1 | H176: 20987 | I176: 0 | J176: VMLH | K176: 18 | L176: Pedro Paulino | N176: SNS - LVT | O176: 362938740 | Q176: VMLH | R176: 210138370 | EB176: Margarida Ribeiro | ED176: 500 | EE176: 776
A177: 165 | B177: VMLH19 | C177: J10 | D177: J1 | E177: VMLH | F177: VMLH | G177: J1 | H177: 21320 | I177: 0 | J177: VMLH | K177: 19 | L177: Rafael Rôlo | O177: 306110831 | Q177: VMLH | R177: 962073857 | EB177: Maria Manuel Silva | ED177: 420 | EE177: 807
A178: 166 | B178: VMLH20 | C178: J10 | D178: J1 | E178: VMLH | F178: VMLH | G178: J1A | H178: 20795 | I178: 0 | J178: VMLH | K178: 20 | L178: Ricardo Trindade | M178: A | N178: SNS - LVT | O178: 312523122 | Q178: VMLH | R178: 963341906 | EB178: Mariana Alves | ED178: 400 | EE178: 28
A179: 167 | B179: VMLH21 | C179: J10 | D179: J1 | E179: VMLH | F179: VMLH | G179: J1 | H179: 20990 | I179: 0 | J179: VMLH | K179: 21 | L179: Rira Caeiro | O179: 361372221 | Q179: VMLH | R179: 962874742 | EB179: Marina Gomes | ED179: 510 | EE179: 777
A180: 168 | B180: VMLH22 | C180: J10 | D180: J1 | E180: VMLH | F180: =IF(I180="","",IF(I180=0,J180,IF(AND(I180>0,I180<5,LEFT(J180,3)<>"CEF"),RIGHT(J180,2),"E23"))) -> VMLH | G180: J1 | H180: 21326 | I180: 0 | J180: VMLH | K180: 22 | L180: Santiago Gomes | O180: 358262903 | Q180: VMLH | R180: 962786790 | EB180: Marina Nortadas | ED180: 500 | EE180: 92
A181: 169 | B181: VMLH23 | C181: J10 | D181: J1 | E181: VMLH | F181: VMLH | G181: J1B | H181: 21010 | I181: 0 | J181: VMLH | K181: 23 | L181: Tânia Pereira | M181: B | N181: SNS - LVT | O181: 356357218 | Q181: VMLH | R181: 916035860 | EB181: Marina Veloso | ED181: 550 | EE181: 1206
A182: 170 | B182: VMLH24 | C182: J10 | D182: J1 | E182: VMLH | F182: VMLH | G182: J1B | H182: 21327 | I182: 0 | J182: VMLH | K182: 24 | L182: Tiago Rodrigues | M182: B | N182: SNS - LVT | O182: 356421800 | Q182: VMLH | R182: 935420027 | EB182: Mário A Pereira | ED182: 430 | EE182: 1212
A183: 171 | B183: VMLH25 | C183: J10 | D183: J1 | E183: VMLH | F183: VMLH | G183: J1A | H183: 21675 | I183: 0 | J183: VMLH | K183: 25 | L183: Fábio Jones | M183: A | N183: SNS - LVT | O183: 363107862 | Q183: VMLH | R183: 927796366 | EB183: Mário Afonso | ED183: 550 | EE183: 835
A184: 172 | B184: 1A-E51 | C184: E51 | D184: E5 | E184: 1A-E5 | F184: E5 | G184: E5 | H184: 21294 | I184: 1 | J184: 1A-E5 | K184: 1 | L184: Afonso Alves | O184: 319851914 | Q184: 1A-E5 | R184: 917032464 | EB184: Mário Alves | ED184: 400 | EE184: 1235
A185: 173 | B185: 1A-E52 | C185: E51 | D185: E5 | E185: 1A-E5 | F185: E5 | G185: E5 | H185: 21296 | I185: 1 | J185: 1A-E5 | K185: 2 | L185: Beatriz Pascoa | N185: SNS - LVT | O185: 316246377 | Q185: 1A-E5 | R185: 962111497 | EB185: Mário Venceslau | ED185: 600 | EE185: 716
A186: 174 | B186: 1A-E53 | C186: E51 | D186: E5 | E186: 1A-E5 | F186: E5 | G186: E5A | H186: 20477 | I186: 1 | J186: 1A-E5 | K186: 3 | L186: Beatriz Berjano | M186: A | N186: SNS - LVT | O186: 313838278 | Q186: 1A-E5 | R186: 938698832 | EB186: Marlene Pereira | ED186: 210 | EE186: 732
A187: 175 | B187: 1A-E54 | C187: E51 | D187: E5 | E187: 1A-E5 | F187: E5 | G187: E5A | H187: 21405 | I187: 1 | J187: 1A-E5 | K187: 4 | L187: Bruno Carlos | M187: A | N187: SNS - LVT | O187: 313104372 | Q187: 1A-E5 | R187: 935869240 | EB187: Miguel Almeida | ED187: 330 | EE187: 1245
A188: 176 | B188: 1A-E55 | C188: E51 | D188: E5 | E188: 1A-E5 | F188: E5 | G188: E5 | H188: 20789 | I188: 1 | J188: 1A-E5 | K188: 5 | L188: Daniel Pereira | N188: SNS - LVT | O188: 323012575 | Q188: 1A-E5 | R188: 964224227 | EB188: Natália Nunes | ED188: 300 | EE188: 805
A189: 177 | B189: 1A-E56 | C189: E51 | D189: E5 | E189: 1A-E5 | F189: E5 | G189: E5 | H189: 20462 | I189: 1 | J189: 1A-E5 | K189: 6 | L189: David Batista | N189: SNS - LVT | O189: 321325132 | Q189: 1A-E5 | R189: 967655239 | EB189: Nelson Silva | ED189: 600 | EE189: 48
A190: 178 | B190: 1A-E57 | C190: E51 | D190: E5 | E190: 1A-E5 | F190: E5 | G190: E5A | H190: 21293 | I190: 1 | J190: 1A-E5 | K190: 7 | L190: Denilson Godinho | M190: A | N190: SNS - LVT | O190: 323890231 | Q190: 1A-E5 | R190: 962060957 | EB190: Nidia Santos | ED190: 330 | EE190: 824
A191: 179 | B191: 1A-E58 | C191: E51 | D191: E5 | E191: 1A-E5 | F191: E5 | G191: E5A | H191: 20468 | I191: 1 | J191: 1A-E5 | K191: 8 | L191: Diana Sadikova | M191: A | N191: SNS - LVT | O191: 319153507 | Q191: 1A-E5 | R191: 966526575 | EB191: Nuno Correia | ED191: 620 | EE191: 900
A192: 180 | B192: 1A-E59 | C192: E51 | D192: E5 | E192: 1A-E5 | F192: E5 | G192: E5 | H192: 21298 | I192: 1 | J192: 1A-E5 | K192: 9 | L192: Diogo Estadão | N192: SNS - LVT | O192: 307995867 | Q192: 1A-E5 | R192: 963404285 | EB192: Olga Grilo | ED192: 330 | EE192: 1210
A193: 181 | B193: 1A-E510 | C193: E51 | D193: E5 | E193: 1A-E5 | F193: E5 | G193: E5 | H193: 21317 | I193: 1 | J193: 1A-E5 | K193: 10 | L193: Gonçalo Valente | O193: 313639725 | Q193: 1A-E5 | R193: 212070425 | EB193: Olga Sousa | ED193: 220 | EE193: 714
A194: 182 | B194: 1A-E511 | C194: E51 | D194: E5 | E194: 1A-E5 | F194: E5 | G194: E5 | H194: 20476 | I194: 1 | J194: 1A-E5 | K194: 11 | L194: Gonçalo Santos | N194: SNS - LVT | O194: 318332576 | Q194: 1A-E5 | R194: 919590841 | EB194: Olinda Semedo | ED194: 500 | EE194: 774
A195: 183 | B195: 1A-E512 | C195: E51 | D195: E5 | E195: 1A-E5 | F195: E5 | G195: E5A | H195: 21406 | I195: 1 | J195: 1A-E5 | K195: 12 | L195: Guilherme Fernandes | M195: A | N195: SNS - LVT | O195: 383370308 | Q195: 1A-E5 | R195: 938260478 | EB195: Patrícia Mendes | ED195: 500 | EE195: 1213
A196: 184 | B196: 1A-E513 | C196: E51 | D196: E5 | E196: 1A-E5 | F196: E5 | G196: E5B | H196: 20921 | I196: 1 | J196: 1A-E5 | K196: 13 | L196: Jiale wu | M196: B | N196: SNS - LVT | O196: 318921798 | Q196: 1A-E5 | R196: 926110534 | EB196: Patrícia Quarenta | ED196: 330 | EE196: 1217
A197: 185 | B197: 1A-E514 | C197: E51 | D197: E5 | E197: 1A-E5 | F197: E5 | G197: E5A | H197: 20471 | I197: 1 | J197: 1A-E5 | K197: 14 | L197: Kushmeet Kaur | M197: A | N197: SNS - LVT | O197: 317740969 | Q197: 1A-E5 | R197: 968280387 | EB197: Paula Mendes | ED197: 220 | EE197: 390
A198: 186 | B198: 1A-E515 | C198: E51 | D198: E5 | E198: 1A-E5 | F198: E5 | G198: E5B | H198: 20952 | I198: 1 | J198: 1A-E5 | K198: 15 | L198: Laura Louro | M198: B | N198: SNS - LVT | O198: 240085607 | Q198: 1A-E5 | R198: 918456054 | EB198: Paula Pisa | ED198: 520 | EE198: 825
A199: 187 | B199: 1A-E516 | C199: E51 | D199: E5 | E199: 1A-E5 | F199: E5 | G199: E5B | H199: 21404 | I199: 1 | J199: 1A-E5 | K199: 16 | L199: Luna silva | M199: B | N199: SNS - LVT | O199: 996909448 | Q199: 1A-E5 | R199: 964811121 | EB199: Paula Silva | ED199: 620 | EE199: 55
A200: 188 | B200: 1A-E517 | C200: E51 | D200: E5 | E200: =IF(L200="","",IF(OR(RIGHT(J200,2)="E5",RIGHT(J200,2)="E6",RIGHT(J200,2)="E8",LEFT(J200,3)="CEF"),J200,IF(I200=0,J200,CONCATENATE(I200,J200)))) -> 1A-E5 | F200: =IF(I200="","",IF(I200=0,J200,IF(AND(I200>0,I200<5,LEFT(J200,3)<>"CEF"),RIGHT(J200,2),"E23"))) -> E5 | G200: =CONCATENATE(D200,M200) -> E5 | H200: 20479 | I200: 1 | J200: 1A-E5 | K200: 17 | L200: Madalena Roque | N200: SNS - LVT | O200: 313658076 | Q200: 1A-E5 | R200: 961972142 | EB200: Paula Simão | ED200: 230 | EE200: 642
... 3571 more rows

Sheet PLANO
G1: =DG!H1 -> Agrupamento de Escolas Augusto Cabrita | AL1: x
G2: =DG!H2 -> Sede – Escola Secundária Augusto Cabrita
G3: =DG!H3 -> Rua Maria Lamas – Alto Seixalinho – 2830-088 Barreiro
G4: =DG!H4 -> Tel 212059220 - Fax 212059228 - E-mail: direcao@aeaugustocabrita.edu.pt
B5: av
K6: =IF(AH6="X","PLANO DE VISITA DE ESTUDO","PLANO DE ativIDADE") -> PLANO DE VISITA DE ESTUDO | AG6: Visita de Estudo | AH6: x | AJ6: Assinalar com "X" no caso de Visitas de Estudo | AY6: =COUNTIF(AY9:AY147,"<>0") -> 91 | BA6: =IF($AK$36="X","Sala","Turma") -> Turma | BC6: =IF($AK$36="X","Sala","Turma") -> Turma | BE6: =IF($AK$36="X","Sala","Turma") -> Turma | BG6: =IF($AK$36="X","Sala","Turma") -> Turma | BI6: =IF($AK$36="X","Sala","Turma") -> Turma | BK6: =IF($AK$36="X","Sala","Turma") -> Turma | BP6: Prof. / Educ. / Ass. | BR6: Prof. / Educ. / Ass. | BT6: Prof. / Educ. / Ass.
AH7: x | AY7: Turmas | BA7: =IF($AK$36="x",DG!FC8,IF($AK$37="x",DG!FC19,IF($AK$38="x",DG!FC30,IF($AK$39="x",DG!FC41,IF($AK$40="x",AM38,""))))) -> 5A | BC7: =IF($AK$36="x",DG!FE8,IF($AK$37="x",DG!FE19,IF($AK$38="x",DG!FE30,IF($AK$39="x",DG!FE41,IF($AK$40="x",AO38,""))))) -> 6A | BE7: =IF($AK$36="x",DG!FG8,IF($AK$37="x",DG!FG19,IF($AK$38="x",DG!FG30,IF($AK$39="x",DG!FG41,IF($AK$40="x",AQ38,""))))) -> 7A | BG7: =IF($AK$36="x",DG!FI8,IF($AK$37="x",DG!FI19,IF($AK$38="x",DG!FI30,IF($AK$39="x",DG!FI41,IF($AK$40="x",AS38,""))))) -> 8A | BI7: =IF($AK$36="x",DG!FK8,IF($AK$37="x",DG!FK19,IF($AK$38="x",DG!FK30,IF($AK$39="x",DG!FK41,IF($AK$40="x",AU38,""))))) -> 9A | BK7: =IF($AK$36="x",DG!FM8,IF($AK$37="x",DG!FM19,IF($AK$38="x",DG!FM30,IF($AK$39="x",DG!FM41,IF($AK$40="x",AW38,""))))) -> 7F
B8: =IF(AH6="X","Designação da V. Estudo","Designação da atividade") -> Designação da V. Estudo | J8: Eco-ementas | AE8: Ano : | AF8: =DG!EC1 -> 15 | AG8: / | AH8: =DG!EE1 -> 16 | BA8: =IF($AK$36="x",DG!FC9,IF($AK$37="x",DG!FC20,IF($AK$38="x",DG!FC31,IF($AK$39="x",DG!FC42,IF($AK$40="x",AM39,""))))) -> 5B | BC8: =IF($AK$36="x",DG!FE9,IF($AK$37="x",DG!FE20,IF($AK$38="x",DG!FE31,IF($AK$39="x",DG!FE42,IF($AK$40="x",AO39,""))))) -> 6B | BE8: =IF($AK$36="x",DG!FG9,IF($AK$37="x",DG!FG20,IF($AK$38="x",DG!FG31,IF($AK$39="x",DG!FG42,IF($AK$40="x",AQ39,""))))) -> 7B | BG8: =IF($AK$36="x",DG!FI9,IF($AK$37="x",DG!FI20,IF($AK$38="x",DG!FI31,IF($AK$39="x",DG!FI42,IF($AK$40="x",AS39,""))))) -> 8B | BI8: =IF($AK$36="x",DG!FK9,IF($AK$37="x",DG!FK20,IF($AK$38="x",DG!FK31,IF($AK$39="x",DG!FK42,IF($AK$40="x",AU39,""))))) -> 9B | BK8: =IF($AK$36="x",DG!FM9,IF($AK$37="x",DG!FM20,IF($AK$38="x",DG!FM31,IF($AK$39="x",DG!FM42,IF($AK$40="x",AW39,""))))) -> 9F | BP8: =IF(OR($AK$38="X",$AK$39="X"),BT8,BR8) -> DOCENTES - EB23/S | BR8: =IF(DG!EB8="","",DG!EB8) -> EDUCADORAS | BT8: =IF(DG!EB63="","",DG!EB63) -> DOCENTES - EB23/S
B9: Organizada por : | J9: 7º F | AD9: Nº. Ativ : | AY9: =DG!EW23 -> AMAR | BA9: =IF($AK$36="x",DG!FC10,IF($AK$37="x",DG!FC21,IF($AK$38="x",DG!FC32,IF($AK$39="x",DG!FC43,IF($AK$40="x",AM40,""))))) -> 5C | BC9: =IF($AK$36="x",DG!FE10,IF($AK$37="x",DG!FE21,IF($AK$38="x",DG!FE32,IF($AK$39="x",DG!FE43,IF($AK$40="x",AO40,""))))) -> 6C | BE9: =IF($AK$36="x",DG!FG10,IF($AK$37="x",DG!FG21,IF($AK$38="x",DG!FG32,IF($AK$39="x",DG!FG43,IF($AK$40="x",AQ40,""))))) -> 7C | BG9: =IF($AK$36="x",DG!FI10,IF($AK$37="x",DG!FI21,IF($AK$38="x",DG!FI32,IF($AK$39="x",DG!FI43,IF($AK$40="x",AS40,""))))) -> 8C | BI9: =IF($AK$36="x",DG!FK10,IF($AK$37="x",DG!FK21,IF($AK$38="x",DG!FK32,IF($AK$39="x",DG!FK43,IF($AK$40="x",AU40,""))))) -> 9C | BK9: =IF($AK$36="x",DG!FM10,IF($AK$37="x",DG!FM21,IF($AK$38="x",DG!FM32,IF($AK$39="x",DG!FM43,IF($AK$40="x",AW40,""))))) -> 9G | BP9: =IF(OR($AK$38="X",$AK$39="X"),BT9,BR9) ->  | BR9: =IF(DG!EB9="","",DG!EB9) ->  | BT9: =IF(DG!EB64="","",DG!EB64) -> 
AJ10: Ao imprimir esta Folha faça-o da pág 1 até pág 1 Não utilize o Imprimir Tudo. | AY10: =DG!EW24 -> AZUL | BA10: =IF($AK$36="x",DG!FC11,IF($AK$37="x",DG!FC22,IF($AK$38="x",DG!FC33,IF($AK$39="x",DG!FC44,IF($AK$40="x",AM41,""))))) -> 5D | BC10: =IF($AK$36="x",DG!FE11,IF($AK$37="x",DG!FE22,IF($AK$38="x",DG!FE33,IF($AK$39="x",DG!FE44,IF($AK$40="x",AO41,""))))) -> 6D | BE10: =IF($AK$36="x",DG!FG11,IF($AK$37="x",DG!FG22,IF($AK$38="x",DG!FG33,IF($AK$39="x",DG!FG44,IF($AK$40="x",AQ41,""))))) -> 7D | BG10: =IF($AK$36="x",DG!FI11,IF($AK$37="x",DG!FI22,IF($AK$38="x",DG!FI33,IF($AK$39="x",DG!FI44,IF($AK$40="x",AS41,""))))) -> 8D | BI10: =IF($AK$36="x",DG!FK11,IF($AK$37="x",DG!FK22,IF($AK$38="x",DG!FK33,IF($AK$39="x",DG!FK44,IF($AK$40="x",AU41,""))))) -> 9D | BK10: =IF($AK$36="x",DG!FM11,IF($AK$37="x",DG!FM22,IF($AK$38="x",DG!FM33,IF($AK$39="x",DG!FM44,IF($AK$40="x",AW41,""))))) -> 0 | BP10: Adriana Santos | BR10: =IF(DG!EB10="","",DG!EB10) -> Florbela Matos | BT10: =IF(DG!EB65="","",DG!EB65) -> Adriana Santos
A11: Locais | E11: - | T11: - | AY11: =DG!EW25 -> VMLH | BA11: =IF($AK$36="x",DG!FC12,IF($AK$37="x",DG!FC23,IF($AK$38="x",DG!FC34,IF($AK$39="x",DG!FC45,IF($AK$40="x",AM42,""))))) -> 5E | BC11: =IF($AK$36="x",DG!FE12,IF($AK$37="x",DG!FE23,IF($AK$38="x",DG!FE34,IF($AK$39="x",DG!FE45,IF($AK$40="x",AO42,""))))) -> 6E | BE11: =IF($AK$36="x",DG!FG12,IF($AK$37="x",DG!FG23,IF($AK$38="x",DG!FG34,IF($AK$39="x",DG!FG45,IF($AK$40="x",AQ42,""))))) -> 7E | BG11: =IF($AK$36="x",DG!FI12,IF($AK$37="x",DG!FI23,IF($AK$38="x",DG!FI34,IF($AK$39="x",DG!FI45,IF($AK$40="x",AS42,""))))) -> 8E | BI11: =IF($AK$36="x",DG!FK12,IF($AK$37="x",DG!FK23,IF($AK$38="x",DG!FK34,IF($AK$39="x",DG!FK45,IF($AK$40="x",AU42,""))))) -> 9E | BK11: =IF($AK$36="x",DG!FM12,IF($AK$37="x",DG!FM23,IF($AK$38="x",DG!FM34,IF($AK$39="x",DG!FM45,IF($AK$40="x",AW42,""))))) -> 0 | BP11: Agostinho Monteiro | BR11: =IF(DG!EB11="","",DG!EB11) -> Graça Oliveira | BT11: =IF(DG!EB66="","",DG!EB66) -> Agostinho Monteiro
A12: =IF(AH6="X","a visitar","") -> a visitar | E12: - | T12: - | AY12: =DG!EW26 -> ESTRE | BA12: =IF($AK$36="x",DG!FC13,IF($AK$37="x",DG!FC24,IF($AK$38="x",DG!FC35,IF($AK$39="x",DG!FC46,IF($AK$40="x",AM43,""))))) -> 0 | BC12: =IF($AK$36="x",DG!FE13,IF($AK$37="x",DG!FE24,IF($AK$38="x",DG!FE35,IF($AK$39="x",DG!FE46,IF($AK$40="x",AO43,""))))) -> 0 | BE12: =IF($AK$36="x",DG!FG13,IF($AK$37="x",DG!FG24,IF($AK$38="x",DG!FG35,IF($AK$39="x",DG!FG46,IF($AK$40="x",AQ43,""))))) -> 0 | BG12: =IF($AK$36="x",DG!FI13,IF($AK$37="x",DG!FI24,IF($AK$38="x",DG!FI35,IF($AK$39="x",DG!FI46,IF($AK$40="x",AS43,""))))) -> 0 | BI12: =IF($AK$36="x",DG!FK13,IF($AK$37="x",DG!FK24,IF($AK$38="x",DG!FK35,IF($AK$39="x",DG!FK46,IF($AK$40="x",AU43,""))))) -> 0 | BK12: =IF($AK$36="x",DG!FM13,IF($AK$37="x",DG!FM24,IF($AK$38="x",DG!FM35,IF($AK$39="x",DG!FM46,IF($AK$40="x",AW43,""))))) -> 0 | BP12: Alexandra Ruivo | BR12: =IF(DG!EB12="","",DG!EB12) -> Helena Esteves | BT12: =IF(DG!EB67="","",DG!EB67) -> Alexandra Ruivo
AY13: =DG!EW27 -> LUA | BA13: =IF($AK$36="x",DG!FC14,IF($AK$37="x",DG!FC25,IF($AK$38="x",DG!FC36,IF($AK$39="x",DG!FC47,IF($AK$40="x",AM44,""))))) -> 0 | BC13: =IF($AK$36="x",DG!FE14,IF($AK$37="x",DG!FE25,IF($AK$38="x",DG!FE36,IF($AK$39="x",DG!FE47,IF($AK$40="x",AO44,""))))) -> 0 | BE13: =IF($AK$36="x",DG!FG14,IF($AK$37="x",DG!FG25,IF($AK$38="x",DG!FG36,IF($AK$39="x",DG!FG47,IF($AK$40="x",AQ44,""))))) -> 0 | BG13: =IF($AK$36="x",DG!FI14,IF($AK$37="x",DG!FI25,IF($AK$38="x",DG!FI36,IF($AK$39="x",DG!FI47,IF($AK$40="x",AS44,""))))) -> 0 | BI13: =IF($AK$36="x",DG!FK14,IF($AK$37="x",DG!FK25,IF($AK$38="x",DG!FK36,IF($AK$39="x",DG!FK47,IF($AK$40="x",AU44,""))))) -> 0 | BK13: =IF($AK$36="x",DG!FM14,IF($AK$37="x",DG!FM25,IF($AK$38="x",DG!FM36,IF($AK$39="x",DG!FM47,IF($AK$40="x",AW44,""))))) -> 0 | BP13: Ana Batalha | BR13: =IF(DG!EB13="","",DG!EB13) -> Júlia Soares | BT13: =IF(DG!EB68="","",DG!EB68) -> Ana Batalha
B14: Início | F14: Local: | H14: EB23 P. Abílio Mendes | P14: Dia : | S14: - | U14: - | Z14: Hora : | AB14: h | AC14: e | AE14: minutos | AJ14: =TIME(AA14,AD14,0) -> 00:00:00 | AK14: =(R15-R14)*24 -> 0 | AY14: =DG!EW28 -> SOL | BA14: =IF($AK$36="x",DG!FC15,IF($AK$37="x",DG!FC26,IF($AK$38="x",DG!FC37,IF($AK$39="x",DG!FC48,IF($AK$40="x",AM45,""))))) -> 0 | BC14: =IF($AK$36="x",DG!FE15,IF($AK$37="x",DG!FE26,IF($AK$38="x",DG!FE37,IF($AK$39="x",DG!FE48,IF($AK$40="x",AO45,""))))) -> 0 | BE14: =IF($AK$36="x",DG!FG15,IF($AK$37="x",DG!FG26,IF($AK$38="x",DG!FG37,IF($AK$39="x",DG!FG48,IF($AK$40="x",AQ45,""))))) -> 0 | BG14: =IF($AK$36="x",DG!FI15,IF($AK$37="x",DG!FI26,IF($AK$38="x",DG!FI37,IF($AK$39="x",DG!FI48,IF($AK$40="x",AS45,""))))) -> 0 | BI14: =IF($AK$36="x",DG!FK15,IF($AK$37="x",DG!FK26,IF($AK$38="x",DG!FK37,IF($AK$39="x",DG!FK48,IF($AK$40="x",AU45,""))))) -> 0 | BK14: =IF($AK$36="x",DG!FM15,IF($AK$37="x",DG!FM26,IF($AK$38="x",DG!FM37,IF($AK$39="x",DG!FM48,IF($AK$40="x",AW45,""))))) -> 0 | BP14: Ana Bento | BR14: =IF(DG!EB14="","",DG!EB14) -> Julieta Magalhães | BT14: =IF(DG!EB69="","",DG!EB69) -> Ana Bento
B15: Fim | F15: Local: | H15: EB23 P. Abílio Mendes | P15: Dia : | S15: - | U15: - | Z15: Hora : | AB15: h | AC15: e | AE15: minutos | AJ15: =TIME(AA15,AD15,0) -> 00:00:00 | AK15: =(AJ15-AJ14)*24+AK14 -> 0 | AY15: =DG!EW29 -> SALA1 | BP15: Ana Camões | BR15: =IF(DG!EB15="","",DG!EB15) -> Lina Cardoso | BT15: =IF(DG!EB70="","",DG!EB70) -> Ana Camões
R16: =IF(ISERROR(DATE(V15,T15,R15)-DATE(V14,T14,R14)),"",DATE(V15,T15,R15)-DATE(V14,T14,R14)) ->  | AA16: =TIME(AA15,AD15,0)-TIME(AA14,AD14,0) -> 00:00:00 | AG16: =IF(ISERROR(24*(R16+AA16)),"",24*(R16+AA16)) ->  | AY16: =DG!EW30 -> PALM | BA16: =IF(I48="X",CONCATENATE(F48,", "),"") ->  | BB16: =IF(N48="X",CONCATENATE(K48,", "),"") ->  | BC16: =IF(S48="X",CONCATENATE(P48,", "),"") ->  | BD16: =IF(X48="X",CONCATENATE(U48,", "),"") ->  | BE16: =IF(AC48="X",CONCATENATE(Z48,", "),"") ->  | BF16: =IF(AH48="X",CONCATENATE(AE48,", "),"") ->  | BP16: Ana Canas | BR16: =IF(DG!EB16="","",DG!EB16) -> Lisa Gonçalves | BT16: =IF(DG!EB71="","",DG!EB71) -> Ana Canas
A17: Preço : | F17: 0 | I17: Euros | M17: Meio de Transporte | AJ17: Meio de Transporte | AM17: Contactos | AO17: Orçamento | AY17: =DG!EW31 -> 1A-E5 | BP17: Ana Carmo | BR17: =IF(DG!EB17="","",DG!EB17) -> Perpétua Alves | BT17: =IF(DG!EB72="","",DG!EB72) -> Ana Carmo
AY18: =DG!EW32 -> 1A-E6 | BP18: Ana Paula Costa | BR18: =IF(DG!EB18="","",DG!EB18) -> Susana Canas | BT18: =IF(DG!EB73="","",DG!EB73) -> Ana Paula Costa
A19: Programa | AJ19: Transportes públicos | AY19: =DG!EW33 -> 1A-E8 | BP19: Ana Paula Dias | BR19: =IF(DG!EB19="","",DG!EB19) ->  | BT19: =IF(DG!EB74="","",DG!EB74) -> Ana Paula Dias
AJ20: A pé | AY20: =DG!EW34 -> 1B-E8 | BP20: Ana Paula Lopes | BR20: =IF(DG!EB20="","",DG!EB20) ->  | BT20: =IF(DG!EB75="","",DG!EB75) -> Ana Paula Lopes
AJ21: TST | AY21: =DG!EW35 -> 2A-E5 | BP21: Ana Silva | BR21: =IF(DG!EB21="","",DG!EB21) -> DOCENTES - EB1 | BT21: =IF(DG!EB76="","",DG!EB76) -> Ana Silva
AJ22: TCB | AY22: =DG!EW36 -> 2A-E6 | BP22: =IF(OR($AK$38="X",$AK$39="X"),BT22,#REF!) -> Ana Silva | BR22: =IF(DG!EB22="","",DG!EB22) ->  | BT22: =IF(DG!EB77="","",DG!EB77) -> Ana Silva
AJ23: Inácios | AY23: =DG!EW37 -> 2A-E8 | BP23: =IF(OR($AK$38="X",$AK$39="X"),BT23,BR22) -> Ana Soares | BR23: =IF(DG!EB23="","",DG!EB23) -> Carla Domingos | BT23: =IF(DG!EB78="","",DG!EB78) -> Ana Soares
AJ24: Transimpulso | AY24: =DG!EW38 -> 2B-E8 | BP24: Ana Verdasca | BR24: =IF(DG!EB24="","",DG!EB24) -> Cláudia Couveiro | BT24: =IF(DG!EB79="","",DG!EB79) -> Ana Verdasca
A25: objetivos | AJ25: Lilazes | AY25: =DG!EW39 -> 3A-E5 | BA25: =CONCATENATE(BA16,BA17,BA18,BA19,BA20,BA21,BA22,BA23) ->  | BP25: Anabela Cardoso | BR25: =IF(DG!EB25="","",DG!EB25) -> Etelvina Teixeira | BT25: =IF(DG!EB80="","",DG!EB80) -> Anabela Cardoso
B26: da | F26: Participar em projectos comuns | AJ26: Barraqueiro | AY26: =DG!EW40 -> 3A-E6 | BP26: Anabela Piquete | BR26: =IF(DG!EB26="","",DG!EB26) -> Fátima Soares | BT26: =IF(DG!EB81="","",DG!EB81) -> Anabela Piquete
A27: =IF(AH6="X","V. Estudo","atividade") -> V. Estudo | F27: Reconhecer a importância da preservação do meio ambiente | AJ27: Grupo Luisa Todi | AY27: =DG!EW41 -> 3B-E6 | BA27: =CONCATENATE(BA25,BB25,BC25,BD25,BE25,BF25,BG25,BH25) ->  | BP27: Anabela Rosmaninho | BR27: =IF(DG!EB27="","",DG!EB27) -> Gracinda Charneca | BT27: =IF(DG!EB82="","",DG!EB82) -> Anabela Rosmaninho
AJ28: Topo do Universo | AY28: =DG!EW42 -> 3C-E6 | BP28: Anabela Soares | BR28: =IF(DG!EB28="","",DG!EB28) -> Helena Antunes | BT28: =IF(DG!EB83="","",DG!EB83) -> Anabela Soares
AY29: =DG!EW43 -> 3A-E8 | BP29: André Sousa | BR29: =IF(DG!EB29="","",DG!EB29) -> Ilda Santos | BT29: =IF(DG!EB84="","",DG!EB84) -> André Sousa
AY30: =DG!EW44 -> 3B-E8 | BP30: António Alves | BR30: =IF(DG!EB30="","",DG!EB30) -> Isabel Colaço | BT30: =IF(DG!EB85="","",DG!EB85) -> António Alves
B31: Professores Organizadores | K31: ( Nome - Código do grupo ) | AY31: =DG!EW45 -> 4A-E5 | BP31: António Campos | BR31: =IF(DG!EB31="","",DG!EB31) -> Isilda Gomes | BT31: =IF(DG!EB86="","",DG!EB86) -> António Campos
B32: - | C32: Lurdes Monteiro | J32: - | K32: =IF(C32="","",IF(ISERROR(VLOOKUP(C32,DG!$EG$287:$EJ$403,3,FALSE)),"",VLOOKUP(C32,DG!$EG$287:$EJ$403,3,FALSE))) ->  | L32: =IF(C32="","",IF(ISERROR(VLOOKUP(C32,DG!$EG$287:$EJ$403,4,FALSE)),"",VLOOKUP(C32,DG!$EG$287:$EJ$403,4,FALSE))) ->  | M32: - | U32: - | V32: =IF(N32="","",IF(ISERROR(VLOOKUP(N32,DG!$EG$287:$EJ$403,3,FALSE)),"",VLOOKUP(N32,DG!$EG$287:$EJ$403,3,FALSE))) ->  | W32: =IF(N32="","",IF(ISERROR(VLOOKUP(N32,DG!$EG$287:$EJ$403,4,FALSE)),"",VLOOKUP(N32,DG!$EG$287:$EJ$403,4,FALSE))) ->  | X32: - | AF32: - | AG32: =IF(Y32="","",IF(ISERROR(VLOOKUP(Y32,DG!$EG$287:$EJ$403,3,FALSE)),"",VLOOKUP(Y32,DG!$EG$287:$EJ$403,3,FALSE))) ->  | AH32: =IF(Y32="","",IF(ISERROR(VLOOKUP(Y32,DG!$EG$287:$EJ$403,4,FALSE)),"",VLOOKUP(Y32,DG!$EG$287:$EJ$403,4,FALSE))) ->  | AY32: =DG!EW46 -> 4A-E6 | BP32: António Pereira | BR32: =IF(DG!EB32="","",DG!EB32) -> João Soares | BT32: =IF(DG!EB87="","",DG!EB87) -> António Pereira
B33: - | C33: Mª João Bica | J33: - | K33: =IF(C33="","",IF(ISERROR(VLOOKUP(C33,DG!$EG$287:$EJ$403,3,FALSE)),"",VLOOKUP(C33,DG!$EG$287:$EJ$403,3,FALSE))) ->  | L33: =IF(C33="","",IF(ISERROR(VLOOKUP(C33,DG!$EG$287:$EJ$403,4,FALSE)),"",VLOOKUP(C33,DG!$EG$287:$EJ$403,4,FALSE))) ->  | M33: - | U33: - | V33: =IF(N33="","",IF(ISERROR(VLOOKUP(N33,DG!$EG$287:$EJ$403,3,FALSE)),"",VLOOKUP(N33,DG!$EG$287:$EJ$403,3,FALSE))) ->  | W33: =IF(N33="","",IF(ISERROR(VLOOKUP(N33,DG!$EG$287:$EJ$403,4,FALSE)),"",VLOOKUP(N33,DG!$EG$287:$EJ$403,4,FALSE))) ->  | X33: - | AF33: - | AG33: =IF(Y33="","",IF(ISERROR(VLOOKUP(Y33,DG!$EG$287:$EJ$403,3,FALSE)),"",VLOOKUP(Y33,DG!$EG$287:$EJ$403,3,FALSE))) ->  | AH33: =IF(Y33="","",IF(ISERROR(VLOOKUP(Y33,DG!$EG$287:$EJ$403,4,FALSE)),"",VLOOKUP(Y33,DG!$EG$287:$EJ$403,4,FALSE))) ->  | AY33: =DG!EW47 -> 4A-E8 | BP33: Antonio Serro | BR33: =IF(DG!EB33="","",DG!EB33) -> Joaquina Ruivo | BT33: =IF(DG!EB88="","",DG!EB88) -> Antonio Serro
AY34: =DG!EW48 -> 4B-E8 | BP34: Armando Pedrosa | BR34: =IF(DG!EB34="","",DG!EB34) -> Mafalda Antunes | BT34: =IF(DG!EB89="","",DG!EB89) -> Armando Pedrosa
B35: Professores e Assistentes Acompanhantes | AJ35: Indique o Ciclo | AM35: Se seleccionou "Vários Ciclos" indique quais as turma | AY35: =DG!EW49 -> 5A | BP35: Bárbara Esteves | BR35: =IF(DG!EB35="","",DG!EB35) -> Manuela Costa | BT35: =IF(DG!EB90="","",DG!EB90) -> Bárbara Esteves
B36: - | C36: Mª João Bica | J36: - | K36: =IF(C36="","",IF(ISERROR(VLOOKUP(C36,DG!$EG$287:$EJ$403,3,FALSE)),"",VLOOKUP(C36,DG!$EG$287:$EJ$403,3,FALSE))) ->  | L36: =IF(C36="","",IF(ISERROR(VLOOKUP(C36,DG!$EG$287:$EJ$403,4,FALSE)),"",VLOOKUP(C36,DG!$EG$287:$EJ$403,4,FALSE))) ->  | M36: - | U36: - | V36: =IF(N36="","",IF(ISERROR(VLOOKUP(N36,DG!$EG$287:$EJ$403,3,FALSE)),"",VLOOKUP(N36,DG!$EG$287:$EJ$403,3,FALSE))) ->  | W36: =IF(N36="","",IF(ISERROR(VLOOKUP(N36,DG!$EG$287:$EJ$403,4,FALSE)),"",VLOOKUP(N36,DG!$EG$287:$EJ$403,4,FALSE))) ->  | X36: - | AF36: - | AG36: =IF(Y36="","",IF(ISERROR(VLOOKUP(Y36,DG!$EG$287:$EJ$403,3,FALSE)),"",VLOOKUP(Y36,DG!$EG$287:$EJ$403,3,FALSE))) ->  | AH36: =IF(Y36="","",IF(ISERROR(VLOOKUP(Y36,DG!$EG$287:$EJ$403,4,FALSE)),"",VLOOKUP(Y36,DG!$EG$287:$EJ$403,4,FALSE))) ->  | AJ36: JI | AM36: as turma estão ordenados por ciclo | AY36: =DG!EW50 -> 5B | BP36: Berta Sucena | BR36: =IF(DG!EB36="","",DG!EB36) -> Mário Azevedo | BT36: =IF(DG!EB91="","",DG!EB91) -> Berta Sucena
B37: - | C37: Lurdes Monteiro | J37: - | K37: =IF(C37="","",IF(ISERROR(VLOOKUP(C37,DG!$EG$287:$EJ$403,3,FALSE)),"",VLOOKUP(C37,DG!$EG$287:$EJ$403,3,FALSE))) ->  | L37: =IF(C37="","",IF(ISERROR(VLOOKUP(C37,DG!$EG$287:$EJ$403,4,FALSE)),"",VLOOKUP(C37,DG!$EG$287:$EJ$403,4,FALSE))) ->  | M37: - | U37: - | V37: =IF(N37="","",IF(ISERROR(VLOOKUP(N37,DG!$EG$287:$EJ$403,3,FALSE)),"",VLOOKUP(N37,DG!$EG$287:$EJ$403,3,FALSE))) ->  | W37: =IF(N37="","",IF(ISERROR(VLOOKUP(N37,DG!$EG$287:$EJ$403,4,FALSE)),"",VLOOKUP(N37,DG!$EG$287:$EJ$403,4,FALSE))) ->  | X37: - | AF37: - | AG37: =IF(Y37="","",IF(ISERROR(VLOOKUP(Y37,DG!$EG$287:$EJ$403,3,FALSE)),"",VLOOKUP(Y37,DG!$EG$287:$EJ$403,3,FALSE))) ->  | AH37: =IF(Y37="","",IF(ISERROR(VLOOKUP(Y37,DG!$EG$287:$EJ$403,4,FALSE)),"",VLOOKUP(Y37,DG!$EG$287:$EJ$403,4,FALSE))) ->  | AJ37: EB1 | AM37: Turma | AO37: Turma | AQ37: Turma | AS37: Turma | AU37: Turma | AW37: Turma | AY37: =DG!EW51 -> 5C | BP37: Carlos Santos | BR37: =IF(DG!EB37="","",DG!EB37) -> Natacha Cardoso | BT37: =IF(DG!EB92="","",DG!EB92) -> Carlos Santos
B38: - | C38: Rosário Gonçalves | J38: - | K38: =IF(C38="","",IF(ISERROR(VLOOKUP(C38,DG!$EG$287:$EJ$403,3,FALSE)),"",VLOOKUP(C38,DG!$EG$287:$EJ$403,3,FALSE))) ->  | L38: =IF(C38="","",IF(ISERROR(VLOOKUP(C38,DG!$EG$287:$EJ$403,4,FALSE)),"",VLOOKUP(C38,DG!$EG$287:$EJ$403,4,FALSE))) ->  | M38: - | U38: - | V38: =IF(N38="","",IF(ISERROR(VLOOKUP(N38,DG!$EG$287:$EJ$403,3,FALSE)),"",VLOOKUP(N38,DG!$EG$287:$EJ$403,3,FALSE))) ->  | W38: =IF(N38="","",IF(ISERROR(VLOOKUP(N38,DG!$EG$287:$EJ$403,4,FALSE)),"",VLOOKUP(N38,DG!$EG$287:$EJ$403,4,FALSE))) ->  | X38: - | AF38: - | AG38: =IF(Y38="","",IF(ISERROR(VLOOKUP(Y38,DG!$EG$287:$EJ$403,3,FALSE)),"",VLOOKUP(Y38,DG!$EG$287:$EJ$403,3,FALSE))) ->  | AH38: =IF(Y38="","",IF(ISERROR(VLOOKUP(Y38,DG!$EG$287:$EJ$403,4,FALSE)),"",VLOOKUP(Y38,DG!$EG$287:$EJ$403,4,FALSE))) ->  | AJ38: EB23 | AK38: x | AY38: =DG!EW52 -> 5D | BP38: Catarina Figueiredo | BR38: =IF(DG!EB38="","",DG!EB38) -> Paula Velhinho | BT38: =IF(DG!EB93="","",DG!EB93) -> Catarina Figueiredo
B39: - | C39: Clarisse Sim | J39: - | K39: =IF(C39="","",IF(ISERROR(VLOOKUP(C39,DG!$EG$287:$EJ$403,3,FALSE)),"",VLOOKUP(C39,DG!$EG$287:$EJ$403,3,FALSE))) ->  | L39: =IF(C39="","",IF(ISERROR(VLOOKUP(C39,DG!$EG$287:$EJ$403,4,FALSE)),"",VLOOKUP(C39,DG!$EG$287:$EJ$403,4,FALSE))) ->  | M39: - | U39: - | V39: =IF(N39="","",IF(ISERROR(VLOOKUP(N39,DG!$EG$287:$EJ$403,3,FALSE)),"",VLOOKUP(N39,DG!$EG$287:$EJ$403,3,FALSE))) ->  | W39: =IF(N39="","",IF(ISERROR(VLOOKUP(N39,DG!$EG$287:$EJ$403,4,FALSE)),"",VLOOKUP(N39,DG!$EG$287:$EJ$403,4,FALSE))) ->  | X39: - | AF39: - | AG39: =IF(Y39="","",IF(ISERROR(VLOOKUP(Y39,DG!$EG$287:$EJ$403,3,FALSE)),"",VLOOKUP(Y39,DG!$EG$287:$EJ$403,3,FALSE))) ->  | AH39: =IF(Y39="","",IF(ISERROR(VLOOKUP(Y39,DG!$EG$287:$EJ$403,4,FALSE)),"",VLOOKUP(Y39,DG!$EG$287:$EJ$403,4,FALSE))) ->  | AJ39: ES | AY39: =DG!EW53 -> 5E | BP39: Catarina Freitas | BR39: =IF(DG!EB39="","",DG!EB39) -> Paulo Gomes | BT39: =IF(DG!EB94="","",DG!EB94) -> Catarina Freitas
B40: - | C40: Ana Rosado | J40: - | K40: =IF(C40="","",IF(ISERROR(VLOOKUP(C40,DG!$EG$287:$EJ$403,3,FALSE)),"",VLOOKUP(C40,DG!$EG$287:$EJ$403,3,FALSE))) ->  | L40: =IF(C40="","",IF(ISERROR(VLOOKUP(C40,DG!$EG$287:$EJ$403,4,FALSE)),"",VLOOKUP(C40,DG!$EG$287:$EJ$403,4,FALSE))) ->  | M40: - | U40: - | V40: =IF(N40="","",IF(ISERROR(VLOOKUP(N40,DG!$EG$287:$EJ$403,3,FALSE)),"",VLOOKUP(N40,DG!$EG$287:$EJ$403,3,FALSE))) ->  | W40: =IF(N40="","",IF(ISERROR(VLOOKUP(N40,DG!$EG$287:$EJ$403,4,FALSE)),"",VLOOKUP(N40,DG!$EG$287:$EJ$403,4,FALSE))) ->  | X40: - | AF40: - | AG40: =IF(Y40="","",IF(ISERROR(VLOOKUP(Y40,DG!$EG$287:$EJ$403,3,FALSE)),"",VLOOKUP(Y40,DG!$EG$287:$EJ$403,3,FALSE))) ->  | AH40: =IF(Y40="","",IF(ISERROR(VLOOKUP(Y40,DG!$EG$287:$EJ$403,4,FALSE)),"",VLOOKUP(Y40,DG!$EG$287:$EJ$403,4,FALSE))) ->  | AJ40: Vários | AY40: =DG!EW54 -> 6A | BP40: Cecília Santos | BR40: =IF(DG!EB40="","",DG!EB40) -> Sandra Carrasqueira | BT40: =IF(DG!EB95="","",DG!EB95) -> Cecília Santos
B41: - | C41: Lurdes Cadeirinhas | J41: - | K41: =IF(C41="","",IF(ISERROR(VLOOKUP(C41,DG!$EG$287:$EJ$403,3,FALSE)),"",VLOOKUP(C41,DG!$EG$287:$EJ$403,3,FALSE))) ->  | L41: =IF(C41="","",IF(ISERROR(VLOOKUP(C41,DG!$EG$287:$EJ$403,4,FALSE)),"",VLOOKUP(C41,DG!$EG$287:$EJ$403,4,FALSE))) ->  | M41: - | U41: - | V41: =IF(N41="","",IF(ISERROR(VLOOKUP(N41,DG!$EG$287:$EJ$403,3,FALSE)),"",VLOOKUP(N41,DG!$EG$287:$EJ$403,3,FALSE))) ->  | W41: =IF(N41="","",IF(ISERROR(VLOOKUP(N41,DG!$EG$287:$EJ$403,4,FALSE)),"",VLOOKUP(N41,DG!$EG$287:$EJ$403,4,FALSE))) ->  | X41: - | AF41: - | AG41: =IF(Y41="","",IF(ISERROR(VLOOKUP(Y41,DG!$EG$287:$EJ$403,3,FALSE)),"",VLOOKUP(Y41,DG!$EG$287:$EJ$403,3,FALSE))) ->  | AH41: =IF(Y41="","",IF(ISERROR(VLOOKUP(Y41,DG!$EG$287:$EJ$403,4,FALSE)),"",VLOOKUP(Y41,DG!$EG$287:$EJ$403,4,FALSE))) ->  | AY41: =DG!EW55 -> 6B | BP41: Celestino Mendes | BR41: =IF(DG!EB41="","",DG!EB41) -> Sandra Silvares | BT41: =IF(DG!EB96="","",DG!EB96) -> Celestino Mendes
B42: - | J42: - | K42: =IF(C42="","",IF(ISERROR(VLOOKUP(C42,DG!$EG$287:$EJ$403,3,FALSE)),"",VLOOKUP(C42,DG!$EG$287:$EJ$403,3,FALSE))) ->  | L42: =IF(C42="","",IF(ISERROR(VLOOKUP(C42,DG!$EG$287:$EJ$403,4,FALSE)),"",VLOOKUP(C42,DG!$EG$287:$EJ$403,4,FALSE))) ->  | M42: - | U42: - | V42: =IF(N42="","",IF(ISERROR(VLOOKUP(N42,DG!$EG$287:$EJ$403,3,FALSE)),"",VLOOKUP(N42,DG!$EG$287:$EJ$403,3,FALSE))) ->  | W42: =IF(N42="","",IF(ISERROR(VLOOKUP(N42,DG!$EG$287:$EJ$403,4,FALSE)),"",VLOOKUP(N42,DG!$EG$287:$EJ$403,4,FALSE))) ->  | X42: - | AF42: - | AG42: =IF(Y42="","",IF(ISERROR(VLOOKUP(Y42,DG!$EG$287:$EJ$403,3,FALSE)),"",VLOOKUP(Y42,DG!$EG$287:$EJ$403,3,FALSE))) ->  | AH42: =IF(Y42="","",IF(ISERROR(VLOOKUP(Y42,DG!$EG$287:$EJ$403,4,FALSE)),"",VLOOKUP(Y42,DG!$EG$287:$EJ$403,4,FALSE))) ->  | AY42: =DG!EW56 -> 6C | BP42: Célia Corujo | BR42: =IF(DG!EB42="","",DG!EB42) -> Sandra Vinhas | BT42: =IF(DG!EB97="","",DG!EB97) -> Célia Corujo
B43: - | J43: - | K43: =IF(C43="","",IF(ISERROR(VLOOKUP(C43,DG!$EG$287:$EJ$403,3,FALSE)),"",VLOOKUP(C43,DG!$EG$287:$EJ$403,3,FALSE))) ->  | L43: =IF(C43="","",IF(ISERROR(VLOOKUP(C43,DG!$EG$287:$EJ$403,4,FALSE)),"",VLOOKUP(C43,DG!$EG$287:$EJ$403,4,FALSE))) ->  | M43: - | U43: - | V43: =IF(N43="","",IF(ISERROR(VLOOKUP(N43,DG!$EG$287:$EJ$403,3,FALSE)),"",VLOOKUP(N43,DG!$EG$287:$EJ$403,3,FALSE))) ->  | W43: =IF(N43="","",IF(ISERROR(VLOOKUP(N43,DG!$EG$287:$EJ$403,4,FALSE)),"",VLOOKUP(N43,DG!$EG$287:$EJ$403,4,FALSE))) ->  | X43: - | AF43: - | AG43: =IF(Y43="","",IF(ISERROR(VLOOKUP(Y43,DG!$EG$287:$EJ$403,3,FALSE)),"",VLOOKUP(Y43,DG!$EG$287:$EJ$403,3,FALSE))) ->  | AH43: =IF(Y43="","",IF(ISERROR(VLOOKUP(Y43,DG!$EG$287:$EJ$403,4,FALSE)),"",VLOOKUP(Y43,DG!$EG$287:$EJ$403,4,FALSE))) ->  | AJ43: =IF(AJ46=1,"","ERRO Seleccionar apenas um ciclo") ->  | AY43: =DG!EW57 -> 6D | BP43: Cesaltina Martinho | BR43: =IF(DG!EB43="","",DG!EB43) -> Sónia Candeias | BT43: =IF(DG!EB98="","",DG!EB98) -> Cesaltina Martinho
B44: - | J44: - | K44: =IF(C44="","",IF(ISERROR(VLOOKUP(C44,DG!$EG$287:$EJ$403,3,FALSE)),"",VLOOKUP(C44,DG!$EG$287:$EJ$403,3,FALSE))) ->  | L44: =IF(C44="","",IF(ISERROR(VLOOKUP(C44,DG!$EG$287:$EJ$403,4,FALSE)),"",VLOOKUP(C44,DG!$EG$287:$EJ$403,4,FALSE))) ->  | M44: - | U44: - | V44: =IF(N44="","",IF(ISERROR(VLOOKUP(N44,DG!$EG$287:$EJ$403,3,FALSE)),"",VLOOKUP(N44,DG!$EG$287:$EJ$403,3,FALSE))) ->  | W44: =IF(N44="","",IF(ISERROR(VLOOKUP(N44,DG!$EG$287:$EJ$403,4,FALSE)),"",VLOOKUP(N44,DG!$EG$287:$EJ$403,4,FALSE))) ->  | X44: - | AF44: - | AG44: =IF(Y44="","",IF(ISERROR(VLOOKUP(Y44,DG!$EG$287:$EJ$403,3,FALSE)),"",VLOOKUP(Y44,DG!$EG$287:$EJ$403,3,FALSE))) ->  | AH44: =IF(Y44="","",IF(ISERROR(VLOOKUP(Y44,DG!$EG$287:$EJ$403,4,FALSE)),"",VLOOKUP(Y44,DG!$EG$287:$EJ$403,4,FALSE))) ->  | AY44: =DG!EW58 -> 6E | BP44: Clara Ribeiro | BR44: =IF(DG!EB44="","",DG!EB44) -> Sónia Cardador | BT44: =IF(DG!EB99="","",DG!EB99) -> Clara Ribeiro
B45: - | J45: - | K45: =IF(C45="","",IF(ISERROR(VLOOKUP(C45,DG!$EG$287:$EJ$403,3,FALSE)),"",VLOOKUP(C45,DG!$EG$287:$EJ$403,3,FALSE))) ->  | L45: =IF(C45="","",IF(ISERROR(VLOOKUP(C45,DG!$EG$287:$EJ$403,4,FALSE)),"",VLOOKUP(C45,DG!$EG$287:$EJ$403,4,FALSE))) ->  | M45: - | U45: - | V45: =IF(N45="","",IF(ISERROR(VLOOKUP(N45,DG!$EG$287:$EJ$403,3,FALSE)),"",VLOOKUP(N45,DG!$EG$287:$EJ$403,3,FALSE))) ->  | W45: =IF(N45="","",IF(ISERROR(VLOOKUP(N45,DG!$EG$287:$EJ$403,4,FALSE)),"",VLOOKUP(N45,DG!$EG$287:$EJ$403,4,FALSE))) ->  | X45: - | AF45: - | AG45: =IF(Y45="","",IF(ISERROR(VLOOKUP(Y45,DG!$EG$287:$EJ$403,3,FALSE)),"",VLOOKUP(Y45,DG!$EG$287:$EJ$403,3,FALSE))) ->  | AH45: =IF(Y45="","",IF(ISERROR(VLOOKUP(Y45,DG!$EG$287:$EJ$403,4,FALSE)),"",VLOOKUP(Y45,DG!$EG$287:$EJ$403,4,FALSE))) ->  | AY45: =DG!EW59 -> 7A | BP45: Clara Soares | BR45: =IF(DG!EB45="","",DG!EB45) -> Teresa Serras | BT45: =IF(DG!EB100="","",DG!EB100) -> Clara Soares
C46: =COUNTA(C36:C45) -> 6 | K46: =COUNTIF(K36:K45,"Ass") -> 0 | N46: =COUNTA(N36:N45) -> 0 | V46: =COUNTIF(V36:V45,"Ass") -> 0 | Y46: =COUNTA(Y36:Y45) -> 0 | AG46: =COUNTIF(AG36:AG45,"Ass") -> 0 | AJ46: =COUNTA(AK36:AK40) -> 1 | AY46: =DG!EW60 -> 7B | BP46: Clarisse Sim | BR46: =IF(DG!EB46="","",DG!EB46) -> Verónica Alpalhão | BT46: =IF(DG!EB101="","",DG!EB101) -> Clarisse Sim
A47: Identificação das turmas que participam na atividade (Assinalar com x) | F47: =IF($AK$36="X","Sala","Turma") -> Turma | H47: A | I47: x | K47: =IF($AK$36="X","Sala","Turma") -> Turma | M47: A | N47: x | P47: =IF($AK$36="X","Sala","Turma") -> Turma | R47: A | S47: x | U47: =IF($AK$36="X","Sala","Turma") -> Turma | W47: A | X47: x | Z47: =IF($AK$36="X","Sala","Turma") -> Turma | AB47: A | AC47: x | AE47: =IF($AK$36="X","Sala","Turma") -> Turma | AG47: A | AH47: x | AY47: =DG!EW61 -> 7C | BP47: Claudio Chaparro | BR47: =IF(DG!EB47="","",DG!EB47) ->  | BT47: =IF(DG!EB102="","",DG!EB102) -> Claudio Chaparro
E48: 1 | F48: =BA7 -> 5A | H48: =IF(F48=0,0,COUNTIF(DG!$E$8:$E$2509,F48)) -> 19 | J48: 9 | K48: =BC7 -> 6A | M48: =IF(K48=0,0,COUNTIF(DG!$E$8:$E$2509,K48)) -> 22 | O48: 17 | P48: =BE7 -> 7A | R48: =IF(P48=0,0,COUNTIF(DG!$E$8:$E$2509,P48)) -> 19 | T48: 25 | U48: =BG7 -> 8A | W48: =IF(U48=0,0,COUNTIF(DG!$E$8:$E$2509,U48)) -> 24 | Y48: 33 | Z48: =BI7 -> 9A | AB48: =IF(Z48=0,0,COUNTIF(DG!$E$8:$E$2509,Z48)) -> 24 | AD48: 41 | AE48: =BK7 -> 7F | AG48: =IF(AE48=0,0,COUNTIF(DG!$E$8:$E$2509,AE48)) -> 24 | AY48: =DG!EW62 -> 7D | BP48: Conceição Correia | BR48: =IF(DG!EB48="","",DG!EB48) ->  | BT48: =IF(DG!EB103="","",DG!EB103) -> Conceição Correia
E49: 2 | F49: 5B | H49: =IF(F49=0,0,COUNTIF(DG!$E$8:$E$2509,F49)) -> 20 | J49: 10 | K49: 6B | M49: =IF(K49=0,0,COUNTIF(DG!$E$8:$E$2509,K49)) -> 21 | O49: 18 | P49: 7B | R49: =IF(P49=0,0,COUNTIF(DG!$E$8:$E$2509,P49)) -> 28 | T49: 26 | U49: 8B | W49: =IF(U49=0,0,COUNTIF(DG!$E$8:$E$2509,U49)) -> 24 | Y49: 34 | Z49: 9B | AB49: =IF(Z49=0,0,COUNTIF(DG!$E$8:$E$2509,Z49)) -> 24 | AD49: 42 | AE49: 9F | AG49: =IF(AE49=0,0,COUNTIF(DG!$E$8:$E$2509,AE49)) -> 12 | AY49: =DG!EW63 -> 7E | BP49: Conceição Moura | BR49: =IF(DG!EB49="","",DG!EB49) -> EDUCAÇÂO ESPECIAL | BT49: =IF(DG!EB104="","",DG!EB104) -> Conceição Moura
E50: 3 | F50: 5C | H50: =IF(F50=0,0,COUNTIF(DG!$E$8:$E$2509,F50)) -> 27 | J50: 11 | K50: 6C | M50: =IF(K50=0,0,COUNTIF(DG!$E$8:$E$2509,K50)) -> 23 | O50: 19 | P50: 7C | R50: =IF(P50=0,0,COUNTIF(DG!$E$8:$E$2509,P50)) -> 23 | T50: 27 | U50: 8C | W50: =IF(U50=0,0,COUNTIF(DG!$E$8:$E$2509,U50)) -> 23 | Y50: 35 | Z50: 9C | AB50: =IF(Z50=0,0,COUNTIF(DG!$E$8:$E$2509,Z50)) -> 21 | AD50: 43 | AE50: 9G | AG50: =IF(AE50=0,0,COUNTIF(DG!$E$8:$E$2509,AE50)) -> 15 | AY50: =DG!EW64 -> 7F | BP50: =IF(OR($AK$38="X",$AK$39="X"),BT50,#REF!) -> Cristina Fortes | BR50: =IF(DG!EB50="","",DG!EB50) ->  | BT50: =IF(DG!EB105="","",DG!EB105) -> Cristina Fortes
E51: 4 | F51: 5D | H51: =IF(F51=0,0,COUNTIF(DG!$E$8:$E$2509,F51)) -> 21 | J51: 12 | K51: 6D | M51: =IF(K51=0,0,COUNTIF(DG!$E$8:$E$2509,K51)) -> 25 | O51: 20 | P51: 7D | R51: =IF(P51=0,0,COUNTIF(DG!$E$8:$E$2509,P51)) -> 20 | T51: 28 | U51: 8D | W51: =IF(U51=0,0,COUNTIF(DG!$E$8:$E$2509,U51)) -> 25 | Y51: 36 | Z51: 9D | AB51: =IF(Z51=0,0,COUNTIF(DG!$E$8:$E$2509,Z51)) -> 21 | AD51: 44 | AE51: 0 | AG51: =IF(AE51=0,0,COUNTIF(DG!$E$8:$E$2509,AE51)) -> 0 | AY51: =DG!EW65 -> 8A | BP51: =IF(OR($AK$38="X",$AK$39="X"),BT51,#REF!) -> Cristina Luis | BR51: =IF(DG!EB51="","",DG!EB51) -> Ana Rego | BT51: =IF(DG!EB106="","",DG!EB106) -> Cristina Luis
E52: 5 | F52: 5E | H52: =IF(F52=0,0,COUNTIF(DG!$E$8:$E$2509,F52)) -> 18 | J52: 13 | K52: 6E | M52: =IF(K52=0,0,COUNTIF(DG!$E$8:$E$2509,K52)) -> 19 | O52: 21 | P52: 7E | R52: =IF(P52=0,0,COUNTIF(DG!$E$8:$E$2509,P52)) -> 23 | T52: 29 | U52: 8E | W52: =IF(U52=0,0,COUNTIF(DG!$E$8:$E$2509,U52)) -> 20 | Y52: 37 | Z52: 9E | AB52: =IF(Z52=0,0,COUNTIF(DG!$E$8:$E$2509,Z52)) -> 25 | AD52: 45 | AE52: 0 | AG52: =IF(AE52=0,0,COUNTIF(DG!$E$8:$E$2509,AE52)) -> 0 | AY52: =DG!EW66 -> 8B | BP52: =IF(OR($AK$38="X",$AK$39="X"),BT52,BR49) -> Cristina Melo | BR52: =IF(DG!EB52="","",DG!EB52) -> Ana Rosado | BT52: =IF(DG!EB107="","",DG!EB107) -> Cristina Melo
E53: 6 | F53: 0 | H53: =IF(F53=0,0,COUNTIF(DG!$E$8:$E$2509,F53)) -> 0 | J53: 14 | K53: 0 | M53: =IF(K53=0,0,COUNTIF(DG!$E$8:$E$2509,K53)) -> 0 | O53: 22 | P53: 0 | R53: =IF(P53=0,0,COUNTIF(DG!$E$8:$E$2509,P53)) -> 0 | T53: 30 | U53: 0 | W53: =IF(U53=0,0,COUNTIF(DG!$E$8:$E$2509,U53)) -> 0 | Y53: 38 | Z53: 0 | AB53: =IF(Z53=0,0,COUNTIF(DG!$E$8:$E$2509,Z53)) -> 0 | AD53: 46 | AE53: 0 | AG53: =IF(AE53=0,0,COUNTIF(DG!$E$8:$E$2509,AE53)) -> 0 | AY53: =DG!EW67 -> 8C | BP53: Cristina Pimentel | BR53: =IF(DG!EB53="","",DG!EB53) -> Clotilde Nascimento | BT53: =IF(DG!EB108="","",DG!EB108) -> Cristina Pimentel
E54: 7 | F54: 0 | H54: =IF(F54=0,0,COUNTIF(DG!$E$8:$E$2509,F54)) -> 0 | J54: 15 | K54: 0 | M54: =IF(K54=0,0,COUNTIF(DG!$E$8:$E$2509,K54)) -> 0 | O54: 23 | P54: 0 | R54: =IF(P54=0,0,COUNTIF(DG!$E$8:$E$2509,P54)) -> 0 | T54: 31 | U54: 0 | W54: =IF(U54=0,0,COUNTIF(DG!$E$8:$E$2509,U54)) -> 0 | Y54: 39 | Z54: 0 | AB54: =IF(Z54=0,0,COUNTIF(DG!$E$8:$E$2509,Z54)) -> 0 | AD54: 47 | AE54: 0 | AG54: =IF(AE54=0,0,COUNTIF(DG!$E$8:$E$2509,AE54)) -> 0 | AY54: =DG!EW68 -> 8D | BP54: Dolores Santos | BR54: =IF(DG!EB54="","",DG!EB54) -> Elisa Algarvio | BT54: =IF(DG!EB109="","",DG!EB109) -> Dolores Santos
E55: 8 | F55: 0 | H55: =IF(F55=0,0,COUNTIF(DG!$E$8:$E$2509,F55)) -> 0 | J55: 16 | K55: 0 | M55: =IF(K55=0,0,COUNTIF(DG!$E$8:$E$2509,K55)) -> 0 | O55: 24 | P55: 0 | R55: =IF(P55=0,0,COUNTIF(DG!$E$8:$E$2509,P55)) -> 0 | T55: 32 | U55: 0 | W55: =IF(U55=0,0,COUNTIF(DG!$E$8:$E$2509,U55)) -> 0 | Y55: 40 | Z55: 0 | AB55: =IF(Z55=0,0,COUNTIF(DG!$E$8:$E$2509,Z55)) -> 0 | AD55: 48 | AE55: 0 | AG55: =IF(AE55=0,0,COUNTIF(DG!$E$8:$E$2509,AE55)) -> 0 | AY55: =DG!EW69 -> 8E | BP55: Dora Raio | BR55: =IF(DG!EB55="","",DG!EB55) -> Mª José Rosado | BT55: =IF(DG!EB110="","",DG!EB110) -> Dora Raio
H56: =SUMIF(I48:I55,"x",H48:H55) -> 0 | M56: =SUMIF(N48:N55,"x",M48:M55) -> 0 | R56: =SUMIF(S48:S55,"x",R48:R55) -> 0 | W56: =SUMIF(X48:X55,"x",W48:W55) -> 0 | AB56: =SUMIF(AC48:AC55,"x",AB48:AB55) -> 0 | AG56: =SUMIF(AH48:AH55,"x",AG48:AG55) -> 0 | AM56: =IF(I56="X",CONCATENATE(F56,", "),"") ->  | AN56: =IF(S56="X",CONCATENATE(P56,", "),"") ->  | AO56: =IF(X56="X",CONCATENATE(U56,", "),"") ->  | AP56: =IF(AH56="X",CONCATENATE(AE56,", "),"") ->  | AY56: =DG!EW70 -> 9A | BP56: Dulce Bandeira | BR56: =IF(DG!EB56="","",DG!EB56) -> Paula Roças | BT56: =IF(DG!EB111="","",DG!EB111) -> Dulce Bandeira
A57: Nº Turmas | E57: =COUNTA(I48:I55)+COUNTA(N48:N55)+COUNTA(S48:S55)+COUNTA(X48:X55)+COUNTA(AC48:AC55)+COUNTA(AH48:AH55) -> 0 | G57: Nº máx. de Alunos | M57: =H56+M56+R56+W56+AB56+AG56 -> 0 | P57: Nº Provável de Alunos | W57: 20 | Y57: =Orç!T38 -> 20 | Z57: Nº Alunos / Prof e Ass | AG57: =IF(SUM(C46,N46,Y46)=0,"",W57/SUM(C46,N46,Y46)) -> 3.333333333 | AJ57: Indicar o nº provável de alunos | AY57: =DG!EW71 -> 9B | BP57: Elina Machado | BR57: =IF(DG!EB57="","",DG!EB57) -> Rosa Puga | BT57: =IF(DG!EB112="","",DG!EB112) -> Elina Machado
B58: x | G58: Atenção o nº provável de alunos não está de acordo com a folha de Orçamento | AY58: =DG!EW72 -> 9C | BP58: Elisabete Gonçalves | BR58: =IF(DG!EB58="","",DG!EB58) -> Susana Castim | BT58: =IF(DG!EB113="","",DG!EB113) -> Elisabete Gonçalves
B59: Observações : | AY59: =DG!EW73 -> 9D | BP59: Elisabete Pama | BR59: =IF(DG!EB59="","",DG!EB59) -> Tânia Couveiro | BT59: =IF(DG!EB114="","",DG!EB114) -> Elisabete Pama
B60: Os alunos devem trazer roupa e calçado prático, luvas e garrafa de água. | AY60: =DG!EW74 -> 9E | BP60: Elsa Gomes | BR60: =IF(DG!EB60="","",DG!EB60) -> Sérgio Rocha | BT60: =IF(DG!EB115="","",DG!EB115) -> Elsa Gomes
AY61: =DG!EW75 -> 9F | BP61: Eugenia Pinheiro | BR61: =IF(DG!EB61="","",DG!EB61) ->  | BT61: =IF(DG!EB116="","",DG!EB116) -> Eugenia Pinheiro
AY62: =DG!EW76 -> 9G | BP62: Eulália Moreno | BR62: =IF(DG!EB62="","",DG!EB62) ->  | BT62: =IF(DG!EB117="","",DG!EB117) -> Eulália Moreno
B63: Barreiro, | G63: / | I63: / | O63: O Professor Responsável | Y63: A Diretora | AY63: =DG!EW77 -> 10A | BP63: Eva Crespo | BR63: =IF(DG!EB63="","",DG!EB63) -> DOCENTES - EB23/S | BT63: =IF(DG!EB118="","",DG!EB118) -> Eva Crespo
AY64: =DG!EW78 -> 10B | BP64: Fatima Bernardo | BR64: =IF(DG!EB64="","",DG!EB64) ->  | BT64: =IF(DG!EB119="","",DG!EB119) -> Fatima Bernardo
AY65: =DG!EW79 -> 10C | BP65: Fátima Fontinha | BR65: =IF(DG!EB65="","",DG!EB65) -> Adriana Santos | BT65: =IF(DG!EB120="","",DG!EB120) -> Fátima Fontinha
AY66: =DG!EW80 -> 10D | BP66: Fátima Garnacho | BR66: =IF(DG!EB66="","",DG!EB66) -> Agostinho Monteiro | BT66: =IF(DG!EB121="","",DG!EB121) -> Fátima Garnacho
AY67: =DG!EW81 -> 10E | BP67: Fátima Martins BG | BR67: =IF(DG!EB67="","",DG!EB67) -> Alexandra Ruivo | BT67: =IF(DG!EB122="","",DG!EB122) -> Fátima Martins BG
AY68: =DG!EW82 -> 10F | BP68: Fátima Martins Ing | BR68: =IF(DG!EB68="","",DG!EB68) -> Ana Batalha | BT68: =IF(DG!EB123="","",DG!EB123) -> Fátima Martins Ing
AY69: =DG!EW83 -> 10G | BP69: Fátima Pedreiro | BR69: =IF(DG!EB69="","",DG!EB69) -> Ana Bento | BT69: =IF(DG!EB124="","",DG!EB124) -> Fátima Pedreiro
AY70: =DG!EW84 -> 10H | BP70: Fátima Pereira | BR70: =IF(DG!EB70="","",DG!EB70) -> Ana Camões | BT70: =IF(DG!EB125="","",DG!EB125) -> Fátima Pereira
AY71: =DG!EW85 -> 10I | BP71: Fernanda Cristóvão | BR71: =IF(DG!EB71="","",DG!EB71) -> Ana Canas | BT71: =IF(DG!EB126="","",DG!EB126) -> Fernanda Cristóvão
AY72: =DG!EW86 -> 10J | BP72: Fernanda Delgado | BR72: =IF(DG!EB72="","",DG!EB72) -> Ana Carmo | BT72: =IF(DG!EB127="","",DG!EB127) -> Fernanda Delgado
AY73: =DG!EW87 -> 10K | BP73: Fernanda Tibério | BR73: =IF(DG!EB73="","",DG!EB73) -> Ana Paula Costa | BT73: =IF(DG!EB128="","",DG!EB128) -> Fernanda Tibério
AY74: =DG!EW88 -> 11A | BP74: Fernando Franco | BR74: =IF(DG!EB74="","",DG!EB74) -> Ana Paula Dias | BT74: =IF(DG!EB129="","",DG!EB129) -> Fernando Franco
AY75: =DG!EW89 -> 11B | BP75: Filomena Barroqueiro | BR75: =IF(DG!EB75="","",DG!EB75) -> Ana Paula Lopes | BT75: =IF(DG!EB130="","",DG!EB130) -> Filomena Barroqueiro
AY76: =DG!EW90 -> 11C | BP76: Filomena Maia | BR76: =IF(DG!EB76="","",DG!EB76) -> Ana Silva | BT76: =IF(DG!EB131="","",DG!EB131) -> Filomena Maia
AY77: =DG!EW91 -> 11D | BP77: Filomena Martins | BR77: =IF(DG!EB77="","",DG!EB77) -> Ana Silva | BT77: =IF(DG!EB132="","",DG!EB132) -> Filomena Martins
AY78: =DG!EW92 -> 11E | BP78: Francisco Bóia | BR78: =IF(DG!EB78="","",DG!EB78) -> Ana Soares | BT78: =IF(DG!EB133="","",DG!EB133) -> Francisco Bóia
AY79: =DG!EW93 -> 11F | BP79: Francisco Ferreira | BR79: =IF(DG!EB79="","",DG!EB79) -> Ana Verdasca | BT79: =IF(DG!EB134="","",DG!EB134) -> Francisco Ferreira
AY80: =DG!EW94 -> 11G | BP80: Georgina Cruz | BR80: =IF(DG!EB80="","",DG!EB80) -> Anabela Cardoso | BT80: =IF(DG!EB135="","",DG!EB135) -> Georgina Cruz
AY81: =DG!EW95 -> 11H | BP81: Gina Fortuna | BR81: =IF(DG!EB81="","",DG!EB81) -> Anabela Piquete | BT81: =IF(DG!EB136="","",DG!EB136) -> Gina Fortuna
AY82: =DG!EW96 -> 11I | BP82: Graça Barrocas | BR82: =IF(DG!EB82="","",DG!EB82) -> Anabela Rosmaninho | BT82: =IF(DG!EB137="","",DG!EB137) -> Graça Barrocas
AY83: =DG!EW97 -> 11J | BP83: Graça Pereira | BR83: =IF(DG!EB83="","",DG!EB83) -> Anabela Soares | BT83: =IF(DG!EB138="","",DG!EB138) -> Graça Pereira
AY84: =DG!EW98 -> 11K | BP84: =IF(OR($AK$38="X",$AK$39="X"),BT84,BR81) -> Graça Ribeiro | BR84: =IF(DG!EB84="","",DG!EB84) -> André Sousa | BT84: =IF(DG!EB139="","",DG!EB139) -> Graça Ribeiro
AY85: =DG!EW99 -> 11L | BP85: Graça Silva | BR85: =IF(DG!EB85="","",DG!EB85) -> António Alves | BT85: =IF(DG!EB140="","",DG!EB140) -> Graça Silva
AY86: =DG!EW100 -> 11M | BP86: Helder Silva | BR86: =IF(DG!EB86="","",DG!EB86) -> António Campos | BT86: =IF(DG!EB141="","",DG!EB141) -> Helder Silva
AY87: =DG!EW101 -> 11N | BP87: Helena Flores | BR87: =IF(DG!EB87="","",DG!EB87) -> António Pereira | BT87: =IF(DG!EB142="","",DG!EB142) -> Helena Flores
AY88: =DG!EW102 -> 12A | BP88: Helena Vaz | BR88: =IF(DG!EB88="","",DG!EB88) -> Antonio Serro | BT88: =IF(DG!EB143="","",DG!EB143) -> Helena Vaz
AY89: =DG!EW103 -> 12B | BP89: Irene Lopes | BR89: =IF(DG!EB89="","",DG!EB89) -> Armando Pedrosa | BT89: =IF(DG!EB144="","",DG!EB144) -> Irene Lopes
AY90: =DG!EW104 -> 12C | BP90: Isabel Braga | BR90: =IF(DG!EB90="","",DG!EB90) -> Bárbara Esteves | BT90: =IF(DG!EB145="","",DG!EB145) -> Isabel Braga
AY91: =DG!EW105 -> 12D | BP91: Isabel Carapinha | BR91: =IF(DG!EB91="","",DG!EB91) -> Berta Sucena | BT91: =IF(DG!EB146="","",DG!EB146) -> Isabel Carapinha
AY92: =DG!EW106 -> 12E | BP92: Isabel Lourenço | BR92: =IF(DG!EB92="","",DG!EB92) -> Carlos Santos | BT92: =IF(DG!EB147="","",DG!EB147) -> Isabel Lourenço
AY93: =DG!EW107 -> 12F | BP93: Jessica Nova | BR93: =IF(DG!EB93="","",DG!EB93) -> Catarina Figueiredo | BT93: =IF(DG!EB148="","",DG!EB148) -> Jessica Nova
AY94: =DG!EW108 -> 12G | BP94: Joâo Pereira | BR94: =IF(DG!EB94="","",DG!EB94) -> Catarina Freitas | BT94: =IF(DG!EB149="","",DG!EB149) -> Joâo Pereira
AY95: =DG!EW109 -> 12H | BP95: João Lopes | BR95: =IF(DG!EB95="","",DG!EB95) -> Cecília Santos | BT95: =IF(DG!EB150="","",DG!EB150) -> João Lopes
AY96: =DG!EW110 -> 12I | BP96: João Navalho | BR96: =IF(DG!EB96="","",DG!EB96) -> Celestino Mendes | BT96: =IF(DG!EB151="","",DG!EB151) -> João Navalho
AY97: =DG!EW111 -> 12J | BP97: João Ribeiro | BR97: =IF(DG!EB97="","",DG!EB97) -> Célia Corujo | BT97: =IF(DG!EB152="","",DG!EB152) -> João Ribeiro
AY98: =DG!EW112 -> 12K | BP98: Joaquim Silva | BR98: =IF(DG!EB98="","",DG!EB98) -> Cesaltina Martinho | BT98: =IF(DG!EB153="","",DG!EB153) -> Joaquim Silva
AY99: =DG!EW113 -> 12L | BP99: José Carlos Sousa | BR99: =IF(DG!EB99="","",DG!EB99) -> Clara Ribeiro | BT99: =IF(DG!EB154="","",DG!EB154) -> José Carlos Sousa
AY100: =DG!EW114 -> 0 | BP100: José Correia | BR100: =IF(DG!EB100="","",DG!EB100) -> Clara Soares | BT100: =IF(DG!EB155="","",DG!EB155) -> José Correia
AY101: =DG!EW115 -> 0 | BP101: José Toureiro | BR101: =IF(DG!EB101="","",DG!EB101) -> Clarisse Sim | BT101: =IF(DG!EB156="","",DG!EB156) -> José Toureiro
AY102: =DG!EW116 -> 0 | BP102: Josefa Cruz | BR102: =IF(DG!EB102="","",DG!EB102) -> Claudio Chaparro | BT102: =IF(DG!EB157="","",DG!EB157) -> Josefa Cruz
AY103: =DG!EW117 -> 0 | BP103: Josete Oliveira | BR103: =IF(DG!EB103="","",DG!EB103) -> Conceição Correia | BT103: =IF(DG!EB158="","",DG!EB158) -> Josete Oliveira
AY104: =DG!EW118 -> 0 | BP104: Lina Soares | BR104: =IF(DG!EB104="","",DG!EB104) -> Conceição Moura | BT104: =IF(DG!EB159="","",DG!EB159) -> Lina Soares
AY105: =DG!EW119 -> 0 | BP105: Lúcia Ventura | BR105: =IF(DG!EB105="","",DG!EB105) -> Cristina Fortes | BT105: =IF(DG!EB160="","",DG!EB160) -> Lúcia Ventura
AY106: =DG!EW120 -> 0 | BP106: Luis Dourado | BR106: =IF(DG!EB106="","",DG!EB106) -> Cristina Luis | BT106: =IF(DG!EB161="","",DG!EB161) -> Luis Dourado
AY107: =DG!EW121 -> 0 | BP107: Luisa Canilhas | BR107: =IF(DG!EB107="","",DG!EB107) -> Cristina Melo | BT107: =IF(DG!EB162="","",DG!EB162) -> Luisa Canilhas
AY108: =DG!EW122 -> 0 | BP108: Lurdes Monteiro | BR108: =IF(DG!EB108="","",DG!EB108) -> Cristina Pimentel | BT108: =IF(DG!EB163="","",DG!EB163) -> Lurdes Monteiro
AY109: =DG!EW123 -> 0 | BP109: Lurdes Rodrigues | BR109: =IF(DG!EB109="","",DG!EB109) -> Dolores Santos | BT109: =IF(DG!EB164="","",DG!EB164) -> Lurdes Rodrigues
AY110: =DG!EW124 -> 0 | BP110: Mª Céu Gomes | BR110: =IF(DG!EB110="","",DG!EB110) -> Dora Raio | BT110: =IF(DG!EB165="","",DG!EB165) -> Mª Céu Gomes
AY111: =DG!EW125 -> 0 | BP111: Mª Céu Jesus | BR111: =IF(DG!EB111="","",DG!EB111) -> Dulce Bandeira | BT111: =IF(DG!EB166="","",DG!EB166) -> Mª Céu Jesus
AY112: =DG!EW126 -> 0 | BP112: Mª Céu Vicente | BR112: =IF(DG!EB112="","",DG!EB112) -> Elina Machado | BT112: =IF(DG!EB167="","",DG!EB167) -> Mª Céu Vicente
AY113: =DG!EW127 -> 0 | BP113: Mª João Bica | BR113: =IF(DG!EB113="","",DG!EB113) -> Elisabete Gonçalves | BT113: =IF(DG!EB168="","",DG!EB168) -> Mª João Bica
AY114: =DG!EW128 -> 0 | BP114: Mª João Grilo | BR114: =IF(DG!EB114="","",DG!EB114) -> Elisabete Pama | BT114: =IF(DG!EB169="","",DG!EB169) -> Mª João Grilo
AY115: =DG!EW129 -> 0 | BP115: Mª José Moreno | BR115: =IF(DG!EB115="","",DG!EB115) -> Elsa Gomes | BT115: =IF(DG!EB170="","",DG!EB170) -> Mª José Moreno
AY116: =DG!EW130 -> 0 | BP116: =IF(OR($AK$38="X",$AK$39="X"),BT116,BR113) -> Mª Luz Cavaco | BR116: =IF(DG!EB116="","",DG!EB116) -> Eugenia Pinheiro | BT116: =IF(DG!EB171="","",DG!EB171) -> Mª Luz Cavaco
AY117: =DG!EW131 -> 0 | BP117: Manuel Russo | BR117: =IF(DG!EB117="","",DG!EB117) -> Eulália Moreno | BT117: =IF(DG!EB172="","",DG!EB172) -> Manuel Russo
AY118: =DG!EW132 -> 0 | BP118: Manuela Lopes | BR118: =IF(DG!EB118="","",DG!EB118) -> Eva Crespo | BT118: =IF(DG!EB173="","",DG!EB173) -> Manuela Lopes
AY119: =DG!EW133 -> 0 | BP119: Marcial Tavares | BR119: =IF(DG!EB119="","",DG!EB119) -> Fatima Bernardo | BT119: =IF(DG!EB174="","",DG!EB174) -> Marcial Tavares
AY120: =DG!EW134 -> 0 | BP120: Marco Garcia | BR120: =IF(DG!EB120="","",DG!EB120) -> Fátima Fontinha | BT120: =IF(DG!EB175="","",DG!EB175) -> Marco Garcia
AY121: =DG!EW135 -> 0 | BP121: Margarida Ribeiro | BR121: =IF(DG!EB121="","",DG!EB121) -> Fátima Garnacho | BT121: =IF(DG!EB176="","",DG!EB176) -> Margarida Ribeiro
AY122: =DG!EW136 -> 0 | BP122: Maria Manuel Silva | BR122: =IF(DG!EB122="","",DG!EB122) -> Fátima Martins BG | BT122: =IF(DG!EB177="","",DG!EB177) -> Maria Manuel Silva
AY123: =DG!EW137 -> 0 | BP123: Mariana Alves | BR123: =IF(DG!EB123="","",DG!EB123) -> Fátima Martins Ing | BT123: =IF(DG!EB178="","",DG!EB178) -> Mariana Alves
AY124: =DG!EW138 -> 0 | BP124: Marina Gomes | BR124: =IF(DG!EB124="","",DG!EB124) -> Fátima Pedreiro | BT124: =IF(DG!EB179="","",DG!EB179) -> Marina Gomes
AY125: =DG!EW139 -> 0 | BP125: Marina Nortadas | BR125: =IF(DG!EB125="","",DG!EB125) -> Fátima Pereira | BT125: =IF(DG!EB180="","",DG!EB180) -> Marina Nortadas
AY126: =DG!EW140 -> 0 | BP126: Marina Veloso | BR126: =IF(DG!EB126="","",DG!EB126) -> Fernanda Cristóvão | BT126: =IF(DG!EB181="","",DG!EB181) -> Marina Veloso
AY127: =DG!EW141 -> 0 | BP127: Mário A Pereira | BR127: =IF(DG!EB127="","",DG!EB127) -> Fernanda Delgado | BT127: =IF(DG!EB182="","",DG!EB182) -> Mário A Pereira
AY128: =DG!EW142 -> 0 | BP128: Mário Afonso | BR128: =IF(DG!EB128="","",DG!EB128) -> Fernanda Tibério | BT128: =IF(DG!EB183="","",DG!EB183) -> Mário Afonso
AY129: =DG!EW143 -> 0 | BP129: Mário Alves | BR129: =IF(DG!EB129="","",DG!EB129) -> Fernando Franco | BT129: =IF(DG!EB184="","",DG!EB184) -> Mário Alves
AY130: =DG!EW144 -> 0 | BP130: Mário Venceslau | BR130: =IF(DG!EB130="","",DG!EB130) -> Filomena Barroqueiro | BT130: =IF(DG!EB185="","",DG!EB185) -> Mário Venceslau
AY131: =DG!EW145 -> 0 | BP131: Marlene Pereira | BR131: =IF(DG!EB131="","",DG!EB131) -> Filomena Maia | BT131: =IF(DG!EB186="","",DG!EB186) -> Marlene Pereira
AY132: =DG!EW146 -> 0 | BP132: Miguel Almeida | BR132: =IF(DG!EB132="","",DG!EB132) -> Filomena Martins | BT132: =IF(DG!EB187="","",DG!EB187) -> Miguel Almeida
AY133: =DG!EW147 -> 0 | BP133: Natália Nunes | BR133: =IF(DG!EB133="","",DG!EB133) -> Francisco Bóia | BT133: =IF(DG!EB188="","",DG!EB188) -> Natália Nunes
AY134: =DG!EW148 -> 0 | BP134: Nelson Silva | BR134: =IF(DG!EB134="","",DG!EB134) -> Francisco Ferreira | BT134: =IF(DG!EB189="","",DG!EB189) -> Nelson Silva
AY135: =DG!EW149 -> 0 | BP135: Nidia Santos | BR135: =IF(DG!EB135="","",DG!EB135) -> Georgina Cruz | BT135: =IF(DG!EB190="","",DG!EB190) -> Nidia Santos
AY136: =DG!EW150 -> 0 | BP136: Nuno Correia | BR136: =IF(DG!EB136="","",DG!EB136) -> Gina Fortuna | BT136: =IF(DG!EB191="","",DG!EB191) -> Nuno Correia
AY137: =DG!EW151 -> 0 | BP137: Olga Grilo | BR137: =IF(DG!EB137="","",DG!EB137) -> Graça Barrocas | BT137: =IF(DG!EB192="","",DG!EB192) -> Olga Grilo
AY138: =DG!EW152 -> 0 | BP138: Olga Sousa | BR138: =IF(DG!EB138="","",DG!EB138) -> Graça Pereira | BT138: =IF(DG!EB193="","",DG!EB193) -> Olga Sousa
AY139: =DG!EW153 -> 0 | BP139: Olinda Semedo | BR139: =IF(DG!EB139="","",DG!EB139) -> Graça Ribeiro | BT139: =IF(DG!EB194="","",DG!EB194) -> Olinda Semedo
AY140: =DG!EW154 -> 0 | BP140: Patrícia Mendes | BR140: =IF(DG!EB140="","",DG!EB140) -> Graça Silva | BT140: =IF(DG!EB195="","",DG!EB195) -> Patrícia Mendes
AY141: =DG!EW155 -> 0 | BP141: Patrícia Quarenta | BR141: =IF(DG!EB141="","",DG!EB141) -> Helder Silva | BT141: =IF(DG!EB196="","",DG!EB196) -> Patrícia Quarenta
AY142: =DG!EW156 -> 0 | BP142: Paula Mendes | BR142: =IF(DG!EB142="","",DG!EB142) -> Helena Flores | BT142: =IF(DG!EB197="","",DG!EB197) -> Paula Mendes
AY143: =DG!EW157 -> 0 | BP143: Paula Pisa | BR143: =IF(DG!EB143="","",DG!EB143) -> Helena Vaz | BT143: =IF(DG!EB198="","",DG!EB198) -> Paula Pisa
AY144: =DG!EW158 -> 0 | BP144: Paula Silva | BR144: =IF(DG!EB144="","",DG!EB144) -> Irene Lopes | BT144: =IF(DG!EB199="","",DG!EB199) -> Paula Silva
AY145: =DG!EW159 -> 0 | BP145: Paula Simão | BR145: =IF(DG!EB145="","",DG!EB145) -> Isabel Braga | BT145: =IF(DG!EB200="","",DG!EB200) -> Paula Simão
AY146: =DG!EW160 -> 0 | BP146: Raul Bernardes | BR146: =IF(DG!EB146="","",DG!EB146) -> Isabel Carapinha | BT146: =IF(DG!EB201="","",DG!EB201) -> Raul Bernardes
AY147: =DG!EW161 -> 0 | BP147: Ricardo Costa | BR147: =IF(DG!EB147="","",DG!EB147) -> Isabel Lourenço | BT147: =IF(DG!EB202="","",DG!EB202) -> Ricardo Costa
BP148: =IF(OR($AK$38="X",$AK$39="X"),BT148,BR145) -> Rodrigo Galrito | BR148: =IF(DG!EB148="","",DG!EB148) -> Jessica Nova | BT148: =IF(DG!EB203="","",DG!EB203) -> Rodrigo Galrito
BP149: Rosa Gomes | BR149: =IF(DG!EB149="","",DG!EB149) -> Joâo Pereira | BT149: =IF(DG!EB204="","",DG!EB204) -> Rosa Gomes
BP150: Rosália Caixinha | BR150: =IF(DG!EB150="","",DG!EB150) -> João Lopes | BT150: =IF(DG!EB205="","",DG!EB205) -> Rosália Caixinha
BP151: Rosário Gonçalves | BR151: =IF(DG!EB151="","",DG!EB151) -> João Navalho | BT151: =IF(DG!EB206="","",DG!EB206) -> Rosário Gonçalves
BP152: Rui Cabral | BR152: =IF(DG!EB152="","",DG!EB152) -> João Ribeiro | BT152: =IF(DG!EB207="","",DG!EB207) -> Rui Cabral
BP153: Rui Carvalho | BR153: =IF(DG!EB153="","",DG!EB153) -> Joaquim Silva | BT153: =IF(DG!EB208="","",DG!EB208) -> Rui Carvalho
BP154: Sandra Burt | BR154: =IF(DG!EB154="","",DG!EB154) -> José Carlos Sousa | BT154: =IF(DG!EB209="","",DG!EB209) -> Sandra Burt
BP155: Sandra Cachucho | BR155: =IF(DG!EB155="","",DG!EB155) -> José Correia | BT155: =IF(DG!EB210="","",DG!EB210) -> Sandra Cachucho
BP156: Sandra Duarte | BR156: =IF(DG!EB156="","",DG!EB156) -> José Toureiro | BT156: =IF(DG!EB211="","",DG!EB211) -> Sandra Duarte
BP157: Sandra Lopes | BR157: =IF(DG!EB157="","",DG!EB157) -> Josefa Cruz | BT157: =IF(DG!EB212="","",DG!EB212) -> Sandra Lopes
BP158: Sara Gonçalves | BR158: =IF(DG!EB158="","",DG!EB158) -> Josete Oliveira | BT158: =IF(DG!EB213="","",DG!EB213) -> Sara Gonçalves
BP159: Sérgio Pedro | BR159: =IF(DG!EB159="","",DG!EB159) -> Lina Soares | BT159: =IF(DG!EB214="","",DG!EB214) -> Sérgio Pedro
BP160: Susana Amaro | BR160: =IF(DG!EB160="","",DG!EB160) -> Lúcia Ventura | BT160: =IF(DG!EB215="","",DG!EB215) -> Susana Amaro
BP161: Teresa Dias | BR161: =IF(DG!EB161="","",DG!EB161) -> Luis Dourado | BT161: =IF(DG!EB216="","",DG!EB216) -> Teresa Dias
BP162: Teresa Janela | BR162: =IF(DG!EB162="","",DG!EB162) -> Luisa Canilhas | BT162: =IF(DG!EB217="","",DG!EB217) -> Teresa Janela
BR163: =IF(DG!EB163="","",DG!EB163) -> Lurdes Monteiro | BT163: =IF(DG!EB218="","",DG!EB218) -> 
BR164: =IF(DG!EB164="","",DG!EB164) -> Lurdes Rodrigues | BT164: =IF(DG!EB219="","",DG!EB219) -> 
BR165: =IF(DG!EB165="","",DG!EB165) -> Mª Céu Gomes | BT165: =IF(DG!EB220="","",DG!EB220) -> 
BR166: =IF(DG!EB166="","",DG!EB166) -> Mª Céu Jesus | BT166: =IF(DG!EB221="","",DG!EB221) -> 
BP167: ASSISTENTES | BR167: =IF(DG!EB167="","",DG!EB167) -> Mª Céu Vicente | BT167: =IF(DG!EB222="","",DG!EB222) -> ASSISTENTES
BP168: Lurdes Cadeirinhas | BR168: =IF(DG!EB168="","",DG!EB168) -> Mª João Bica | BT168: =IF(DG!EB223="","",DG!EB223) -> Lurdes Cadeirinhas
BR169: =IF(DG!EB169="","",DG!EB169) -> Mª João Grilo | BT169: =IF(DG!EB224="","",DG!EB224) -> 
BR170: =IF(DG!EB170="","",DG!EB170) -> Mª José Moreno | BT170: =IF(DG!EB225="","",DG!EB225) -> 
BR171: =IF(DG!EB171="","",DG!EB171) -> Mª Luz Cavaco | BT171: =IF(DG!EB226="","",DG!EB226) -> 
BR172: =IF(DG!EB172="","",DG!EB172) -> Manuel Russo | BT172: =IF(DG!EB227="","",DG!EB227) -> 
BR173: =IF(DG!EB173="","",DG!EB173) -> Manuela Lopes | BT173: =IF(DG!EB228="","",DG!EB228) -> 
BR174: =IF(DG!EB174="","",DG!EB174) -> Marcial Tavares | BT174: =IF(DG!EB229="","",DG!EB229) -> 
BR175: =IF(DG!EB175="","",DG!EB175) -> Marco Garcia | BT175: =IF(DG!EB230="","",DG!EB230) -> 
BR176: =IF(DG!EB176="","",DG!EB176) -> Margarida Ribeiro | BT176: =IF(DG!EB231="","",DG!EB231) -> 
BR177: =IF(DG!EB177="","",DG!EB177) -> Maria Manuel Silva | BT177: =IF(DG!EB232="","",DG!EB232) -> 
BR178: =IF(DG!EB178="","",DG!EB178) -> Mariana Alves | BT178: =IF(DG!EB233="","",DG!EB233) -> 
BR179: =IF(DG!EB179="","",DG!EB179) -> Marina Gomes | BT179: =IF(DG!EB234="","",DG!EB234) -> 
BP180: =IF(OR($AK$38="X",$AK$39="X"),BT180,BR177) ->  | BR180: =IF(DG!EB180="","",DG!EB180) -> Marina Nortadas | BT180: =IF(DG!EB235="","",DG!EB235) -> 
BR181: =IF(DG!EB181="","",DG!EB181) -> Marina Veloso | BT181: =IF(DG!EB236="","",DG!EB236) -> 
BR182: =IF(DG!EB182="","",DG!EB182) -> Mário A Pereira | BT182: =IF(DG!EB237="","",DG!EB237) -> 
BR183: =IF(DG!EB183="","",DG!EB183) -> Mário Afonso | BT183: =IF(DG!EB238="","",DG!EB238) -> 
BR184: =IF(DG!EB184="","",DG!EB184) -> Mário Alves | BT184: =IF(DG!EB239="","",DG!EB239) -> 
BR185: =IF(DG!EB185="","",DG!EB185) -> Mário Venceslau | BT185: =IF(DG!EB240="","",DG!EB240) -> 
BR186: =IF(DG!EB186="","",DG!EB186) -> Marlene Pereira | BT186: =IF(DG!EB241="","",DG!EB241) -> 
BR187: =IF(DG!EB187="","",DG!EB187) -> Miguel Almeida | BT187: =IF(DG!EB242="","",DG!EB242) -> 
BR188: =IF(DG!EB188="","",DG!EB188) -> Natália Nunes | BT188: =IF(DG!EB243="","",DG!EB243) -> 
BR189: =IF(DG!EB189="","",DG!EB189) -> Nelson Silva | BT189: =IF(DG!EB244="","",DG!EB244) -> 
BR190: =IF(DG!EB190="","",DG!EB190) -> Nidia Santos | BT190: =IF(DG!EB245="","",DG!EB245) -> 
BR191: =IF(DG!EB191="","",DG!EB191) -> Nuno Correia | BT191: =IF(DG!EB246="","",DG!EB246) -> 
BR192: =IF(DG!EB192="","",DG!EB192) -> Olga Grilo | BT192: =IF(DG!EB247="","",DG!EB247) -> 
BR193: =IF(DG!EB193="","",DG!EB193) -> Olga Sousa | BT193: =IF(DG!EB248="","",DG!EB248) -> 
BR194: =IF(DG!EB194="","",DG!EB194) -> Olinda Semedo | BT194: =IF(DG!EB249="","",DG!EB249) -> 
BR195: =IF(DG!EB195="","",DG!EB195) -> Patrícia Mendes | BT195: =IF(DG!EB250="","",DG!EB250) -> 
BR196: =IF(DG!EB196="","",DG!EB196) -> Patrícia Quarenta | BT196: =IF(DG!EB251="","",DG!EB251) -> 
BR197: =IF(DG!EB197="","",DG!EB197) -> Paula Mendes | BT197: =IF(DG!EB252="","",DG!EB252) -> 
BR198: =IF(DG!EB198="","",DG!EB198) -> Paula Pisa | BT198: =IF(DG!EB253="","",DG!EB253) -> 
BR199: =IF(DG!EB199="","",DG!EB199) -> Paula Silva | BT199: =IF(DG!EB254="","",DG!EB254) -> 
BR200: =IF(DG!EB200="","",DG!EB200) -> Paula Simão | BT200: =IF(DG!EB255="","",DG!EB255) -> 
... 50 more rows

Sheet Plano EE
G1: =DG!$H$1 -> Agrupamento de Escolas Augusto Cabrita | AP1: =DG!$H$1 -> Agrupamento de Escolas Augusto Cabrita
G2: =DG!$H$2 -> Sede – Escola Secundária Augusto Cabrita | AP2: =DG!$H$2 -> Sede – Escola Secundária Augusto Cabrita
G3: =DG!$H$3 -> Rua Maria Lamas – Alto Seixalinho – 2830-088 Barreiro | AP3: =DG!$H$3 -> Rua Maria Lamas – Alto Seixalinho – 2830-088 Barreiro
G4: =DG!$H$4 -> Tel 212059220 - Fax 212059228 - E-mail: direcao@aeaugustocabrita.edu.pt | AP4: =DG!$H$4 -> Tel 212059220 - Fax 212059228 - E-mail: direcao@aeaugustocabrita.edu.pt
G6: =IF(PLANO!AH6="X","PLANO DE VISITA DE ESTUDO / AUTORIZAÇÃO DO EE","PLANO DE ativIDADE / AUTORIZAÇÃO DO EE") -> PLANO DE VISITA DE ESTUDO / AUTORIZAÇÃO DO EE | AP6: =G6 -> PLANO DE VISITA DE ESTUDO / AUTORIZAÇÃO DO EE
B8: =PLANO!$B$8 -> Designação da V. Estudo | J8: =IF(PLANO!$J$8="","",PLANO!$J$8) -> Eco-ementas | AE8: Ano : | AF8: =DG!$EC$1 -> 15 | AG8: / | AH8: =DG!$EE$1 -> 16 | AK8: =PLANO!$B$8 -> Designação da V. Estudo | AS8: =IF(PLANO!$J$8="","",PLANO!$J$8) -> Eco-ementas | BN8: Ano : | BO8: =DG!$EC$1 -> 15 | BP8: / | BQ8: =DG!$EE$1 -> 16
B9: =PLANO!$B$9 -> Organizada por : | J9: =IF(PLANO!$J$9="","",PLANO!$J$9) -> 7º F | AD9: Nº. Ativ : | AG9: =IF(PLANO!$AG$9="","",PLANO!AG9) ->  | AK9: =PLANO!$B$9 -> Organizada por : | AS9: =IF(PLANO!$J$9="","",PLANO!$J$9) -> 7º F | BM9: Nº. Ativ : | BP9: =IF(PLANO!$AG$9="","",PLANO!$AG$9) -> 
A11: =PLANO!$A$11 -> Locais | E11: - | F11: =IF(PLANO!$F$11="","",PLANO!$F$11) ->  | T11: - | U11: =IF(PLANO!$U$11="","",PLANO!$U$11) ->  | AJ11: =PLANO!$A$11 -> Locais | AN11: - | AO11: =IF(PLANO!$F$11="","",PLANO!$F$11) ->  | BC11: - | BD11: =IF(PLANO!$U$11="","",PLANO!$U$11) -> 
A12: =PLANO!$A$12 -> a visitar | E12: - | F12: =IF(PLANO!$F$12="","",PLANO!$F$12) ->  | T12: - | U12: =IF(PLANO!$U$12="","",PLANO!$U$12) ->  | AJ12: =PLANO!$A$12 -> a visitar | AN12: - | AO12: =IF(PLANO!$F$12="","",PLANO!$F$12) ->  | BC12: - | BD12: =IF(PLANO!$U$12="","",PLANO!$U$12) -> 
B14: =PLANO!$B14 -> Início | F14: Local: | H14: =IF(PLANO!$H14="","",PLANO!$H14) -> EB23 P. Abílio Mendes | P14: Dia : | R14: =IF(PLANO!$R14="","",PLANO!$R14) ->  | S14: / | T14: =IF(PLANO!$T14="","",PLANO!$T14) ->  | U14: / | V14: =IF(PLANO!$V14="","",PLANO!$V14) ->  | Z14: Hora : | AA14: =IF(PLANO!$AA14="","",PLANO!$AA14) ->  | AB14: h | AC14: e | AD14: =IF(PLANO!$AD14="","",PLANO!$AD14) ->  | AE14: minutos | AK14: =PLANO!$B14 -> Início | AO14: Local: | AQ14: =IF(PLANO!$H14="","",PLANO!$H14) -> EB23 P. Abílio Mendes | AY14: Dia : | BA14: =IF(PLANO!$R14="","",PLANO!$R14) ->  | BB14: / | BC14: =IF(PLANO!$T14="","",PLANO!$T14) ->  | BD14: / | BE14: =IF(PLANO!$V14="","",PLANO!$V14) ->  | BI14: Hora : | BJ14: =IF(PLANO!$AA14="","",PLANO!$AA14) ->  | BK14: h | BL14: e | BM14: =IF(PLANO!$AD14="","",PLANO!$AD14) ->  | BN14: minutos
B15: =PLANO!$B15 -> Fim | F15: Local: | H15: =IF(PLANO!$H15="","",PLANO!$H15) -> EB23 P. Abílio Mendes | P15: Dia : | R15: =IF(PLANO!$R15="","",PLANO!$R15) ->  | S15: / | T15: =IF(PLANO!$T15="","",PLANO!$T15) ->  | U15: / | V15: =IF(PLANO!$V15="","",PLANO!$V15) ->  | Z15: Hora : | AA15: =IF(PLANO!$AA15="","",PLANO!$AA15) ->  | AB15: h | AC15: e | AD15: =IF(PLANO!$AD15="","",PLANO!$AD15) ->  | AE15: minutos | AK15: =PLANO!$B15 -> Fim | AO15: Local: | AQ15: =IF(PLANO!$H15="","",PLANO!$H15) -> EB23 P. Abílio Mendes | AY15: Dia : | BA15: =IF(PLANO!$R15="","",PLANO!$R15) ->  | BB15: / | BC15: =IF(PLANO!$T15="","",PLANO!$T15) ->  | BD15: / | BE15: =IF(PLANO!$V15="","",PLANO!$V15) ->  | BI15: Hora : | BJ15: =IF(PLANO!$AA15="","",PLANO!$AA15) ->  | BK15: h | BL15: e | BM15: =IF(PLANO!$AD15="","",PLANO!$AD15) ->  | BN15: minutos
B17: Preço : | E17: =IF(PLANO!$F17="","",PLANO!$F17) -> 0 | I17: Pago (Rúb. prof.) | T17: Transporte : | X17: =IF(PLANO!$T17="","",PLANO!$T17) ->  | AK17: Preço : | AN17: =IF(PLANO!$F17="","",PLANO!$F17) -> 0 | AR17: Pago (Rúb. prof.) | BC17: Transporte : | BG17: =IF(PLANO!$T17="","",PLANO!$T17) -> 
A19: Programa | E19: =IF(PLANO!$E19="","",PLANO!$E19) ->  | F19: =IF(PLANO!$F19="","",PLANO!$F19) ->  | AJ19: Programa | AN19: =IF(PLANO!$E19="","",PLANO!$E19) ->  | AO19: =IF(PLANO!$F19="","",PLANO!$F19) -> 
E20: =IF(PLANO!$E20="","",PLANO!$E20) ->  | F20: =IF(PLANO!$F20="","",PLANO!$F20) ->  | AN20: =IF(PLANO!$E20="","",PLANO!$E20) ->  | AO20: =IF(PLANO!$F20="","",PLANO!$F20) -> 
E21: =IF(PLANO!$E21="","",PLANO!$E21) ->  | F21: =IF(PLANO!$F21="","",PLANO!$F21) ->  | AN21: =IF(PLANO!$E21="","",PLANO!$E21) ->  | AO21: =IF(PLANO!$F21="","",PLANO!$F21) -> 
E22: =IF(PLANO!$E22="","",PLANO!$E22) ->  | F22: =IF(PLANO!$F22="","",PLANO!$F22) ->  | AN22: =IF(PLANO!$E22="","",PLANO!$E22) ->  | AO22: =IF(PLANO!$F22="","",PLANO!$F22) -> 
E23: =IF(PLANO!$E23="","",PLANO!$E23) ->  | F23: =IF(PLANO!$F23="","",PLANO!$F23) ->  | AN23: =IF(PLANO!$E23="","",PLANO!$E23) ->  | AO23: =IF(PLANO!$F23="","",PLANO!$F23) -> 
A25: objetivos | E25: - | F25: =IF(PLANO!$F25="","",PLANO!$F25) ->  | AJ25: objetivos | AN25: - | AO25: =IF(PLANO!$F25="","",PLANO!$F25) -> 
B26: da | E26: - | F26: =IF(PLANO!$F26="","",PLANO!$F26) -> Participar em projectos comuns | AK26: da | AN26: - | AO26: =IF(PLANO!$F26="","",PLANO!$F26) -> Participar em projectos comuns
A27: =PLANO!$A27 -> V. Estudo | E27: - | F27: =IF(PLANO!$F27="","",PLANO!$F27) -> Reconhecer a importância da preservação do meio ambiente | AJ27: =PLANO!$A27 -> V. Estudo | AN27: - | AO27: =IF(PLANO!$F27="","",PLANO!$F27) -> Reconhecer a importância da preservação do meio ambiente
E28: - | F28: =IF(PLANO!$F28="","",PLANO!$F28) ->  | AN28: - | AO28: =IF(PLANO!$F28="","",PLANO!$F28) -> 
E29: - | F29: =IF(PLANO!$F29="","",PLANO!$F29) ->  | AN29: - | AO29: =IF(PLANO!$F29="","",PLANO!$F29) -> 
A31: Professores Organizadores | G31: - | H31: =IF(PLANO!$C32="","",PLANO!$C32) -> Lurdes Monteiro | Q31: - | R31: =IF(PLANO!$N32="","",PLANO!$N32) ->  | Z31: - | AA31: =IF(PLANO!$Y32="","",PLANO!$Y32) ->  | AJ31: Professores Organizadores | AP31: - | AQ31: =IF(PLANO!$C32="","",PLANO!$C32) -> Lurdes Monteiro | AZ31: - | BA31: =IF(PLANO!$N32="","",PLANO!$N32) ->  | BI31: - | BJ31: =IF(PLANO!$Y32="","",PLANO!$Y32) -> 
G32: - | H32: =IF(PLANO!$C33="","",PLANO!$C33) -> Mª João Bica | Q32: - | R32: =IF(PLANO!$N33="","",PLANO!$N33) ->  | Z32: - | AA32: =IF(PLANO!$Y33="","",PLANO!$Y33) ->  | AP32: - | AQ32: =IF(PLANO!$C33="","",PLANO!$C33) -> Mª João Bica | AZ32: - | BA32: =IF(PLANO!$N33="","",PLANO!$N33) ->  | BI32: - | BJ32: =IF(PLANO!$Y33="","",PLANO!$Y33) -> 
A33: - | C33: =CONCATENATE(PLANO!$C36,$A$33,PLANO!$C37,$A$33,PLANO!$C38,$A$33,PLANO!$C39,$A$33,PLANO!$C40,$A$33,PLANO!$C41,$A$33,PLANO!$C42,$A$33,PLANO!$C43,$A$33,PLANO!$C44,$A$33,PLANO!$C45) -> Mª João Bica - Lurdes Monteiro - Rosário Gonçalves - Clarisse Sim - Ana Rosado - Lurdes Cadeirinhas - - - - | D33: =CONCATENATE(PLANO!$N36,$A$33,PLANO!$N37,$A$33,PLANO!$N38,$A$33,PLANO!$N39,$A$33,PLANO!$N40,$A$33,PLANO!$N41,$A$33,PLANO!$N42,$A$33,PLANO!$N43,$A$33,PLANO!$N44,$A$33,PLANO!$N45) -> - - - - - - - - - | E33: =CONCATENATE(PLANO!$Y36,$A$33,PLANO!$Y37,$A$33,PLANO!$Y38,$A$33,PLANO!$Y39,$A$33,PLANO!$Y40,$A$33,PLANO!$Y41,$A$33,PLANO!$Y42,$A$33,PLANO!$Y43,$A$33,PLANO!$Y44,$A$33,PLANO!$Y45) -> - - - - - - - - - | AJ33: - | AL33: =CONCATENATE(PLANO!$C36,$A$33,PLANO!$C37,$A$33,PLANO!$C38,$A$33,PLANO!$C39,$A$33,PLANO!$C40,$A$33,PLANO!$C41,$A$33,PLANO!$C42,$A$33,PLANO!$C43,$A$33,PLANO!$C44,$A$33,PLANO!$C45) -> Mª João Bica - Lurdes Monteiro - Rosário Gonçalves - Clarisse Sim - Ana Rosado - Lurdes Cadeirinhas - - - - | AM33: =CONCATENATE(PLANO!$N36,$A$33,PLANO!$N37,$A$33,PLANO!$N38,$A$33,PLANO!$N39,$A$33,PLANO!$N40,$A$33,PLANO!$N41,$A$33,PLANO!$N42,$A$33,PLANO!$N43,$A$33,PLANO!$N44,$A$33,PLANO!$N45) -> - - - - - - - - - | AN33: =CONCATENATE(PLANO!$Y36,$A$33,PLANO!$Y37,$A$33,PLANO!$Y38,$A$33,PLANO!$Y39,$A$33,PLANO!$Y40,$A$33,PLANO!$Y41,$A$33,PLANO!$Y42,$A$33,PLANO!$Y43,$A$33,PLANO!$Y44,$A$33,PLANO!$Y45) -> - - - - - - - - -
A34: =IF(PLANO!AK36="x","Educadoras e Assistentes Acompanhantes","Professores e Assistentes Acompanhantes") -> Professores e Assistentes Acompanhantes | H34: =CONCATENATE(C33,A33,D33,A33,E33) -> Mª João Bica - Lurdes Monteiro - Rosário Gonçalves - Clarisse Sim - Ana Rosado - Lurdes Cadeirinhas - - - - - - - - - - - - - - - - - - - - - - - - | AJ34: Professores e Assistentes Acompanhantes | AQ34: =CONCATENATE(AL33,AJ33,AM33,AJ33,AN33) -> Mª João Bica - Lurdes Monteiro - Rosário Gonçalves - Clarisse Sim - Ana Rosado - Lurdes Cadeirinhas - - - - - - - - - - - - - - - - - - - - - - - -
A39: NºAlunos/prof | F39: =PLANO!$AG$57 -> 3.333333333 | AJ39: NºAlunos/prof | AO39: =PLANO!$AG$57 -> 3.333333333
A41: Observações : | G41: =IF(PLANO!$B60="","",PLANO!$B60) -> Os alunos devem trazer roupa e calçado prático, luvas e garrafa de água. | AJ41: Observações : | AP41: =IF(PLANO!$B60="","",PLANO!$B60) -> Os alunos devem trazer roupa e calçado prático, luvas e garrafa de água.
B44: Barreiro, | E44: =IF(PLANO!$F$63="","",PLANO!$F$63) ->  | F44: / | G44: =IF(PLANO!$H$63="","",PLANO!$H$63) ->  | H44: / | I44: =IF(PLANO!$J$63="","",PLANO!$J$63) ->  | N44: O Professor Responsável | Y44: =PLANO!$Y$63 -> A Diretora | AK44: Barreiro, | AN44: =IF(PLANO!$F$63="","",PLANO!$F$63) ->  | AO44: / | AP44: =IF(PLANO!$H$63="","",PLANO!$H$63) ->  | AQ44: / | AR44: =IF(PLANO!$J$63="","",PLANO!$J$63) ->  | AW44: O Professor Responsável | BH44: =PLANO!$Y$63 -> A Diretora
A46: Plano da atividade para o aluno (O professor, depois de o aluno pagar, deve rubricar o plano no local próprio) | AJ46: Plano da atividade para o aluno (O professor, depois de o aluno pagar, deve rubricar o plano no local próprio)
A47: Destacável para o Professor (Recortar pelo picotado depois de devidamente preenchido e assinado pelo Enc. de edu.) | AJ47: Destacável para o Professor (Recortar pelo picotado depois de devidamente preenchido e assinado pelo Enc. de edu.)
AE49: Ano : | AF49: =$AF$8 -> 15 | AG49: / | AH49: =$AH$8 -> 16 | BN49: Ano : | BO49: =$AF$8 -> 15 | BP49: / | BQ49: =$AH$8 -> 16
B50: =B8 -> Designação da V. Estudo | K50: =$J$8 -> Eco-ementas | AD50: Nº Act : | AG50: =$AG$9 ->  | AK50: =AK8 -> Designação da V. Estudo | AT50: =$J$8 -> Eco-ementas | BM50: Nº Act : | BP50: =$AG$9 -> 
A52: =IF(F9="","",F9) ->  | B52: O encarregado de educação do aluno ____________________________________ nº.____, do ____º ano, turma ____ | AJ52: =IF(AO9="","",AO9) ->  | AK52: O encarregado de educação do aluno ____________________________________ nº.____, do ____º ano, turma ____
B53: =IF(PLANO!AH6="X","tomou conhecimento do programa e de todas as informações relativas à Visita de Estudo em cima referida. ","tomou conhecimento do programa e de todas as informações relativas à atividade acima referida. ") -> tomou conhecimento do programa e de todas as informações relativas à Visita de Estudo em cima referida. | AK53: =B53 -> tomou conhecimento do programa e de todas as informações relativas à Visita de Estudo em cima referida.
B55: =IF(PLANO!AH6="X","Quanto à participação do meu educando na Visita de Estudo :","Quanto à participação do meu educando na atividade :") -> Quanto à participação do meu educando na Visita de Estudo : | U55: Autorizo | AA55: Não Autorizo | AD55: ____/____/_____ | AK55: =IF(PLANO!AH6="X","Quanto à participação do meu educando na Visita de Estudo :","Quanto à participação do meu educando na atividade :") -> Quanto à participação do meu educando na Visita de Estudo : | BD55: Autorizo | BJ55: Não Autorizo | BM55: ____/____/_____
B57: Observações : | X57: O Encarregado de Educação | AK57: Observações : | BG57: O Encarregado de Educação

Sheet DI
G1: =DG!H1 -> Agrupamento de Escolas Augusto Cabrita
G2: =DG!H2 -> Sede – Escola Secundária Augusto Cabrita
G3: =DG!H3 -> Rua Maria Lamas – Alto Seixalinho – 2830-088 Barreiro
G4: =DG!H4 -> Tel 212059220 - Fax 212059228 - E-mail: direcao@aeaugustocabrita.edu.pt
A6: Declaração de idoneidade para a função de vigilante
B8: No cumprimento do Artigo 8º da Lei nº13/2006 de 17 de Abril, declaro que os professores e assistentes que figuram na listagem abaixo, em exercício de funções no Agrupamento de Escolas Augusto Cabrita, reúnem as condições necessárias ao desempenho das funções de vigilante na atividade / visita de estudo, constante no Plano Anual de atividades, a seguir descrita.
A10: ='Plano EE'!G6 -> PLANO DE VISITA DE ESTUDO / AUTORIZAÇÃO DO EE
B12: =IF(PLANO!B8="","",PLANO!B8) -> Designação da V. Estudo | J12: =IF(PLANO!J8="","",PLANO!J8) -> Eco-ementas | K12: =IF(PLANO!K8="","",PLANO!K8) ->  | L12: =IF(PLANO!L8="","",PLANO!L8) ->  | M12: =IF(PLANO!M8="","",PLANO!M8) ->  | N12: =IF(PLANO!N8="","",PLANO!N8) ->  | O12: =IF(PLANO!O8="","",PLANO!O8) ->  | P12: =IF(PLANO!P8="","",PLANO!P8) ->  | Q12: =IF(PLANO!Q8="","",PLANO!Q8) ->  | R12: =IF(PLANO!R8="","",PLANO!R8) ->  | S12: =IF(PLANO!S8="","",PLANO!S8) ->  | T12: =IF(PLANO!T8="","",PLANO!T8) ->  | U12: =IF(PLANO!U8="","",PLANO!U8) ->  | V12: =IF(PLANO!V8="","",PLANO!V8) ->  | W12: =IF(PLANO!W8="","",PLANO!W8) ->  | X12: =IF(PLANO!X8="","",PLANO!X8) ->  | Y12: =IF(PLANO!Y8="","",PLANO!Y8) ->  | Z12: =IF(PLANO!Z8="","",PLANO!Z8) ->  | AA12: =IF(PLANO!AA8="","",PLANO!AA8) ->  | AB12: =IF(PLANO!AB8="","",PLANO!AB8) ->  | AE12: Ano : | AF12: =DG!EC1 -> 15 | AG12: / | AH12: =DG!EE1 -> 16
B13: Organizada por : | J13: =IF(PLANO!J9="","",PLANO!J9) -> 7º F | K13: =IF(PLANO!K9="","",PLANO!K9) ->  | L13: =IF(PLANO!L9="","",PLANO!L9) ->  | M13: =IF(PLANO!M9="","",PLANO!M9) ->  | N13: =IF(PLANO!N9="","",PLANO!N9) ->  | O13: =IF(PLANO!O9="","",PLANO!O9) ->  | P13: =IF(PLANO!P9="","",PLANO!P9) ->  | Q13: =IF(PLANO!Q9="","",PLANO!Q9) ->  | R13: =IF(PLANO!R9="","",PLANO!R9) ->  | S13: =IF(PLANO!S9="","",PLANO!S9) ->  | T13: =IF(PLANO!T9="","",PLANO!T9) ->  | U13: =IF(PLANO!U9="","",PLANO!U9) ->  | V13: =IF(PLANO!V9="","",PLANO!V9) ->  | W13: =IF(PLANO!W9="","",PLANO!W9) ->  | X13: =IF(PLANO!X9="","",PLANO!X9) ->  | Y13: =IF(PLANO!Y9="","",PLANO!Y9) ->  | Z13: =IF(PLANO!Z9="","",PLANO!Z9) ->  | AA13: =IF(PLANO!AA9="","",PLANO!AA9) ->  | AB13: =IF(PLANO!AB9="","",PLANO!AB9) ->  | AD13: Nº Ativ : | AG13: =IF(PLANO!AG9="","",PLANO!AG9) ->  | AH13: =IF(PLANO!AH9="","",PLANO!AH9) -> 
A15: Locais | E15: - | F15: =IF(PLANO!F11="","",PLANO!F11) ->  | G15: =IF(PLANO!G11="","",PLANO!G11) ->  | H15: =IF(PLANO!H11="","",PLANO!H11) ->  | I15: =IF(PLANO!I11="","",PLANO!I11) ->  | J15: =IF(PLANO!J11="","",PLANO!J11) ->  | K15: =IF(PLANO!K11="","",PLANO!K11) ->  | L15: =IF(PLANO!L11="","",PLANO!L11) ->  | M15: =IF(PLANO!M11="","",PLANO!M11) ->  | N15: =IF(PLANO!N11="","",PLANO!N11) ->  | O15: =IF(PLANO!O11="","",PLANO!O11) ->  | P15: =IF(PLANO!P11="","",PLANO!P11) ->  | Q15: =IF(PLANO!Q11="","",PLANO!Q11) ->  | R15: =IF(PLANO!R11="","",PLANO!R11) ->  | T15: - | U15: =IF(PLANO!U11="","",PLANO!U11) ->  | V15: =IF(PLANO!V11="","",PLANO!V11) ->  | W15: =IF(PLANO!W11="","",PLANO!W11) ->  | X15: =IF(PLANO!X11="","",PLANO!X11) ->  | Y15: =IF(PLANO!Y11="","",PLANO!Y11) ->  | Z15: =IF(PLANO!Z11="","",PLANO!Z11) ->  | AA15: =IF(PLANO!AA11="","",PLANO!AA11) ->  | AB15: =IF(PLANO!AB11="","",PLANO!AB11) ->  | AC15: =IF(PLANO!AC11="","",PLANO!AC11) ->  | AD15: =IF(PLANO!AD11="","",PLANO!AD11) ->  | AE15: =IF(PLANO!AE11="","",PLANO!AE11) ->  | AF15: =IF(PLANO!AF11="","",PLANO!AF11) ->  | AG15: =IF(PLANO!AG11="","",PLANO!AG11) -> 
A16: =IF(AH10="X","a visitar","") ->  | E16: - | F16: =IF(PLANO!F12="","",PLANO!F12) ->  | G16: =IF(PLANO!G12="","",PLANO!G12) ->  | H16: =IF(PLANO!H12="","",PLANO!H12) ->  | I16: =IF(PLANO!I12="","",PLANO!I12) ->  | J16: =IF(PLANO!J12="","",PLANO!J12) ->  | K16: =IF(PLANO!K12="","",PLANO!K12) ->  | L16: =IF(PLANO!L12="","",PLANO!L12) ->  | M16: =IF(PLANO!M12="","",PLANO!M12) ->  | N16: =IF(PLANO!N12="","",PLANO!N12) ->  | O16: =IF(PLANO!O12="","",PLANO!O12) ->  | P16: =IF(PLANO!P12="","",PLANO!P12) ->  | Q16: =IF(PLANO!Q12="","",PLANO!Q12) ->  | R16: =IF(PLANO!R12="","",PLANO!R12) ->  | T16: - | U16: =IF(PLANO!U12="","",PLANO!U12) ->  | V16: =IF(PLANO!V12="","",PLANO!V12) ->  | W16: =IF(PLANO!W12="","",PLANO!W12) ->  | X16: =IF(PLANO!X12="","",PLANO!X12) ->  | Y16: =IF(PLANO!Y12="","",PLANO!Y12) ->  | Z16: =IF(PLANO!Z12="","",PLANO!Z12) ->  | AA16: =IF(PLANO!AA12="","",PLANO!AA12) ->  | AB16: =IF(PLANO!AB12="","",PLANO!AB12) ->  | AC16: =IF(PLANO!AC12="","",PLANO!AC12) ->  | AD16: =IF(PLANO!AD12="","",PLANO!AD12) ->  | AE16: =IF(PLANO!AE12="","",PLANO!AE12) ->  | AF16: =IF(PLANO!AF12="","",PLANO!AF12) ->  | AG16: =IF(PLANO!AG12="","",PLANO!AG12) -> 
B18: Início | F18: Local: | H18: =IF(PLANO!H14="","",PLANO!H14) -> EB23 P. Abílio Mendes | I18: =IF(PLANO!I14="","",PLANO!I14) ->  | J18: =IF(PLANO!J14="","",PLANO!J14) ->  | K18: =IF(PLANO!K14="","",PLANO!K14) ->  | L18: =IF(PLANO!L14="","",PLANO!L14) ->  | M18: =IF(PLANO!M14="","",PLANO!M14) ->  | N18: =IF(PLANO!N14="","",PLANO!N14) ->  | P18: Dia : | R18: =IF(PLANO!R14="","",PLANO!R14) ->  | S18: / | T18: =IF(PLANO!T14="","",PLANO!T14) ->  | U18: / | V18: =IF(PLANO!V14="","",PLANO!V14) ->  | Z18: Hora : | AA18: =IF(PLANO!AA14="","",PLANO!AA14) ->  | AB18: h | AC18: e | AD18: =IF(PLANO!AD14="","",PLANO!AD14) ->  | AE18: minutos
B19: Fim | F19: Local: | H19: =IF(PLANO!H15="","",PLANO!H15) -> EB23 P. Abílio Mendes | I19: =IF(PLANO!I15="","",PLANO!I15) ->  | J19: =IF(PLANO!J15="","",PLANO!J15) ->  | K19: =IF(PLANO!K15="","",PLANO!K15) ->  | L19: =IF(PLANO!L15="","",PLANO!L15) ->  | M19: =IF(PLANO!M15="","",PLANO!M15) ->  | N19: =IF(PLANO!N15="","",PLANO!N15) ->  | P19: Dia : | R19: =IF(PLANO!R15="","",PLANO!R15) ->  | S19: / | T19: =IF(PLANO!T15="","",PLANO!T15) ->  | U19: / | V19: =IF(PLANO!V15="","",PLANO!V15) ->  | Z19: Hora : | AA19: =IF(PLANO!AA15="","",PLANO!AA15) ->  | AB19: h | AC19: e | AD19: =IF(PLANO!AD15="","",PLANO!AD15) ->  | AE19: minutos
A21: Transporte : | G21: =IF(PLANO!T17="","",PLANO!T17) -> 
A23: Programa | E23: - | F23: =IF(PLANO!F19="","",PLANO!F19) ->  | G23: =IF(PLANO!G19="","",PLANO!G19) ->  | H23: =IF(PLANO!H19="","",PLANO!H19) ->  | I23: =IF(PLANO!I19="","",PLANO!I19) ->  | J23: =IF(PLANO!J19="","",PLANO!J19) ->  | K23: =IF(PLANO!K19="","",PLANO!K19) ->  | L23: =IF(PLANO!L19="","",PLANO!L19) ->  | M23: =IF(PLANO!M19="","",PLANO!M19) ->  | N23: =IF(PLANO!N19="","",PLANO!N19) ->  | O23: =IF(PLANO!O19="","",PLANO!O19) ->  | P23: =IF(PLANO!P19="","",PLANO!P19) ->  | Q23: =IF(PLANO!Q19="","",PLANO!Q19) ->  | R23: =IF(PLANO!R19="","",PLANO!R19) ->  | S23: =IF(PLANO!S19="","",PLANO!S19) ->  | T23: =IF(PLANO!T19="","",PLANO!T19) ->  | U23: =IF(PLANO!U19="","",PLANO!U19) ->  | V23: =IF(PLANO!V19="","",PLANO!V19) ->  | W23: =IF(PLANO!W19="","",PLANO!W19) ->  | X23: =IF(PLANO!X19="","",PLANO!X19) ->  | Y23: =IF(PLANO!Y19="","",PLANO!Y19) ->  | Z23: =IF(PLANO!Z19="","",PLANO!Z19) ->  | AA23: =IF(PLANO!AA19="","",PLANO!AA19) ->  | AB23: =IF(PLANO!AB19="","",PLANO!AB19) ->  | AC23: =IF(PLANO!AC19="","",PLANO!AC19) ->  | AD23: =IF(PLANO!AD19="","",PLANO!AD19) ->  | AE23: =IF(PLANO!AE19="","",PLANO!AE19) ->  | AF23: =IF(PLANO!AF19="","",PLANO!AF19) ->  | AG23: =IF(PLANO!AG19="","",PLANO!AG19) -> 
E24: - | F24: =IF(PLANO!F20="","",PLANO!F20) ->  | G24: =IF(PLANO!G20="","",PLANO!G20) ->  | H24: =IF(PLANO!H20="","",PLANO!H20) ->  | I24: =IF(PLANO!I20="","",PLANO!I20) ->  | J24: =IF(PLANO!J20="","",PLANO!J20) ->  | K24: =IF(PLANO!K20="","",PLANO!K20) ->  | L24: =IF(PLANO!L20="","",PLANO!L20) ->  | M24: =IF(PLANO!M20="","",PLANO!M20) ->  | N24: =IF(PLANO!N20="","",PLANO!N20) ->  | O24: =IF(PLANO!O20="","",PLANO!O20) ->  | P24: =IF(PLANO!P20="","",PLANO!P20) ->  | Q24: =IF(PLANO!Q20="","",PLANO!Q20) ->  | R24: =IF(PLANO!R20="","",PLANO!R20) ->  | S24: =IF(PLANO!S20="","",PLANO!S20) ->  | T24: =IF(PLANO!T20="","",PLANO!T20) ->  | U24: =IF(PLANO!U20="","",PLANO!U20) ->  | V24: =IF(PLANO!V20="","",PLANO!V20) ->  | W24: =IF(PLANO!W20="","",PLANO!W20) ->  | X24: =IF(PLANO!X20="","",PLANO!X20) ->  | Y24: =IF(PLANO!Y20="","",PLANO!Y20) ->  | Z24: =IF(PLANO!Z20="","",PLANO!Z20) ->  | AA24: =IF(PLANO!AA20="","",PLANO!AA20) ->  | AB24: =IF(PLANO!AB20="","",PLANO!AB20) ->  | AC24: =IF(PLANO!AC20="","",PLANO!AC20) ->  | AD24: =IF(PLANO!AD20="","",PLANO!AD20) ->  | AE24: =IF(PLANO!AE20="","",PLANO!AE20) ->  | AF24: =IF(PLANO!AF20="","",PLANO!AF20) ->  | AG24: =IF(PLANO!AG20="","",PLANO!AG20) -> 
F25: =IF(PLANO!F21="","",PLANO!F21) ->  | G25: =IF(PLANO!G21="","",PLANO!G21) ->  | H25: =IF(PLANO!H21="","",PLANO!H21) ->  | I25: =IF(PLANO!I21="","",PLANO!I21) ->  | J25: =IF(PLANO!J21="","",PLANO!J21) ->  | K25: =IF(PLANO!K21="","",PLANO!K21) ->  | L25: =IF(PLANO!L21="","",PLANO!L21) ->  | M25: =IF(PLANO!M21="","",PLANO!M21) ->  | N25: =IF(PLANO!N21="","",PLANO!N21) ->  | O25: =IF(PLANO!O21="","",PLANO!O21) ->  | P25: =IF(PLANO!P21="","",PLANO!P21) ->  | Q25: =IF(PLANO!Q21="","",PLANO!Q21) ->  | R25: =IF(PLANO!R21="","",PLANO!R21) ->  | S25: =IF(PLANO!S21="","",PLANO!S21) ->  | T25: =IF(PLANO!T21="","",PLANO!T21) ->  | U25: =IF(PLANO!U21="","",PLANO!U21) ->  | V25: =IF(PLANO!V21="","",PLANO!V21) ->  | W25: =IF(PLANO!W21="","",PLANO!W21) ->  | X25: =IF(PLANO!X21="","",PLANO!X21) ->  | Y25: =IF(PLANO!Y21="","",PLANO!Y21) ->  | Z25: =IF(PLANO!Z21="","",PLANO!Z21) ->  | AA25: =IF(PLANO!AA21="","",PLANO!AA21) ->  | AB25: =IF(PLANO!AB21="","",PLANO!AB21) ->  | AC25: =IF(PLANO!AC21="","",PLANO!AC21) ->  | AD25: =IF(PLANO!AD21="","",PLANO!AD21) ->  | AE25: =IF(PLANO!AE21="","",PLANO!AE21) ->  | AF25: =IF(PLANO!AF21="","",PLANO!AF21) ->  | AG25: =IF(PLANO!AG21="","",PLANO!AG21) -> 
F26: =IF(PLANO!F22="","",PLANO!F22) ->  | G26: =IF(PLANO!G22="","",PLANO!G22) ->  | H26: =IF(PLANO!H22="","",PLANO!H22) ->  | I26: =IF(PLANO!I22="","",PLANO!I22) ->  | J26: =IF(PLANO!J22="","",PLANO!J22) ->  | K26: =IF(PLANO!K22="","",PLANO!K22) ->  | L26: =IF(PLANO!L22="","",PLANO!L22) ->  | M26: =IF(PLANO!M22="","",PLANO!M22) ->  | N26: =IF(PLANO!N22="","",PLANO!N22) ->  | O26: =IF(PLANO!O22="","",PLANO!O22) ->  | P26: =IF(PLANO!P22="","",PLANO!P22) ->  | Q26: =IF(PLANO!Q22="","",PLANO!Q22) ->  | R26: =IF(PLANO!R22="","",PLANO!R22) ->  | S26: =IF(PLANO!S22="","",PLANO!S22) ->  | T26: =IF(PLANO!T22="","",PLANO!T22) ->  | U26: =IF(PLANO!U22="","",PLANO!U22) ->  | V26: =IF(PLANO!V22="","",PLANO!V22) ->  | W26: =IF(PLANO!W22="","",PLANO!W22) ->  | X26: =IF(PLANO!X22="","",PLANO!X22) ->  | Y26: =IF(PLANO!Y22="","",PLANO!Y22) ->  | Z26: =IF(PLANO!Z22="","",PLANO!Z22) ->  | AA26: =IF(PLANO!AA22="","",PLANO!AA22) ->  | AB26: =IF(PLANO!AB22="","",PLANO!AB22) ->  | AC26: =IF(PLANO!AC22="","",PLANO!AC22) ->  | AD26: =IF(PLANO!AD22="","",PLANO!AD22) ->  | AE26: =IF(PLANO!AE22="","",PLANO!AE22) ->  | AF26: =IF(PLANO!AF22="","",PLANO!AF22) ->  | AG26: =IF(PLANO!AG22="","",PLANO!AG22) -> 
F27: =IF(PLANO!F23="","",PLANO!F23) ->  | G27: =IF(PLANO!G23="","",PLANO!G23) ->  | H27: =IF(PLANO!H23="","",PLANO!H23) ->  | I27: =IF(PLANO!I23="","",PLANO!I23) ->  | J27: =IF(PLANO!J23="","",PLANO!J23) ->  | K27: =IF(PLANO!K23="","",PLANO!K23) ->  | L27: =IF(PLANO!L23="","",PLANO!L23) ->  | M27: =IF(PLANO!M23="","",PLANO!M23) ->  | N27: =IF(PLANO!N23="","",PLANO!N23) ->  | O27: =IF(PLANO!O23="","",PLANO!O23) ->  | P27: =IF(PLANO!P23="","",PLANO!P23) ->  | Q27: =IF(PLANO!Q23="","",PLANO!Q23) ->  | R27: =IF(PLANO!R23="","",PLANO!R23) ->  | S27: =IF(PLANO!S23="","",PLANO!S23) ->  | T27: =IF(PLANO!T23="","",PLANO!T23) ->  | U27: =IF(PLANO!U23="","",PLANO!U23) ->  | V27: =IF(PLANO!V23="","",PLANO!V23) ->  | W27: =IF(PLANO!W23="","",PLANO!W23) ->  | X27: =IF(PLANO!X23="","",PLANO!X23) ->  | Y27: =IF(PLANO!Y23="","",PLANO!Y23) ->  | Z27: =IF(PLANO!Z23="","",PLANO!Z23) ->  | AA27: =IF(PLANO!AA23="","",PLANO!AA23) ->  | AB27: =IF(PLANO!AB23="","",PLANO!AB23) ->  | AC27: =IF(PLANO!AC23="","",PLANO!AC23) ->  | AD27: =IF(PLANO!AD23="","",PLANO!AD23) ->  | AE27: =IF(PLANO!AE23="","",PLANO!AE23) ->  | AF27: =IF(PLANO!AF23="","",PLANO!AF23) ->  | AG27: =IF(PLANO!AG23="","",PLANO!AG23) -> 
B29: Professores Organizadores | K29: ( Nome - Código do grupo )
B30: - | C30: =IF(PLANO!C32="","",PLANO!C32) -> Lurdes Monteiro | D30: =IF(PLANO!D32="","",PLANO!D32) ->  | E30: =IF(PLANO!E32="","",PLANO!E32) ->  | F30: =IF(PLANO!F32="","",PLANO!F32) ->  | G30: =IF(PLANO!G32="","",PLANO!G32) ->  | H30: =IF(PLANO!H32="","",PLANO!H32) ->  | I30: =IF(PLANO!I32="","",PLANO!I32) ->  | J30: - | K30: =IF(PLANO!K32="","",PLANO!K32) ->  | M30: - | N30: =IF(PLANO!N32="","",PLANO!N32) ->  | O30: =IF(PLANO!O32="","",PLANO!O32) ->  | P30: =IF(PLANO!P32="","",PLANO!P32) ->  | Q30: =IF(PLANO!Q32="","",PLANO!Q32) ->  | R30: =IF(PLANO!R32="","",PLANO!R32) ->  | S30: =IF(PLANO!S32="","",PLANO!S32) ->  | T30: =IF(PLANO!T32="","",PLANO!T32) ->  | U30: - | V30: =IF(PLANO!V32="","",PLANO!V32) ->  | X30: - | Y30: =IF(PLANO!Y32="","",PLANO!Y32) ->  | Z30: =IF(PLANO!Z32="","",PLANO!Z32) ->  | AA30: =IF(PLANO!AA32="","",PLANO!AA32) ->  | AB30: =IF(PLANO!AB32="","",PLANO!AB32) ->  | AC30: =IF(PLANO!AC32="","",PLANO!AC32) ->  | AD30: =IF(PLANO!AD32="","",PLANO!AD32) ->  | AE30: =IF(PLANO!AE32="","",PLANO!AE32) ->  | AF30: - | AG30: =IF(PLANO!AG32="","",PLANO!AG32) -> 
B31: - | C31: =IF(PLANO!C33="","",PLANO!C33) -> Mª João Bica | D31: =IF(PLANO!D33="","",PLANO!D33) ->  | E31: =IF(PLANO!E33="","",PLANO!E33) ->  | F31: =IF(PLANO!F33="","",PLANO!F33) ->  | G31: =IF(PLANO!G33="","",PLANO!G33) ->  | H31: =IF(PLANO!H33="","",PLANO!H33) ->  | I31: =IF(PLANO!I33="","",PLANO!I33) ->  | J31: - | K31: =IF(PLANO!K33="","",PLANO!K33) ->  | M31: - | N31: =IF(PLANO!N33="","",PLANO!N33) ->  | O31: =IF(PLANO!O33="","",PLANO!O33) ->  | P31: =IF(PLANO!P33="","",PLANO!P33) ->  | Q31: =IF(PLANO!Q33="","",PLANO!Q33) ->  | R31: =IF(PLANO!R33="","",PLANO!R33) ->  | S31: =IF(PLANO!S33="","",PLANO!S33) ->  | T31: =IF(PLANO!T33="","",PLANO!T33) ->  | U31: - | V31: =IF(PLANO!V33="","",PLANO!V33) ->  | X31: - | Y31: =IF(PLANO!Y33="","",PLANO!Y33) ->  | Z31: =IF(PLANO!Z33="","",PLANO!Z33) ->  | AA31: =IF(PLANO!AA33="","",PLANO!AA33) ->  | AB31: =IF(PLANO!AB33="","",PLANO!AB33) ->  | AC31: =IF(PLANO!AC33="","",PLANO!AC33) ->  | AD31: =IF(PLANO!AD33="","",PLANO!AD33) ->  | AE31: =IF(PLANO!AE33="","",PLANO!AE33) ->  | AF31: - | AG31: =IF(PLANO!AG33="","",PLANO!AG33) -> 
B33: Professores e Assistentes Acompanhantes
B34: - | C34: =IF(PLANO!C36="","",PLANO!C36) -> Mª João Bica | D34: =IF(PLANO!D36="","",PLANO!D36) ->  | E34: =IF(PLANO!E36="","",PLANO!E36) ->  | F34: =IF(PLANO!F36="","",PLANO!F36) ->  | G34: =IF(PLANO!G36="","",PLANO!G36) ->  | H34: =IF(PLANO!H36="","",PLANO!H36) ->  | I34: =IF(PLANO!I36="","",PLANO!I36) ->  | J34: - | K34: =IF(PLANO!K36="","",PLANO!K36) ->  | M34: - | N34: =IF(PLANO!N36="","",PLANO!N36) ->  | O34: =IF(PLANO!O36="","",PLANO!O36) ->  | P34: =IF(PLANO!P36="","",PLANO!P36) ->  | Q34: =IF(PLANO!Q36="","",PLANO!Q36) ->  | R34: =IF(PLANO!R36="","",PLANO!R36) ->  | S34: =IF(PLANO!S36="","",PLANO!S36) ->  | T34: =IF(PLANO!T36="","",PLANO!T36) ->  | U34: - | V34: =IF(PLANO!V36="","",PLANO!V36) ->  | X34: - | Y34: =IF(PLANO!Y36="","",PLANO!Y36) ->  | Z34: =IF(PLANO!Z36="","",PLANO!Z36) ->  | AA34: =IF(PLANO!AA36="","",PLANO!AA36) ->  | AB34: =IF(PLANO!AB36="","",PLANO!AB36) ->  | AC34: =IF(PLANO!AC36="","",PLANO!AC36) ->  | AD34: =IF(PLANO!AD36="","",PLANO!AD36) ->  | AE34: =IF(PLANO!AE36="","",PLANO!AE36) ->  | AF34: - | AG34: =IF(PLANO!AG36="","",PLANO!AG36) -> 
B35: - | C35: =IF(PLANO!C37="","",PLANO!C37) -> Lurdes Monteiro | D35: =IF(PLANO!D37="","",PLANO!D37) ->  | E35: =IF(PLANO!E37="","",PLANO!E37) ->  | F35: =IF(PLANO!F37="","",PLANO!F37) ->  | G35: =IF(PLANO!G37="","",PLANO!G37) ->  | H35: =IF(PLANO!H37="","",PLANO!H37) ->  | I35: =IF(PLANO!I37="","",PLANO!I37) ->  | J35: - | K35: =IF(PLANO!K37="","",PLANO!K37) ->  | M35: - | N35: =IF(PLANO!N37="","",PLANO!N37) ->  | O35: =IF(PLANO!O37="","",PLANO!O37) ->  | P35: =IF(PLANO!P37="","",PLANO!P37) ->  | Q35: =IF(PLANO!Q37="","",PLANO!Q37) ->  | R35: =IF(PLANO!R37="","",PLANO!R37) ->  | S35: =IF(PLANO!S37="","",PLANO!S37) ->  | T35: =IF(PLANO!T37="","",PLANO!T37) ->  | U35: - | V35: =IF(PLANO!V37="","",PLANO!V37) ->  | X35: - | Y35: =IF(PLANO!Y37="","",PLANO!Y37) ->  | Z35: =IF(PLANO!Z37="","",PLANO!Z37) ->  | AA35: =IF(PLANO!AA37="","",PLANO!AA37) ->  | AB35: =IF(PLANO!AB37="","",PLANO!AB37) ->  | AC35: =IF(PLANO!AC37="","",PLANO!AC37) ->  | AD35: =IF(PLANO!AD37="","",PLANO!AD37) ->  | AE35: =IF(PLANO!AE37="","",PLANO!AE37) ->  | AF35: - | AG35: =IF(PLANO!AG37="","",PLANO!AG37) -> 
B36: - | C36: =IF(PLANO!C38="","",PLANO!C38) -> Rosário Gonçalves | D36: =IF(PLANO!D38="","",PLANO!D38) ->  | E36: =IF(PLANO!E38="","",PLANO!E38) ->  | F36: =IF(PLANO!F38="","",PLANO!F38) ->  | G36: =IF(PLANO!G38="","",PLANO!G38) ->  | H36: =IF(PLANO!H38="","",PLANO!H38) ->  | I36: =IF(PLANO!I38="","",PLANO!I38) ->  | J36: - | K36: =IF(PLANO!K38="","",PLANO!K38) ->  | M36: - | N36: =IF(PLANO!N38="","",PLANO!N38) ->  | O36: =IF(PLANO!O38="","",PLANO!O38) ->  | P36: =IF(PLANO!P38="","",PLANO!P38) ->  | Q36: =IF(PLANO!Q38="","",PLANO!Q38) ->  | R36: =IF(PLANO!R38="","",PLANO!R38) ->  | S36: =IF(PLANO!S38="","",PLANO!S38) ->  | T36: =IF(PLANO!T38="","",PLANO!T38) ->  | U36: - | V36: =IF(PLANO!V38="","",PLANO!V38) ->  | X36: - | Y36: =IF(PLANO!Y38="","",PLANO!Y38) ->  | Z36: =IF(PLANO!Z38="","",PLANO!Z38) ->  | AA36: =IF(PLANO!AA38="","",PLANO!AA38) ->  | AB36: =IF(PLANO!AB38="","",PLANO!AB38) ->  | AC36: =IF(PLANO!AC38="","",PLANO!AC38) ->  | AD36: =IF(PLANO!AD38="","",PLANO!AD38) ->  | AE36: =IF(PLANO!AE38="","",PLANO!AE38) ->  | AF36: - | AG36: =IF(PLANO!AG38="","",PLANO!AG38) -> 
B37: - | C37: =IF(PLANO!C39="","",PLANO!C39) -> Clarisse Sim | D37: =IF(PLANO!D39="","",PLANO!D39) ->  | E37: =IF(PLANO!E39="","",PLANO!E39) ->  | F37: =IF(PLANO!F39="","",PLANO!F39) ->  | G37: =IF(PLANO!G39="","",PLANO!G39) ->  | H37: =IF(PLANO!H39="","",PLANO!H39) ->  | I37: =IF(PLANO!I39="","",PLANO!I39) ->  | J37: - | K37: =IF(PLANO!K39="","",PLANO!K39) ->  | M37: - | N37: =IF(PLANO!N39="","",PLANO!N39) ->  | O37: =IF(PLANO!O39="","",PLANO!O39) ->  | P37: =IF(PLANO!P39="","",PLANO!P39) ->  | Q37: =IF(PLANO!Q39="","",PLANO!Q39) ->  | R37: =IF(PLANO!R39="","",PLANO!R39) ->  | S37: =IF(PLANO!S39="","",PLANO!S39) ->  | T37: =IF(PLANO!T39="","",PLANO!T39) ->  | U37: - | V37: =IF(PLANO!V39="","",PLANO!V39) ->  | X37: - | Y37: =IF(PLANO!Y39="","",PLANO!Y39) ->  | Z37: =IF(PLANO!Z39="","",PLANO!Z39) ->  | AA37: =IF(PLANO!AA39="","",PLANO!AA39) ->  | AB37: =IF(PLANO!AB39="","",PLANO!AB39) ->  | AC37: =IF(PLANO!AC39="","",PLANO!AC39) ->  | AD37: =IF(PLANO!AD39="","",PLANO!AD39) ->  | AE37: =IF(PLANO!AE39="","",PLANO!AE39) ->  | AF37: - | AG37: =IF(PLANO!AG39="","",PLANO!AG39) -> 
B38: - | C38: =IF(PLANO!C40="","",PLANO!C40) -> Ana Rosado | D38: =IF(PLANO!D40="","",PLANO!D40) ->  | E38: =IF(PLANO!E40="","",PLANO!E40) ->  | F38: =IF(PLANO!F40="","",PLANO!F40) ->  | G38: =IF(PLANO!G40="","",PLANO!G40) ->  | H38: =IF(PLANO!H40="","",PLANO!H40) ->  | I38: =IF(PLANO!I40="","",PLANO!I40) ->  | J38: - | K38: =IF(PLANO!K40="","",PLANO!K40) ->  | M38: - | N38: =IF(PLANO!N40="","",PLANO!N40) ->  | O38: =IF(PLANO!O40="","",PLANO!O40) ->  | P38: =IF(PLANO!P40="","",PLANO!P40) ->  | Q38: =IF(PLANO!Q40="","",PLANO!Q40) ->  | R38: =IF(PLANO!R40="","",PLANO!R40) ->  | S38: =IF(PLANO!S40="","",PLANO!S40) ->  | T38: =IF(PLANO!T40="","",PLANO!T40) ->  | U38: - | V38: =IF(PLANO!V40="","",PLANO!V40) ->  | X38: - | Y38: =IF(PLANO!Y40="","",PLANO!Y40) ->  | Z38: =IF(PLANO!Z40="","",PLANO!Z40) ->  | AA38: =IF(PLANO!AA40="","",PLANO!AA40) ->  | AB38: =IF(PLANO!AB40="","",PLANO!AB40) ->  | AC38: =IF(PLANO!AC40="","",PLANO!AC40) ->  | AD38: =IF(PLANO!AD40="","",PLANO!AD40) ->  | AE38: =IF(PLANO!AE40="","",PLANO!AE40) ->  | AF38: - | AG38: =IF(PLANO!AG40="","",PLANO!AG40) -> 
B39: - | C39: =IF(PLANO!C41="","",PLANO!C41) -> Lurdes Cadeirinhas | D39: =IF(PLANO!D41="","",PLANO!D41) ->  | E39: =IF(PLANO!E41="","",PLANO!E41) ->  | F39: =IF(PLANO!F41="","",PLANO!F41) ->  | G39: =IF(PLANO!G41="","",PLANO!G41) ->  | H39: =IF(PLANO!H41="","",PLANO!H41) ->  | I39: =IF(PLANO!I41="","",PLANO!I41) ->  | J39: - | K39: =IF(PLANO!K41="","",PLANO!K41) ->  | M39: - | N39: =IF(PLANO!N41="","",PLANO!N41) ->  | O39: =IF(PLANO!O41="","",PLANO!O41) ->  | P39: =IF(PLANO!P41="","",PLANO!P41) ->  | Q39: =IF(PLANO!Q41="","",PLANO!Q41) ->  | R39: =IF(PLANO!R41="","",PLANO!R41) ->  | S39: =IF(PLANO!S41="","",PLANO!S41) ->  | T39: =IF(PLANO!T41="","",PLANO!T41) ->  | U39: - | V39: =IF(PLANO!V41="","",PLANO!V41) ->  | X39: - | Y39: =IF(PLANO!Y41="","",PLANO!Y41) ->  | Z39: =IF(PLANO!Z41="","",PLANO!Z41) ->  | AA39: =IF(PLANO!AA41="","",PLANO!AA41) ->  | AB39: =IF(PLANO!AB41="","",PLANO!AB41) ->  | AC39: =IF(PLANO!AC41="","",PLANO!AC41) ->  | AD39: =IF(PLANO!AD41="","",PLANO!AD41) ->  | AE39: =IF(PLANO!AE41="","",PLANO!AE41) ->  | AF39: - | AG39: =IF(PLANO!AG41="","",PLANO!AG41) -> 
B40: - | C40: =IF(PLANO!C42="","",PLANO!C42) ->  | D40: =IF(PLANO!D42="","",PLANO!D42) ->  | E40: =IF(PLANO!E42="","",PLANO!E42) ->  | F40: =IF(PLANO!F42="","",PLANO!F42) ->  | G40: =IF(PLANO!G42="","",PLANO!G42) ->  | H40: =IF(PLANO!H42="","",PLANO!H42) ->  | I40: =IF(PLANO!I42="","",PLANO!I42) ->  | J40: - | K40: =IF(PLANO!K42="","",PLANO!K42) ->  | M40: - | N40: =IF(PLANO!N42="","",PLANO!N42) ->  | O40: =IF(PLANO!O42="","",PLANO!O42) ->  | P40: =IF(PLANO!P42="","",PLANO!P42) ->  | Q40: =IF(PLANO!Q42="","",PLANO!Q42) ->  | R40: =IF(PLANO!R42="","",PLANO!R42) ->  | S40: =IF(PLANO!S42="","",PLANO!S42) ->  | T40: =IF(PLANO!T42="","",PLANO!T42) ->  | U40: - | V40: =IF(PLANO!V42="","",PLANO!V42) ->  | X40: - | Y40: =IF(PLANO!Y42="","",PLANO!Y42) ->  | Z40: =IF(PLANO!Z42="","",PLANO!Z42) ->  | AA40: =IF(PLANO!AA42="","",PLANO!AA42) ->  | AB40: =IF(PLANO!AB42="","",PLANO!AB42) ->  | AC40: =IF(PLANO!AC42="","",PLANO!AC42) ->  | AD40: =IF(PLANO!AD42="","",PLANO!AD42) ->  | AE40: =IF(PLANO!AE42="","",PLANO!AE42) ->  | AF40: - | AG40: =IF(PLANO!AG42="","",PLANO!AG42) -> 
B41: - | C41: =IF(PLANO!C43="","",PLANO!C43) ->  | D41: =IF(PLANO!D43="","",PLANO!D43) ->  | E41: =IF(PLANO!E43="","",PLANO!E43) ->  | F41: =IF(PLANO!F43="","",PLANO!F43) ->  | G41: =IF(PLANO!G43="","",PLANO!G43) ->  | H41: =IF(PLANO!H43="","",PLANO!H43) ->  | I41: =IF(PLANO!I43="","",PLANO!I43) ->  | J41: - | K41: =IF(PLANO!K43="","",PLANO!K43) ->  | M41: - | N41: =IF(PLANO!N43="","",PLANO!N43) ->  | O41: =IF(PLANO!O43="","",PLANO!O43) ->  | P41: =IF(PLANO!P43="","",PLANO!P43) ->  | Q41: =IF(PLANO!Q43="","",PLANO!Q43) ->  | R41: =IF(PLANO!R43="","",PLANO!R43) ->  | S41: =IF(PLANO!S43="","",PLANO!S43) ->  | T41: =IF(PLANO!T43="","",PLANO!T43) ->  | U41: - | V41: =IF(PLANO!V43="","",PLANO!V43) ->  | X41: - | Y41: =IF(PLANO!Y43="","",PLANO!Y43) ->  | Z41: =IF(PLANO!Z43="","",PLANO!Z43) ->  | AA41: =IF(PLANO!AA43="","",PLANO!AA43) ->  | AB41: =IF(PLANO!AB43="","",PLANO!AB43) ->  | AC41: =IF(PLANO!AC43="","",PLANO!AC43) ->  | AD41: =IF(PLANO!AD43="","",PLANO!AD43) ->  | AE41: =IF(PLANO!AE43="","",PLANO!AE43) ->  | AF41: - | AG41: =IF(PLANO!AG43="","",PLANO!AG43) -> 
B42: - | C42: =IF(PLANO!C44="","",PLANO!C44) ->  | D42: =IF(PLANO!D44="","",PLANO!D44) ->  | E42: =IF(PLANO!E44="","",PLANO!E44) ->  | F42: =IF(PLANO!F44="","",PLANO!F44) ->  | G42: =IF(PLANO!G44="","",PLANO!G44) ->  | H42: =IF(PLANO!H44="","",PLANO!H44) ->  | I42: =IF(PLANO!I44="","",PLANO!I44) ->  | J42: - | K42: =IF(PLANO!K44="","",PLANO!K44) ->  | M42: - | N42: =IF(PLANO!N44="","",PLANO!N44) ->  | O42: =IF(PLANO!O44="","",PLANO!O44) ->  | P42: =IF(PLANO!P44="","",PLANO!P44) ->  | Q42: =IF(PLANO!Q44="","",PLANO!Q44) ->  | R42: =IF(PLANO!R44="","",PLANO!R44) ->  | S42: =IF(PLANO!S44="","",PLANO!S44) ->  | T42: =IF(PLANO!T44="","",PLANO!T44) ->  | U42: - | V42: =IF(PLANO!V44="","",PLANO!V44) ->  | X42: - | Y42: =IF(PLANO!Y44="","",PLANO!Y44) ->  | Z42: =IF(PLANO!Z44="","",PLANO!Z44) ->  | AA42: =IF(PLANO!AA44="","",PLANO!AA44) ->  | AB42: =IF(PLANO!AB44="","",PLANO!AB44) ->  | AC42: =IF(PLANO!AC44="","",PLANO!AC44) ->  | AD42: =IF(PLANO!AD44="","",PLANO!AD44) ->  | AE42: =IF(PLANO!AE44="","",PLANO!AE44) ->  | AF42: - | AG42: =IF(PLANO!AG44="","",PLANO!AG44) -> 
B43: - | C43: =IF(PLANO!C45="","",PLANO!C45) ->  | D43: =IF(PLANO!D45="","",PLANO!D45) ->  | E43: =IF(PLANO!E45="","",PLANO!E45) ->  | F43: =IF(PLANO!F45="","",PLANO!F45) ->  | G43: =IF(PLANO!G45="","",PLANO!G45) ->  | H43: =IF(PLANO!H45="","",PLANO!H45) ->  | I43: =IF(PLANO!I45="","",PLANO!I45) ->  | J43: - | K43: =IF(PLANO!K45="","",PLANO!K45) ->  | M43: - | N43: =IF(PLANO!N45="","",PLANO!N45) ->  | O43: =IF(PLANO!O45="","",PLANO!O45) ->  | P43: =IF(PLANO!P45="","",PLANO!P45) ->  | Q43: =IF(PLANO!Q45="","",PLANO!Q45) ->  | R43: =IF(PLANO!R45="","",PLANO!R45) ->  | S43: =IF(PLANO!S45="","",PLANO!S45) ->  | T43: =IF(PLANO!T45="","",PLANO!T45) ->  | U43: - | V43: =IF(PLANO!V45="","",PLANO!V45) ->  | X43: - | Y43: =IF(PLANO!Y45="","",PLANO!Y45) ->  | Z43: =IF(PLANO!Z45="","",PLANO!Z45) ->  | AA43: =IF(PLANO!AA45="","",PLANO!AA45) ->  | AB43: =IF(PLANO!AB45="","",PLANO!AB45) ->  | AC43: =IF(PLANO!AC45="","",PLANO!AC45) ->  | AD43: =IF(PLANO!AD45="","",PLANO!AD45) ->  | AE43: =IF(PLANO!AE45="","",PLANO!AE45) ->  | AF43: - | AG43: =IF(PLANO!AG45="","",PLANO!AG45) -> 
C45: Turmas Participantes | M45: =PLANO!BA27 -> 
A47: Observações :
B50: Barreiro, | H50: / | K50: / | V50: =PLANO!Y63 -> A Diretora
V52: Mariana Inês Hortega Alves

Sheet C
G1: =DG!H1 -> Agrupamento de Escolas Augusto Cabrita
G2: =DG!H2 -> Sede – Escola Secundária Augusto Cabrita
G3: =DG!H3 -> Rua Maria Lamas – Alto Seixalinho – 2830-088 Barreiro
G4: =DG!H4 -> Tel 212059220 - Fax 212059228 - E-mail: direcao@aeaugustocabrita.edu.pt
A6: Credencial
B8: Declaro que os professores e assistentes que figuram na listagem abaixo, em exercício de funções no Agrupamento de Escolas Augusto Cabrita, estão autorizados a realizar a seguinte atividade, prevista no Plano Anual de atividades deste Agrupamento.
A10: ='Plano EE'!G6 -> PLANO DE VISITA DE ESTUDO / AUTORIZAÇÃO DO EE
B12: =IF(PLANO!B8="","",PLANO!B8) -> Designação da V. Estudo | J12: =IF(PLANO!J8="","",PLANO!J8) -> Eco-ementas | K12: =IF(PLANO!K8="","",PLANO!K8) ->  | L12: =IF(PLANO!L8="","",PLANO!L8) ->  | M12: =IF(PLANO!M8="","",PLANO!M8) ->  | N12: =IF(PLANO!N8="","",PLANO!N8) ->  | O12: =IF(PLANO!O8="","",PLANO!O8) ->  | P12: =IF(PLANO!P8="","",PLANO!P8) ->  | Q12: =IF(PLANO!Q8="","",PLANO!Q8) ->  | R12: =IF(PLANO!R8="","",PLANO!R8) ->  | S12: =IF(PLANO!S8="","",PLANO!S8) ->  | T12: =IF(PLANO!T8="","",PLANO!T8) ->  | U12: =IF(PLANO!U8="","",PLANO!U8) ->  | V12: =IF(PLANO!V8="","",PLANO!V8) ->  | W12: =IF(PLANO!W8="","",PLANO!W8) ->  | X12: =IF(PLANO!X8="","",PLANO!X8) ->  | Y12: =IF(PLANO!Y8="","",PLANO!Y8) ->  | Z12: =IF(PLANO!Z8="","",PLANO!Z8) ->  | AA12: =IF(PLANO!AA8="","",PLANO!AA8) ->  | AB12: =IF(PLANO!AB8="","",PLANO!AB8) ->  | AE12: Ano : | AF12: =DG!EC1 -> 15 | AG12: / | AH12: =DG!EE1 -> 16
B13: Organizada por : | J13: =IF(PLANO!J9="","",PLANO!J9) -> 7º F | K13: =IF(PLANO!K9="","",PLANO!K9) ->  | L13: =IF(PLANO!L9="","",PLANO!L9) ->  | M13: =IF(PLANO!M9="","",PLANO!M9) ->  | N13: =IF(PLANO!N9="","",PLANO!N9) ->  | O13: =IF(PLANO!O9="","",PLANO!O9) ->  | P13: =IF(PLANO!P9="","",PLANO!P9) ->  | Q13: =IF(PLANO!Q9="","",PLANO!Q9) ->  | R13: =IF(PLANO!R9="","",PLANO!R9) ->  | S13: =IF(PLANO!S9="","",PLANO!S9) ->  | T13: =IF(PLANO!T9="","",PLANO!T9) ->  | U13: =IF(PLANO!U9="","",PLANO!U9) ->  | V13: =IF(PLANO!V9="","",PLANO!V9) ->  | W13: =IF(PLANO!W9="","",PLANO!W9) ->  | X13: =IF(PLANO!X9="","",PLANO!X9) ->  | Y13: =IF(PLANO!Y9="","",PLANO!Y9) ->  | Z13: =IF(PLANO!Z9="","",PLANO!Z9) ->  | AA13: =IF(PLANO!AA9="","",PLANO!AA9) ->  | AB13: =IF(PLANO!AB9="","",PLANO!AB9) ->  | AD13: Nº Ativ : | AG13: =IF(PLANO!AG9="","",PLANO!AG9) ->  | AH13: =IF(PLANO!AH9="","",PLANO!AH9) -> 
A15: Locais | E15: - | F15: =IF(PLANO!F11="","",PLANO!F11) ->  | G15: =IF(PLANO!G11="","",PLANO!G11) ->  | H15: =IF(PLANO!H11="","",PLANO!H11) ->  | I15: =IF(PLANO!I11="","",PLANO!I11) ->  | J15: =IF(PLANO!J11="","",PLANO!J11) ->  | K15: =IF(PLANO!K11="","",PLANO!K11) ->  | L15: =IF(PLANO!L11="","",PLANO!L11) ->  | M15: =IF(PLANO!M11="","",PLANO!M11) ->  | N15: =IF(PLANO!N11="","",PLANO!N11) ->  | O15: =IF(PLANO!O11="","",PLANO!O11) ->  | P15: =IF(PLANO!P11="","",PLANO!P11) ->  | Q15: =IF(PLANO!Q11="","",PLANO!Q11) ->  | R15: =IF(PLANO!R11="","",PLANO!R11) ->  | T15: - | U15: =IF(PLANO!U11="","",PLANO!U11) ->  | V15: =IF(PLANO!V11="","",PLANO!V11) ->  | W15: =IF(PLANO!W11="","",PLANO!W11) ->  | X15: =IF(PLANO!X11="","",PLANO!X11) ->  | Y15: =IF(PLANO!Y11="","",PLANO!Y11) ->  | Z15: =IF(PLANO!Z11="","",PLANO!Z11) ->  | AA15: =IF(PLANO!AA11="","",PLANO!AA11) ->  | AB15: =IF(PLANO!AB11="","",PLANO!AB11) ->  | AC15: =IF(PLANO!AC11="","",PLANO!AC11) ->  | AD15: =IF(PLANO!AD11="","",PLANO!AD11) ->  | AE15: =IF(PLANO!AE11="","",PLANO!AE11) ->  | AF15: =IF(PLANO!AF11="","",PLANO!AF11) ->  | AG15: =IF(PLANO!AG11="","",PLANO!AG11) -> 
A16: =IF(AH10="X","a visitar","") ->  | E16: - | F16: =IF(PLANO!F12="","",PLANO!F12) ->  | G16: =IF(PLANO!G12="","",PLANO!G12) ->  | H16: =IF(PLANO!H12="","",PLANO!H12) ->  | I16: =IF(PLANO!I12="","",PLANO!I12) ->  | J16: =IF(PLANO!J12="","",PLANO!J12) ->  | K16: =IF(PLANO!K12="","",PLANO!K12) ->  | L16: =IF(PLANO!L12="","",PLANO!L12) ->  | M16: =IF(PLANO!M12="","",PLANO!M12) ->  | N16: =IF(PLANO!N12="","",PLANO!N12) ->  | O16: =IF(PLANO!O12="","",PLANO!O12) ->  | P16: =IF(PLANO!P12="","",PLANO!P12) ->  | Q16: =IF(PLANO!Q12="","",PLANO!Q12) ->  | R16: =IF(PLANO!R12="","",PLANO!R12) ->  | T16: - | U16: =IF(PLANO!U12="","",PLANO!U12) ->  | V16: =IF(PLANO!V12="","",PLANO!V12) ->  | W16: =IF(PLANO!W12="","",PLANO!W12) ->  | X16: =IF(PLANO!X12="","",PLANO!X12) ->  | Y16: =IF(PLANO!Y12="","",PLANO!Y12) ->  | Z16: =IF(PLANO!Z12="","",PLANO!Z12) ->  | AA16: =IF(PLANO!AA12="","",PLANO!AA12) ->  | AB16: =IF(PLANO!AB12="","",PLANO!AB12) ->  | AC16: =IF(PLANO!AC12="","",PLANO!AC12) ->  | AD16: =IF(PLANO!AD12="","",PLANO!AD12) ->  | AE16: =IF(PLANO!AE12="","",PLANO!AE12) ->  | AF16: =IF(PLANO!AF12="","",PLANO!AF12) ->  | AG16: =IF(PLANO!AG12="","",PLANO!AG12) -> 
B18: Início | F18: Local: | H18: =IF(PLANO!H14="","",PLANO!H14) -> EB23 P. Abílio Mendes | I18: =IF(PLANO!I14="","",PLANO!I14) ->  | J18: =IF(PLANO!J14="","",PLANO!J14) ->  | K18: =IF(PLANO!K14="","",PLANO!K14) ->  | L18: =IF(PLANO!L14="","",PLANO!L14) ->  | M18: =IF(PLANO!M14="","",PLANO!M14) ->  | N18: =IF(PLANO!N14="","",PLANO!N14) ->  | P18: Dia : | R18: =IF(PLANO!R14="","",PLANO!R14) ->  | S18: / | T18: =IF(PLANO!T14="","",PLANO!T14) ->  | U18: / | V18: =IF(PLANO!V14="","",PLANO!V14) ->  | Z18: Hora : | AA18: =IF(PLANO!AA14="","",PLANO!AA14) ->  | AB18: h | AC18: e | AD18: =IF(PLANO!AD14="","",PLANO!AD14) ->  | AE18: minutos
B19: Fim | F19: Local: | H19: =IF(PLANO!H15="","",PLANO!H15) -> EB23 P. Abílio Mendes | I19: =IF(PLANO!I15="","",PLANO!I15) ->  | J19: =IF(PLANO!J15="","",PLANO!J15) ->  | K19: =IF(PLANO!K15="","",PLANO!K15) ->  | L19: =IF(PLANO!L15="","",PLANO!L15) ->  | M19: =IF(PLANO!M15="","",PLANO!M15) ->  | N19: =IF(PLANO!N15="","",PLANO!N15) ->  | P19: Dia : | R19: =IF(PLANO!R15="","",PLANO!R15) ->  | S19: / | T19: =IF(PLANO!T15="","",PLANO!T15) ->  | U19: / | V19: =IF(PLANO!V15="","",PLANO!V15) ->  | Z19: Hora : | AA19: =IF(PLANO!AA15="","",PLANO!AA15) ->  | AB19: h | AC19: e | AD19: =IF(PLANO!AD15="","",PLANO!AD15) ->  | AE19: minutos
A21: Transporte : | G21: =IF(PLANO!T17="","",PLANO!T17) -> 
A23: Programa | E23: - | F23: =IF(PLANO!F19="","",PLANO!F19) ->  | G23: =IF(PLANO!G19="","",PLANO!G19) ->  | H23: =IF(PLANO!H19="","",PLANO!H19) ->  | I23: =IF(PLANO!I19="","",PLANO!I19) ->  | J23: =IF(PLANO!J19="","",PLANO!J19) ->  | K23: =IF(PLANO!K19="","",PLANO!K19) ->  | L23: =IF(PLANO!L19="","",PLANO!L19) ->  | M23: =IF(PLANO!M19="","",PLANO!M19) ->  | N23: =IF(PLANO!N19="","",PLANO!N19) ->  | O23: =IF(PLANO!O19="","",PLANO!O19) ->  | P23: =IF(PLANO!P19="","",PLANO!P19) ->  | Q23: =IF(PLANO!Q19="","",PLANO!Q19) ->  | R23: =IF(PLANO!R19="","",PLANO!R19) ->  | S23: =IF(PLANO!S19="","",PLANO!S19) ->  | T23: =IF(PLANO!T19="","",PLANO!T19) ->  | U23: =IF(PLANO!U19="","",PLANO!U19) ->  | V23: =IF(PLANO!V19="","",PLANO!V19) ->  | W23: =IF(PLANO!W19="","",PLANO!W19) ->  | X23: =IF(PLANO!X19="","",PLANO!X19) ->  | Y23: =IF(PLANO!Y19="","",PLANO!Y19) ->  | Z23: =IF(PLANO!Z19="","",PLANO!Z19) ->  | AA23: =IF(PLANO!AA19="","",PLANO!AA19) ->  | AB23: =IF(PLANO!AB19="","",PLANO!AB19) ->  | AC23: =IF(PLANO!AC19="","",PLANO!AC19) ->  | AD23: =IF(PLANO!AD19="","",PLANO!AD19) ->  | AE23: =IF(PLANO!AE19="","",PLANO!AE19) ->  | AF23: =IF(PLANO!AF19="","",PLANO!AF19) ->  | AG23: =IF(PLANO!AG19="","",PLANO!AG19) -> 
E24: - | F24: =IF(PLANO!F20="","",PLANO!F20) ->  | G24: =IF(PLANO!G20="","",PLANO!G20) ->  | H24: =IF(PLANO!H20="","",PLANO!H20) ->  | I24: =IF(PLANO!I20="","",PLANO!I20) ->  | J24: =IF(PLANO!J20="","",PLANO!J20) ->  | K24: =IF(PLANO!K20="","",PLANO!K20) ->  | L24: =IF(PLANO!L20="","",PLANO!L20) ->  | M24: =IF(PLANO!M20="","",PLANO!M20) ->  | N24: =IF(PLANO!N20="","",PLANO!N20) ->  | O24: =IF(PLANO!O20="","",PLANO!O20) ->  | P24: =IF(PLANO!P20="","",PLANO!P20) ->  | Q24: =IF(PLANO!Q20="","",PLANO!Q20) ->  | R24: =IF(PLANO!R20="","",PLANO!R20) ->  | S24: =IF(PLANO!S20="","",PLANO!S20) ->  | T24: =IF(PLANO!T20="","",PLANO!T20) ->  | U24: =IF(PLANO!U20="","",PLANO!U20) ->  | V24: =IF(PLANO!V20="","",PLANO!V20) ->  | W24: =IF(PLANO!W20="","",PLANO!W20) ->  | X24: =IF(PLANO!X20="","",PLANO!X20) ->  | Y24: =IF(PLANO!Y20="","",PLANO!Y20) ->  | Z24: =IF(PLANO!Z20="","",PLANO!Z20) ->  | AA24: =IF(PLANO!AA20="","",PLANO!AA20) ->  | AB24: =IF(PLANO!AB20="","",PLANO!AB20) ->  | AC24: =IF(PLANO!AC20="","",PLANO!AC20) ->  | AD24: =IF(PLANO!AD20="","",PLANO!AD20) ->  | AE24: =IF(PLANO!AE20="","",PLANO!AE20) ->  | AF24: =IF(PLANO!AF20="","",PLANO!AF20) ->  | AG24: =IF(PLANO!AG20="","",PLANO!AG20) -> 
F25: =IF(PLANO!F21="","",PLANO!F21) ->  | G25: =IF(PLANO!G21="","",PLANO!G21) ->  | H25: =IF(PLANO!H21="","",PLANO!H21) ->  | I25: =IF(PLANO!I21="","",PLANO!I21) ->  | J25: =IF(PLANO!J21="","",PLANO!J21) ->  | K25: =IF(PLANO!K21="","",PLANO!K21) ->  | L25: =IF(PLANO!L21="","",PLANO!L21) ->  | M25: =IF(PLANO!M21="","",PLANO!M21) ->  | N25: =IF(PLANO!N21="","",PLANO!N21) ->  | O25: =IF(PLANO!O21="","",PLANO!O21) ->  | P25: =IF(PLANO!P21="","",PLANO!P21) ->  | Q25: =IF(PLANO!Q21="","",PLANO!Q21) ->  | R25: =IF(PLANO!R21="","",PLANO!R21) ->  | S25: =IF(PLANO!S21="","",PLANO!S21) ->  | T25: =IF(PLANO!T21="","",PLANO!T21) ->  | U25: =IF(PLANO!U21="","",PLANO!U21) ->  | V25: =IF(PLANO!V21="","",PLANO!V21) ->  | W25: =IF(PLANO!W21="","",PLANO!W21) ->  | X25: =IF(PLANO!X21="","",PLANO!X21) ->  | Y25: =IF(PLANO!Y21="","",PLANO!Y21) ->  | Z25: =IF(PLANO!Z21="","",PLANO!Z21) ->  | AA25: =IF(PLANO!AA21="","",PLANO!AA21) ->  | AB25: =IF(PLANO!AB21="","",PLANO!AB21) ->  | AC25: =IF(PLANO!AC21="","",PLANO!AC21) ->  | AD25: =IF(PLANO!AD21="","",PLANO!AD21) ->  | AE25: =IF(PLANO!AE21="","",PLANO!AE21) ->  | AF25: =IF(PLANO!AF21="","",PLANO!AF21) ->  | AG25: =IF(PLANO!AG21="","",PLANO!AG21) -> 
F26: =IF(PLANO!F22="","",PLANO!F22) ->  | G26: =IF(PLANO!G22="","",PLANO!G22) ->  | H26: =IF(PLANO!H22="","",PLANO!H22) ->  | I26: =IF(PLANO!I22="","",PLANO!I22) ->  | J26: =IF(PLANO!J22="","",PLANO!J22) ->  | K26: =IF(PLANO!K22="","",PLANO!K22) ->  | L26: =IF(PLANO!L22="","",PLANO!L22) ->  | M26: =IF(PLANO!M22="","",PLANO!M22) ->  | N26: =IF(PLANO!N22="","",PLANO!N22) ->  | O26: =IF(PLANO!O22="","",PLANO!O22) ->  | P26: =IF(PLANO!P22="","",PLANO!P22) ->  | Q26: =IF(PLANO!Q22="","",PLANO!Q22) ->  | R26: =IF(PLANO!R22="","",PLANO!R22) ->  | S26: =IF(PLANO!S22="","",PLANO!S22) ->  | T26: =IF(PLANO!T22="","",PLANO!T22) ->  | U26: =IF(PLANO!U22="","",PLANO!U22) ->  | V26: =IF(PLANO!V22="","",PLANO!V22) ->  | W26: =IF(PLANO!W22="","",PLANO!W22) ->  | X26: =IF(PLANO!X22="","",PLANO!X22) ->  | Y26: =IF(PLANO!Y22="","",PLANO!Y22) ->  | Z26: =IF(PLANO!Z22="","",PLANO!Z22) ->  | AA26: =IF(PLANO!AA22="","",PLANO!AA22) ->  | AB26: =IF(PLANO!AB22="","",PLANO!AB22) ->  | AC26: =IF(PLANO!AC22="","",PLANO!AC22) ->  | AD26: =IF(PLANO!AD22="","",PLANO!AD22) ->  | AE26: =IF(PLANO!AE22="","",PLANO!AE22) ->  | AF26: =IF(PLANO!AF22="","",PLANO!AF22) ->  | AG26: =IF(PLANO!AG22="","",PLANO!AG22) -> 
F27: =IF(PLANO!F23="","",PLANO!F23) ->  | G27: =IF(PLANO!G23="","",PLANO!G23) ->  | H27: =IF(PLANO!H23="","",PLANO!H23) ->  | I27: =IF(PLANO!I23="","",PLANO!I23) ->  | J27: =IF(PLANO!J23="","",PLANO!J23) ->  | K27: =IF(PLANO!K23="","",PLANO!K23) ->  | L27: =IF(PLANO!L23="","",PLANO!L23) ->  | M27: =IF(PLANO!M23="","",PLANO!M23) ->  | N27: =IF(PLANO!N23="","",PLANO!N23) ->  | O27: =IF(PLANO!O23="","",PLANO!O23) ->  | P27: =IF(PLANO!P23="","",PLANO!P23) ->  | Q27: =IF(PLANO!Q23="","",PLANO!Q23) ->  | R27: =IF(PLANO!R23="","",PLANO!R23) ->  | S27: =IF(PLANO!S23="","",PLANO!S23) ->  | T27: =IF(PLANO!T23="","",PLANO!T23) ->  | U27: =IF(PLANO!U23="","",PLANO!U23) ->  | V27: =IF(PLANO!V23="","",PLANO!V23) ->  | W27: =IF(PLANO!W23="","",PLANO!W23) ->  | X27: =IF(PLANO!X23="","",PLANO!X23) ->  | Y27: =IF(PLANO!Y23="","",PLANO!Y23) ->  | Z27: =IF(PLANO!Z23="","",PLANO!Z23) ->  | AA27: =IF(PLANO!AA23="","",PLANO!AA23) ->  | AB27: =IF(PLANO!AB23="","",PLANO!AB23) ->  | AC27: =IF(PLANO!AC23="","",PLANO!AC23) ->  | AD27: =IF(PLANO!AD23="","",PLANO!AD23) ->  | AE27: =IF(PLANO!AE23="","",PLANO!AE23) ->  | AF27: =IF(PLANO!AF23="","",PLANO!AF23) ->  | AG27: =IF(PLANO!AG23="","",PLANO!AG23) -> 
B29: Professores Organizadores | K29: ( Nome - Código do grupo )
B30: - | C30: =IF(PLANO!C32="","",PLANO!C32) -> Lurdes Monteiro | D30: =IF(PLANO!D32="","",PLANO!D32) ->  | E30: =IF(PLANO!E32="","",PLANO!E32) ->  | F30: =IF(PLANO!F32="","",PLANO!F32) ->  | G30: =IF(PLANO!G32="","",PLANO!G32) ->  | H30: =IF(PLANO!H32="","",PLANO!H32) ->  | I30: =IF(PLANO!I32="","",PLANO!I32) ->  | J30: - | K30: =IF(PLANO!K32="","",PLANO!K32) ->  | M30: - | N30: =IF(PLANO!N32="","",PLANO!N32) ->  | O30: =IF(PLANO!O32="","",PLANO!O32) ->  | P30: =IF(PLANO!P32="","",PLANO!P32) ->  | Q30: =IF(PLANO!Q32="","",PLANO!Q32) ->  | R30: =IF(PLANO!R32="","",PLANO!R32) ->  | S30: =IF(PLANO!S32="","",PLANO!S32) ->  | T30: =IF(PLANO!T32="","",PLANO!T32) ->  | U30: - | V30: =IF(PLANO!V32="","",PLANO!V32) ->  | X30: - | Y30: =IF(PLANO!Y32="","",PLANO!Y32) ->  | Z30: =IF(PLANO!Z32="","",PLANO!Z32) ->  | AA30: =IF(PLANO!AA32="","",PLANO!AA32) ->  | AB30: =IF(PLANO!AB32="","",PLANO!AB32) ->  | AC30: =IF(PLANO!AC32="","",PLANO!AC32) ->  | AD30: =IF(PLANO!AD32="","",PLANO!AD32) ->  | AE30: =IF(PLANO!AE32="","",PLANO!AE32) ->  | AF30: - | AG30: =IF(PLANO!AG32="","",PLANO!AG32) -> 
B31: - | C31: =IF(PLANO!C33="","",PLANO!C33) -> Mª João Bica | D31: =IF(PLANO!D33="","",PLANO!D33) ->  | E31: =IF(PLANO!E33="","",PLANO!E33) ->  | F31: =IF(PLANO!F33="","",PLANO!F33) ->  | G31: =IF(PLANO!G33="","",PLANO!G33) ->  | H31: =IF(PLANO!H33="","",PLANO!H33) ->  | I31: =IF(PLANO!I33="","",PLANO!I33) ->  | J31: - | K31: =IF(PLANO!K33="","",PLANO!K33) ->  | M31: - | N31: =IF(PLANO!N33="","",PLANO!N33) ->  | O31: =IF(PLANO!O33="","",PLANO!O33) ->  | P31: =IF(PLANO!P33="","",PLANO!P33) ->  | Q31: =IF(PLANO!Q33="","",PLANO!Q33) ->  | R31: =IF(PLANO!R33="","",PLANO!R33) ->  | S31: =IF(PLANO!S33="","",PLANO!S33) ->  | T31: =IF(PLANO!T33="","",PLANO!T33) ->  | U31: - | V31: =IF(PLANO!V33="","",PLANO!V33) ->  | X31: - | Y31: =IF(PLANO!Y33="","",PLANO!Y33) ->  | Z31: =IF(PLANO!Z33="","",PLANO!Z33) ->  | AA31: =IF(PLANO!AA33="","",PLANO!AA33) ->  | AB31: =IF(PLANO!AB33="","",PLANO!AB33) ->  | AC31: =IF(PLANO!AC33="","",PLANO!AC33) ->  | AD31: =IF(PLANO!AD33="","",PLANO!AD33) ->  | AE31: =IF(PLANO!AE33="","",PLANO!AE33) ->  | AF31: - | AG31: =IF(PLANO!AG33="","",PLANO!AG33) -> 
B33: Professores e Assistentes Acompanhantes
B34: - | C34: =IF(PLANO!C36="","",PLANO!C36) -> Mª João Bica | D34: =IF(PLANO!D36="","",PLANO!D36) ->  | E34: =IF(PLANO!E36="","",PLANO!E36) ->  | F34: =IF(PLANO!F36="","",PLANO!F36) ->  | G34: =IF(PLANO!G36="","",PLANO!G36) ->  | H34: =IF(PLANO!H36="","",PLANO!H36) ->  | I34: =IF(PLANO!I36="","",PLANO!I36) ->  | J34: - | K34: =IF(PLANO!K36="","",PLANO!K36) ->  | M34: - | N34: =IF(PLANO!N36="","",PLANO!N36) ->  | O34: =IF(PLANO!O36="","",PLANO!O36) ->  | P34: =IF(PLANO!P36="","",PLANO!P36) ->  | Q34: =IF(PLANO!Q36="","",PLANO!Q36) ->  | R34: =IF(PLANO!R36="","",PLANO!R36) ->  | S34: =IF(PLANO!S36="","",PLANO!S36) ->  | T34: =IF(PLANO!T36="","",PLANO!T36) ->  | U34: - | V34: =IF(PLANO!V36="","",PLANO!V36) ->  | X34: - | Y34: =IF(PLANO!Y36="","",PLANO!Y36) ->  | Z34: =IF(PLANO!Z36="","",PLANO!Z36) ->  | AA34: =IF(PLANO!AA36="","",PLANO!AA36) ->  | AB34: =IF(PLANO!AB36="","",PLANO!AB36) ->  | AC34: =IF(PLANO!AC36="","",PLANO!AC36) ->  | AD34: =IF(PLANO!AD36="","",PLANO!AD36) ->  | AE34: =IF(PLANO!AE36="","",PLANO!AE36) ->  | AF34: - | AG34: =IF(PLANO!AG36="","",PLANO!AG36) -> 
B35: - | C35: =IF(PLANO!C37="","",PLANO!C37) -> Lurdes Monteiro | D35: =IF(PLANO!D37="","",PLANO!D37) ->  | E35: =IF(PLANO!E37="","",PLANO!E37) ->  | F35: =IF(PLANO!F37="","",PLANO!F37) ->  | G35: =IF(PLANO!G37="","",PLANO!G37) ->  | H35: =IF(PLANO!H37="","",PLANO!H37) ->  | I35: =IF(PLANO!I37="","",PLANO!I37) ->  | J35: - | K35: =IF(PLANO!K37="","",PLANO!K37) ->  | M35: - | N35: =IF(PLANO!N37="","",PLANO!N37) ->  | O35: =IF(PLANO!O37="","",PLANO!O37) ->  | P35: =IF(PLANO!P37="","",PLANO!P37) ->  | Q35: =IF(PLANO!Q37="","",PLANO!Q37) ->  | R35: =IF(PLANO!R37="","",PLANO!R37) ->  | S35: =IF(PLANO!S37="","",PLANO!S37) ->  | T35: =IF(PLANO!T37="","",PLANO!T37) ->  | U35: - | V35: =IF(PLANO!V37="","",PLANO!V37) ->  | X35: - | Y35: =IF(PLANO!Y37="","",PLANO!Y37) ->  | Z35: =IF(PLANO!Z37="","",PLANO!Z37) ->  | AA35: =IF(PLANO!AA37="","",PLANO!AA37) ->  | AB35: =IF(PLANO!AB37="","",PLANO!AB37) ->  | AC35: =IF(PLANO!AC37="","",PLANO!AC37) ->  | AD35: =IF(PLANO!AD37="","",PLANO!AD37) ->  | AE35: =IF(PLANO!AE37="","",PLANO!AE37) ->  | AF35: - | AG35: =IF(PLANO!AG37="","",PLANO!AG37) -> 
B36: - | C36: =IF(PLANO!C38="","",PLANO!C38) -> Rosário Gonçalves | D36: =IF(PLANO!D38="","",PLANO!D38) ->  | E36: =IF(PLANO!E38="","",PLANO!E38) ->  | F36: =IF(PLANO!F38="","",PLANO!F38) ->  | G36: =IF(PLANO!G38="","",PLANO!G38) ->  | H36: =IF(PLANO!H38="","",PLANO!H38) ->  | I36: =IF(PLANO!I38="","",PLANO!I38) ->  | J36: - | K36: =IF(PLANO!K38="","",PLANO!K38) ->  | M36: - | N36: =IF(PLANO!N38="","",PLANO!N38) ->  | O36: =IF(PLANO!O38="","",PLANO!O38) ->  | P36: =IF(PLANO!P38="","",PLANO!P38) ->  | Q36: =IF(PLANO!Q38="","",PLANO!Q38) ->  | R36: =IF(PLANO!R38="","",PLANO!R38) ->  | S36: =IF(PLANO!S38="","",PLANO!S38) ->  | T36: =IF(PLANO!T38="","",PLANO!T38) ->  | U36: - | V36: =IF(PLANO!V38="","",PLANO!V38) ->  | X36: - | Y36: =IF(PLANO!Y38="","",PLANO!Y38) ->  | Z36: =IF(PLANO!Z38="","",PLANO!Z38) ->  | AA36: =IF(PLANO!AA38="","",PLANO!AA38) ->  | AB36: =IF(PLANO!AB38="","",PLANO!AB38) ->  | AC36: =IF(PLANO!AC38="","",PLANO!AC38) ->  | AD36: =IF(PLANO!AD38="","",PLANO!AD38) ->  | AE36: =IF(PLANO!AE38="","",PLANO!AE38) ->  | AF36: - | AG36: =IF(PLANO!AG38="","",PLANO!AG38) -> 
B37: - | C37: =IF(PLANO!C39="","",PLANO!C39) -> Clarisse Sim | D37: =IF(PLANO!D39="","",PLANO!D39) ->  | E37: =IF(PLANO!E39="","",PLANO!E39) ->  | F37: =IF(PLANO!F39="","",PLANO!F39) ->  | G37: =IF(PLANO!G39="","",PLANO!G39) ->  | H37: =IF(PLANO!H39="","",PLANO!H39) ->  | I37: =IF(PLANO!I39="","",PLANO!I39) ->  | J37: - | K37: =IF(PLANO!K39="","",PLANO!K39) ->  | M37: - | N37: =IF(PLANO!N39="","",PLANO!N39) ->  | O37: =IF(PLANO!O39="","",PLANO!O39) ->  | P37: =IF(PLANO!P39="","",PLANO!P39) ->  | Q37: =IF(PLANO!Q39="","",PLANO!Q39) ->  | R37: =IF(PLANO!R39="","",PLANO!R39) ->  | S37: =IF(PLANO!S39="","",PLANO!S39) ->  | T37: =IF(PLANO!T39="","",PLANO!T39) ->  | U37: - | V37: =IF(PLANO!V39="","",PLANO!V39) ->  | X37: - | Y37: =IF(PLANO!Y39="","",PLANO!Y39) ->  | Z37: =IF(PLANO!Z39="","",PLANO!Z39) ->  | AA37: =IF(PLANO!AA39="","",PLANO!AA39) ->  | AB37: =IF(PLANO!AB39="","",PLANO!AB39) ->  | AC37: =IF(PLANO!AC39="","",PLANO!AC39) ->  | AD37: =IF(PLANO!AD39="","",PLANO!AD39) ->  | AE37: =IF(PLANO!AE39="","",PLANO!AE39) ->  | AF37: - | AG37: =IF(PLANO!AG39="","",PLANO!AG39) -> 
B38: - | C38: =IF(PLANO!C40="","",PLANO!C40) -> Ana Rosado | D38: =IF(PLANO!D40="","",PLANO!D40) ->  | E38: =IF(PLANO!E40="","",PLANO!E40) ->  | F38: =IF(PLANO!F40="","",PLANO!F40) ->  | G38: =IF(PLANO!G40="","",PLANO!G40) ->  | H38: =IF(PLANO!H40="","",PLANO!H40) ->  | I38: =IF(PLANO!I40="","",PLANO!I40) ->  | J38: - | K38: =IF(PLANO!K40="","",PLANO!K40) ->  | M38: - | N38: =IF(PLANO!N40="","",PLANO!N40) ->  | O38: =IF(PLANO!O40="","",PLANO!O40) ->  | P38: =IF(PLANO!P40="","",PLANO!P40) ->  | Q38: =IF(PLANO!Q40="","",PLANO!Q40) ->  | R38: =IF(PLANO!R40="","",PLANO!R40) ->  | S38: =IF(PLANO!S40="","",PLANO!S40) ->  | T38: =IF(PLANO!T40="","",PLANO!T40) ->  | U38: - | V38: =IF(PLANO!V40="","",PLANO!V40) ->  | X38: - | Y38: =IF(PLANO!Y40="","",PLANO!Y40) ->  | Z38: =IF(PLANO!Z40="","",PLANO!Z40) ->  | AA38: =IF(PLANO!AA40="","",PLANO!AA40) ->  | AB38: =IF(PLANO!AB40="","",PLANO!AB40) ->  | AC38: =IF(PLANO!AC40="","",PLANO!AC40) ->  | AD38: =IF(PLANO!AD40="","",PLANO!AD40) ->  | AE38: =IF(PLANO!AE40="","",PLANO!AE40) ->  | AF38: - | AG38: =IF(PLANO!AG40="","",PLANO!AG40) -> 
B39: - | C39: =IF(PLANO!C41="","",PLANO!C41) -> Lurdes Cadeirinhas | D39: =IF(PLANO!D41="","",PLANO!D41) ->  | E39: =IF(PLANO!E41="","",PLANO!E41) ->  | F39: =IF(PLANO!F41="","",PLANO!F41) ->  | G39: =IF(PLANO!G41="","",PLANO!G41) ->  | H39: =IF(PLANO!H41="","",PLANO!H41) ->  | I39: =IF(PLANO!I41="","",PLANO!I41) ->  | J39: - | K39: =IF(PLANO!K41="","",PLANO!K41) ->  | M39: - | N39: =IF(PLANO!N41="","",PLANO!N41) ->  | O39: =IF(PLANO!O41="","",PLANO!O41) ->  | P39: =IF(PLANO!P41="","",PLANO!P41) ->  | Q39: =IF(PLANO!Q41="","",PLANO!Q41) ->  | R39: =IF(PLANO!R41="","",PLANO!R41) ->  | S39: =IF(PLANO!S41="","",PLANO!S41) ->  | T39: =IF(PLANO!T41="","",PLANO!T41) ->  | U39: - | V39: =IF(PLANO!V41="","",PLANO!V41) ->  | X39: - | Y39: =IF(PLANO!Y41="","",PLANO!Y41) ->  | Z39: =IF(PLANO!Z41="","",PLANO!Z41) ->  | AA39: =IF(PLANO!AA41="","",PLANO!AA41) ->  | AB39: =IF(PLANO!AB41="","",PLANO!AB41) ->  | AC39: =IF(PLANO!AC41="","",PLANO!AC41) ->  | AD39: =IF(PLANO!AD41="","",PLANO!AD41) ->  | AE39: =IF(PLANO!AE41="","",PLANO!AE41) ->  | AF39: - | AG39: =IF(PLANO!AG41="","",PLANO!AG41) -> 
B40: - | C40: =IF(PLANO!C42="","",PLANO!C42) ->  | D40: =IF(PLANO!D42="","",PLANO!D42) ->  | E40: =IF(PLANO!E42="","",PLANO!E42) ->  | F40: =IF(PLANO!F42="","",PLANO!F42) ->  | G40: =IF(PLANO!G42="","",PLANO!G42) ->  | H40: =IF(PLANO!H42="","",PLANO!H42) ->  | I40: =IF(PLANO!I42="","",PLANO!I42) ->  | J40: - | K40: =IF(PLANO!K42="","",PLANO!K42) ->  | M40: - | N40: =IF(PLANO!N42="","",PLANO!N42) ->  | O40: =IF(PLANO!O42="","",PLANO!O42) ->  | P40: =IF(PLANO!P42="","",PLANO!P42) ->  | Q40: =IF(PLANO!Q42="","",PLANO!Q42) ->  | R40: =IF(PLANO!R42="","",PLANO!R42) ->  | S40: =IF(PLANO!S42="","",PLANO!S42) ->  | T40: =IF(PLANO!T42="","",PLANO!T42) ->  | U40: - | V40: =IF(PLANO!V42="","",PLANO!V42) ->  | X40: - | Y40: =IF(PLANO!Y42="","",PLANO!Y42) ->  | Z40: =IF(PLANO!Z42="","",PLANO!Z42) ->  | AA40: =IF(PLANO!AA42="","",PLANO!AA42) ->  | AB40: =IF(PLANO!AB42="","",PLANO!AB42) ->  | AC40: =IF(PLANO!AC42="","",PLANO!AC42) ->  | AD40: =IF(PLANO!AD42="","",PLANO!AD42) ->  | AE40: =IF(PLANO!AE42="","",PLANO!AE42) ->  | AF40: - | AG40: =IF(PLANO!AG42="","",PLANO!AG42) -> 
B41: - | C41: =IF(PLANO!C43="","",PLANO!C43) ->  | D41: =IF(PLANO!D43="","",PLANO!D43) ->  | E41: =IF(PLANO!E43="","",PLANO!E43) ->  | F41: =IF(PLANO!F43="","",PLANO!F43) ->  | G41: =IF(PLANO!G43="","",PLANO!G43) ->  | H41: =IF(PLANO!H43="","",PLANO!H43) ->  | I41: =IF(PLANO!I43="","",PLANO!I43) ->  | J41: - | K41: =IF(PLANO!K43="","",PLANO!K43) ->  | M41: - | N41: =IF(PLANO!N43="","",PLANO!N43) ->  | O41: =IF(PLANO!O43="","",PLANO!O43) ->  | P41: =IF(PLANO!P43="","",PLANO!P43) ->  | Q41: =IF(PLANO!Q43="","",PLANO!Q43) ->  | R41: =IF(PLANO!R43="","",PLANO!R43) ->  | S41: =IF(PLANO!S43="","",PLANO!S43) ->  | T41: =IF(PLANO!T43="","",PLANO!T43) ->  | U41: - | V41: =IF(PLANO!V43="","",PLANO!V43) ->  | X41: - | Y41: =IF(PLANO!Y43="","",PLANO!Y43) ->  | Z41: =IF(PLANO!Z43="","",PLANO!Z43) ->  | AA41: =IF(PLANO!AA43="","",PLANO!AA43) ->  | AB41: =IF(PLANO!AB43="","",PLANO!AB43) ->  | AC41: =IF(PLANO!AC43="","",PLANO!AC43) ->  | AD41: =IF(PLANO!AD43="","",PLANO!AD43) ->  | AE41: =IF(PLANO!AE43="","",PLANO!AE43) ->  | AF41: - | AG41: =IF(PLANO!AG43="","",PLANO!AG43) -> 
B42: - | C42: =IF(PLANO!C44="","",PLANO!C44) ->  | D42: =IF(PLANO!D44="","",PLANO!D44) ->  | E42: =IF(PLANO!E44="","",PLANO!E44) ->  | F42: =IF(PLANO!F44="","",PLANO!F44) ->  | G42: =IF(PLANO!G44="","",PLANO!G44) ->  | H42: =IF(PLANO!H44="","",PLANO!H44) ->  | I42: =IF(PLANO!I44="","",PLANO!I44) ->  | J42: - | K42: =IF(PLANO!K44="","",PLANO!K44) ->  | M42: - | N42: =IF(PLANO!N44="","",PLANO!N44) ->  | O42: =IF(PLANO!O44="","",PLANO!O44) ->  | P42: =IF(PLANO!P44="","",PLANO!P44) ->  | Q42: =IF(PLANO!Q44="","",PLANO!Q44) ->  | R42: =IF(PLANO!R44="","",PLANO!R44) ->  | S42: =IF(PLANO!S44="","",PLANO!S44) ->  | T42: =IF(PLANO!T44="","",PLANO!T44) ->  | U42: - | V42: =IF(PLANO!V44="","",PLANO!V44) ->  | X42: - | Y42: =IF(PLANO!Y44="","",PLANO!Y44) ->  | Z42: =IF(PLANO!Z44="","",PLANO!Z44) ->  | AA42: =IF(PLANO!AA44="","",PLANO!AA44) ->  | AB42: =IF(PLANO!AB44="","",PLANO!AB44) ->  | AC42: =IF(PLANO!AC44="","",PLANO!AC44) ->  | AD42: =IF(PLANO!AD44="","",PLANO!AD44) ->  | AE42: =IF(PLANO!AE44="","",PLANO!AE44) ->  | AF42: - | AG42: =IF(PLANO!AG44="","",PLANO!AG44) -> 
B43: - | C43: =IF(PLANO!C45="","",PLANO!C45) ->  | D43: =IF(PLANO!D45="","",PLANO!D45) ->  | E43: =IF(PLANO!E45="","",PLANO!E45) ->  | F43: =IF(PLANO!F45="","",PLANO!F45) ->  | G43: =IF(PLANO!G45="","",PLANO!G45) ->  | H43: =IF(PLANO!H45="","",PLANO!H45) ->  | I43: =IF(PLANO!I45="","",PLANO!I45) ->  | J43: - | K43: =IF(PLANO!K45="","",PLANO!K45) ->  | M43: - | N43: =IF(PLANO!N45="","",PLANO!N45) ->  | O43: =IF(PLANO!O45="","",PLANO!O45) ->  | P43: =IF(PLANO!P45="","",PLANO!P45) ->  | Q43: =IF(PLANO!Q45="","",PLANO!Q45) ->  | R43: =IF(PLANO!R45="","",PLANO!R45) ->  | S43: =IF(PLANO!S45="","",PLANO!S45) ->  | T43: =IF(PLANO!T45="","",PLANO!T45) ->  | U43: - | V43: =IF(PLANO!V45="","",PLANO!V45) ->  | X43: - | Y43: =IF(PLANO!Y45="","",PLANO!Y45) ->  | Z43: =IF(PLANO!Z45="","",PLANO!Z45) ->  | AA43: =IF(PLANO!AA45="","",PLANO!AA45) ->  | AB43: =IF(PLANO!AB45="","",PLANO!AB45) ->  | AC43: =IF(PLANO!AC45="","",PLANO!AC45) ->  | AD43: =IF(PLANO!AD45="","",PLANO!AD45) ->  | AE43: =IF(PLANO!AE45="","",PLANO!AE45) ->  | AF43: - | AG43: =IF(PLANO!AG45="","",PLANO!AG45) -> 
C45: Turmas Participantes | M45: =PLANO!BA27 -> 
A47: Observações :
B50: Barreiro, | H50: / | K50: / | V50: =PLANO!Y63 -> A Diretora
V52: Mariana Inês Hortega Alves

Sheet Listagens
G1: =PLANO!$G$1 -> Agrupamento de Escolas Augusto Cabrita | AF1: Informações / Instruções
G2: =PLANO!$G$2 -> Sede – Escola Secundária Augusto Cabrita | AF2: SS | AG2: Sistema de Saúde
G3: =PLANO!$G$3 -> Rua Maria Lamas – Alto Seixalinho – 2830-088 Barreiro | AF3: MD | AG3: Aluno com medida disciplinar que o impede de participar na atividade
G4: =PLANO!$G$4 -> Tel 212059220 - Fax 212059228 - E-mail: direcao@aeaugustocabrita.edu.pt | AF4: S/N | AG4: Indicar se o aluno participa (S) ou não (N) na atividade
AF5: Imprimir | AG5: =CONCATENATE("Páginas a imprimir : ",AN8,AN41,AN42,AN43,AN44,AN45,AN46,AN47,AN48,AN49,AN50,AN51,AN52,AN53,AN54,AN55,AN56) -> Páginas a imprimir :
B6: LISTAGEM DE ALUNOS | Q6: =IF(W6=0,"A Turma não Participa","") ->  | W6: =VLOOKUP(X6,$AF$9:$AH$56,3,FALSE) ->  | X6: 1 | Y6: TURMA | AB6: =VLOOKUP(X6,$AF$9:$AH$56,2,FALSE) -> 5A
AF7: Valores Totais | AH7: =SUM(AH9:AH56) -> 0 | AI7: =SUM(AI9:AI56) -> 0 | AJ7: 0 | AK7: 0 | AL7: 0 | AM7: 0
B8: =PLANO!$B$8 -> Designação da V. Estudo | J8: =IF(PLANO!J8="","",PLANO!J8) -> Eco-ementas | AA8: Ano : | AB8: =DG!$EC$1 -> 15 | AC8: / | AD8: =DG!$EE$1 -> 16 | AF8: Listagem das Turmas | AI8: Sim | AJ8: Não | AK8: Pago | AM8: N Pago | AN8: =CONCATENATE(AN9,AN10,AN11,AN12,AN13,AN14,AN15,AN16,AN17,AN18,AN19,AN20,AN21,AN22,AN23,AN24,AN25,AN26,AN27,AN28,AN29,AN30,AN31,AN32,AN33,AN34,AN35,AN36,AN37,AN38,AN39,AN40) ->  | AP8: Hiperligações | BF8: ATENÇÃO
B9: Organizada por : | J9: =IF(PLANO!J9="","",PLANO!J9) -> 7º F | Z9: Nº Ativ : | AC9: =PLANO!$AG$9 -> 0 | AF9: 1 | AG9: =PLANO!$F$48 -> 5A | AH9: =IF(PLANO!$I48="X",PLANO!$H48,"") ->  | AI9: =SUMIF($AR$20:$AR$2750,AG9,$AT$20:$AT$2750) -> 0 | AJ9: =SUMIF($AR$20:$AR$2750,AG9,$AU$20:$AU$2750) -> 0 | AK9: =SUMIF($AR$20:$AR$2750,AG9,$BD$20:$BD$2750) -> 0 | AL9: =SUMIF($AR$20:$AR$2750,AG9,$BA$20:$BA$2750) -> 0 | AM9: =SUMIF($AR$20:$AR$2750,AG9,$BE$20:$BE$2750) -> 0 | AN9: =IF(AH9="","",CONCATENATE(AF9," ")) -> 
AF10: 2 | AG10: =PLANO!$F$49 -> 5B | AH10: =IF(PLANO!$I49="X",PLANO!$H49,"") ->  | AI10: 0 | AJ10: 0 | AK10: 0 | AL10: 0 | AM10: 0 | AN10: =IF(AH10="","",CONCATENATE(AF10," ")) ->  | AP10: Cilcar aqui | BF10: Para imprimir, nunca utilizar a opção Imprimir tudo. Na listagem ao lado a cada turma corresponde um nº da página a imprimir.
B11: =PLANO!$A$11 -> Locais | E11: - | F11: =IF(PLANO!$F$11="","",PLANO!$F$11) ->  | R11: - | S11: =IF(PLANO!$U$11="","",PLANO!$U$11) ->  | AF11: 3 | AG11: =PLANO!$F$50 -> 5C | AH11: =IF(PLANO!$I50="X",PLANO!$H50,"") ->  | AI11: 0 | AJ11: 0 | AK11: 0 | AL11: 0 | AM11: 0 | AN11: =IF(AH11="","",CONCATENATE(AF11," ")) ->  | AP11: Cilcar aqui | AT11: Total possível | AX11: =PLANO!M57 -> 0
B12: =PLANO!$A$12 -> a visitar | E12: - | F12: =IF(PLANO!$F$12="","",PLANO!$F$12) ->  | R12: - | S12: =IF(PLANO!$U$12="","",PLANO!$U$12) ->  | AF12: 4 | AG12: =PLANO!$F$51 -> 5D | AH12: =IF(PLANO!$I51="X",PLANO!$H51,"") ->  | AI12: 0 | AJ12: 0 | AK12: 0 | AL12: 0 | AM12: 0 | AP12: Cilcar aqui
AF13: 5 | AG13: =PLANO!$F$52 -> 5E | AH13: =IF(PLANO!$I52="X",PLANO!$H52,"") ->  | AI13: 0 | AJ13: 0 | AK13: 0 | AL13: 0 | AM13: 0 | AP13: Cilcar aqui | AT13: Total possível s/ ASE | AX13: =AX11-AV17-AX17 -> 0
B14: Início | F14: Local: | H14: =IF(PLANO!$H$14="","",PLANO!$H$14) -> EB23 P. Abílio Mendes | O14: Dia : | P14: =IF(PLANO!$R$14="","",PLANO!$R$14) ->  | Q14: / | R14: =IF(PLANO!$T$14="","",PLANO!$T$14) ->  | S14: / | T14: =IF(W6=0,"",IF(PLANO!$V$14="","",PLANO!$V$14)) ->  | W14: Hora : | X14: =IF(PLANO!$AA$14="","",PLANO!$AA$14) ->  | Y14: h | Z14: e | AA14: =IF(PLANO!$AD$14="","",PLANO!$AD$14) ->  | AB14: minutos | AF14: 6 | AG14: =PLANO!$F$53 -> 0 | AH14: =IF(PLANO!$I53="X",PLANO!$H53,"") ->  | AI14: 0 | AJ14: 0 | AK14: 0 | AL14: 0 | AM14: 0 | AP14: Cilcar aqui
B15: Fim | F15: Local: | H15: =IF(PLANO!$H$15="","",PLANO!$H$15) -> EB23 P. Abílio Mendes | O15: Dia : | P15: =IF(PLANO!$R$15="","",PLANO!$R$15) ->  | Q15: / | R15: =IF(PLANO!$T$15="","",PLANO!$T$15) ->  | S15: / | T15: =IF(W6=0,"",IF(PLANO!$V$15="","",PLANO!$V$15)) ->  | W15: Hora : | X15: =IF(PLANO!$AA$15="","",PLANO!$AA$15) ->  | Y15: h | Z15: e | AA15: =IF(PLANO!$AD$15="","",PLANO!$AD$15) ->  | AB15: minutos | AF15: 7 | AG15: =PLANO!$F$54 -> 0 | AH15: =IF(PLANO!$I54="X",PLANO!$H54,"") ->  | AI15: 0 | AJ15: 0 | AK15: 0 | AL15: 0 | AM15: 0 | AP15: d
AF16: 8 | AG16: =PLANO!$F$55 -> 0 | AH16: =IF(PLANO!$I55="X",PLANO!$H55,"") ->  | AI16: 0 | AJ16: 0 | AK16: 0 | AL16: 0 | AM16: 0 | AP16: Cilcar aqui | AS16: NP | AT16: PS | AU16: PN | AV16: A | AW16: PA | AX16: B | AY16: PB | AZ16: MD | BA16: Pago | BB16: Pago A | BC16: Pago B | BD16: Pagou | BE16: Não Pagou
B17: Custo | F17: =IF(PLANO!$F$17="","",PLANO!$F$17) -> 0 | I17: Euros | N17: Transporte : | Q17: =IF(PLANO!$T$17="","",PLANO!$T$17) ->  | AF17: 9 | AG17: =PLANO!$K$48 -> 6A | AH17: =IF(PLANO!$N48="X",PLANO!$M48,"") ->  | AI17: 0 | AJ17: 0 | AK17: 0 | AL17: 0 | AM17: 0 | AP17: Cilcar aqui | AT17: =SUM(AT20:AT2735) -> 0 | AU17: =SUM(AU20:AU2735) -> 0 | AV17: 0 | AW17: 0 | AX17: 0 | AY17: 0 | AZ17: 0 | BA17: =SUM(BA20:BA2735) -> 0 | BB17: =SUM(BB20:BB2735) -> 0 | BC17: =SUM(BC20:BC2735) -> 0 | BD17: =SUM(BD20:BD2735) -> 0 | BE17: =SUM(BE20:BE2735) -> 0
Q18: S | R18: N | AF18: 10 | AG18: =PLANO!$K$49 -> 6B | AH18: =IF(PLANO!$N49="X",PLANO!$M49,"") ->  | AI18: 0 | AJ18: 0 | AK18: 0 | AL18: 0 | AM18: 0 | AP18: Cilcar aqui
A19: NP | B19: Nº | C19: Nome | J19: ASE | K19: SS | M19: Nº SS | P19: MD | Q19: S/N | R19: Pagou | U19: Contacto EE | X19: Observações | AF19: 11 | AG19: =PLANO!$K$50 -> 6C | AH19: =IF(PLANO!$N50="X",PLANO!$M50,"") ->  | AI19: 0 | AJ19: 0 | AK19: 0 | AL19: 0 | AM19: 0 | AP19: Cilcar aqui
A20: =IF(W6="","",IF(ISERROR(VLOOKUP(CONCATENATE(AB6,B20),DG!$B$8:$H$2508,7,FALSE)),"",VLOOKUP(CONCATENATE(AB6,B20),DG!$B$8:$H$2508,7,FALSE))) ->  | B20: 1 | C20: =IF(A20="","",VLOOKUP(A20,DG!$H$8:$P$2508,5,FALSE)) ->  | J20: =IF(A20="","",VLOOKUP(A20,DG!$H$8:$P$2508,6,FALSE)) ->  | K20: =IF(A20="","",VLOOKUP(A20,DG!$H$8:$P$2508,7,FALSE)) ->  | M20: =IF(A20="","",VLOOKUP(A20,DG!$H$8:$P$2508,8,FALSE)) ->  | P20: =IF(A20="","",VLOOKUP(A20,DG!$H$8:$P$2508,9,FALSE)) ->  | Q20: S | U20: =IF(A20="","",VLOOKUP(A20,DG!$H$8:$R$2508,11,FALSE)) ->  | AF20: 12 | AG20: =PLANO!$K$51 -> 6D | AH20: =IF(PLANO!$N51="X",PLANO!$M51,"") ->  | AI20: 0 | AJ20: 0 | AK20: 0 | AL20: 0 | AM20: 0 | AP20: Cilcar aqui | AR20: =IF(AS20="","",VLOOKUP(AS20,DG!$H$8:$Q$2508,10,FALSE)) ->  | AS20: =IF(A20="","",A20) ->  | AT20: =IF(AS20="","",IF(Q20="s",1,0)) ->  | AU20: =IF(AS20="","",IF(Q20="n",1,0)) ->  | AV20: =IF(AS20="","",IF(J20="A",1,0)) ->  | AW20: =IF(AS20="","",IF(CONCATENATE(Q20,J20)="SA",1,0)) ->  | AX20: =IF(AS20="","",IF(J20="b",1,0)) ->  | AY20: =IF(AS20="","",IF(CONCATENATE(Q20,J20)="Sb",1,0)) ->  | AZ20: =IF(AS20="","",IF(P20="x",1,0)) ->  | BA20: =IF(AS20="",0,R20) -> 0 | BB20: =IF(AS20="",0,IF(AW20=1,R20,0)) -> 0 | BC20: =IF(AS20="",0,IF(AY20=1,R20,0)) -> 0 | BD20: =IF(AS20="","",IF(AND(AT20=1,BA20>0),1,0)) ->  | BE20: =IF(AS20="","",IF(AND(AT20=1,BA20=0),1,0)) -> 
A21: =IF(W6="","",IF(ISERROR(VLOOKUP(CONCATENATE(AB6,B21),DG!$B$8:$H$2508,7,FALSE)),"",VLOOKUP(CONCATENATE(AB6,B21),DG!$B$8:$H$2508,7,FALSE))) ->  | B21: 2 | C21: =IF(A21="","",VLOOKUP(A21,DG!$H$8:$P$2508,5,FALSE)) ->  | J21: =IF(A21="","",VLOOKUP(A21,DG!$H$8:$P$2508,6,FALSE)) ->  | K21: =IF(A21="","",VLOOKUP(A21,DG!$H$8:$P$2508,7,FALSE)) ->  | M21: =IF(A21="","",VLOOKUP(A21,DG!$H$8:$P$2508,8,FALSE)) ->  | P21: =IF(A21="","",VLOOKUP(A21,DG!$H$8:$P$2508,9,FALSE)) ->  | U21: =IF(A21="","",VLOOKUP(A21,DG!$H$8:$R$2508,11,FALSE)) ->  | AF21: 13 | AG21: =PLANO!$K$52 -> 6E | AH21: =IF(PLANO!$N52="X",PLANO!$M52,"") ->  | AI21: 0 | AJ21: 0 | AK21: 0 | AL21: 0 | AM21: 0 | AP21: Cilcar aqui | AR21: =IF(AS21="","",VLOOKUP(AS21,DG!$H$8:$Q$2508,10,FALSE)) ->  | AS21: =IF(A21="","",A21) ->  | AT21: =IF(AS21="","",IF(Q21="s",1,0)) ->  | AU21: =IF(AS21="","",IF(Q21="n",1,0)) ->  | AV21: =IF(AS21="","",IF(J21="A",1,0)) ->  | AW21: =IF(AS21="","",IF(CONCATENATE(Q21,J21)="SA",1,0)) ->  | AX21: =IF(AS21="","",IF(J21="b",1,0)) ->  | AY21: =IF(AS21="","",IF(CONCATENATE(Q21,J21)="Sb",1,0)) ->  | AZ21: =IF(AS21="","",IF(P21="x",1,0)) ->  | BA21: =IF(AS21="",0,R21) -> 0 | BB21: =IF(AS21="",0,IF(AW21=1,R21,0)) -> 0 | BC21: =IF(AS21="",0,IF(AY21=1,R21,0)) -> 0 | BD21: =IF(AS21="","",IF(AND(AT21=1,BA21>0),1,0)) ->  | BE21: =IF(AS21="","",IF(AND(AT21=1,BA21=0),1,0)) -> 
A22: =IF(W6="","",IF(ISERROR(VLOOKUP(CONCATENATE(AB6,B22),DG!$B$8:$H$2508,7,FALSE)),"",VLOOKUP(CONCATENATE(AB6,B22),DG!$B$8:$H$2508,7,FALSE))) ->  | B22: 3 | C22: =IF(A22="","",VLOOKUP(A22,DG!$H$8:$P$2508,5,FALSE)) ->  | J22: =IF(A22="","",VLOOKUP(A22,DG!$H$8:$P$2508,6,FALSE)) ->  | K22: =IF(A22="","",VLOOKUP(A22,DG!$H$8:$P$2508,7,FALSE)) ->  | M22: =IF(A22="","",VLOOKUP(A22,DG!$H$8:$P$2508,8,FALSE)) ->  | P22: =IF(A22="","",VLOOKUP(A22,DG!$H$8:$P$2508,9,FALSE)) ->  | Q22: S | U22: =IF(A22="","",VLOOKUP(A22,DG!$H$8:$R$2508,11,FALSE)) ->  | AF22: 14 | AG22: =PLANO!$K$53 -> 0 | AH22: =IF(PLANO!$N53="X",PLANO!$M53,"") ->  | AI22: 0 | AJ22: 0 | AK22: 0 | AL22: 0 | AM22: 0 | AP22: Cilcar aqui | AR22: =IF(AS22="","",VLOOKUP(AS22,DG!$H$8:$Q$2508,10,FALSE)) ->  | BA22: 0 | BB22: 0 | BC22: 0
A23: =IF(W6="","",IF(ISERROR(VLOOKUP(CONCATENATE(AB6,B23),DG!$B$8:$H$2508,7,FALSE)),"",VLOOKUP(CONCATENATE(AB6,B23),DG!$B$8:$H$2508,7,FALSE))) ->  | B23: 4 | C23: =IF(A23="","",VLOOKUP(A23,DG!$H$8:$P$2508,5,FALSE)) ->  | J23: =IF(A23="","",VLOOKUP(A23,DG!$H$8:$P$2508,6,FALSE)) ->  | K23: =IF(A23="","",VLOOKUP(A23,DG!$H$8:$P$2508,7,FALSE)) ->  | M23: =IF(A23="","",VLOOKUP(A23,DG!$H$8:$P$2508,8,FALSE)) ->  | P23: =IF(A23="","",VLOOKUP(A23,DG!$H$8:$P$2508,9,FALSE)) ->  | Q23: S | U23: =IF(A23="","",VLOOKUP(A23,DG!$H$8:$R$2508,11,FALSE)) ->  | AF23: 15 | AG23: =PLANO!$K$54 -> 0 | AH23: =IF(PLANO!$N54="X",PLANO!$M54,"") ->  | AI23: 0 | AJ23: 0 | AK23: 0 | AL23: 0 | AM23: 0 | AP23: Cilcar aqui | AR23: =IF(AS23="","",VLOOKUP(AS23,DG!$H$8:$Q$2508,10,FALSE)) ->  | BA23: 0 | BB23: 0 | BC23: 0
A24: =IF(W6="","",IF(ISERROR(VLOOKUP(CONCATENATE(AB6,B24),DG!$B$8:$H$2508,7,FALSE)),"",VLOOKUP(CONCATENATE(AB6,B24),DG!$B$8:$H$2508,7,FALSE))) ->  | B24: 5 | C24: =IF(A24="","",VLOOKUP(A24,DG!$H$8:$P$2508,5,FALSE)) ->  | J24: =IF(A24="","",VLOOKUP(A24,DG!$H$8:$P$2508,6,FALSE)) ->  | K24: =IF(A24="","",VLOOKUP(A24,DG!$H$8:$P$2508,7,FALSE)) ->  | M24: =IF(A24="","",VLOOKUP(A24,DG!$H$8:$P$2508,8,FALSE)) ->  | P24: =IF(A24="","",VLOOKUP(A24,DG!$H$8:$P$2508,9,FALSE)) ->  | U24: =IF(A24="","",VLOOKUP(A24,DG!$H$8:$R$2508,11,FALSE)) ->  | AF24: 16 | AG24: =PLANO!$K$55 -> 0 | AH24: =IF(PLANO!$N55="X",PLANO!$M55,"") ->  | AI24: 0 | AJ24: 0 | AK24: 0 | AL24: 0 | AM24: 0 | AP24: Cilcar aqui | AR24: =IF(AS24="","",VLOOKUP(AS24,DG!$H$8:$Q$2508,10,FALSE)) ->  | BA24: 0 | BB24: 0 | BC24: 0
A25: =IF(W6="","",IF(ISERROR(VLOOKUP(CONCATENATE(AB6,B25),DG!$B$8:$H$2508,7,FALSE)),"",VLOOKUP(CONCATENATE(AB6,B25),DG!$B$8:$H$2508,7,FALSE))) ->  | B25: 6 | C25: =IF(A25="","",VLOOKUP(A25,DG!$H$8:$P$2508,5,FALSE)) ->  | J25: =IF(A25="","",VLOOKUP(A25,DG!$H$8:$P$2508,6,FALSE)) ->  | K25: =IF(A25="","",VLOOKUP(A25,DG!$H$8:$P$2508,7,FALSE)) ->  | M25: =IF(A25="","",VLOOKUP(A25,DG!$H$8:$P$2508,8,FALSE)) ->  | P25: =IF(A25="","",VLOOKUP(A25,DG!$H$8:$P$2508,9,FALSE)) ->  | U25: =IF(A25="","",VLOOKUP(A25,DG!$H$8:$R$2508,11,FALSE)) ->  | AF25: 17 | AG25: =PLANO!$P$48 -> 7A | AH25: =IF(PLANO!$S48="X",PLANO!$R48,"") ->  | AI25: 0 | AJ25: 0 | AK25: 0 | AL25: 0 | AM25: 0 | AP25: Cilcar aqui | AR25: =IF(AS25="","",VLOOKUP(AS25,DG!$H$8:$Q$2508,10,FALSE)) ->  | BA25: 0 | BB25: 0 | BC25: 0
A26: =IF(W6="","",IF(ISERROR(VLOOKUP(CONCATENATE(AB6,B26),DG!$B$8:$H$2508,7,FALSE)),"",VLOOKUP(CONCATENATE(AB6,B26),DG!$B$8:$H$2508,7,FALSE))) ->  | B26: 7 | C26: =IF(A26="","",VLOOKUP(A26,DG!$H$8:$P$2508,5,FALSE)) ->  | J26: =IF(A26="","",VLOOKUP(A26,DG!$H$8:$P$2508,6,FALSE)) ->  | K26: =IF(A26="","",VLOOKUP(A26,DG!$H$8:$P$2508,7,FALSE)) ->  | M26: =IF(A26="","",VLOOKUP(A26,DG!$H$8:$P$2508,8,FALSE)) ->  | P26: =IF(A26="","",VLOOKUP(A26,DG!$H$8:$P$2508,9,FALSE)) ->  | Q26: S | U26: =IF(A26="","",VLOOKUP(A26,DG!$H$8:$R$2508,11,FALSE)) ->  | AF26: 18 | AG26: =PLANO!$P$49 -> 7B | AH26: =IF(PLANO!$S49="X",PLANO!$R49,"") ->  | AI26: 0 | AJ26: 0 | AK26: 0 | AL26: 0 | AM26: 0 | AP26: Cilcar aqui | AR26: =IF(AS26="","",VLOOKUP(AS26,DG!$H$8:$Q$2508,10,FALSE)) ->  | BA26: 0 | BB26: 0 | BC26: 0
A27: =IF(W6="","",IF(ISERROR(VLOOKUP(CONCATENATE(AB6,B27),DG!$B$8:$H$2508,7,FALSE)),"",VLOOKUP(CONCATENATE(AB6,B27),DG!$B$8:$H$2508,7,FALSE))) ->  | B27: 8 | C27: =IF(A27="","",VLOOKUP(A27,DG!$H$8:$P$2508,5,FALSE)) ->  | J27: =IF(A27="","",VLOOKUP(A27,DG!$H$8:$P$2508,6,FALSE)) ->  | K27: =IF(A27="","",VLOOKUP(A27,DG!$H$8:$P$2508,7,FALSE)) ->  | M27: =IF(A27="","",VLOOKUP(A27,DG!$H$8:$P$2508,8,FALSE)) ->  | P27: =IF(A27="","",VLOOKUP(A27,DG!$H$8:$P$2508,9,FALSE)) ->  | Q27: S | U27: =IF(A27="","",VLOOKUP(A27,DG!$H$8:$R$2508,11,FALSE)) ->  | AF27: 19 | AG27: =PLANO!$P$50 -> 7C | AH27: =IF(PLANO!$S50="X",PLANO!$R50,"") ->  | AI27: 0 | AJ27: 0 | AK27: 0 | AL27: 0 | AM27: 0 | AP27: Cilcar aqui | AR27: =IF(AS27="","",VLOOKUP(AS27,DG!$H$8:$Q$2508,10,FALSE)) ->  | BA27: 0 | BB27: 0 | BC27: 0
A28: =IF(W6="","",IF(ISERROR(VLOOKUP(CONCATENATE(AB6,B28),DG!$B$8:$H$2508,7,FALSE)),"",VLOOKUP(CONCATENATE(AB6,B28),DG!$B$8:$H$2508,7,FALSE))) ->  | B28: 9 | C28: =IF(A28="","",VLOOKUP(A28,DG!$H$8:$P$2508,5,FALSE)) ->  | J28: =IF(A28="","",VLOOKUP(A28,DG!$H$8:$P$2508,6,FALSE)) ->  | K28: =IF(A28="","",VLOOKUP(A28,DG!$H$8:$P$2508,7,FALSE)) ->  | M28: =IF(A28="","",VLOOKUP(A28,DG!$H$8:$P$2508,8,FALSE)) ->  | P28: =IF(A28="","",VLOOKUP(A28,DG!$H$8:$P$2508,9,FALSE)) ->  | Q28: S | U28: =IF(A28="","",VLOOKUP(A28,DG!$H$8:$R$2508,11,FALSE)) ->  | AF28: 20 | AG28: =PLANO!$P$51 -> 7D | AH28: =IF(PLANO!$S51="X",PLANO!$R51,"") ->  | AI28: 0 | AJ28: 0 | AK28: 0 | AL28: 0 | AM28: 0 | AP28: Cilcar aqui | AR28: =IF(AS28="","",VLOOKUP(AS28,DG!$H$8:$Q$2508,10,FALSE)) ->  | BA28: 0 | BB28: 0 | BC28: 0
A29: =IF(W6="","",IF(ISERROR(VLOOKUP(CONCATENATE(AB6,B29),DG!$B$8:$H$2508,7,FALSE)),"",VLOOKUP(CONCATENATE(AB6,B29),DG!$B$8:$H$2508,7,FALSE))) ->  | B29: 10 | C29: =IF(A29="","",VLOOKUP(A29,DG!$H$8:$P$2508,5,FALSE)) ->  | J29: =IF(A29="","",VLOOKUP(A29,DG!$H$8:$P$2508,6,FALSE)) ->  | K29: =IF(A29="","",VLOOKUP(A29,DG!$H$8:$P$2508,7,FALSE)) ->  | M29: =IF(A29="","",VLOOKUP(A29,DG!$H$8:$P$2508,8,FALSE)) ->  | P29: =IF(A29="","",VLOOKUP(A29,DG!$H$8:$P$2508,9,FALSE)) ->  | U29: =IF(A29="","",VLOOKUP(A29,DG!$H$8:$R$2508,11,FALSE)) ->  | AF29: 21 | AG29: =PLANO!$P$52 -> 7E | AH29: =IF(PLANO!$S52="X",PLANO!$R52,"") ->  | AI29: 0 | AJ29: 0 | AK29: 0 | AL29: 0 | AM29: 0 | AP29: Cilcar aqui | AR29: =IF(AS29="","",VLOOKUP(AS29,DG!$H$8:$Q$2508,10,FALSE)) ->  | BA29: 0 | BB29: 0 | BC29: 0
A30: =IF(W6="","",IF(ISERROR(VLOOKUP(CONCATENATE(AB6,B30),DG!$B$8:$H$2508,7,FALSE)),"",VLOOKUP(CONCATENATE(AB6,B30),DG!$B$8:$H$2508,7,FALSE))) ->  | B30: 11 | C30: =IF(A30="","",VLOOKUP(A30,DG!$H$8:$P$2508,5,FALSE)) ->  | J30: =IF(A30="","",VLOOKUP(A30,DG!$H$8:$P$2508,6,FALSE)) ->  | K30: =IF(A30="","",VLOOKUP(A30,DG!$H$8:$P$2508,7,FALSE)) ->  | M30: =IF(A30="","",VLOOKUP(A30,DG!$H$8:$P$2508,8,FALSE)) ->  | P30: =IF(A30="","",VLOOKUP(A30,DG!$H$8:$P$2508,9,FALSE)) ->  | Q30: S | U30: =IF(A30="","",VLOOKUP(A30,DG!$H$8:$R$2508,11,FALSE)) ->  | AF30: 22 | AG30: =PLANO!$P$53 -> 0 | AH30: =IF(PLANO!$S53="X",PLANO!$R53,"") ->  | AI30: 0 | AJ30: 0 | AK30: 0 | AL30: 0 | AM30: 0 | AP30: Cilcar aqui | AR30: =IF(AS30="","",VLOOKUP(AS30,DG!$H$8:$Q$2508,10,FALSE)) ->  | BA30: 0 | BB30: 0 | BC30: 0
A31: =IF(W6="","",IF(ISERROR(VLOOKUP(CONCATENATE(AB6,B31),DG!$B$8:$H$2508,7,FALSE)),"",VLOOKUP(CONCATENATE(AB6,B31),DG!$B$8:$H$2508,7,FALSE))) ->  | B31: 12 | C31: =IF(A31="","",VLOOKUP(A31,DG!$H$8:$P$2508,5,FALSE)) ->  | J31: =IF(A31="","",VLOOKUP(A31,DG!$H$8:$P$2508,6,FALSE)) ->  | K31: =IF(A31="","",VLOOKUP(A31,DG!$H$8:$P$2508,7,FALSE)) ->  | M31: =IF(A31="","",VLOOKUP(A31,DG!$H$8:$P$2508,8,FALSE)) ->  | P31: =IF(A31="","",VLOOKUP(A31,DG!$H$8:$P$2508,9,FALSE)) ->  | Q31: S | U31: =IF(A31="","",VLOOKUP(A31,DG!$H$8:$R$2508,11,FALSE)) ->  | AF31: 23 | AG31: =PLANO!$P$54 -> 0 | AH31: =IF(PLANO!$S54="X",PLANO!$R54,"") ->  | AI31: 0 | AJ31: 0 | AK31: 0 | AL31: 0 | AM31: 0 | AP31: Cilcar aqui | AR31: =IF(AS31="","",VLOOKUP(AS31,DG!$H$8:$Q$2508,10,FALSE)) ->  | BA31: 0 | BB31: 0 | BC31: 0
A32: =IF(W6="","",IF(ISERROR(VLOOKUP(CONCATENATE(AB6,B32),DG!$B$8:$H$2508,7,FALSE)),"",VLOOKUP(CONCATENATE(AB6,B32),DG!$B$8:$H$2508,7,FALSE))) ->  | B32: 13 | C32: =IF(A32="","",VLOOKUP(A32,DG!$H$8:$P$2508,5,FALSE)) ->  | J32: =IF(A32="","",VLOOKUP(A32,DG!$H$8:$P$2508,6,FALSE)) ->  | K32: =IF(A32="","",VLOOKUP(A32,DG!$H$8:$P$2508,7,FALSE)) ->  | M32: =IF(A32="","",VLOOKUP(A32,DG!$H$8:$P$2508,8,FALSE)) ->  | P32: =IF(A32="","",VLOOKUP(A32,DG!$H$8:$P$2508,9,FALSE)) ->  | Q32: N | U32: =IF(A32="","",VLOOKUP(A32,DG!$H$8:$R$2508,11,FALSE)) ->  | AF32: 24 | AG32: =PLANO!$P$55 -> 0 | AH32: =IF(PLANO!$S55="X",PLANO!$R55,"") ->  | AI32: 0 | AJ32: 0 | AK32: 0 | AL32: 0 | AM32: 0 | AP32: Cilcar aqui | AR32: =IF(AS32="","",VLOOKUP(AS32,DG!$H$8:$Q$2508,10,FALSE)) ->  | BA32: 0 | BB32: 0 | BC32: 0
A33: =IF(W6="","",IF(ISERROR(VLOOKUP(CONCATENATE(AB6,B33),DG!$B$8:$H$2508,7,FALSE)),"",VLOOKUP(CONCATENATE(AB6,B33),DG!$B$8:$H$2508,7,FALSE))) ->  | B33: 14 | C33: =IF(A33="","",VLOOKUP(A33,DG!$H$8:$P$2508,5,FALSE)) ->  | J33: =IF(A33="","",VLOOKUP(A33,DG!$H$8:$P$2508,6,FALSE)) ->  | K33: =IF(A33="","",VLOOKUP(A33,DG!$H$8:$P$2508,7,FALSE)) ->  | M33: =IF(A33="","",VLOOKUP(A33,DG!$H$8:$P$2508,8,FALSE)) ->  | P33: =IF(A33="","",VLOOKUP(A33,DG!$H$8:$P$2508,9,FALSE)) ->  | Q33: S | U33: =IF(A33="","",VLOOKUP(A33,DG!$H$8:$R$2508,11,FALSE)) ->  | AF33: 25 | AG33: =PLANO!$U$48 -> 8A | AH33: =IF(PLANO!$X48="X",PLANO!$W48,"") ->  | AI33: 0 | AJ33: 0 | AK33: 0 | AL33: 0 | AM33: 0 | AP33: Cilcar aqui | AR33: =IF(AS33="","",VLOOKUP(AS33,DG!$H$8:$Q$2508,10,FALSE)) ->  | BA33: 0 | BB33: 0 | BC33: 0
A34: =IF(W6="","",IF(ISERROR(VLOOKUP(CONCATENATE(AB6,B34),DG!$B$8:$H$2508,7,FALSE)),"",VLOOKUP(CONCATENATE(AB6,B34),DG!$B$8:$H$2508,7,FALSE))) ->  | B34: 15 | C34: =IF(A34="","",VLOOKUP(A34,DG!$H$8:$P$2508,5,FALSE)) ->  | J34: =IF(A34="","",VLOOKUP(A34,DG!$H$8:$P$2508,6,FALSE)) ->  | K34: =IF(A34="","",VLOOKUP(A34,DG!$H$8:$P$2508,7,FALSE)) ->  | M34: =IF(A34="","",VLOOKUP(A34,DG!$H$8:$P$2508,8,FALSE)) ->  | P34: =IF(A34="","",VLOOKUP(A34,DG!$H$8:$P$2508,9,FALSE)) ->  | U34: =IF(A34="","",VLOOKUP(A34,DG!$H$8:$R$2508,11,FALSE)) ->  | AF34: 26 | AG34: =PLANO!$U$49 -> 8B | AH34: =IF(PLANO!$X49="X",PLANO!$W49,"") ->  | AI34: 0 | AJ34: 0 | AK34: 0 | AL34: 0 | AM34: 0 | AP34: Cilcar aqui | AR34: =IF(AS34="","",VLOOKUP(AS34,DG!$H$8:$Q$2508,10,FALSE)) ->  | BA34: 0 | BB34: 0 | BC34: 0
A35: =IF(W6="","",IF(ISERROR(VLOOKUP(CONCATENATE(AB6,B35),DG!$B$8:$H$2508,7,FALSE)),"",VLOOKUP(CONCATENATE(AB6,B35),DG!$B$8:$H$2508,7,FALSE))) ->  | B35: 16 | C35: =IF(A35="","",VLOOKUP(A35,DG!$H$8:$P$2508,5,FALSE)) ->  | J35: =IF(A35="","",VLOOKUP(A35,DG!$H$8:$P$2508,6,FALSE)) ->  | K35: =IF(A35="","",VLOOKUP(A35,DG!$H$8:$P$2508,7,FALSE)) ->  | M35: =IF(A35="","",VLOOKUP(A35,DG!$H$8:$P$2508,8,FALSE)) ->  | P35: =IF(A35="","",VLOOKUP(A35,DG!$H$8:$P$2508,9,FALSE)) ->  | Q35: N | U35: =IF(A35="","",VLOOKUP(A35,DG!$H$8:$R$2508,11,FALSE)) ->  | AF35: 27 | AG35: =PLANO!$U$50 -> 8C | AH35: =IF(PLANO!$X50="X",PLANO!$W50,"") ->  | AI35: 0 | AJ35: 0 | AK35: 0 | AL35: 0 | AM35: 0 | AP35: Cilcar aqui | AR35: =IF(AS35="","",VLOOKUP(AS35,DG!$H$8:$Q$2508,10,FALSE)) ->  | BA35: 0 | BB35: 0 | BC35: 0
A36: =IF(W6="","",IF(ISERROR(VLOOKUP(CONCATENATE(AB6,B36),DG!$B$8:$H$2508,7,FALSE)),"",VLOOKUP(CONCATENATE(AB6,B36),DG!$B$8:$H$2508,7,FALSE))) ->  | B36: 17 | C36: =IF(A36="","",VLOOKUP(A36,DG!$H$8:$P$2508,5,FALSE)) ->  | J36: =IF(A36="","",VLOOKUP(A36,DG!$H$8:$P$2508,6,FALSE)) ->  | K36: =IF(A36="","",VLOOKUP(A36,DG!$H$8:$P$2508,7,FALSE)) ->  | M36: =IF(A36="","",VLOOKUP(A36,DG!$H$8:$P$2508,8,FALSE)) ->  | P36: =IF(A36="","",VLOOKUP(A36,DG!$H$8:$P$2508,9,FALSE)) ->  | Q36: S | U36: =IF(A36="","",VLOOKUP(A36,DG!$H$8:$R$2508,11,FALSE)) ->  | AF36: 28 | AG36: =PLANO!$U$51 -> 8D | AH36: =IF(PLANO!$X51="X",PLANO!$W51,"") ->  | AI36: 0 | AJ36: 0 | AK36: 0 | AL36: 0 | AM36: 0 | AP36: Cilcar aqui | AR36: =IF(AS36="","",VLOOKUP(AS36,DG!$H$8:$Q$2508,10,FALSE)) ->  | BA36: 0 | BB36: 0 | BC36: 0
A37: =IF(W6="","",IF(ISERROR(VLOOKUP(CONCATENATE(AB6,B37),DG!$B$8:$H$2508,7,FALSE)),"",VLOOKUP(CONCATENATE(AB6,B37),DG!$B$8:$H$2508,7,FALSE))) ->  | B37: 18 | C37: =IF(A37="","",VLOOKUP(A37,DG!$H$8:$P$2508,5,FALSE)) ->  | J37: =IF(A37="","",VLOOKUP(A37,DG!$H$8:$P$2508,6,FALSE)) ->  | K37: =IF(A37="","",VLOOKUP(A37,DG!$H$8:$P$2508,7,FALSE)) ->  | M37: =IF(A37="","",VLOOKUP(A37,DG!$H$8:$P$2508,8,FALSE)) ->  | P37: =IF(A37="","",VLOOKUP(A37,DG!$H$8:$P$2508,9,FALSE)) ->  | U37: =IF(A37="","",VLOOKUP(A37,DG!$H$8:$R$2508,11,FALSE)) ->  | AF37: 29 | AG37: =PLANO!$U$52 -> 8E | AH37: =IF(PLANO!$X52="X",PLANO!$W52,"") ->  | AI37: 0 | AJ37: 0 | AK37: 0 | AL37: 0 | AM37: 0 | AP37: Cilcar aqui | AR37: =IF(AS37="","",VLOOKUP(AS37,DG!$H$8:$Q$2508,10,FALSE)) ->  | BA37: 0 | BB37: 0 | BC37: 0
A38: =IF(W6="","",IF(ISERROR(VLOOKUP(CONCATENATE(AB6,B38),DG!$B$8:$H$2508,7,FALSE)),"",VLOOKUP(CONCATENATE(AB6,B38),DG!$B$8:$H$2508,7,FALSE))) ->  | B38: 19 | C38: =IF(A38="","",VLOOKUP(A38,DG!$H$8:$P$2508,5,FALSE)) ->  | J38: =IF(A38="","",VLOOKUP(A38,DG!$H$8:$P$2508,6,FALSE)) ->  | K38: =IF(A38="","",VLOOKUP(A38,DG!$H$8:$P$2508,7,FALSE)) ->  | M38: =IF(A38="","",VLOOKUP(A38,DG!$H$8:$P$2508,8,FALSE)) ->  | P38: =IF(A38="","",VLOOKUP(A38,DG!$H$8:$P$2508,9,FALSE)) ->  | Q38: S | U38: =IF(A38="","",VLOOKUP(A38,DG!$H$8:$R$2508,11,FALSE)) ->  | AF38: 30 | AG38: =PLANO!$U$53 -> 0 | AH38: =IF(PLANO!$X53="X",PLANO!$W53,"") ->  | AI38: 0 | AJ38: 0 | AK38: 0 | AL38: 0 | AM38: 0 | AP38: Cilcar aqui | AR38: =IF(AS38="","",VLOOKUP(AS38,DG!$H$8:$Q$2508,10,FALSE)) ->  | BA38: 0 | BB38: 0 | BC38: 0
A39: =IF(W6="","",IF(ISERROR(VLOOKUP(CONCATENATE(AB6,B39),DG!$B$8:$H$2508,7,FALSE)),"",VLOOKUP(CONCATENATE(AB6,B39),DG!$B$8:$H$2508,7,FALSE))) ->  | B39: 20 | C39: =IF(A39="","",VLOOKUP(A39,DG!$H$8:$P$2508,5,FALSE)) ->  | J39: =IF(A39="","",VLOOKUP(A39,DG!$H$8:$P$2508,6,FALSE)) ->  | K39: =IF(A39="","",VLOOKUP(A39,DG!$H$8:$P$2508,7,FALSE)) ->  | M39: =IF(A39="","",VLOOKUP(A39,DG!$H$8:$P$2508,8,FALSE)) ->  | P39: =IF(A39="","",VLOOKUP(A39,DG!$H$8:$P$2508,9,FALSE)) ->  | U39: =IF(A39="","",VLOOKUP(A39,DG!$H$8:$R$2508,11,FALSE)) ->  | AF39: 31 | AG39: =PLANO!$U$54 -> 0 | AH39: =IF(PLANO!$X54="X",PLANO!$W54,"") ->  | AI39: 0 | AJ39: 0 | AK39: 0 | AL39: 0 | AM39: 0 | AP39: Cilcar aqui | AR39: =IF(AS39="","",VLOOKUP(AS39,DG!$H$8:$Q$2508,10,FALSE)) ->  | BA39: 0 | BB39: 0 | BC39: 0
A40: =IF(W6="","",IF(ISERROR(VLOOKUP(CONCATENATE(AB6,B40),DG!$B$8:$H$2508,7,FALSE)),"",VLOOKUP(CONCATENATE(AB6,B40),DG!$B$8:$H$2508,7,FALSE))) ->  | B40: 21 | C40: =IF(A40="","",VLOOKUP(A40,DG!$H$8:$P$2508,5,FALSE)) ->  | J40: =IF(A40="","",VLOOKUP(A40,DG!$H$8:$P$2508,6,FALSE)) ->  | K40: =IF(A40="","",VLOOKUP(A40,DG!$H$8:$P$2508,7,FALSE)) ->  | M40: =IF(A40="","",VLOOKUP(A40,DG!$H$8:$P$2508,8,FALSE)) ->  | P40: =IF(A40="","",VLOOKUP(A40,DG!$H$8:$P$2508,9,FALSE)) ->  | Q40: S | U40: =IF(A40="","",VLOOKUP(A40,DG!$H$8:$R$2508,11,FALSE)) ->  | AF40: 32 | AG40: =PLANO!$U$55 -> 0 | AH40: =IF(PLANO!$X55="X",PLANO!$W55,"") ->  | AI40: 0 | AJ40: 0 | AK40: 0 | AL40: 0 | AM40: 0 | AP40: Cilcar aqui | AR40: =IF(AS40="","",VLOOKUP(AS40,DG!$H$8:$Q$2508,10,FALSE)) ->  | BA40: 0 | BB40: 0 | BC40: 0
A41: =IF(W6="","",IF(ISERROR(VLOOKUP(CONCATENATE(AB6,B41),DG!$B$8:$H$2508,7,FALSE)),"",VLOOKUP(CONCATENATE(AB6,B41),DG!$B$8:$H$2508,7,FALSE))) ->  | B41: 22 | C41: =IF(A41="","",VLOOKUP(A41,DG!$H$8:$P$2508,5,FALSE)) ->  | J41: =IF(A41="","",VLOOKUP(A41,DG!$H$8:$P$2508,6,FALSE)) ->  | K41: =IF(A41="","",VLOOKUP(A41,DG!$H$8:$P$2508,7,FALSE)) ->  | M41: =IF(A41="","",VLOOKUP(A41,DG!$H$8:$P$2508,8,FALSE)) ->  | P41: =IF(A41="","",VLOOKUP(A41,DG!$H$8:$P$2508,9,FALSE)) ->  | U41: =IF(A41="","",VLOOKUP(A41,DG!$H$8:$R$2508,11,FALSE)) ->  | AF41: 33 | AG41: =PLANO!$Z$48 -> 9A | AH41: =IF(PLANO!$AC48="X",PLANO!$AB48,"") ->  | AI41: 0 | AJ41: 0 | AK41: 0 | AL41: 0 | AM41: 0 | AP41: Cilcar aqui | AR41: =IF(AS41="","",VLOOKUP(AS41,DG!$H$8:$Q$2508,10,FALSE)) ->  | BA41: 0 | BB41: 0 | BC41: 0
A42: =IF(W6="","",IF(ISERROR(VLOOKUP(CONCATENATE(AB6,B42),DG!$B$8:$H$2508,7,FALSE)),"",VLOOKUP(CONCATENATE(AB6,B42),DG!$B$8:$H$2508,7,FALSE))) ->  | B42: 23 | C42: =IF(A42="","",VLOOKUP(A42,DG!$H$8:$P$2508,5,FALSE)) ->  | J42: =IF(A42="","",VLOOKUP(A42,DG!$H$8:$P$2508,6,FALSE)) ->  | K42: =IF(A42="","",VLOOKUP(A42,DG!$H$8:$P$2508,7,FALSE)) ->  | M42: =IF(A42="","",VLOOKUP(A42,DG!$H$8:$P$2508,8,FALSE)) ->  | P42: =IF(A42="","",VLOOKUP(A42,DG!$H$8:$P$2508,9,FALSE)) ->  | U42: =IF(A42="","",VLOOKUP(A42,DG!$H$8:$R$2508,11,FALSE)) ->  | AF42: 34 | AG42: =PLANO!$Z$49 -> 9B | AH42: =IF(PLANO!$AC49="X",PLANO!$AB49,"") ->  | AI42: 0 | AJ42: 0 | AK42: 0 | AL42: 0 | AM42: 0 | AP42: Cilcar aqui | AR42: =IF(AS42="","",VLOOKUP(AS42,DG!$H$8:$Q$2508,10,FALSE)) ->  | BA42: 0 | BB42: 0 | BC42: 0
A43: =IF(W6="","",IF(ISERROR(VLOOKUP(CONCATENATE(AB6,B43),DG!$B$8:$H$2508,7,FALSE)),"",VLOOKUP(CONCATENATE(AB6,B43),DG!$B$8:$H$2508,7,FALSE))) ->  | B43: 24 | C43: =IF(A43="","",VLOOKUP(A43,DG!$H$8:$P$2508,5,FALSE)) ->  | J43: =IF(A43="","",VLOOKUP(A43,DG!$H$8:$P$2508,6,FALSE)) ->  | K43: =IF(A43="","",VLOOKUP(A43,DG!$H$8:$P$2508,7,FALSE)) ->  | M43: =IF(A43="","",VLOOKUP(A43,DG!$H$8:$P$2508,8,FALSE)) ->  | P43: =IF(A43="","",VLOOKUP(A43,DG!$H$8:$P$2508,9,FALSE)) ->  | U43: =IF(A43="","",VLOOKUP(A43,DG!$H$8:$R$2508,11,FALSE)) ->  | AF43: 35 | AG43: =PLANO!$Z$50 -> 9C | AH43: =IF(PLANO!$AC50="X",PLANO!$AB50,"") ->  | AI43: 0 | AJ43: 0 | AK43: 0 | AL43: 0 | AM43: 0 | AP43: Cilcar aqui | AR43: =IF(AS43="","",VLOOKUP(AS43,DG!$H$8:$Q$2508,10,FALSE)) ->  | BA43: 0 | BB43: 0 | BC43: 0
A44: =IF(W6="","",IF(ISERROR(VLOOKUP(CONCATENATE(AB6,B44),DG!$B$8:$H$2508,7,FALSE)),"",VLOOKUP(CONCATENATE(AB6,B44),DG!$B$8:$H$2508,7,FALSE))) ->  | B44: 25 | C44: =IF(A44="","",VLOOKUP(A44,DG!$H$8:$P$2508,5,FALSE)) ->  | J44: =IF(A44="","",VLOOKUP(A44,DG!$H$8:$P$2508,6,FALSE)) ->  | K44: =IF(A44="","",VLOOKUP(A44,DG!$H$8:$P$2508,7,FALSE)) ->  | M44: =IF(A44="","",VLOOKUP(A44,DG!$H$8:$P$2508,8,FALSE)) ->  | P44: =IF(A44="","",VLOOKUP(A44,DG!$H$8:$P$2508,9,FALSE)) ->  | U44: =IF(A44="","",VLOOKUP(A44,DG!$H$8:$R$2508,11,FALSE)) ->  | AF44: 36 | AG44: =PLANO!$Z$51 -> 9D | AH44: =IF(PLANO!$AC51="X",PLANO!$AB51,"") ->  | AI44: 0 | AJ44: 0 | AK44: 0 | AL44: 0 | AM44: 0 | AP44: Cilcar aqui | AR44: =IF(AS44="","",VLOOKUP(AS44,DG!$H$8:$Q$2508,10,FALSE)) ->  | BA44: 0 | BB44: 0 | BC44: 0
A45: =IF(W6="","",IF(ISERROR(VLOOKUP(CONCATENATE(AB6,B45),DG!$B$8:$H$2508,7,FALSE)),"",VLOOKUP(CONCATENATE(AB6,B45),DG!$B$8:$H$2508,7,FALSE))) ->  | B45: 26 | C45: =IF(A45="","",VLOOKUP(A45,DG!$H$8:$P$2508,5,FALSE)) ->  | J45: =IF(A45="","",VLOOKUP(A45,DG!$H$8:$P$2508,6,FALSE)) ->  | K45: =IF(A45="","",VLOOKUP(A45,DG!$H$8:$P$2508,7,FALSE)) ->  | M45: =IF(A45="","",VLOOKUP(A45,DG!$H$8:$P$2508,8,FALSE)) ->  | P45: =IF(A45="","",VLOOKUP(A45,DG!$H$8:$P$2508,9,FALSE)) ->  | U45: =IF(A45="","",VLOOKUP(A45,DG!$H$8:$R$2508,11,FALSE)) ->  | AF45: 37 | AG45: =PLANO!$Z$52 -> 9E | AH45: =IF(PLANO!$AC52="X",PLANO!$AB52,"") ->  | AI45: 0 | AJ45: 0 | AK45: 0 | AL45: 0 | AM45: 0 | AP45: Cilcar aqui | AR45: =IF(AS45="","",VLOOKUP(AS45,DG!$H$8:$Q$2508,10,FALSE)) ->  | BA45: 0 | BB45: 0 | BC45: 0
A46: =IF(W6="","",IF(ISERROR(VLOOKUP(CONCATENATE(AB6,B46),DG!$B$8:$H$2508,7,FALSE)),"",VLOOKUP(CONCATENATE(AB6,B46),DG!$B$8:$H$2508,7,FALSE))) ->  | B46: 27 | C46: =IF(A46="","",VLOOKUP(A46,DG!$H$8:$P$2508,5,FALSE)) ->  | J46: =IF(A46="","",VLOOKUP(A46,DG!$H$8:$P$2508,6,FALSE)) ->  | K46: =IF(A46="","",VLOOKUP(A46,DG!$H$8:$P$2508,7,FALSE)) ->  | M46: =IF(A46="","",VLOOKUP(A46,DG!$H$8:$P$2508,8,FALSE)) ->  | P46: =IF(A46="","",VLOOKUP(A46,DG!$H$8:$P$2508,9,FALSE)) ->  | U46: =IF(A46="","",VLOOKUP(A46,DG!$H$8:$R$2508,11,FALSE)) ->  | AF46: 38 | AG46: =PLANO!$Z$53 -> 0 | AH46: =IF(PLANO!$AC53="X",PLANO!$AB53,"") ->  | AI46: 0 | AJ46: 0 | AK46: 0 | AL46: 0 | AM46: 0 | AP46: Cilcar aqui | AR46: =IF(AS46="","",VLOOKUP(AS46,DG!$H$8:$Q$2508,10,FALSE)) ->  | BA46: 0 | BB46: 0 | BC46: 0
A47: =IF(W6="","",IF(ISERROR(VLOOKUP(CONCATENATE(AB6,B47),DG!$B$8:$H$2508,7,FALSE)),"",VLOOKUP(CONCATENATE(AB6,B47),DG!$B$8:$H$2508,7,FALSE))) ->  | B47: 28 | C47: =IF(A47="","",VLOOKUP(A47,DG!$H$8:$P$2508,5,FALSE)) ->  | J47: =IF(A47="","",VLOOKUP(A47,DG!$H$8:$P$2508,6,FALSE)) ->  | K47: =IF(A47="","",VLOOKUP(A47,DG!$H$8:$P$2508,7,FALSE)) ->  | M47: =IF(A47="","",VLOOKUP(A47,DG!$H$8:$P$2508,8,FALSE)) ->  | P47: =IF(A47="","",VLOOKUP(A47,DG!$H$8:$P$2508,9,FALSE)) ->  | U47: =IF(A47="","",VLOOKUP(A47,DG!$H$8:$R$2508,11,FALSE)) ->  | AF47: 39 | AG47: =PLANO!$Z$54 -> 0 | AH47: =IF(PLANO!$AC54="X",PLANO!$AB54,"") ->  | AI47: 0 | AJ47: 0 | AK47: 0 | AL47: 0 | AM47: 0 | AP47: Cilcar aqui | AR47: =IF(AS47="","",VLOOKUP(AS47,DG!$H$8:$Q$2508,10,FALSE)) ->  | BA47: 0 | BB47: 0 | BC47: 0
A48: =IF(W6="","",IF(ISERROR(VLOOKUP(CONCATENATE(AB6,B48),DG!$B$8:$H$2508,7,FALSE)),"",VLOOKUP(CONCATENATE(AB6,B48),DG!$B$8:$H$2508,7,FALSE))) ->  | B48: 29 | C48: =IF(A48="","",VLOOKUP(A48,DG!$H$8:$P$2508,5,FALSE)) ->  | J48: =IF(A48="","",VLOOKUP(A48,DG!$H$8:$P$2508,6,FALSE)) ->  | K48: =IF(A48="","",VLOOKUP(A48,DG!$H$8:$P$2508,7,FALSE)) ->  | M48: =IF(A48="","",VLOOKUP(A48,DG!$H$8:$P$2508,8,FALSE)) ->  | P48: =IF(A48="","",VLOOKUP(A48,DG!$H$8:$P$2508,9,FALSE)) ->  | U48: =IF(A48="","",VLOOKUP(A48,DG!$H$8:$R$2508,11,FALSE)) ->  | AF48: 40 | AG48: =PLANO!$Z$55 -> 0 | AH48: =IF(PLANO!$AC55="X",PLANO!$AB55,"") ->  | AI48: 0 | AJ48: 0 | AK48: 0 | AL48: 0 | AM48: 0 | AP48: Cilcar aqui | AR48: =IF(AS48="","",VLOOKUP(AS48,DG!$H$8:$Q$2508,10,FALSE)) ->  | BA48: 0 | BB48: 0 | BC48: 0
A49: =IF(W6="","",IF(ISERROR(VLOOKUP(CONCATENATE(AB6,B49),DG!$B$8:$H$2508,7,FALSE)),"",VLOOKUP(CONCATENATE(AB6,B49),DG!$B$8:$H$2508,7,FALSE))) ->  | B49: 30 | C49: =IF(A49="","",VLOOKUP(A49,DG!$H$8:$P$2508,5,FALSE)) ->  | J49: =IF(A49="","",VLOOKUP(A49,DG!$H$8:$P$2508,6,FALSE)) ->  | K49: =IF(A49="","",VLOOKUP(A49,DG!$H$8:$P$2508,7,FALSE)) ->  | M49: =IF(A49="","",VLOOKUP(A49,DG!$H$8:$P$2508,8,FALSE)) ->  | P49: =IF(A49="","",VLOOKUP(A49,DG!$H$8:$P$2508,9,FALSE)) ->  | U49: =IF(A49="","",VLOOKUP(A49,DG!$H$8:$R$2508,11,FALSE)) ->  | AF49: 41 | AG49: =PLANO!$AE$48 -> 7F | AH49: =IF(PLANO!$AH48="X",PLANO!$AG48,"") ->  | AI49: 0 | AJ49: 0 | AK49: 0 | AL49: 0 | AM49: 0 | AP49: Cilcar aqui | AR49: =IF(AS49="","",VLOOKUP(AS49,DG!$H$8:$Q$2508,10,FALSE)) ->  | BA49: 0 | BB49: 0 | BC49: 0
N50: Totais | Q50: =COUNTIF(Q20:Q49,"s") -> 12 | R50: =SUM(R20:T49) -> 0 | AF50: 42 | AG50: =PLANO!$AE$49 -> 9F | AH50: =IF(PLANO!$AH49="X",PLANO!$AG49,"") ->  | AI50: 0 | AJ50: 0 | AK50: 0 | AL50: 0 | AM50: 0 | AP50: Cilcar aqui
AF51: 43 | AG51: =PLANO!$AE$50 -> 9G | AH51: =IF(PLANO!$AH50="X",PLANO!$AG50,"") ->  | AI51: 0 | AJ51: 0 | AK51: 0 | AL51: 0 | AM51: 0 | AP51: Cilcar aqui
B52: Observações: | AF52: 44 | AG52: =PLANO!$AE$51 -> 0 | AH52: =IF(PLANO!$AH51="X",PLANO!$AG51,"") ->  | AI52: 0 | AJ52: 0 | AK52: 0 | AL52: 0 | AM52: 0 | AP52: Cilcar aqui
AF53: 45 | AG53: =PLANO!$AE$52 -> 0 | AH53: =IF(PLANO!$AH52="X",PLANO!$AG52,"") ->  | AI53: 0 | AJ53: 0 | AK53: 0 | AL53: 0 | AM53: 0 | AP53: Cilcar aqui
W54: O Professor Responsável | AF54: 46 | AG54: =PLANO!$AE$53 -> 0 | AH54: =IF(PLANO!$AH53="X",PLANO!$AG53,"") ->  | AI54: 0 | AJ54: 0 | AK54: 0 | AL54: 0 | AM54: 0 | AP54: Cilcar aqui
AF55: 47 | AG55: =PLANO!$AE$54 -> 0 | AH55: =IF(PLANO!$AH54="X",PLANO!$AG54,"") ->  | AI55: 0 | AJ55: 0 | AK55: 0 | AL55: 0 | AM55: 0 | AP55: Cilcar aqui
AF56: 48 | AG56: =PLANO!$AE$55 -> 0 | AH56: =IF(PLANO!$AH55="X",PLANO!$AG55,"") ->  | AI56: 0 | AJ56: 0 | AK56: 0 | AL56: 0 | AM56: 0 | AP56: Cilcar aqui
G58: =PLANO!$G$1 -> Agrupamento de Escolas Augusto Cabrita
G59: =PLANO!$G$2 -> Sede – Escola Secundária Augusto Cabrita
G60: =PLANO!$G$3 -> Rua Maria Lamas – Alto Seixalinho – 2830-088 Barreiro
G61: =PLANO!$G$4 -> Tel 212059220 - Fax 212059228 - E-mail: direcao@aeaugustocabrita.edu.pt
B63: LISTAGEM DE ALUNOS | Q63: =IF(W63=0,"A Turma não Participa","") ->  | W63: =VLOOKUP(X63,$AF$9:$AH$56,3,FALSE) ->  | X63: 2 | Y63: TURMA | AB63: =VLOOKUP(X63,$AF$9:$AH$56,2,FALSE) -> 5B
B65: =PLANO!$B$8 -> Designação da V. Estudo | J65: =IF(W63=0,"",PLANO!$J$8) -> Eco-ementas | AA65: Ano : | AB65: =DG!$EC$1 -> 15 | AC65: / | AD65: =DG!$EE$1 -> 16
B66: Organizada por : | J66: =IF(W63=0,"",PLANO!$J$9) -> 7º F | Z66: atividade Nº | AC66: =IF(W63=0,"",PLANO!$AG$9) -> 0
B68: =PLANO!$A$11 -> Locais | E68: - | F68: =IF(W63=0,"",IF(PLANO!$F$11="","",PLANO!$F$11)) ->  | R68: - | S68: =IF(W63=0,"",IF(PLANO!$U$11="","",PLANO!$U$11)) -> 
B69: =PLANO!$A$12 -> a visitar | E69: - | F69: =IF(W63=0,"",IF(PLANO!$F$12="","",PLANO!$F$12)) ->  | R69: - | S69: =IF(W63=0,"",IF(PLANO!$U$12="","",PLANO!$U$12)) -> 
B71: Início | F71: Local: | H71: =IF(W63=0,"",IF(PLANO!$H$14="","",PLANO!$H$14)) -> EB23 P. Abílio Mendes | O71: Dia : | P71: =IF(W63=0,"",IF(PLANO!$R$14="","",PLANO!$R$14)) ->  | Q71: / | R71: =IF(W63=0,"",IF(PLANO!$T$14="","",PLANO!$T$14)) ->  | S71: / | T71: =IF(W63=0,"",IF(PLANO!$V$14="","",PLANO!$V$14)) ->  | W71: Hora : | X71: =IF(W63=0,"",IF(PLANO!$AA$14="","",PLANO!$AA$14)) ->  | Y71: h | Z71: e | AA71: =IF(W63=0,"",IF(PLANO!$AD$14="","",PLANO!$AD$14)) ->  | AB71: minutos
B72: Fim | F72: Local: | H72: =IF(W63=0,"",IF(PLANO!$H$15="","",PLANO!$H$15)) -> EB23 P. Abílio Mendes | O72: Dia : | P72: =IF(W63=0,"",IF(PLANO!$R$15="","",PLANO!$R$15)) ->  | Q72: / | R72: =IF(W63=0,"",IF(PLANO!$T$15="","",PLANO!$T$15)) ->  | S72: / | T72: =IF(W63=0,"",IF(PLANO!$V$15="","",PLANO!$V$15)) ->  | W72: Hora : | X72: =IF(W63=0,"",IF(PLANO!$AA$15="","",PLANO!$AA$15)) ->  | Y72: h | Z72: e | AA72: =IF(W63=0,"",IF(PLANO!$AD$15="","",PLANO!$AD$15)) ->  | AB72: minutos
B74: Custo | F74: =IF(W63=0,"",IF(PLANO!$F$17="","",PLANO!$F$17)) -> 0 | I74: Euros | N74: Transporte : | Q74: =IF(W63=0,"",IF(PLANO!$T$17="","",PLANO!$T$17)) -> 
A76: NP | B76: Nº | C76: Nome | J76: ASE | K76: SS | M76: Nº SS | P76: MD | Q76: S/N | R76: Pagou | U76: Contacto EE | X76: Observações | AF76: Voltar à 1ª página com Hiperligações
A77: =IF(W63="","",IF(ISERROR(VLOOKUP(CONCATENATE(AB63,B77),DG!$B$8:$H$2508,7,FALSE)),"",VLOOKUP(CONCATENATE(AB63,B77),DG!$B$8:$H$2508,7,FALSE))) ->  | B77: 1 | C77: =IF(A77="","",VLOOKUP(A77,DG!$H$8:$P$2508,5,FALSE)) ->  | J77: =IF(A77="","",VLOOKUP(A77,DG!$H$8:$P$2508,6,FALSE)) ->  | K77: =IF(A77="","",VLOOKUP(A77,DG!$H$8:$P$2508,7,FALSE)) ->  | M77: =IF(A77="","",VLOOKUP(A77,DG!$H$8:$P$2508,8,FALSE)) ->  | P77: =IF(A77="","",VLOOKUP(A77,DG!$H$8:$P$2508,9,FALSE)) ->  | U77: =IF(A77="","",VLOOKUP(A77,DG!$H$8:$R$2508,11,FALSE)) ->  | AR77: =IF(AS77="","",VLOOKUP(AS77,DG!$H$8:$Q$2508,10,FALSE)) ->  | AS77: =IF(A77="","",A77) ->  | AT77: =IF(AS77="","",IF(Q77="s",1,0)) ->  | AU77: =IF(AS77="","",IF(Q77="n",1,0)) ->  | AV77: =IF(AS77="","",IF(J77="A",1,0)) ->  | AW77: =IF(AS77="","",IF(CONCATENATE(Q77,J77)="SA",1,0)) ->  | AX77: =IF(AS77="","",IF(J77="b",1,0)) ->  | AY77: =IF(AS77="","",IF(CONCATENATE(Q77,J77)="Sb",1,0)) ->  | AZ77: =IF(AS77="","",IF(P77="x",1,0)) ->  | BA77: =IF(AS77="",0,R77) -> 0 | BB77: =IF(AS77="",0,IF(AW77=1,R77,0)) -> 0 | BC77: =IF(AS77="",0,IF(AY77=1,R77,0)) -> 0 | BD77: =IF(AS77="","",IF(AND(AT77=1,BA77>0),1,0)) ->  | BE77: =IF(AS77="","",IF(AND(AT77=1,BA77=0),1,0)) -> 
A78: =IF(W63="","",IF(ISERROR(VLOOKUP(CONCATENATE(AB63,B78),DG!$B$8:$H$2508,7,FALSE)),"",VLOOKUP(CONCATENATE(AB63,B78),DG!$B$8:$H$2508,7,FALSE))) ->  | B78: 2 | C78: =IF(A78="","",VLOOKUP(A78,DG!$H$8:$P$2508,5,FALSE)) ->  | J78: =IF(A78="","",VLOOKUP(A78,DG!$H$8:$P$2508,6,FALSE)) ->  | K78: =IF(A78="","",VLOOKUP(A78,DG!$H$8:$P$2508,7,FALSE)) ->  | M78: =IF(A78="","",VLOOKUP(A78,DG!$H$8:$P$2508,8,FALSE)) ->  | P78: =IF(A78="","",VLOOKUP(A78,DG!$H$8:$P$2508,9,FALSE)) ->  | U78: =IF(A78="","",VLOOKUP(A78,DG!$H$8:$R$2508,11,FALSE)) ->  | AR78: =IF(AS78="","",VLOOKUP(AS78,DG!$H$8:$Q$2508,10,FALSE)) ->  | AS78: =IF(A78="","",A78) ->  | AT78: =IF(AS78="","",IF(Q78="s",1,0)) ->  | AU78: =IF(AS78="","",IF(Q78="n",1,0)) ->  | AV78: =IF(AS78="","",IF(J78="A",1,0)) ->  | AW78: =IF(AS78="","",IF(CONCATENATE(Q78,J78)="SA",1,0)) ->  | AX78: =IF(AS78="","",IF(J78="b",1,0)) ->  | AY78: =IF(AS78="","",IF(CONCATENATE(Q78,J78)="Sb",1,0)) ->  | AZ78: =IF(AS78="","",IF(P78="x",1,0)) ->  | BA78: =IF(AS78="",0,R78) -> 0 | BB78: =IF(AS78="",0,IF(AW78=1,R78,0)) -> 0 | BC78: =IF(AS78="",0,IF(AY78=1,R78,0)) -> 0 | BD78: =IF(AS78="","",IF(AND(AT78=1,BA78>0),1,0)) ->  | BE78: =IF(AS78="","",IF(AND(AT78=1,BA78=0),1,0)) -> 
A79: =IF(W63="","",IF(ISERROR(VLOOKUP(CONCATENATE(AB63,B79),DG!$B$8:$H$2508,7,FALSE)),"",VLOOKUP(CONCATENATE(AB63,B79),DG!$B$8:$H$2508,7,FALSE))) ->  | B79: 3 | C79: =IF(A79="","",VLOOKUP(A79,DG!$H$8:$P$2508,5,FALSE)) ->  | J79: =IF(A79="","",VLOOKUP(A79,DG!$H$8:$P$2508,6,FALSE)) ->  | K79: =IF(A79="","",VLOOKUP(A79,DG!$H$8:$P$2508,7,FALSE)) ->  | M79: =IF(A79="","",VLOOKUP(A79,DG!$H$8:$P$2508,8,FALSE)) ->  | P79: =IF(A79="","",VLOOKUP(A79,DG!$H$8:$P$2508,9,FALSE)) ->  | U79: =IF(A79="","",VLOOKUP(A79,DG!$H$8:$R$2508,11,FALSE)) ->  | AR79: =IF(AS79="","",VLOOKUP(AS79,DG!$H$8:$Q$2508,10,FALSE)) ->  | BA79: 0 | BB79: 0 | BC79: 0
A80: =IF(W63="","",IF(ISERROR(VLOOKUP(CONCATENATE(AB63,B80),DG!$B$8:$H$2508,7,FALSE)),"",VLOOKUP(CONCATENATE(AB63,B80),DG!$B$8:$H$2508,7,FALSE))) ->  | B80: 4 | C80: =IF(A80="","",VLOOKUP(A80,DG!$H$8:$P$2508,5,FALSE)) ->  | J80: =IF(A80="","",VLOOKUP(A80,DG!$H$8:$P$2508,6,FALSE)) ->  | K80: =IF(A80="","",VLOOKUP(A80,DG!$H$8:$P$2508,7,FALSE)) ->  | M80: =IF(A80="","",VLOOKUP(A80,DG!$H$8:$P$2508,8,FALSE)) ->  | P80: =IF(A80="","",VLOOKUP(A80,DG!$H$8:$P$2508,9,FALSE)) ->  | U80: =IF(A80="","",VLOOKUP(A80,DG!$H$8:$R$2508,11,FALSE)) ->  | AR80: =IF(AS80="","",VLOOKUP(AS80,DG!$H$8:$Q$2508,10,FALSE)) ->  | BA80: 0 | BB80: 0 | BC80: 0
A81: =IF(W63="","",IF(ISERROR(VLOOKUP(CONCATENATE(AB63,B81),DG!$B$8:$H$2508,7,FALSE)),"",VLOOKUP(CONCATENATE(AB63,B81),DG!$B$8:$H$2508,7,FALSE))) ->  | B81: 5 | C81: =IF(A81="","",VLOOKUP(A81,DG!$H$8:$P$2508,5,FALSE)) ->  | J81: =IF(A81="","",VLOOKUP(A81,DG!$H$8:$P$2508,6,FALSE)) ->  | K81: =IF(A81="","",VLOOKUP(A81,DG!$H$8:$P$2508,7,FALSE)) ->  | M81: =IF(A81="","",VLOOKUP(A81,DG!$H$8:$P$2508,8,FALSE)) ->  | P81: =IF(A81="","",VLOOKUP(A81,DG!$H$8:$P$2508,9,FALSE)) ->  | U81: =IF(A81="","",VLOOKUP(A81,DG!$H$8:$R$2508,11,FALSE)) ->  | AR81: =IF(AS81="","",VLOOKUP(AS81,DG!$H$8:$Q$2508,10,FALSE)) ->  | BA81: 0 | BB81: 0 | BC81: 0
A82: =IF(W63="","",IF(ISERROR(VLOOKUP(CONCATENATE(AB63,B82),DG!$B$8:$H$2508,7,FALSE)),"",VLOOKUP(CONCATENATE(AB63,B82),DG!$B$8:$H$2508,7,FALSE))) ->  | B82: 6 | C82: =IF(A82="","",VLOOKUP(A82,DG!$H$8:$P$2508,5,FALSE)) ->  | J82: =IF(A82="","",VLOOKUP(A82,DG!$H$8:$P$2508,6,FALSE)) ->  | K82: =IF(A82="","",VLOOKUP(A82,DG!$H$8:$P$2508,7,FALSE)) ->  | M82: =IF(A82="","",VLOOKUP(A82,DG!$H$8:$P$2508,8,FALSE)) ->  | P82: =IF(A82="","",VLOOKUP(A82,DG!$H$8:$P$2508,9,FALSE)) ->  | U82: =IF(A82="","",VLOOKUP(A82,DG!$H$8:$R$2508,11,FALSE)) ->  | AR82: =IF(AS82="","",VLOOKUP(AS82,DG!$H$8:$Q$2508,10,FALSE)) ->  | BA82: 0 | BB82: 0 | BC82: 0
A83: =IF(W63="","",IF(ISERROR(VLOOKUP(CONCATENATE(AB63,B83),DG!$B$8:$H$2508,7,FALSE)),"",VLOOKUP(CONCATENATE(AB63,B83),DG!$B$8:$H$2508,7,FALSE))) ->  | B83: 7 | C83: =IF(A83="","",VLOOKUP(A83,DG!$H$8:$P$2508,5,FALSE)) ->  | J83: =IF(A83="","",VLOOKUP(A83,DG!$H$8:$P$2508,6,FALSE)) ->  | K83: =IF(A83="","",VLOOKUP(A83,DG!$H$8:$P$2508,7,FALSE)) ->  | M83: =IF(A83="","",VLOOKUP(A83,DG!$H$8:$P$2508,8,FALSE)) ->  | P83: =IF(A83="","",VLOOKUP(A83,DG!$H$8:$P$2508,9,FALSE)) ->  | U83: =IF(A83="","",VLOOKUP(A83,DG!$H$8:$R$2508,11,FALSE)) ->  | AR83: =IF(AS83="","",VLOOKUP(AS83,DG!$H$8:$Q$2508,10,FALSE)) ->  | BA83: 0 | BB83: 0 | BC83: 0
A84: =IF(W63="","",IF(ISERROR(VLOOKUP(CONCATENATE(AB63,B84),DG!$B$8:$H$2508,7,FALSE)),"",VLOOKUP(CONCATENATE(AB63,B84),DG!$B$8:$H$2508,7,FALSE))) ->  | B84: 8 | C84: =IF(A84="","",VLOOKUP(A84,DG!$H$8:$P$2508,5,FALSE)) ->  | J84: =IF(A84="","",VLOOKUP(A84,DG!$H$8:$P$2508,6,FALSE)) ->  | K84: =IF(A84="","",VLOOKUP(A84,DG!$H$8:$P$2508,7,FALSE)) ->  | M84: =IF(A84="","",VLOOKUP(A84,DG!$H$8:$P$2508,8,FALSE)) ->  | P84: =IF(A84="","",VLOOKUP(A84,DG!$H$8:$P$2508,9,FALSE)) ->  | U84: =IF(A84="","",VLOOKUP(A84,DG!$H$8:$R$2508,11,FALSE)) ->  | AR84: =IF(AS84="","",VLOOKUP(AS84,DG!$H$8:$Q$2508,10,FALSE)) ->  | BA84: 0 | BB84: 0 | BC84: 0
A85: =IF(W63="","",IF(ISERROR(VLOOKUP(CONCATENATE(AB63,B85),DG!$B$8:$H$2508,7,FALSE)),"",VLOOKUP(CONCATENATE(AB63,B85),DG!$B$8:$H$2508,7,FALSE))) ->  | B85: 9 | C85: =IF(A85="","",VLOOKUP(A85,DG!$H$8:$P$2508,5,FALSE)) ->  | J85: =IF(A85="","",VLOOKUP(A85,DG!$H$8:$P$2508,6,FALSE)) ->  | K85: =IF(A85="","",VLOOKUP(A85,DG!$H$8:$P$2508,7,FALSE)) ->  | M85: =IF(A85="","",VLOOKUP(A85,DG!$H$8:$P$2508,8,FALSE)) ->  | P85: =IF(A85="","",VLOOKUP(A85,DG!$H$8:$P$2508,9,FALSE)) ->  | U85: =IF(A85="","",VLOOKUP(A85,DG!$H$8:$R$2508,11,FALSE)) ->  | AR85: =IF(AS85="","",VLOOKUP(AS85,DG!$H$8:$Q$2508,10,FALSE)) ->  | BA85: 0 | BB85: 0 | BC85: 0
A86: =IF(W63="","",IF(ISERROR(VLOOKUP(CONCATENATE(AB63,B86),DG!$B$8:$H$2508,7,FALSE)),"",VLOOKUP(CONCATENATE(AB63,B86),DG!$B$8:$H$2508,7,FALSE))) ->  | B86: 10 | C86: =IF(A86="","",VLOOKUP(A86,DG!$H$8:$P$2508,5,FALSE)) ->  | J86: =IF(A86="","",VLOOKUP(A86,DG!$H$8:$P$2508,6,FALSE)) ->  | K86: =IF(A86="","",VLOOKUP(A86,DG!$H$8:$P$2508,7,FALSE)) ->  | M86: =IF(A86="","",VLOOKUP(A86,DG!$H$8:$P$2508,8,FALSE)) ->  | P86: =IF(A86="","",VLOOKUP(A86,DG!$H$8:$P$2508,9,FALSE)) ->  | U86: =IF(A86="","",VLOOKUP(A86,DG!$H$8:$R$2508,11,FALSE)) ->  | AR86: =IF(AS86="","",VLOOKUP(AS86,DG!$H$8:$Q$2508,10,FALSE)) ->  | BA86: 0 | BB86: 0 | BC86: 0
A87: =IF(W63="","",IF(ISERROR(VLOOKUP(CONCATENATE(AB63,B87),DG!$B$8:$H$2508,7,FALSE)),"",VLOOKUP(CONCATENATE(AB63,B87),DG!$B$8:$H$2508,7,FALSE))) ->  | B87: 11 | C87: =IF(A87="","",VLOOKUP(A87,DG!$H$8:$P$2508,5,FALSE)) ->  | J87: =IF(A87="","",VLOOKUP(A87,DG!$H$8:$P$2508,6,FALSE)) ->  | K87: =IF(A87="","",VLOOKUP(A87,DG!$H$8:$P$2508,7,FALSE)) ->  | M87: =IF(A87="","",VLOOKUP(A87,DG!$H$8:$P$2508,8,FALSE)) ->  | P87: =IF(A87="","",VLOOKUP(A87,DG!$H$8:$P$2508,9,FALSE)) ->  | U87: =IF(A87="","",VLOOKUP(A87,DG!$H$8:$R$2508,11,FALSE)) ->  | AR87: =IF(AS87="","",VLOOKUP(AS87,DG!$H$8:$Q$2508,10,FALSE)) ->  | BA87: 0 | BB87: 0 | BC87: 0
A88: =IF(W63="","",IF(ISERROR(VLOOKUP(CONCATENATE(AB63,B88),DG!$B$8:$H$2508,7,FALSE)),"",VLOOKUP(CONCATENATE(AB63,B88),DG!$B$8:$H$2508,7,FALSE))) ->  | B88: 12 | C88: =IF(A88="","",VLOOKUP(A88,DG!$H$8:$P$2508,5,FALSE)) ->  | J88: =IF(A88="","",VLOOKUP(A88,DG!$H$8:$P$2508,6,FALSE)) ->  | K88: =IF(A88="","",VLOOKUP(A88,DG!$H$8:$P$2508,7,FALSE)) ->  | M88: =IF(A88="","",VLOOKUP(A88,DG!$H$8:$P$2508,8,FALSE)) ->  | P88: =IF(A88="","",VLOOKUP(A88,DG!$H$8:$P$2508,9,FALSE)) ->  | U88: =IF(A88="","",VLOOKUP(A88,DG!$H$8:$R$2508,11,FALSE)) ->  | AR88: =IF(AS88="","",VLOOKUP(AS88,DG!$H$8:$Q$2508,10,FALSE)) ->  | BA88: 0 | BB88: 0 | BC88: 0
A89: =IF(W63="","",IF(ISERROR(VLOOKUP(CONCATENATE(AB63,B89),DG!$B$8:$H$2508,7,FALSE)),"",VLOOKUP(CONCATENATE(AB63,B89),DG!$B$8:$H$2508,7,FALSE))) ->  | B89: 13 | C89: =IF(A89="","",VLOOKUP(A89,DG!$H$8:$P$2508,5,FALSE)) ->  | J89: =IF(A89="","",VLOOKUP(A89,DG!$H$8:$P$2508,6,FALSE)) ->  | K89: =IF(A89="","",VLOOKUP(A89,DG!$H$8:$P$2508,7,FALSE)) ->  | M89: =IF(A89="","",VLOOKUP(A89,DG!$H$8:$P$2508,8,FALSE)) ->  | P89: =IF(A89="","",VLOOKUP(A89,DG!$H$8:$P$2508,9,FALSE)) ->  | U89: =IF(A89="","",VLOOKUP(A89,DG!$H$8:$R$2508,11,FALSE)) ->  | AR89: =IF(AS89="","",VLOOKUP(AS89,DG!$H$8:$Q$2508,10,FALSE)) ->  | BA89: 0 | BB89: 0 | BC89: 0
A90: =IF(W63="","",IF(ISERROR(VLOOKUP(CONCATENATE(AB63,B90),DG!$B$8:$H$2508,7,FALSE)),"",VLOOKUP(CONCATENATE(AB63,B90),DG!$B$8:$H$2508,7,FALSE))) ->  | B90: 14 | C90: =IF(A90="","",VLOOKUP(A90,DG!$H$8:$P$2508,5,FALSE)) ->  | J90: =IF(A90="","",VLOOKUP(A90,DG!$H$8:$P$2508,6,FALSE)) ->  | K90: =IF(A90="","",VLOOKUP(A90,DG!$H$8:$P$2508,7,FALSE)) ->  | M90: =IF(A90="","",VLOOKUP(A90,DG!$H$8:$P$2508,8,FALSE)) ->  | P90: =IF(A90="","",VLOOKUP(A90,DG!$H$8:$P$2508,9,FALSE)) ->  | U90: =IF(A90="","",VLOOKUP(A90,DG!$H$8:$R$2508,11,FALSE)) ->  | AR90: =IF(AS90="","",VLOOKUP(AS90,DG!$H$8:$Q$2508,10,FALSE)) ->  | BA90: 0 | BB90: 0 | BC90: 0
A91: =IF(W63="","",IF(ISERROR(VLOOKUP(CONCATENATE(AB63,B91),DG!$B$8:$H$2508,7,FALSE)),"",VLOOKUP(CONCATENATE(AB63,B91),DG!$B$8:$H$2508,7,FALSE))) ->  | B91: 15 | C91: =IF(A91="","",VLOOKUP(A91,DG!$H$8:$P$2508,5,FALSE)) ->  | J91: =IF(A91="","",VLOOKUP(A91,DG!$H$8:$P$2508,6,FALSE)) ->  | K91: =IF(A91="","",VLOOKUP(A91,DG!$H$8:$P$2508,7,FALSE)) ->  | M91: =IF(A91="","",VLOOKUP(A91,DG!$H$8:$P$2508,8,FALSE)) ->  | P91: =IF(A91="","",VLOOKUP(A91,DG!$H$8:$P$2508,9,FALSE)) ->  | U91: =IF(A91="","",VLOOKUP(A91,DG!$H$8:$R$2508,11,FALSE)) ->  | AR91: =IF(AS91="","",VLOOKUP(AS91,DG!$H$8:$Q$2508,10,FALSE)) ->  | BA91: 0 | BB91: 0 | BC91: 0
A92: =IF(W63="","",IF(ISERROR(VLOOKUP(CONCATENATE(AB63,B92),DG!$B$8:$H$2508,7,FALSE)),"",VLOOKUP(CONCATENATE(AB63,B92),DG!$B$8:$H$2508,7,FALSE))) ->  | B92: 16 | C92: =IF(A92="","",VLOOKUP(A92,DG!$H$8:$P$2508,5,FALSE)) ->  | J92: =IF(A92="","",VLOOKUP(A92,DG!$H$8:$P$2508,6,FALSE)) ->  | K92: =IF(A92="","",VLOOKUP(A92,DG!$H$8:$P$2508,7,FALSE)) ->  | M92: =IF(A92="","",VLOOKUP(A92,DG!$H$8:$P$2508,8,FALSE)) ->  | P92: =IF(A92="","",VLOOKUP(A92,DG!$H$8:$P$2508,9,FALSE)) ->  | U92: =IF(A92="","",VLOOKUP(A92,DG!$H$8:$R$2508,11,FALSE)) ->  | AR92: =IF(AS92="","",VLOOKUP(AS92,DG!$H$8:$Q$2508,10,FALSE)) ->  | BA92: 0 | BB92: 0 | BC92: 0
A93: =IF(W63="","",IF(ISERROR(VLOOKUP(CONCATENATE(AB63,B93),DG!$B$8:$H$2508,7,FALSE)),"",VLOOKUP(CONCATENATE(AB63,B93),DG!$B$8:$H$2508,7,FALSE))) ->  | B93: 17 | C93: =IF(A93="","",VLOOKUP(A93,DG!$H$8:$P$2508,5,FALSE)) ->  | J93: =IF(A93="","",VLOOKUP(A93,DG!$H$8:$P$2508,6,FALSE)) ->  | K93: =IF(A93="","",VLOOKUP(A93,DG!$H$8:$P$2508,7,FALSE)) ->  | M93: =IF(A93="","",VLOOKUP(A93,DG!$H$8:$P$2508,8,FALSE)) ->  | P93: =IF(A93="","",VLOOKUP(A93,DG!$H$8:$P$2508,9,FALSE)) ->  | U93: =IF(A93="","",VLOOKUP(A93,DG!$H$8:$R$2508,11,FALSE)) ->  | AR93: =IF(AS93="","",VLOOKUP(AS93,DG!$H$8:$Q$2508,10,FALSE)) ->  | BA93: 0 | BB93: 0 | BC93: 0
A94: =IF(W63="","",IF(ISERROR(VLOOKUP(CONCATENATE(AB63,B94),DG!$B$8:$H$2508,7,FALSE)),"",VLOOKUP(CONCATENATE(AB63,B94),DG!$B$8:$H$2508,7,FALSE))) ->  | B94: 18 | C94: =IF(A94="","",VLOOKUP(A94,DG!$H$8:$P$2508,5,FALSE)) ->  | J94: =IF(A94="","",VLOOKUP(A94,DG!$H$8:$P$2508,6,FALSE)) ->  | K94: =IF(A94="","",VLOOKUP(A94,DG!$H$8:$P$2508,7,FALSE)) ->  | M94: =IF(A94="","",VLOOKUP(A94,DG!$H$8:$P$2508,8,FALSE)) ->  | P94: =IF(A94="","",VLOOKUP(A94,DG!$H$8:$P$2508,9,FALSE)) ->  | U94: =IF(A94="","",VLOOKUP(A94,DG!$H$8:$R$2508,11,FALSE)) ->  | AR94: =IF(AS94="","",VLOOKUP(AS94,DG!$H$8:$Q$2508,10,FALSE)) ->  | BA94: 0 | BB94: 0 | BC94: 0
A95: =IF(W63="","",IF(ISERROR(VLOOKUP(CONCATENATE(AB63,B95),DG!$B$8:$H$2508,7,FALSE)),"",VLOOKUP(CONCATENATE(AB63,B95),DG!$B$8:$H$2508,7,FALSE))) ->  | B95: 19 | C95: =IF(A95="","",VLOOKUP(A95,DG!$H$8:$P$2508,5,FALSE)) ->  | J95: =IF(A95="","",VLOOKUP(A95,DG!$H$8:$P$2508,6,FALSE)) ->  | K95: =IF(A95="","",VLOOKUP(A95,DG!$H$8:$P$2508,7,FALSE)) ->  | M95: =IF(A95="","",VLOOKUP(A95,DG!$H$8:$P$2508,8,FALSE)) ->  | P95: =IF(A95="","",VLOOKUP(A95,DG!$H$8:$P$2508,9,FALSE)) ->  | U95: =IF(A95="","",VLOOKUP(A95,DG!$H$8:$R$2508,11,FALSE)) ->  | AR95: =IF(AS95="","",VLOOKUP(AS95,DG!$H$8:$Q$2508,10,FALSE)) ->  | BA95: 0 | BB95: 0 | BC95: 0
A96: =IF(W63="","",IF(ISERROR(VLOOKUP(CONCATENATE(AB63,B96),DG!$B$8:$H$2508,7,FALSE)),"",VLOOKUP(CONCATENATE(AB63,B96),DG!$B$8:$H$2508,7,FALSE))) ->  | B96: 20 | C96: =IF(A96="","",VLOOKUP(A96,DG!$H$8:$P$2508,5,FALSE)) ->  | J96: =IF(A96="","",VLOOKUP(A96,DG!$H$8:$P$2508,6,FALSE)) ->  | K96: =IF(A96="","",VLOOKUP(A96,DG!$H$8:$P$2508,7,FALSE)) ->  | M96: =IF(A96="","",VLOOKUP(A96,DG!$H$8:$P$2508,8,FALSE)) ->  | P96: =IF(A96="","",VLOOKUP(A96,DG!$H$8:$P$2508,9,FALSE)) ->  | U96: =IF(A96="","",VLOOKUP(A96,DG!$H$8:$R$2508,11,FALSE)) ->  | AR96: =IF(AS96="","",VLOOKUP(AS96,DG!$H$8:$Q$2508,10,FALSE)) ->  | BA96: 0 | BB96: 0 | BC96: 0
A97: =IF(W63="","",IF(ISERROR(VLOOKUP(CONCATENATE(AB63,B97),DG!$B$8:$H$2508,7,FALSE)),"",VLOOKUP(CONCATENATE(AB63,B97),DG!$B$8:$H$2508,7,FALSE))) ->  | B97: 21 | C97: =IF(A97="","",VLOOKUP(A97,DG!$H$8:$P$2508,5,FALSE)) ->  | J97: =IF(A97="","",VLOOKUP(A97,DG!$H$8:$P$2508,6,FALSE)) ->  | K97: =IF(A97="","",VLOOKUP(A97,DG!$H$8:$P$2508,7,FALSE)) ->  | M97: =IF(A97="","",VLOOKUP(A97,DG!$H$8:$P$2508,8,FALSE)) ->  | P97: =IF(A97="","",VLOOKUP(A97,DG!$H$8:$P$2508,9,FALSE)) ->  | U97: =IF(A97="","",VLOOKUP(A97,DG!$H$8:$R$2508,11,FALSE)) ->  | AR97: =IF(AS97="","",VLOOKUP(AS97,DG!$H$8:$Q$2508,10,FALSE)) ->  | BA97: 0 | BB97: 0 | BC97: 0
A98: =IF(W63="","",IF(ISERROR(VLOOKUP(CONCATENATE(AB63,B98),DG!$B$8:$H$2508,7,FALSE)),"",VLOOKUP(CONCATENATE(AB63,B98),DG!$B$8:$H$2508,7,FALSE))) ->  | B98: 22 | C98: =IF(A98="","",VLOOKUP(A98,DG!$H$8:$P$2508,5,FALSE)) ->  | J98: =IF(A98="","",VLOOKUP(A98,DG!$H$8:$P$2508,6,FALSE)) ->  | K98: =IF(A98="","",VLOOKUP(A98,DG!$H$8:$P$2508,7,FALSE)) ->  | M98: =IF(A98="","",VLOOKUP(A98,DG!$H$8:$P$2508,8,FALSE)) ->  | P98: =IF(A98="","",VLOOKUP(A98,DG!$H$8:$P$2508,9,FALSE)) ->  | U98: =IF(A98="","",VLOOKUP(A98,DG!$H$8:$R$2508,11,FALSE)) ->  | AR98: =IF(AS98="","",VLOOKUP(AS98,DG!$H$8:$Q$2508,10,FALSE)) ->  | BA98: 0 | BB98: 0 | BC98: 0
A99: =IF(W63="","",IF(ISERROR(VLOOKUP(CONCATENATE(AB63,B99),DG!$B$8:$H$2508,7,FALSE)),"",VLOOKUP(CONCATENATE(AB63,B99),DG!$B$8:$H$2508,7,FALSE))) ->  | B99: 23 | C99: =IF(A99="","",VLOOKUP(A99,DG!$H$8:$P$2508,5,FALSE)) ->  | J99: =IF(A99="","",VLOOKUP(A99,DG!$H$8:$P$2508,6,FALSE)) ->  | K99: =IF(A99="","",VLOOKUP(A99,DG!$H$8:$P$2508,7,FALSE)) ->  | M99: =IF(A99="","",VLOOKUP(A99,DG!$H$8:$P$2508,8,FALSE)) ->  | P99: =IF(A99="","",VLOOKUP(A99,DG!$H$8:$P$2508,9,FALSE)) ->  | U99: =IF(A99="","",VLOOKUP(A99,DG!$H$8:$R$2508,11,FALSE)) ->  | AR99: =IF(AS99="","",VLOOKUP(AS99,DG!$H$8:$Q$2508,10,FALSE)) ->  | BA99: 0 | BB99: 0 | BC99: 0
A100: =IF(W63="","",IF(ISERROR(VLOOKUP(CONCATENATE(AB63,B100),DG!$B$8:$H$2508,7,FALSE)),"",VLOOKUP(CONCATENATE(AB63,B100),DG!$B$8:$H$2508,7,FALSE))) ->  | B100: 24 | C100: =IF(A100="","",VLOOKUP(A100,DG!$H$8:$P$2508,5,FALSE)) ->  | J100: =IF(A100="","",VLOOKUP(A100,DG!$H$8:$P$2508,6,FALSE)) ->  | K100: =IF(A100="","",VLOOKUP(A100,DG!$H$8:$P$2508,7,FALSE)) ->  | M100: =IF(A100="","",VLOOKUP(A100,DG!$H$8:$P$2508,8,FALSE)) ->  | P100: =IF(A100="","",VLOOKUP(A100,DG!$H$8:$P$2508,9,FALSE)) ->  | U100: =IF(A100="","",VLOOKUP(A100,DG!$H$8:$R$2508,11,FALSE)) ->  | AR100: =IF(AS100="","",VLOOKUP(AS100,DG!$H$8:$Q$2508,10,FALSE)) ->  | BA100: 0 | BB100: 0 | BC100: 0
A101: =IF(W63="","",IF(ISERROR(VLOOKUP(CONCATENATE(AB63,B101),DG!$B$8:$H$2508,7,FALSE)),"",VLOOKUP(CONCATENATE(AB63,B101),DG!$B$8:$H$2508,7,FALSE))) ->  | B101: 25 | C101: =IF(A101="","",VLOOKUP(A101,DG!$H$8:$P$2508,5,FALSE)) ->  | J101: =IF(A101="","",VLOOKUP(A101,DG!$H$8:$P$2508,6,FALSE)) ->  | K101: =IF(A101="","",VLOOKUP(A101,DG!$H$8:$P$2508,7,FALSE)) ->  | M101: =IF(A101="","",VLOOKUP(A101,DG!$H$8:$P$2508,8,FALSE)) ->  | P101: =IF(A101="","",VLOOKUP(A101,DG!$H$8:$P$2508,9,FALSE)) ->  | U101: =IF(A101="","",VLOOKUP(A101,DG!$H$8:$R$2508,11,FALSE)) ->  | AR101: =IF(AS101="","",VLOOKUP(AS101,DG!$H$8:$Q$2508,10,FALSE)) ->  | BA101: 0 | BB101: 0 | BC101: 0
A102: =IF(W63="","",IF(ISERROR(VLOOKUP(CONCATENATE(AB63,B102),DG!$B$8:$H$2508,7,FALSE)),"",VLOOKUP(CONCATENATE(AB63,B102),DG!$B$8:$H$2508,7,FALSE))) ->  | B102: 26 | C102: =IF(A102="","",VLOOKUP(A102,DG!$H$8:$P$2508,5,FALSE)) ->  | J102: =IF(A102="","",VLOOKUP(A102,DG!$H$8:$P$2508,6,FALSE)) ->  | K102: =IF(A102="","",VLOOKUP(A102,DG!$H$8:$P$2508,7,FALSE)) ->  | M102: =IF(A102="","",VLOOKUP(A102,DG!$H$8:$P$2508,8,FALSE)) ->  | P102: =IF(A102="","",VLOOKUP(A102,DG!$H$8:$P$2508,9,FALSE)) ->  | U102: =IF(A102="","",VLOOKUP(A102,DG!$H$8:$R$2508,11,FALSE)) ->  | AR102: =IF(AS102="","",VLOOKUP(AS102,DG!$H$8:$Q$2508,10,FALSE)) ->  | BA102: 0 | BB102: 0 | BC102: 0
A103: =IF(W63="","",IF(ISERROR(VLOOKUP(CONCATENATE(AB63,B103),DG!$B$8:$H$2508,7,FALSE)),"",VLOOKUP(CONCATENATE(AB63,B103),DG!$B$8:$H$2508,7,FALSE))) ->  | B103: 27 | C103: =IF(A103="","",VLOOKUP(A103,DG!$H$8:$P$2508,5,FALSE)) ->  | J103: =IF(A103="","",VLOOKUP(A103,DG!$H$8:$P$2508,6,FALSE)) ->  | K103: =IF(A103="","",VLOOKUP(A103,DG!$H$8:$P$2508,7,FALSE)) ->  | M103: =IF(A103="","",VLOOKUP(A103,DG!$H$8:$P$2508,8,FALSE)) ->  | P103: =IF(A103="","",VLOOKUP(A103,DG!$H$8:$P$2508,9,FALSE)) ->  | U103: =IF(A103="","",VLOOKUP(A103,DG!$H$8:$R$2508,11,FALSE)) ->  | AR103: =IF(AS103="","",VLOOKUP(AS103,DG!$H$8:$Q$2508,10,FALSE)) ->  | BA103: 0 | BB103: 0 | BC103: 0
A104: =IF(W63="","",IF(ISERROR(VLOOKUP(CONCATENATE(AB63,B104),DG!$B$8:$H$2508,7,FALSE)),"",VLOOKUP(CONCATENATE(AB63,B104),DG!$B$8:$H$2508,7,FALSE))) ->  | B104: 28 | C104: =IF(A104="","",VLOOKUP(A104,DG!$H$8:$P$2508,5,FALSE)) ->  | J104: =IF(A104="","",VLOOKUP(A104,DG!$H$8:$P$2508,6,FALSE)) ->  | K104: =IF(A104="","",VLOOKUP(A104,DG!$H$8:$P$2508,7,FALSE)) ->  | M104: =IF(A104="","",VLOOKUP(A104,DG!$H$8:$P$2508,8,FALSE)) ->  | P104: =IF(A104="","",VLOOKUP(A104,DG!$H$8:$P$2508,9,FALSE)) ->  | U104: =IF(A104="","",VLOOKUP(A104,DG!$H$8:$R$2508,11,FALSE)) ->  | AR104: =IF(AS104="","",VLOOKUP(AS104,DG!$H$8:$Q$2508,10,FALSE)) ->  | BA104: 0 | BB104: 0 | BC104: 0
A105: =IF(W63="","",IF(ISERROR(VLOOKUP(CONCATENATE(AB63,B105),DG!$B$8:$H$2508,7,FALSE)),"",VLOOKUP(CONCATENATE(AB63,B105),DG!$B$8:$H$2508,7,FALSE))) ->  | B105: 29 | C105: =IF(A105="","",VLOOKUP(A105,DG!$H$8:$P$2508,5,FALSE)) ->  | J105: =IF(A105="","",VLOOKUP(A105,DG!$H$8:$P$2508,6,FALSE)) ->  | K105: =IF(A105="","",VLOOKUP(A105,DG!$H$8:$P$2508,7,FALSE)) ->  | M105: =IF(A105="","",VLOOKUP(A105,DG!$H$8:$P$2508,8,FALSE)) ->  | P105: =IF(A105="","",VLOOKUP(A105,DG!$H$8:$P$2508,9,FALSE)) ->  | U105: =IF(A105="","",VLOOKUP(A105,DG!$H$8:$R$2508,11,FALSE)) ->  | AR105: =IF(AS105="","",VLOOKUP(AS105,DG!$H$8:$Q$2508,10,FALSE)) ->  | BA105: 0 | BB105: 0 | BC105: 0
A106: =IF(W63="","",IF(ISERROR(VLOOKUP(CONCATENATE(AB63,B106),DG!$B$8:$H$2508,7,FALSE)),"",VLOOKUP(CONCATENATE(AB63,B106),DG!$B$8:$H$2508,7,FALSE))) ->  | B106: 30 | C106: =IF(A106="","",VLOOKUP(A106,DG!$H$8:$P$2508,5,FALSE)) ->  | J106: =IF(A106="","",VLOOKUP(A106,DG!$H$8:$P$2508,6,FALSE)) ->  | K106: =IF(A106="","",VLOOKUP(A106,DG!$H$8:$P$2508,7,FALSE)) ->  | M106: =IF(A106="","",VLOOKUP(A106,DG!$H$8:$P$2508,8,FALSE)) ->  | P106: =IF(A106="","",VLOOKUP(A106,DG!$H$8:$P$2508,9,FALSE)) ->  | U106: =IF(A106="","",VLOOKUP(A106,DG!$H$8:$R$2508,11,FALSE)) ->  | AR106: =IF(AS106="","",VLOOKUP(AS106,DG!$H$8:$Q$2508,10,FALSE)) ->  | BA106: 0 | BB106: 0 | BC106: 0
N107: Totais | Q107: =COUNTIF(Q77:Q106,"s") -> 0 | R107: =SUM(R77:T106) -> 0
B109: Observações:
W111: O Professor Responsável
G115: =PLANO!$G$1 -> Agrupamento de Escolas Augusto Cabrita
G116: =PLANO!$G$2 -> Sede – Escola Secundária Augusto Cabrita
G117: =PLANO!$G$3 -> Rua Maria Lamas – Alto Seixalinho – 2830-088 Barreiro
G118: =PLANO!$G$4 -> Tel 212059220 - Fax 212059228 - E-mail: direcao@aeaugustocabrita.edu.pt
B120: LISTAGEM DE ALUNOS | Q120: =IF(W120=0,"A Turma não Participa","") ->  | W120: =VLOOKUP(X120,$AF$9:$AH$56,3,FALSE) ->  | X120: 3 | Y120: TURMA | AB120: =VLOOKUP(X120,$AF$9:$AH$56,2,FALSE) -> 5C
B122: =PLANO!$B$8 -> Designação da V. Estudo | J122: =IF(W120=0,"",PLANO!$J$8) -> Eco-ementas | AA122: Ano : | AB122: =DG!$EC$1 -> 15 | AC122: / | AD122: =DG!$EE$1 -> 16
B123: Organizada por : | J123: =IF(W120=0,"",PLANO!$J$9) -> 7º F | Z123: atividade Nº | AC123: =IF(W120=0,"",PLANO!$AG$9) -> 0
B125: =PLANO!$A$11 -> Locais | E125: - | F125: =IF(W120=0,"",IF(PLANO!$F$11="","",PLANO!$F$11)) ->  | R125: - | S125: =IF(W120=0,"",IF(PLANO!$U$11="","",PLANO!$U$11)) -> 
B126: =PLANO!$A$12 -> a visitar | E126: - | F126: =IF(W120=0,"",IF(PLANO!$F$12="","",PLANO!$F$12)) ->  | R126: - | S126: =IF(W120=0,"",IF(PLANO!$U$12="","",PLANO!$U$12)) -> 
B128: Início | F128: Local: | H128: =IF(W120=0,"",IF(PLANO!$H$14="","",PLANO!$H$14)) -> EB23 P. Abílio Mendes | O128: Dia : | P128: =IF(W120=0,"",IF(PLANO!$R$14="","",PLANO!$R$14)) ->  | Q128: / | R128: =IF(W120=0,"",IF(PLANO!$T$14="","",PLANO!$T$14)) ->  | S128: / | T128: =IF(W120=0,"",IF(PLANO!$V$14="","",PLANO!$V$14)) ->  | W128: Hora : | X128: =IF(W120=0,"",IF(PLANO!$AA$14="","",PLANO!$AA$14)) ->  | Y128: h | Z128: e | AA128: =IF(W120=0,"",IF(PLANO!$AD$14="","",PLANO!$AD$14)) ->  | AB128: minutos
B129: Fim | F129: Local: | H129: =IF(W120=0,"",IF(PLANO!$H$15="","",PLANO!$H$15)) -> EB23 P. Abílio Mendes | O129: Dia : | P129: =IF(W120=0,"",IF(PLANO!$R$15="","",PLANO!$R$15)) ->  | Q129: / | R129: =IF(W120=0,"",IF(PLANO!$T$15="","",PLANO!$T$15)) ->  | S129: / | T129: =IF(W120=0,"",IF(PLANO!$V$15="","",PLANO!$V$15)) ->  | W129: Hora : | X129: =IF(W120=0,"",IF(PLANO!$AA$15="","",PLANO!$AA$15)) ->  | Y129: h | Z129: e | AA129: =IF(W120=0,"",IF(PLANO!$AD$15="","",PLANO!$AD$15)) ->  | AB129: minutos
B131: Custo | F131: =IF(W120=0,"",IF(PLANO!$F$17="","",PLANO!$F$17)) -> 0 | I131: Euros | N131: Transporte : | Q131: =IF(W120=0,"",IF(PLANO!$T$17="","",PLANO!$T$17)) -> 
A133: NP | B133: Nº | C133: Nome | J133: ASE | K133: SS | M133: Nº SS | P133: MD | Q133: S/N | R133: Pagou | U133: Contacto EE | X133: Observações | AF133: Voltar à 1ª página com Hiperligações
A134: =IF(W120="","",IF(ISERROR(VLOOKUP(CONCATENATE(AB120,B134),DG!$B$8:$H$2508,7,FALSE)),"",VLOOKUP(CONCATENATE(AB120,B134),DG!$B$8:$H$2508,7,FALSE))) ->  | B134: 1 | C134: =IF(A134="","",VLOOKUP(A134,DG!$H$8:$P$2508,5,FALSE)) ->  | J134: =IF(A134="","",VLOOKUP(A134,DG!$H$8:$P$2508,6,FALSE)) ->  | K134: =IF(A134="","",VLOOKUP(A134,DG!$H$8:$P$2508,7,FALSE)) ->  | M134: =IF(A134="","",VLOOKUP(A134,DG!$H$8:$P$2508,8,FALSE)) ->  | P134: =IF(A134="","",VLOOKUP(A134,DG!$H$8:$P$2508,9,FALSE)) ->  | U134: =IF(A134="","",VLOOKUP(A134,DG!$H$8:$R$2508,11,FALSE)) ->  | AR134: =IF(AS134="","",VLOOKUP(AS134,DG!$H$8:$Q$2508,10,FALSE)) ->  | AS134: =IF(A134="","",A134) ->  | AT134: =IF(AS134="","",IF(Q134="s",1,0)) ->  | AU134: =IF(AS134="","",IF(Q134="n",1,0)) ->  | AV134: =IF(AS134="","",IF(J134="A",1,0)) ->  | AW134: =IF(AS134="","",IF(CONCATENATE(Q134,J134)="SA",1,0)) ->  | AX134: =IF(AS134="","",IF(J134="b",1,0)) ->  | AY134: =IF(AS134="","",IF(CONCATENATE(Q134,J134)="Sb",1,0)) ->  | AZ134: =IF(AS134="","",IF(P134="x",1,0)) ->  | BA134: =IF(AS134="",0,R134) -> 0 | BB134: =IF(AS134="",0,IF(AW134=1,R134,0)) -> 0 | BC134: =IF(AS134="",0,IF(AY134=1,R134,0)) -> 0 | BD134: =IF(AS134="","",IF(AND(AT134=1,BA134>0),1,0)) ->  | BE134: =IF(AS134="","",IF(AND(AT134=1,BA134=0),1,0)) -> 
A135: =IF(W120="","",IF(ISERROR(VLOOKUP(CONCATENATE(AB120,B135),DG!$B$8:$H$2508,7,FALSE)),"",VLOOKUP(CONCATENATE(AB120,B135),DG!$B$8:$H$2508,7,FALSE))) ->  | B135: 2 | C135: =IF(A135="","",VLOOKUP(A135,DG!$H$8:$P$2508,5,FALSE)) ->  | J135: =IF(A135="","",VLOOKUP(A135,DG!$H$8:$P$2508,6,FALSE)) ->  | K135: =IF(A135="","",VLOOKUP(A135,DG!$H$8:$P$2508,7,FALSE)) ->  | M135: =IF(A135="","",VLOOKUP(A135,DG!$H$8:$P$2508,8,FALSE)) ->  | P135: =IF(A135="","",VLOOKUP(A135,DG!$H$8:$P$2508,9,FALSE)) ->  | U135: =IF(A135="","",VLOOKUP(A135,DG!$H$8:$R$2508,11,FALSE)) ->  | AR135: =IF(AS135="","",VLOOKUP(AS135,DG!$H$8:$Q$2508,10,FALSE)) ->  | AS135: =IF(A135="","",A135) ->  | AT135: =IF(AS135="","",IF(Q135="s",1,0)) ->  | AU135: =IF(AS135="","",IF(Q135="n",1,0)) ->  | AV135: =IF(AS135="","",IF(J135="A",1,0)) ->  | AW135: =IF(AS135="","",IF(CONCATENATE(Q135,J135)="SA",1,0)) ->  | AX135: =IF(AS135="","",IF(J135="b",1,0)) ->  | AY135: =IF(AS135="","",IF(CONCATENATE(Q135,J135)="Sb",1,0)) ->  | AZ135: =IF(AS135="","",IF(P135="x",1,0)) ->  | BA135: =IF(AS135="",0,R135) -> 0 | BB135: =IF(AS135="",0,IF(AW135=1,R135,0)) -> 0 | BC135: =IF(AS135="",0,IF(AY135=1,R135,0)) -> 0 | BD135: =IF(AS135="","",IF(AND(AT135=1,BA135>0),1,0)) ->  | BE135: =IF(AS135="","",IF(AND(AT135=1,BA135=0),1,0)) -> 
A136: =IF(W120="","",IF(ISERROR(VLOOKUP(CONCATENATE(AB120,B136),DG!$B$8:$H$2508,7,FALSE)),"",VLOOKUP(CONCATENATE(AB120,B136),DG!$B$8:$H$2508,7,FALSE))) ->  | B136: 3 | C136: =IF(A136="","",VLOOKUP(A136,DG!$H$8:$P$2508,5,FALSE)) ->  | J136: =IF(A136="","",VLOOKUP(A136,DG!$H$8:$P$2508,6,FALSE)) ->  | K136: =IF(A136="","",VLOOKUP(A136,DG!$H$8:$P$2508,7,FALSE)) ->  | M136: =IF(A136="","",VLOOKUP(A136,DG!$H$8:$P$2508,8,FALSE)) ->  | P136: =IF(A136="","",VLOOKUP(A136,DG!$H$8:$P$2508,9,FALSE)) ->  | U136: =IF(A136="","",VLOOKUP(A136,DG!$H$8:$R$2508,11,FALSE)) ->  | AR136: =IF(AS136="","",VLOOKUP(AS136,DG!$H$8:$Q$2508,10,FALSE)) ->  | BA136: 0 | BB136: 0 | BC136: 0
A137: =IF(W120="","",IF(ISERROR(VLOOKUP(CONCATENATE(AB120,B137),DG!$B$8:$H$2508,7,FALSE)),"",VLOOKUP(CONCATENATE(AB120,B137),DG!$B$8:$H$2508,7,FALSE))) ->  | B137: 4 | C137: =IF(A137="","",VLOOKUP(A137,DG!$H$8:$P$2508,5,FALSE)) ->  | J137: =IF(A137="","",VLOOKUP(A137,DG!$H$8:$P$2508,6,FALSE)) ->  | K137: =IF(A137="","",VLOOKUP(A137,DG!$H$8:$P$2508,7,FALSE)) ->  | M137: =IF(A137="","",VLOOKUP(A137,DG!$H$8:$P$2508,8,FALSE)) ->  | P137: =IF(A137="","",VLOOKUP(A137,DG!$H$8:$P$2508,9,FALSE)) ->  | U137: =IF(A137="","",VLOOKUP(A137,DG!$H$8:$R$2508,11,FALSE)) ->  | AR137: =IF(AS137="","",VLOOKUP(AS137,DG!$H$8:$Q$2508,10,FALSE)) ->  | BA137: 0 | BB137: 0 | BC137: 0
A138: =IF(W120="","",IF(ISERROR(VLOOKUP(CONCATENATE(AB120,B138),DG!$B$8:$H$2508,7,FALSE)),"",VLOOKUP(CONCATENATE(AB120,B138),DG!$B$8:$H$2508,7,FALSE))) ->  | B138: 5 | C138: =IF(A138="","",VLOOKUP(A138,DG!$H$8:$P$2508,5,FALSE)) ->  | J138: =IF(A138="","",VLOOKUP(A138,DG!$H$8:$P$2508,6,FALSE)) ->  | K138: =IF(A138="","",VLOOKUP(A138,DG!$H$8:$P$2508,7,FALSE)) ->  | M138: =IF(A138="","",VLOOKUP(A138,DG!$H$8:$P$2508,8,FALSE)) ->  | P138: =IF(A138="","",VLOOKUP(A138,DG!$H$8:$P$2508,9,FALSE)) ->  | U138: =IF(A138="","",VLOOKUP(A138,DG!$H$8:$R$2508,11,FALSE)) ->  | AR138: =IF(AS138="","",VLOOKUP(AS138,DG!$H$8:$Q$2508,10,FALSE)) ->  | BA138: 0 | BB138: 0 | BC138: 0
A139: =IF(W120="","",IF(ISERROR(VLOOKUP(CONCATENATE(AB120,B139),DG!$B$8:$H$2508,7,FALSE)),"",VLOOKUP(CONCATENATE(AB120,B139),DG!$B$8:$H$2508,7,FALSE))) ->  | B139: 6 | C139: =IF(A139="","",VLOOKUP(A139,DG!$H$8:$P$2508,5,FALSE)) ->  | J139: =IF(A139="","",VLOOKUP(A139,DG!$H$8:$P$2508,6,FALSE)) ->  | K139: =IF(A139="","",VLOOKUP(A139,DG!$H$8:$P$2508,7,FALSE)) ->  | M139: =IF(A139="","",VLOOKUP(A139,DG!$H$8:$P$2508,8,FALSE)) ->  | P139: =IF(A139="","",VLOOKUP(A139,DG!$H$8:$P$2508,9,FALSE)) ->  | U139: =IF(A139="","",VLOOKUP(A139,DG!$H$8:$R$2508,11,FALSE)) ->  | AR139: =IF(AS139="","",VLOOKUP(AS139,DG!$H$8:$Q$2508,10,FALSE)) ->  | BA139: 0 | BB139: 0 | BC139: 0
A140: =IF(W120="","",IF(ISERROR(VLOOKUP(CONCATENATE(AB120,B140),DG!$B$8:$H$2508,7,FALSE)),"",VLOOKUP(CONCATENATE(AB120,B140),DG!$B$8:$H$2508,7,FALSE))) ->  | B140: 7 | C140: =IF(A140="","",VLOOKUP(A140,DG!$H$8:$P$2508,5,FALSE)) ->  | J140: =IF(A140="","",VLOOKUP(A140,DG!$H$8:$P$2508,6,FALSE)) ->  | K140: =IF(A140="","",VLOOKUP(A140,DG!$H$8:$P$2508,7,FALSE)) ->  | M140: =IF(A140="","",VLOOKUP(A140,DG!$H$8:$P$2508,8,FALSE)) ->  | P140: =IF(A140="","",VLOOKUP(A140,DG!$H$8:$P$2508,9,FALSE)) ->  | U140: =IF(A140="","",VLOOKUP(A140,DG!$H$8:$R$2508,11,FALSE)) ->  | AR140: =IF(AS140="","",VLOOKUP(AS140,DG!$H$8:$Q$2508,10,FALSE)) ->  | BA140: 0 | BB140: 0 | BC140: 0
A141: =IF(W120="","",IF(ISERROR(VLOOKUP(CONCATENATE(AB120,B141),DG!$B$8:$H$2508,7,FALSE)),"",VLOOKUP(CONCATENATE(AB120,B141),DG!$B$8:$H$2508,7,FALSE))) ->  | B141: 8 | C141: =IF(A141="","",VLOOKUP(A141,DG!$H$8:$P$2508,5,FALSE)) ->  | J141: =IF(A141="","",VLOOKUP(A141,DG!$H$8:$P$2508,6,FALSE)) ->  | K141: =IF(A141="","",VLOOKUP(A141,DG!$H$8:$P$2508,7,FALSE)) ->  | M141: =IF(A141="","",VLOOKUP(A141,DG!$H$8:$P$2508,8,FALSE)) ->  | P141: =IF(A141="","",VLOOKUP(A141,DG!$H$8:$P$2508,9,FALSE)) ->  | U141: =IF(A141="","",VLOOKUP(A141,DG!$H$8:$R$2508,11,FALSE)) ->  | AR141: =IF(AS141="","",VLOOKUP(AS141,DG!$H$8:$Q$2508,10,FALSE)) ->  | BA141: 0 | BB141: 0 | BC141: 0
A142: =IF(W120="","",IF(ISERROR(VLOOKUP(CONCATENATE(AB120,B142),DG!$B$8:$H$2508,7,FALSE)),"",VLOOKUP(CONCATENATE(AB120,B142),DG!$B$8:$H$2508,7,FALSE))) ->  | B142: 9 | C142: =IF(A142="","",VLOOKUP(A142,DG!$H$8:$P$2508,5,FALSE)) ->  | J142: =IF(A142="","",VLOOKUP(A142,DG!$H$8:$P$2508,6,FALSE)) ->  | K142: =IF(A142="","",VLOOKUP(A142,DG!$H$8:$P$2508,7,FALSE)) ->  | M142: =IF(A142="","",VLOOKUP(A142,DG!$H$8:$P$2508,8,FALSE)) ->  | P142: =IF(A142="","",VLOOKUP(A142,DG!$H$8:$P$2508,9,FALSE)) ->  | U142: =IF(A142="","",VLOOKUP(A142,DG!$H$8:$R$2508,11,FALSE)) ->  | AR142: =IF(AS142="","",VLOOKUP(AS142,DG!$H$8:$Q$2508,10,FALSE)) ->  | BA142: 0 | BB142: 0 | BC142: 0
A143: =IF(W120="","",IF(ISERROR(VLOOKUP(CONCATENATE(AB120,B143),DG!$B$8:$H$2508,7,FALSE)),"",VLOOKUP(CONCATENATE(AB120,B143),DG!$B$8:$H$2508,7,FALSE))) ->  | B143: 10 | C143: =IF(A143="","",VLOOKUP(A143,DG!$H$8:$P$2508,5,FALSE)) ->  | J143: =IF(A143="","",VLOOKUP(A143,DG!$H$8:$P$2508,6,FALSE)) ->  | K143: =IF(A143="","",VLOOKUP(A143,DG!$H$8:$P$2508,7,FALSE)) ->  | M143: =IF(A143="","",VLOOKUP(A143,DG!$H$8:$P$2508,8,FALSE)) ->  | P143: =IF(A143="","",VLOOKUP(A143,DG!$H$8:$P$2508,9,FALSE)) ->  | U143: =IF(A143="","",VLOOKUP(A143,DG!$H$8:$R$2508,11,FALSE)) ->  | AR143: =IF(AS143="","",VLOOKUP(AS143,DG!$H$8:$Q$2508,10,FALSE)) ->  | BA143: 0 | BB143: 0 | BC143: 0
A144: =IF(W120="","",IF(ISERROR(VLOOKUP(CONCATENATE(AB120,B144),DG!$B$8:$H$2508,7,FALSE)),"",VLOOKUP(CONCATENATE(AB120,B144),DG!$B$8:$H$2508,7,FALSE))) ->  | B144: 11 | C144: =IF(A144="","",VLOOKUP(A144,DG!$H$8:$P$2508,5,FALSE)) ->  | J144: =IF(A144="","",VLOOKUP(A144,DG!$H$8:$P$2508,6,FALSE)) ->  | K144: =IF(A144="","",VLOOKUP(A144,DG!$H$8:$P$2508,7,FALSE)) ->  | M144: =IF(A144="","",VLOOKUP(A144,DG!$H$8:$P$2508,8,FALSE)) ->  | P144: =IF(A144="","",VLOOKUP(A144,DG!$H$8:$P$2508,9,FALSE)) ->  | U144: =IF(A144="","",VLOOKUP(A144,DG!$H$8:$R$2508,11,FALSE)) ->  | AR144: =IF(AS144="","",VLOOKUP(AS144,DG!$H$8:$Q$2508,10,FALSE)) ->  | BA144: 0 | BB144: 0 | BC144: 0
A145: =IF(W120="","",IF(ISERROR(VLOOKUP(CONCATENATE(AB120,B145),DG!$B$8:$H$2508,7,FALSE)),"",VLOOKUP(CONCATENATE(AB120,B145),DG!$B$8:$H$2508,7,FALSE))) ->  | B145: 12 | C145: =IF(A145="","",VLOOKUP(A145,DG!$H$8:$P$2508,5,FALSE)) ->  | J145: =IF(A145="","",VLOOKUP(A145,DG!$H$8:$P$2508,6,FALSE)) ->  | K145: =IF(A145="","",VLOOKUP(A145,DG!$H$8:$P$2508,7,FALSE)) ->  | M145: =IF(A145="","",VLOOKUP(A145,DG!$H$8:$P$2508,8,FALSE)) ->  | P145: =IF(A145="","",VLOOKUP(A145,DG!$H$8:$P$2508,9,FALSE)) ->  | U145: =IF(A145="","",VLOOKUP(A145,DG!$H$8:$R$2508,11,FALSE)) ->  | AR145: =IF(AS145="","",VLOOKUP(AS145,DG!$H$8:$Q$2508,10,FALSE)) ->  | BA145: 0 | BB145: 0 | BC145: 0
A146: =IF(W120="","",IF(ISERROR(VLOOKUP(CONCATENATE(AB120,B146),DG!$B$8:$H$2508,7,FALSE)),"",VLOOKUP(CONCATENATE(AB120,B146),DG!$B$8:$H$2508,7,FALSE))) ->  | B146: 13 | C146: =IF(A146="","",VLOOKUP(A146,DG!$H$8:$P$2508,5,FALSE)) ->  | J146: =IF(A146="","",VLOOKUP(A146,DG!$H$8:$P$2508,6,FALSE)) ->  | K146: =IF(A146="","",VLOOKUP(A146,DG!$H$8:$P$2508,7,FALSE)) ->  | M146: =IF(A146="","",VLOOKUP(A146,DG!$H$8:$P$2508,8,FALSE)) ->  | P146: =IF(A146="","",VLOOKUP(A146,DG!$H$8:$P$2508,9,FALSE)) ->  | U146: =IF(A146="","",VLOOKUP(A146,DG!$H$8:$R$2508,11,FALSE)) ->  | AR146: =IF(AS146="","",VLOOKUP(AS146,DG!$H$8:$Q$2508,10,FALSE)) ->  | BA146: 0 | BB146: 0 | BC146: 0
A147: =IF(W120="","",IF(ISERROR(VLOOKUP(CONCATENATE(AB120,B147),DG!$B$8:$H$2508,7,FALSE)),"",VLOOKUP(CONCATENATE(AB120,B147),DG!$B$8:$H$2508,7,FALSE))) ->  | B147: 14 | C147: =IF(A147="","",VLOOKUP(A147,DG!$H$8:$P$2508,5,FALSE)) ->  | J147: =IF(A147="","",VLOOKUP(A147,DG!$H$8:$P$2508,6,FALSE)) ->  | K147: =IF(A147="","",VLOOKUP(A147,DG!$H$8:$P$2508,7,FALSE)) ->  | M147: =IF(A147="","",VLOOKUP(A147,DG!$H$8:$P$2508,8,FALSE)) ->  | P147: =IF(A147="","",VLOOKUP(A147,DG!$H$8:$P$2508,9,FALSE)) ->  | U147: =IF(A147="","",VLOOKUP(A147,DG!$H$8:$R$2508,11,FALSE)) ->  | AR147: =IF(AS147="","",VLOOKUP(AS147,DG!$H$8:$Q$2508,10,FALSE)) ->  | BA147: 0 | BB147: 0 | BC147: 0
A148: =IF(W120="","",IF(ISERROR(VLOOKUP(CONCATENATE(AB120,B148),DG!$B$8:$H$2508,7,FALSE)),"",VLOOKUP(CONCATENATE(AB120,B148),DG!$B$8:$H$2508,7,FALSE))) ->  | B148: 15 | C148: =IF(A148="","",VLOOKUP(A148,DG!$H$8:$P$2508,5,FALSE)) ->  | J148: =IF(A148="","",VLOOKUP(A148,DG!$H$8:$P$2508,6,FALSE)) ->  | K148: =IF(A148="","",VLOOKUP(A148,DG!$H$8:$P$2508,7,FALSE)) ->  | M148: =IF(A148="","",VLOOKUP(A148,DG!$H$8:$P$2508,8,FALSE)) ->  | P148: =IF(A148="","",VLOOKUP(A148,DG!$H$8:$P$2508,9,FALSE)) ->  | U148: =IF(A148="","",VLOOKUP(A148,DG!$H$8:$R$2508,11,FALSE)) ->  | AR148: =IF(AS148="","",VLOOKUP(AS148,DG!$H$8:$Q$2508,10,FALSE)) ->  | BA148: 0 | BB148: 0 | BC148: 0
A149: =IF(W120="","",IF(ISERROR(VLOOKUP(CONCATENATE(AB120,B149),DG!$B$8:$H$2508,7,FALSE)),"",VLOOKUP(CONCATENATE(AB120,B149),DG!$B$8:$H$2508,7,FALSE))) ->  | B149: 16 | C149: =IF(A149="","",VLOOKUP(A149,DG!$H$8:$P$2508,5,FALSE)) ->  | J149: =IF(A149="","",VLOOKUP(A149,DG!$H$8:$P$2508,6,FALSE)) ->  | K149: =IF(A149="","",VLOOKUP(A149,DG!$H$8:$P$2508,7,FALSE)) ->  | M149: =IF(A149="","",VLOOKUP(A149,DG!$H$8:$P$2508,8,FALSE)) ->  | P149: =IF(A149="","",VLOOKUP(A149,DG!$H$8:$P$2508,9,FALSE)) ->  | U149: =IF(A149="","",VLOOKUP(A149,DG!$H$8:$R$2508,11,FALSE)) ->  | AR149: =IF(AS149="","",VLOOKUP(AS149,DG!$H$8:$Q$2508,10,FALSE)) ->  | BA149: 0 | BB149: 0 | BC149: 0
A150: =IF(W120="","",IF(ISERROR(VLOOKUP(CONCATENATE(AB120,B150),DG!$B$8:$H$2508,7,FALSE)),"",VLOOKUP(CONCATENATE(AB120,B150),DG!$B$8:$H$2508,7,FALSE))) ->  | B150: 17 | C150: =IF(A150="","",VLOOKUP(A150,DG!$H$8:$P$2508,5,FALSE)) ->  | J150: =IF(A150="","",VLOOKUP(A150,DG!$H$8:$P$2508,6,FALSE)) ->  | K150: =IF(A150="","",VLOOKUP(A150,DG!$H$8:$P$2508,7,FALSE)) ->  | M150: =IF(A150="","",VLOOKUP(A150,DG!$H$8:$P$2508,8,FALSE)) ->  | P150: =IF(A150="","",VLOOKUP(A150,DG!$H$8:$P$2508,9,FALSE)) ->  | U150: =IF(A150="","",VLOOKUP(A150,DG!$H$8:$R$2508,11,FALSE)) ->  | AR150: =IF(AS150="","",VLOOKUP(AS150,DG!$H$8:$Q$2508,10,FALSE)) ->  | BA150: 0 | BB150: 0 | BC150: 0
A151: =IF(W120="","",IF(ISERROR(VLOOKUP(CONCATENATE(AB120,B151),DG!$B$8:$H$2508,7,FALSE)),"",VLOOKUP(CONCATENATE(AB120,B151),DG!$B$8:$H$2508,7,FALSE))) ->  | B151: 18 | C151: =IF(A151="","",VLOOKUP(A151,DG!$H$8:$P$2508,5,FALSE)) ->  | J151: =IF(A151="","",VLOOKUP(A151,DG!$H$8:$P$2508,6,FALSE)) ->  | K151: =IF(A151="","",VLOOKUP(A151,DG!$H$8:$P$2508,7,FALSE)) ->  | M151: =IF(A151="","",VLOOKUP(A151,DG!$H$8:$P$2508,8,FALSE)) ->  | P151: =IF(A151="","",VLOOKUP(A151,DG!$H$8:$P$2508,9,FALSE)) ->  | U151: =IF(A151="","",VLOOKUP(A151,DG!$H$8:$R$2508,11,FALSE)) ->  | AR151: =IF(AS151="","",VLOOKUP(AS151,DG!$H$8:$Q$2508,10,FALSE)) ->  | BA151: 0 | BB151: 0 | BC151: 0
A152: =IF(W120="","",IF(ISERROR(VLOOKUP(CONCATENATE(AB120,B152),DG!$B$8:$H$2508,7,FALSE)),"",VLOOKUP(CONCATENATE(AB120,B152),DG!$B$8:$H$2508,7,FALSE))) ->  | B152: 19 | C152: =IF(A152="","",VLOOKUP(A152,DG!$H$8:$P$2508,5,FALSE)) ->  | J152: =IF(A152="","",VLOOKUP(A152,DG!$H$8:$P$2508,6,FALSE)) ->  | K152: =IF(A152="","",VLOOKUP(A152,DG!$H$8:$P$2508,7,FALSE)) ->  | M152: =IF(A152="","",VLOOKUP(A152,DG!$H$8:$P$2508,8,FALSE)) ->  | P152: =IF(A152="","",VLOOKUP(A152,DG!$H$8:$P$2508,9,FALSE)) ->  | U152: =IF(A152="","",VLOOKUP(A152,DG!$H$8:$R$2508,11,FALSE)) ->  | AR152: =IF(AS152="","",VLOOKUP(AS152,DG!$H$8:$Q$2508,10,FALSE)) ->  | BA152: 0 | BB152: 0 | BC152: 0
A153: =IF(W120="","",IF(ISERROR(VLOOKUP(CONCATENATE(AB120,B153),DG!$B$8:$H$2508,7,FALSE)),"",VLOOKUP(CONCATENATE(AB120,B153),DG!$B$8:$H$2508,7,FALSE))) ->  | B153: 20 | C153: =IF(A153="","",VLOOKUP(A153,DG!$H$8:$P$2508,5,FALSE)) ->  | J153: =IF(A153="","",VLOOKUP(A153,DG!$H$8:$P$2508,6,FALSE)) ->  | K153: =IF(A153="","",VLOOKUP(A153,DG!$H$8:$P$2508,7,FALSE)) ->  | M153: =IF(A153="","",VLOOKUP(A153,DG!$H$8:$P$2508,8,FALSE)) ->  | P153: =IF(A153="","",VLOOKUP(A153,DG!$H$8:$P$2508,9,FALSE)) ->  | U153: =IF(A153="","",VLOOKUP(A153,DG!$H$8:$R$2508,11,FALSE)) ->  | AR153: =IF(AS153="","",VLOOKUP(AS153,DG!$H$8:$Q$2508,10,FALSE)) ->  | BA153: 0 | BB153: 0 | BC153: 0
A154: =IF(W120="","",IF(ISERROR(VLOOKUP(CONCATENATE(AB120,B154),DG!$B$8:$H$2508,7,FALSE)),"",VLOOKUP(CONCATENATE(AB120,B154),DG!$B$8:$H$2508,7,FALSE))) ->  | B154: 21 | C154: =IF(A154="","",VLOOKUP(A154,DG!$H$8:$P$2508,5,FALSE)) ->  | J154: =IF(A154="","",VLOOKUP(A154,DG!$H$8:$P$2508,6,FALSE)) ->  | K154: =IF(A154="","",VLOOKUP(A154,DG!$H$8:$P$2508,7,FALSE)) ->  | M154: =IF(A154="","",VLOOKUP(A154,DG!$H$8:$P$2508,8,FALSE)) ->  | P154: =IF(A154="","",VLOOKUP(A154,DG!$H$8:$P$2508,9,FALSE)) ->  | U154: =IF(A154="","",VLOOKUP(A154,DG!$H$8:$R$2508,11,FALSE)) ->  | AR154: =IF(AS154="","",VLOOKUP(AS154,DG!$H$8:$Q$2508,10,FALSE)) ->  | BA154: 0 | BB154: 0 | BC154: 0
A155: =IF(W120="","",IF(ISERROR(VLOOKUP(CONCATENATE(AB120,B155),DG!$B$8:$H$2508,7,FALSE)),"",VLOOKUP(CONCATENATE(AB120,B155),DG!$B$8:$H$2508,7,FALSE))) ->  | B155: 22 | C155: =IF(A155="","",VLOOKUP(A155,DG!$H$8:$P$2508,5,FALSE)) ->  | J155: =IF(A155="","",VLOOKUP(A155,DG!$H$8:$P$2508,6,FALSE)) ->  | K155: =IF(A155="","",VLOOKUP(A155,DG!$H$8:$P$2508,7,FALSE)) ->  | M155: =IF(A155="","",VLOOKUP(A155,DG!$H$8:$P$2508,8,FALSE)) ->  | P155: =IF(A155="","",VLOOKUP(A155,DG!$H$8:$P$2508,9,FALSE)) ->  | U155: =IF(A155="","",VLOOKUP(A155,DG!$H$8:$R$2508,11,FALSE)) ->  | AR155: =IF(AS155="","",VLOOKUP(AS155,DG!$H$8:$Q$2508,10,FALSE)) ->  | BA155: 0 | BB155: 0 | BC155: 0
A156: =IF(W120="","",IF(ISERROR(VLOOKUP(CONCATENATE(AB120,B156),DG!$B$8:$H$2508,7,FALSE)),"",VLOOKUP(CONCATENATE(AB120,B156),DG!$B$8:$H$2508,7,FALSE))) ->  | B156: 23 | C156: =IF(A156="","",VLOOKUP(A156,DG!$H$8:$P$2508,5,FALSE)) ->  | J156: =IF(A156="","",VLOOKUP(A156,DG!$H$8:$P$2508,6,FALSE)) ->  | K156: =IF(A156="","",VLOOKUP(A156,DG!$H$8:$P$2508,7,FALSE)) ->  | M156: =IF(A156="","",VLOOKUP(A156,DG!$H$8:$P$2508,8,FALSE)) ->  | P156: =IF(A156="","",VLOOKUP(A156,DG!$H$8:$P$2508,9,FALSE)) ->  | U156: =IF(A156="","",VLOOKUP(A156,DG!$H$8:$R$2508,11,FALSE)) ->  | AR156: =IF(AS156="","",VLOOKUP(AS156,DG!$H$8:$Q$2508,10,FALSE)) ->  | BA156: 0 | BB156: 0 | BC156: 0
A157: =IF(W120="","",IF(ISERROR(VLOOKUP(CONCATENATE(AB120,B157),DG!$B$8:$H$2508,7,FALSE)),"",VLOOKUP(CONCATENATE(AB120,B157),DG!$B$8:$H$2508,7,FALSE))) ->  | B157: 24 | C157: =IF(A157="","",VLOOKUP(A157,DG!$H$8:$P$2508,5,FALSE)) ->  | J157: =IF(A157="","",VLOOKUP(A157,DG!$H$8:$P$2508,6,FALSE)) ->  | K157: =IF(A157="","",VLOOKUP(A157,DG!$H$8:$P$2508,7,FALSE)) ->  | M157: =IF(A157="","",VLOOKUP(A157,DG!$H$8:$P$2508,8,FALSE)) ->  | P157: =IF(A157="","",VLOOKUP(A157,DG!$H$8:$P$2508,9,FALSE)) ->  | U157: =IF(A157="","",VLOOKUP(A157,DG!$H$8:$R$2508,11,FALSE)) ->  | AR157: =IF(AS157="","",VLOOKUP(AS157,DG!$H$8:$Q$2508,10,FALSE)) ->  | BA157: 0 | BB157: 0 | BC157: 0
A158: =IF(W120="","",IF(ISERROR(VLOOKUP(CONCATENATE(AB120,B158),DG!$B$8:$H$2508,7,FALSE)),"",VLOOKUP(CONCATENATE(AB120,B158),DG!$B$8:$H$2508,7,FALSE))) ->  | B158: 25 | C158: =IF(A158="","",VLOOKUP(A158,DG!$H$8:$P$2508,5,FALSE)) ->  | J158: =IF(A158="","",VLOOKUP(A158,DG!$H$8:$P$2508,6,FALSE)) ->  | K158: =IF(A158="","",VLOOKUP(A158,DG!$H$8:$P$2508,7,FALSE)) ->  | M158: =IF(A158="","",VLOOKUP(A158,DG!$H$8:$P$2508,8,FALSE)) ->  | P158: =IF(A158="","",VLOOKUP(A158,DG!$H$8:$P$2508,9,FALSE)) ->  | U158: =IF(A158="","",VLOOKUP(A158,DG!$H$8:$R$2508,11,FALSE)) ->  | AR158: =IF(AS158="","",VLOOKUP(AS158,DG!$H$8:$Q$2508,10,FALSE)) ->  | BA158: 0 | BB158: 0 | BC158: 0
A159: =IF(W120="","",IF(ISERROR(VLOOKUP(CONCATENATE(AB120,B159),DG!$B$8:$H$2508,7,FALSE)),"",VLOOKUP(CONCATENATE(AB120,B159),DG!$B$8:$H$2508,7,FALSE))) ->  | B159: 26 | C159: =IF(A159="","",VLOOKUP(A159,DG!$H$8:$P$2508,5,FALSE)) ->  | J159: =IF(A159="","",VLOOKUP(A159,DG!$H$8:$P$2508,6,FALSE)) ->  | K159: =IF(A159="","",VLOOKUP(A159,DG!$H$8:$P$2508,7,FALSE)) ->  | M159: =IF(A159="","",VLOOKUP(A159,DG!$H$8:$P$2508,8,FALSE)) ->  | P159: =IF(A159="","",VLOOKUP(A159,DG!$H$8:$P$2508,9,FALSE)) ->  | U159: =IF(A159="","",VLOOKUP(A159,DG!$H$8:$R$2508,11,FALSE)) ->  | AR159: =IF(AS159="","",VLOOKUP(AS159,DG!$H$8:$Q$2508,10,FALSE)) ->  | BA159: 0 | BB159: 0 | BC159: 0
A160: =IF(W120="","",IF(ISERROR(VLOOKUP(CONCATENATE(AB120,B160),DG!$B$8:$H$2508,7,FALSE)),"",VLOOKUP(CONCATENATE(AB120,B160),DG!$B$8:$H$2508,7,FALSE))) ->  | B160: 27 | C160: =IF(A160="","",VLOOKUP(A160,DG!$H$8:$P$2508,5,FALSE)) ->  | J160: =IF(A160="","",VLOOKUP(A160,DG!$H$8:$P$2508,6,FALSE)) ->  | K160: =IF(A160="","",VLOOKUP(A160,DG!$H$8:$P$2508,7,FALSE)) ->  | M160: =IF(A160="","",VLOOKUP(A160,DG!$H$8:$P$2508,8,FALSE)) ->  | P160: =IF(A160="","",VLOOKUP(A160,DG!$H$8:$P$2508,9,FALSE)) ->  | U160: =IF(A160="","",VLOOKUP(A160,DG!$H$8:$R$2508,11,FALSE)) ->  | AR160: =IF(AS160="","",VLOOKUP(AS160,DG!$H$8:$Q$2508,10,FALSE)) ->  | BA160: 0 | BB160: 0 | BC160: 0
A161: =IF(W120="","",IF(ISERROR(VLOOKUP(CONCATENATE(AB120,B161),DG!$B$8:$H$2508,7,FALSE)),"",VLOOKUP(CONCATENATE(AB120,B161),DG!$B$8:$H$2508,7,FALSE))) ->  | B161: 28 | C161: =IF(A161="","",VLOOKUP(A161,DG!$H$8:$P$2508,5,FALSE)) ->  | J161: =IF(A161="","",VLOOKUP(A161,DG!$H$8:$P$2508,6,FALSE)) ->  | K161: =IF(A161="","",VLOOKUP(A161,DG!$H$8:$P$2508,7,FALSE)) ->  | M161: =IF(A161="","",VLOOKUP(A161,DG!$H$8:$P$2508,8,FALSE)) ->  | P161: =IF(A161="","",VLOOKUP(A161,DG!$H$8:$P$2508,9,FALSE)) ->  | U161: =IF(A161="","",VLOOKUP(A161,DG!$H$8:$R$2508,11,FALSE)) ->  | AR161: =IF(AS161="","",VLOOKUP(AS161,DG!$H$8:$Q$2508,10,FALSE)) ->  | BA161: 0 | BB161: 0 | BC161: 0
A162: =IF(W120="","",IF(ISERROR(VLOOKUP(CONCATENATE(AB120,B162),DG!$B$8:$H$2508,7,FALSE)),"",VLOOKUP(CONCATENATE(AB120,B162),DG!$B$8:$H$2508,7,FALSE))) ->  | B162: 29 | C162: =IF(A162="","",VLOOKUP(A162,DG!$H$8:$P$2508,5,FALSE)) ->  | J162: =IF(A162="","",VLOOKUP(A162,DG!$H$8:$P$2508,6,FALSE)) ->  | K162: =IF(A162="","",VLOOKUP(A162,DG!$H$8:$P$2508,7,FALSE)) ->  | M162: =IF(A162="","",VLOOKUP(A162,DG!$H$8:$P$2508,8,FALSE)) ->  | P162: =IF(A162="","",VLOOKUP(A162,DG!$H$8:$P$2508,9,FALSE)) ->  | U162: =IF(A162="","",VLOOKUP(A162,DG!$H$8:$R$2508,11,FALSE)) ->  | AR162: =IF(AS162="","",VLOOKUP(AS162,DG!$H$8:$Q$2508,10,FALSE)) ->  | BA162: 0 | BB162: 0 | BC162: 0
A163: =IF(W120="","",IF(ISERROR(VLOOKUP(CONCATENATE(AB120,B163),DG!$B$8:$H$2508,7,FALSE)),"",VLOOKUP(CONCATENATE(AB120,B163),DG!$B$8:$H$2508,7,FALSE))) ->  | B163: 30 | C163: =IF(A163="","",VLOOKUP(A163,DG!$H$8:$P$2508,5,FALSE)) ->  | J163: =IF(A163="","",VLOOKUP(A163,DG!$H$8:$P$2508,6,FALSE)) ->  | K163: =IF(A163="","",VLOOKUP(A163,DG!$H$8:$P$2508,7,FALSE)) ->  | M163: =IF(A163="","",VLOOKUP(A163,DG!$H$8:$P$2508,8,FALSE)) ->  | P163: =IF(A163="","",VLOOKUP(A163,DG!$H$8:$P$2508,9,FALSE)) ->  | U163: =IF(A163="","",VLOOKUP(A163,DG!$H$8:$R$2508,11,FALSE)) ->  | AR163: =IF(AS163="","",VLOOKUP(AS163,DG!$H$8:$Q$2508,10,FALSE)) ->  | BA163: 0 | BB163: 0 | BC163: 0
N164: Totais | Q164: =COUNTIF(Q134:Q163,"s") -> 0 | R164: =SUM(R134:T163) -> 0
B166: Observações:
W168: O Professor Responsável
G172: =PLANO!$G$1 -> Agrupamento de Escolas Augusto Cabrita
G173: =PLANO!$G$2 -> Sede – Escola Secundária Augusto Cabrita
G174: =PLANO!$G$3 -> Rua Maria Lamas – Alto Seixalinho – 2830-088 Barreiro
G175: =PLANO!$G$4 -> Tel 212059220 - Fax 212059228 - E-mail: direcao@aeaugustocabrita.edu.pt
B177: LISTAGEM DE ALUNOS | Q177: =IF(W177=0,"A Turma não Participa","") ->  | W177: =VLOOKUP(X177,$AF$9:$AH$56,3,FALSE) ->  | X177: 4 | Y177: TURMA | AB177: =VLOOKUP(X177,$AF$9:$AH$56,2,FALSE) -> 5D
B179: =PLANO!$B$8 -> Designação da V. Estudo | J179: =IF(W177=0,"",PLANO!$J$8) -> Eco-ementas | AA179: Ano : | AB179: =DG!$EC$1 -> 15 | AC179: / | AD179: =DG!$EE$1 -> 16
B180: Organizada por : | J180: =IF(W177=0,"",PLANO!$J$9) -> 7º F | Z180: atividade Nº | AC180: =IF(W177=0,"",PLANO!$AG$9) -> 0
B182: =PLANO!$A$11 -> Locais | E182: - | F182: =IF(W177=0,"",IF(PLANO!$F$11="","",PLANO!$F$11)) ->  | R182: - | S182: =IF(W177=0,"",IF(PLANO!$U$11="","",PLANO!$U$11)) -> 
B183: =PLANO!$A$12 -> a visitar | E183: - | F183: =IF(W177=0,"",IF(PLANO!$F$12="","",PLANO!$F$12)) ->  | R183: - | S183: =IF(W177=0,"",IF(PLANO!$U$12="","",PLANO!$U$12)) -> 
B185: Início | F185: Local: | H185: =IF(W177=0,"",IF(PLANO!$H$14="","",PLANO!$H$14)) -> EB23 P. Abílio Mendes | O185: Dia : | P185: =IF(W177=0,"",IF(PLANO!$R$14="","",PLANO!$R$14)) ->  | Q185: / | R185: =IF(W177=0,"",IF(PLANO!$T$14="","",PLANO!$T$14)) ->  | S185: / | T185: =IF(W177=0,"",IF(PLANO!$V$14="","",PLANO!$V$14)) ->  | W185: Hora : | X185: =IF(W177=0,"",IF(PLANO!$AA$14="","",PLANO!$AA$14)) ->  | Y185: h | Z185: e | AA185: =IF(W177=0,"",IF(PLANO!$AD$14="","",PLANO!$AD$14)) ->  | AB185: minutos
B186: Fim | F186: Local: | H186: =IF(W177=0,"",IF(PLANO!$H$15="","",PLANO!$H$15)) -> EB23 P. Abílio Mendes | O186: Dia : | P186: =IF(W177=0,"",IF(PLANO!$R$15="","",PLANO!$R$15)) ->  | Q186: / | R186: =IF(W177=0,"",IF(PLANO!$T$15="","",PLANO!$T$15)) ->  | S186: / | T186: =IF(W177=0,"",IF(PLANO!$V$15="","",PLANO!$V$15)) ->  | W186: Hora : | X186: =IF(W177=0,"",IF(PLANO!$AA$15="","",PLANO!$AA$15)) ->  | Y186: h | Z186: e | AA186: =IF(W177=0,"",IF(PLANO!$AD$15="","",PLANO!$AD$15)) ->  | AB186: minutos
B188: Custo | F188: =IF(W177=0,"",IF(PLANO!$F$17="","",PLANO!$F$17)) -> 0 | I188: Euros | N188: Transporte : | Q188: =IF(W177=0,"",IF(PLANO!$T$17="","",PLANO!$T$17)) -> 
A190: NP | B190: Nº | C190: Nome | J190: ASE | K190: SS | M190: Nº SS | P190: MD | Q190: S/N | R190: Pagou | U190: Contacto EE | X190: Observações | AF190: Voltar à 1ª página com Hiperligações
A191: =IF(W177="","",IF(ISERROR(VLOOKUP(CONCATENATE(AB177,B191),DG!$B$8:$H$2508,7,FALSE)),"",VLOOKUP(CONCATENATE(AB177,B191),DG!$B$8:$H$2508,7,FALSE))) ->  | B191: 1 | C191: =IF(A191="","",VLOOKUP(A191,DG!$H$8:$P$2508,5,FALSE)) ->  | J191: =IF(A191="","",VLOOKUP(A191,DG!$H$8:$P$2508,6,FALSE)) ->  | K191: =IF(A191="","",VLOOKUP(A191,DG!$H$8:$P$2508,7,FALSE)) ->  | M191: =IF(A191="","",VLOOKUP(A191,DG!$H$8:$P$2508,8,FALSE)) ->  | P191: =IF(A191="","",VLOOKUP(A191,DG!$H$8:$P$2508,9,FALSE)) ->  | U191: =IF(A191="","",VLOOKUP(A191,DG!$H$8:$R$2508,11,FALSE)) ->  | AR191: =IF(AS191="","",VLOOKUP(AS191,DG!$H$8:$Q$2508,10,FALSE)) ->  | AS191: =IF(A191="","",A191) ->  | AT191: =IF(AS191="","",IF(Q191="s",1,0)) ->  | AU191: =IF(AS191="","",IF(Q191="n",1,0)) ->  | AV191: =IF(AS191="","",IF(J191="A",1,0)) ->  | AW191: =IF(AS191="","",IF(CONCATENATE(Q191,J191)="SA",1,0)) ->  | AX191: =IF(AS191="","",IF(J191="b",1,0)) ->  | AY191: =IF(AS191="","",IF(CONCATENATE(Q191,J191)="Sb",1,0)) ->  | AZ191: =IF(AS191="","",IF(P191="x",1,0)) ->  | BA191: =IF(AS191="",0,R191) -> 0 | BB191: =IF(AS191="",0,IF(AW191=1,R191,0)) -> 0 | BC191: =IF(AS191="",0,IF(AY191=1,R191,0)) -> 0 | BD191: =IF(AS191="","",IF(AND(AT191=1,BA191>0),1,0)) ->  | BE191: =IF(AS191="","",IF(AND(AT191=1,BA191=0),1,0)) -> 
A192: =IF(W177="","",IF(ISERROR(VLOOKUP(CONCATENATE(AB177,B192),DG!$B$8:$H$2508,7,FALSE)),"",VLOOKUP(CONCATENATE(AB177,B192),DG!$B$8:$H$2508,7,FALSE))) ->  | B192: 2 | C192: =IF(A192="","",VLOOKUP(A192,DG!$H$8:$P$2508,5,FALSE)) ->  | J192: =IF(A192="","",VLOOKUP(A192,DG!$H$8:$P$2508,6,FALSE)) ->  | K192: =IF(A192="","",VLOOKUP(A192,DG!$H$8:$P$2508,7,FALSE)) ->  | M192: =IF(A192="","",VLOOKUP(A192,DG!$H$8:$P$2508,8,FALSE)) ->  | P192: =IF(A192="","",VLOOKUP(A192,DG!$H$8:$P$2508,9,FALSE)) ->  | U192: =IF(A192="","",VLOOKUP(A192,DG!$H$8:$R$2508,11,FALSE)) ->  | AR192: =IF(AS192="","",VLOOKUP(AS192,DG!$H$8:$Q$2508,10,FALSE)) ->  | BA192: 0 | BB192: 0 | BC192: 0
A193: =IF(W177="","",IF(ISERROR(VLOOKUP(CONCATENATE(AB177,B193),DG!$B$8:$H$2508,7,FALSE)),"",VLOOKUP(CONCATENATE(AB177,B193),DG!$B$8:$H$2508,7,FALSE))) ->  | B193: 3 | C193: =IF(A193="","",VLOOKUP(A193,DG!$H$8:$P$2508,5,FALSE)) ->  | J193: =IF(A193="","",VLOOKUP(A193,DG!$H$8:$P$2508,6,FALSE)) ->  | K193: =IF(A193="","",VLOOKUP(A193,DG!$H$8:$P$2508,7,FALSE)) ->  | M193: =IF(A193="","",VLOOKUP(A193,DG!$H$8:$P$2508,8,FALSE)) ->  | P193: =IF(A193="","",VLOOKUP(A193,DG!$H$8:$P$2508,9,FALSE)) ->  | U193: =IF(A193="","",VLOOKUP(A193,DG!$H$8:$R$2508,11,FALSE)) ->  | AR193: =IF(AS193="","",VLOOKUP(AS193,DG!$H$8:$Q$2508,10,FALSE)) ->  | BA193: 0 | BB193: 0 | BC193: 0
A194: =IF(W177="","",IF(ISERROR(VLOOKUP(CONCATENATE(AB177,B194),DG!$B$8:$H$2508,7,FALSE)),"",VLOOKUP(CONCATENATE(AB177,B194),DG!$B$8:$H$2508,7,FALSE))) ->  | B194: 4 | C194: =IF(A194="","",VLOOKUP(A194,DG!$H$8:$P$2508,5,FALSE)) ->  | J194: =IF(A194="","",VLOOKUP(A194,DG!$H$8:$P$2508,6,FALSE)) ->  | K194: =IF(A194="","",VLOOKUP(A194,DG!$H$8:$P$2508,7,FALSE)) ->  | M194: =IF(A194="","",VLOOKUP(A194,DG!$H$8:$P$2508,8,FALSE)) ->  | P194: =IF(A194="","",VLOOKUP(A194,DG!$H$8:$P$2508,9,FALSE)) ->  | U194: =IF(A194="","",VLOOKUP(A194,DG!$H$8:$R$2508,11,FALSE)) ->  | AR194: =IF(AS194="","",VLOOKUP(AS194,DG!$H$8:$Q$2508,10,FALSE)) ->  | BA194: 0 | BB194: 0 | BC194: 0
A195: =IF(W177="","",IF(ISERROR(VLOOKUP(CONCATENATE(AB177,B195),DG!$B$8:$H$2508,7,FALSE)),"",VLOOKUP(CONCATENATE(AB177,B195),DG!$B$8:$H$2508,7,FALSE))) ->  | B195: 5 | C195: =IF(A195="","",VLOOKUP(A195,DG!$H$8:$P$2508,5,FALSE)) ->  | J195: =IF(A195="","",VLOOKUP(A195,DG!$H$8:$P$2508,6,FALSE)) ->  | K195: =IF(A195="","",VLOOKUP(A195,DG!$H$8:$P$2508,7,FALSE)) ->  | M195: =IF(A195="","",VLOOKUP(A195,DG!$H$8:$P$2508,8,FALSE)) ->  | P195: =IF(A195="","",VLOOKUP(A195,DG!$H$8:$P$2508,9,FALSE)) ->  | U195: =IF(A195="","",VLOOKUP(A195,DG!$H$8:$R$2508,11,FALSE)) ->  | AR195: =IF(AS195="","",VLOOKUP(AS195,DG!$H$8:$Q$2508,10,FALSE)) ->  | BA195: 0 | BB195: 0 | BC195: 0
A196: =IF(W177="","",IF(ISERROR(VLOOKUP(CONCATENATE(AB177,B196),DG!$B$8:$H$2508,7,FALSE)),"",VLOOKUP(CONCATENATE(AB177,B196),DG!$B$8:$H$2508,7,FALSE))) ->  | B196: 6 | C196: =IF(A196="","",VLOOKUP(A196,DG!$H$8:$P$2508,5,FALSE)) ->  | J196: =IF(A196="","",VLOOKUP(A196,DG!$H$8:$P$2508,6,FALSE)) ->  | K196: =IF(A196="","",VLOOKUP(A196,DG!$H$8:$P$2508,7,FALSE)) ->  | M196: =IF(A196="","",VLOOKUP(A196,DG!$H$8:$P$2508,8,FALSE)) ->  | P196: =IF(A196="","",VLOOKUP(A196,DG!$H$8:$P$2508,9,FALSE)) ->  | U196: =IF(A196="","",VLOOKUP(A196,DG!$H$8:$R$2508,11,FALSE)) ->  | AR196: =IF(AS196="","",VLOOKUP(AS196,DG!$H$8:$Q$2508,10,FALSE)) ->  | BA196: 0 | BB196: 0 | BC196: 0
A197: =IF(W177="","",IF(ISERROR(VLOOKUP(CONCATENATE(AB177,B197),DG!$B$8:$H$2508,7,FALSE)),"",VLOOKUP(CONCATENATE(AB177,B197),DG!$B$8:$H$2508,7,FALSE))) ->  | B197: 7 | C197: =IF(A197="","",VLOOKUP(A197,DG!$H$8:$P$2508,5,FALSE)) ->  | J197: =IF(A197="","",VLOOKUP(A197,DG!$H$8:$P$2508,6,FALSE)) ->  | K197: =IF(A197="","",VLOOKUP(A197,DG!$H$8:$P$2508,7,FALSE)) ->  | M197: =IF(A197="","",VLOOKUP(A197,DG!$H$8:$P$2508,8,FALSE)) ->  | P197: =IF(A197="","",VLOOKUP(A197,DG!$H$8:$P$2508,9,FALSE)) ->  | U197: =IF(A197="","",VLOOKUP(A197,DG!$H$8:$R$2508,11,FALSE)) ->  | AR197: =IF(AS197="","",VLOOKUP(AS197,DG!$H$8:$Q$2508,10,FALSE)) ->  | BA197: 0 | BB197: 0 | BC197: 0
A198: =IF(W177="","",IF(ISERROR(VLOOKUP(CONCATENATE(AB177,B198),DG!$B$8:$H$2508,7,FALSE)),"",VLOOKUP(CONCATENATE(AB177,B198),DG!$B$8:$H$2508,7,FALSE))) ->  | B198: 8 | C198: =IF(A198="","",VLOOKUP(A198,DG!$H$8:$P$2508,5,FALSE)) ->  | J198: =IF(A198="","",VLOOKUP(A198,DG!$H$8:$P$2508,6,FALSE)) ->  | K198: =IF(A198="","",VLOOKUP(A198,DG!$H$8:$P$2508,7,FALSE)) ->  | M198: =IF(A198="","",VLOOKUP(A198,DG!$H$8:$P$2508,8,FALSE)) ->  | P198: =IF(A198="","",VLOOKUP(A198,DG!$H$8:$P$2508,9,FALSE)) ->  | U198: =IF(A198="","",VLOOKUP(A198,DG!$H$8:$R$2508,11,FALSE)) ->  | AR198: =IF(AS198="","",VLOOKUP(AS198,DG!$H$8:$Q$2508,10,FALSE)) ->  | BA198: 0 | BB198: 0 | BC198: 0
A199: =IF(W177="","",IF(ISERROR(VLOOKUP(CONCATENATE(AB177,B199),DG!$B$8:$H$2508,7,FALSE)),"",VLOOKUP(CONCATENATE(AB177,B199),DG!$B$8:$H$2508,7,FALSE))) ->  | B199: 9 | C199: =IF(A199="","",VLOOKUP(A199,DG!$H$8:$P$2508,5,FALSE)) ->  | J199: =IF(A199="","",VLOOKUP(A199,DG!$H$8:$P$2508,6,FALSE)) ->  | K199: =IF(A199="","",VLOOKUP(A199,DG!$H$8:$P$2508,7,FALSE)) ->  | M199: =IF(A199="","",VLOOKUP(A199,DG!$H$8:$P$2508,8,FALSE)) ->  | P199: =IF(A199="","",VLOOKUP(A199,DG!$H$8:$P$2508,9,FALSE)) ->  | U199: =IF(A199="","",VLOOKUP(A199,DG!$H$8:$R$2508,11,FALSE)) ->  | AR199: =IF(AS199="","",VLOOKUP(AS199,DG!$H$8:$Q$2508,10,FALSE)) ->  | BA199: 0 | BB199: 0 | BC199: 0
A200: =IF(W177="","",IF(ISERROR(VLOOKUP(CONCATENATE(AB177,B200),DG!$B$8:$H$2508,7,FALSE)),"",VLOOKUP(CONCATENATE(AB177,B200),DG!$B$8:$H$2508,7,FALSE))) ->  | B200: 10 | C200: =IF(A200="","",VLOOKUP(A200,DG!$H$8:$P$2508,5,FALSE)) ->  | J200: =IF(A200="","",VLOOKUP(A200,DG!$H$8:$P$2508,6,FALSE)) ->  | K200: =IF(A200="","",VLOOKUP(A200,DG!$H$8:$P$2508,7,FALSE)) ->  | M200: =IF(A200="","",VLOOKUP(A200,DG!$H$8:$P$2508,8,FALSE)) ->  | P200: =IF(A200="","",VLOOKUP(A200,DG!$H$8:$P$2508,9,FALSE)) ->  | U200: =IF(A200="","",VLOOKUP(A200,DG!$H$8:$R$2508,11,FALSE)) ->  | AR200: =IF(AS200="","",VLOOKUP(AS200,DG!$H$8:$Q$2508,10,FALSE)) ->  | BA200: 0 | BB200: 0 | BC200: 0
A201: =IF(W177="","",IF(ISERROR(VLOOKUP(CONCATENATE(AB177,B201),DG!$B$8:$H$2508,7,FALSE)),"",VLOOKUP(CONCATENATE(AB177,B201),DG!$B$8:$H$2508,7,FALSE))) ->  | B201: 11 | C201: =IF(A201="","",VLOOKUP(A201,DG!$H$8:$P$2508,5,FALSE)) ->  | J201: =IF(A201="","",VLOOKUP(A201,DG!$H$8:$P$2508,6,FALSE)) ->  | K201: =IF(A201="","",VLOOKUP(A201,DG!$H$8:$P$2508,7,FALSE)) ->  | M201: =IF(A201="","",VLOOKUP(A201,DG!$H$8:$P$2508,8,FALSE)) ->  | P201: =IF(A201="","",VLOOKUP(A201,DG!$H$8:$P$2508,9,FALSE)) ->  | U201: =IF(A201="","",VLOOKUP(A201,DG!$H$8:$R$2508,11,FALSE)) ->  | AR201: =IF(AS201="","",VLOOKUP(AS201,DG!$H$8:$Q$2508,10,FALSE)) ->  | BA201: 0 | BB201: 0 | BC201: 0
A202: =IF(W177="","",IF(ISERROR(VLOOKUP(CONCATENATE(AB177,B202),DG!$B$8:$H$2508,7,FALSE)),"",VLOOKUP(CONCATENATE(AB177,B202),DG!$B$8:$H$2508,7,FALSE))) ->  | B202: 12 | C202: =IF(A202="","",VLOOKUP(A202,DG!$H$8:$P$2508,5,FALSE)) ->  | J202: =IF(A202="","",VLOOKUP(A202,DG!$H$8:$P$2508,6,FALSE)) ->  | K202: =IF(A202="","",VLOOKUP(A202,DG!$H$8:$P$2508,7,FALSE)) ->  | M202: =IF(A202="","",VLOOKUP(A202,DG!$H$8:$P$2508,8,FALSE)) ->  | P202: =IF(A202="","",VLOOKUP(A202,DG!$H$8:$P$2508,9,FALSE)) ->  | U202: =IF(A202="","",VLOOKUP(A202,DG!$H$8:$R$2508,11,FALSE)) ->  | AR202: =IF(AS202="","",VLOOKUP(AS202,DG!$H$8:$Q$2508,10,FALSE)) ->  | BA202: 0 | BB202: 0 | BC202: 0
A203: =IF(W177="","",IF(ISERROR(VLOOKUP(CONCATENATE(AB177,B203),DG!$B$8:$H$2508,7,FALSE)),"",VLOOKUP(CONCATENATE(AB177,B203),DG!$B$8:$H$2508,7,FALSE))) ->  | B203: 13 | C203: =IF(A203="","",VLOOKUP(A203,DG!$H$8:$P$2508,5,FALSE)) ->  | J203: =IF(A203="","",VLOOKUP(A203,DG!$H$8:$P$2508,6,FALSE)) ->  | K203: =IF(A203="","",VLOOKUP(A203,DG!$H$8:$P$2508,7,FALSE)) ->  | M203: =IF(A203="","",VLOOKUP(A203,DG!$H$8:$P$2508,8,FALSE)) ->  | P203: =IF(A203="","",VLOOKUP(A203,DG!$H$8:$P$2508,9,FALSE)) ->  | U203: =IF(A203="","",VLOOKUP(A203,DG!$H$8:$R$2508,11,FALSE)) ->  | AR203: =IF(AS203="","",VLOOKUP(AS203,DG!$H$8:$Q$2508,10,FALSE)) ->  | BA203: 0 | BB203: 0 | BC203: 0
A204: =IF(W177="","",IF(ISERROR(VLOOKUP(CONCATENATE(AB177,B204),DG!$B$8:$H$2508,7,FALSE)),"",VLOOKUP(CONCATENATE(AB177,B204),DG!$B$8:$H$2508,7,FALSE))) ->  | B204: 14 | C204: =IF(A204="","",VLOOKUP(A204,DG!$H$8:$P$2508,5,FALSE)) ->  | J204: =IF(A204="","",VLOOKUP(A204,DG!$H$8:$P$2508,6,FALSE)) ->  | K204: =IF(A204="","",VLOOKUP(A204,DG!$H$8:$P$2508,7,FALSE)) ->  | M204: =IF(A204="","",VLOOKUP(A204,DG!$H$8:$P$2508,8,FALSE)) ->  | P204: =IF(A204="","",VLOOKUP(A204,DG!$H$8:$P$2508,9,FALSE)) ->  | U204: =IF(A204="","",VLOOKUP(A204,DG!$H$8:$R$2508,11,FALSE)) ->  | AR204: =IF(AS204="","",VLOOKUP(AS204,DG!$H$8:$Q$2508,10,FALSE)) ->  | BA204: 0 | BB204: 0 | BC204: 0
A205: =IF(W177="","",IF(ISERROR(VLOOKUP(CONCATENATE(AB177,B205),DG!$B$8:$H$2508,7,FALSE)),"",VLOOKUP(CONCATENATE(AB177,B205),DG!$B$8:$H$2508,7,FALSE))) ->  | B205: 15 | C205: =IF(A205="","",VLOOKUP(A205,DG!$H$8:$P$2508,5,FALSE)) ->  | J205: =IF(A205="","",VLOOKUP(A205,DG!$H$8:$P$2508,6,FALSE)) ->  | K205: =IF(A205="","",VLOOKUP(A205,DG!$H$8:$P$2508,7,FALSE)) ->  | M205: =IF(A205="","",VLOOKUP(A205,DG!$H$8:$P$2508,8,FALSE)) ->  | P205: =IF(A205="","",VLOOKUP(A205,DG!$H$8:$P$2508,9,FALSE)) ->  | U205: =IF(A205="","",VLOOKUP(A205,DG!$H$8:$R$2508,11,FALSE)) ->  | AR205: =IF(AS205="","",VLOOKUP(AS205,DG!$H$8:$Q$2508,10,FALSE)) ->  | BA205: 0 | BB205: 0 | BC205: 0
A206: =IF(W177="","",IF(ISERROR(VLOOKUP(CONCATENATE(AB177,B206),DG!$B$8:$H$2508,7,FALSE)),"",VLOOKUP(CONCATENATE(AB177,B206),DG!$B$8:$H$2508,7,FALSE))) ->  | B206: 16 | C206: =IF(A206="","",VLOOKUP(A206,DG!$H$8:$P$2508,5,FALSE)) ->  | J206: =IF(A206="","",VLOOKUP(A206,DG!$H$8:$P$2508,6,FALSE)) ->  | K206: =IF(A206="","",VLOOKUP(A206,DG!$H$8:$P$2508,7,FALSE)) ->  | M206: =IF(A206="","",VLOOKUP(A206,DG!$H$8:$P$2508,8,FALSE)) ->  | P206: =IF(A206="","",VLOOKUP(A206,DG!$H$8:$P$2508,9,FALSE)) ->  | U206: =IF(A206="","",VLOOKUP(A206,DG!$H$8:$R$2508,11,FALSE)) ->  | AR206: =IF(AS206="","",VLOOKUP(AS206,DG!$H$8:$Q$2508,10,FALSE)) ->  | BA206: 0 | BB206: 0 | BC206: 0
A207: =IF(W177="","",IF(ISERROR(VLOOKUP(CONCATENATE(AB177,B207),DG!$B$8:$H$2508,7,FALSE)),"",VLOOKUP(CONCATENATE(AB177,B207),DG!$B$8:$H$2508,7,FALSE))) ->  | B207: 17 | C207: =IF(A207="","",VLOOKUP(A207,DG!$H$8:$P$2508,5,FALSE)) ->  | J207: =IF(A207="","",VLOOKUP(A207,DG!$H$8:$P$2508,6,FALSE)) ->  | K207: =IF(A207="","",VLOOKUP(A207,DG!$H$8:$P$2508,7,FALSE)) ->  | M207: =IF(A207="","",VLOOKUP(A207,DG!$H$8:$P$2508,8,FALSE)) ->  | P207: =IF(A207="","",VLOOKUP(A207,DG!$H$8:$P$2508,9,FALSE)) ->  | U207: =IF(A207="","",VLOOKUP(A207,DG!$H$8:$R$2508,11,FALSE)) ->  | AR207: =IF(AS207="","",VLOOKUP(AS207,DG!$H$8:$Q$2508,10,FALSE)) ->  | BA207: 0 | BB207: 0 | BC207: 0
A208: =IF(W177="","",IF(ISERROR(VLOOKUP(CONCATENATE(AB177,B208),DG!$B$8:$H$2508,7,FALSE)),"",VLOOKUP(CONCATENATE(AB177,B208),DG!$B$8:$H$2508,7,FALSE))) ->  | B208: 18 | C208: =IF(A208="","",VLOOKUP(A208,DG!$H$8:$P$2508,5,FALSE)) ->  | J208: =IF(A208="","",VLOOKUP(A208,DG!$H$8:$P$2508,6,FALSE)) ->  | K208: =IF(A208="","",VLOOKUP(A208,DG!$H$8:$P$2508,7,FALSE)) ->  | M208: =IF(A208="","",VLOOKUP(A208,DG!$H$8:$P$2508,8,FALSE)) ->  | P208: =IF(A208="","",VLOOKUP(A208,DG!$H$8:$P$2508,9,FALSE)) ->  | U208: =IF(A208="","",VLOOKUP(A208,DG!$H$8:$R$2508,11,FALSE)) ->  | AR208: =IF(AS208="","",VLOOKUP(AS208,DG!$H$8:$Q$2508,10,FALSE)) ->  | BA208: 0 | BB208: 0 | BC208: 0
A209: =IF(W177="","",IF(ISERROR(VLOOKUP(CONCATENATE(AB177,B209),DG!$B$8:$H$2508,7,FALSE)),"",VLOOKUP(CONCATENATE(AB177,B209),DG!$B$8:$H$2508,7,FALSE))) ->  | B209: 19 | C209: =IF(A209="","",VLOOKUP(A209,DG!$H$8:$P$2508,5,FALSE)) ->  | J209: =IF(A209="","",VLOOKUP(A209,DG!$H$8:$P$2508,6,FALSE)) ->  | K209: =IF(A209="","",VLOOKUP(A209,DG!$H$8:$P$2508,7,FALSE)) ->  | M209: =IF(A209="","",VLOOKUP(A209,DG!$H$8:$P$2508,8,FALSE)) ->  | P209: =IF(A209="","",VLOOKUP(A209,DG!$H$8:$P$2508,9,FALSE)) ->  | U209: =IF(A209="","",VLOOKUP(A209,DG!$H$8:$R$2508,11,FALSE)) ->  | AR209: =IF(AS209="","",VLOOKUP(AS209,DG!$H$8:$Q$2508,10,FALSE)) ->  | BA209: 0 | BB209: 0 | BC209: 0
A210: =IF(W177="","",IF(ISERROR(VLOOKUP(CONCATENATE(AB177,B210),DG!$B$8:$H$2508,7,FALSE)),"",VLOOKUP(CONCATENATE(AB177,B210),DG!$B$8:$H$2508,7,FALSE))) ->  | B210: 20 | C210: =IF(A210="","",VLOOKUP(A210,DG!$H$8:$P$2508,5,FALSE)) ->  | J210: =IF(A210="","",VLOOKUP(A210,DG!$H$8:$P$2508,6,FALSE)) ->  | K210: =IF(A210="","",VLOOKUP(A210,DG!$H$8:$P$2508,7,FALSE)) ->  | M210: =IF(A210="","",VLOOKUP(A210,DG!$H$8:$P$2508,8,FALSE)) ->  | P210: =IF(A210="","",VLOOKUP(A210,DG!$H$8:$P$2508,9,FALSE)) ->  | U210: =IF(A210="","",VLOOKUP(A210,DG!$H$8:$R$2508,11,FALSE)) ->  | AR210: =IF(AS210="","",VLOOKUP(AS210,DG!$H$8:$Q$2508,10,FALSE)) ->  | BA210: 0 | BB210: 0 | BC210: 0
A211: =IF(W177="","",IF(ISERROR(VLOOKUP(CONCATENATE(AB177,B211),DG!$B$8:$H$2508,7,FALSE)),"",VLOOKUP(CONCATENATE(AB177,B211),DG!$B$8:$H$2508,7,FALSE))) ->  | B211: 21 | C211: =IF(A211="","",VLOOKUP(A211,DG!$H$8:$P$2508,5,FALSE)) ->  | J211: =IF(A211="","",VLOOKUP(A211,DG!$H$8:$P$2508,6,FALSE)) ->  | K211: =IF(A211="","",VLOOKUP(A211,DG!$H$8:$P$2508,7,FALSE)) ->  | M211: =IF(A211="","",VLOOKUP(A211,DG!$H$8:$P$2508,8,FALSE)) ->  | P211: =IF(A211="","",VLOOKUP(A211,DG!$H$8:$P$2508,9,FALSE)) ->  | U211: =IF(A211="","",VLOOKUP(A211,DG!$H$8:$R$2508,11,FALSE)) ->  | AR211: =IF(AS211="","",VLOOKUP(AS211,DG!$H$8:$Q$2508,10,FALSE)) ->  | BA211: 0 | BB211: 0 | BC211: 0
A212: =IF(W177="","",IF(ISERROR(VLOOKUP(CONCATENATE(AB177,B212),DG!$B$8:$H$2508,7,FALSE)),"",VLOOKUP(CONCATENATE(AB177,B212),DG!$B$8:$H$2508,7,FALSE))) ->  | B212: 22 | C212: =IF(A212="","",VLOOKUP(A212,DG!$H$8:$P$2508,5,FALSE)) ->  | J212: =IF(A212="","",VLOOKUP(A212,DG!$H$8:$P$2508,6,FALSE)) ->  | K212: =IF(A212="","",VLOOKUP(A212,DG!$H$8:$P$2508,7,FALSE)) ->  | M212: =IF(A212="","",VLOOKUP(A212,DG!$H$8:$P$2508,8,FALSE)) ->  | P212: =IF(A212="","",VLOOKUP(A212,DG!$H$8:$P$2508,9,FALSE)) ->  | U212: =IF(A212="","",VLOOKUP(A212,DG!$H$8:$R$2508,11,FALSE)) ->  | AR212: =IF(AS212="","",VLOOKUP(AS212,DG!$H$8:$Q$2508,10,FALSE)) ->  | BA212: 0 | BB212: 0 | BC212: 0
A213: =IF(W177="","",IF(ISERROR(VLOOKUP(CONCATENATE(AB177,B213),DG!$B$8:$H$2508,7,FALSE)),"",VLOOKUP(CONCATENATE(AB177,B213),DG!$B$8:$H$2508,7,FALSE))) ->  | B213: 23 | C213: =IF(A213="","",VLOOKUP(A213,DG!$H$8:$P$2508,5,FALSE)) ->  | J213: =IF(A213="","",VLOOKUP(A213,DG!$H$8:$P$2508,6,FALSE)) ->  | K213: =IF(A213="","",VLOOKUP(A213,DG!$H$8:$P$2508,7,FALSE)) ->  | M213: =IF(A213="","",VLOOKUP(A213,DG!$H$8:$P$2508,8,FALSE)) ->  | P213: =IF(A213="","",VLOOKUP(A213,DG!$H$8:$P$2508,9,FALSE)) ->  | U213: =IF(A213="","",VLOOKUP(A213,DG!$H$8:$R$2508,11,FALSE)) ->  | AR213: =IF(AS213="","",VLOOKUP(AS213,DG!$H$8:$Q$2508,10,FALSE)) ->  | BA213: 0 | BB213: 0 | BC213: 0
A214: =IF(W177="","",IF(ISERROR(VLOOKUP(CONCATENATE(AB177,B214),DG!$B$8:$H$2508,7,FALSE)),"",VLOOKUP(CONCATENATE(AB177,B214),DG!$B$8:$H$2508,7,FALSE))) ->  | B214: 24 | C214: =IF(A214="","",VLOOKUP(A214,DG!$H$8:$P$2508,5,FALSE)) ->  | J214: =IF(A214="","",VLOOKUP(A214,DG!$H$8:$P$2508,6,FALSE)) ->  | K214: =IF(A214="","",VLOOKUP(A214,DG!$H$8:$P$2508,7,FALSE)) ->  | M214: =IF(A214="","",VLOOKUP(A214,DG!$H$8:$P$2508,8,FALSE)) ->  | P214: =IF(A214="","",VLOOKUP(A214,DG!$H$8:$P$2508,9,FALSE)) ->  | U214: =IF(A214="","",VLOOKUP(A214,DG!$H$8:$R$2508,11,FALSE)) ->  | AR214: =IF(AS214="","",VLOOKUP(AS214,DG!$H$8:$Q$2508,10,FALSE)) ->  | BA214: 0 | BB214: 0 | BC214: 0
A215: =IF(W177="","",IF(ISERROR(VLOOKUP(CONCATENATE(AB177,B215),DG!$B$8:$H$2508,7,FALSE)),"",VLOOKUP(CONCATENATE(AB177,B215),DG!$B$8:$H$2508,7,FALSE))) ->  | B215: 25 | C215: =IF(A215="","",VLOOKUP(A215,DG!$H$8:$P$2508,5,FALSE)) ->  | J215: =IF(A215="","",VLOOKUP(A215,DG!$H$8:$P$2508,6,FALSE)) ->  | K215: =IF(A215="","",VLOOKUP(A215,DG!$H$8:$P$2508,7,FALSE)) ->  | M215: =IF(A215="","",VLOOKUP(A215,DG!$H$8:$P$2508,8,FALSE)) ->  | P215: =IF(A215="","",VLOOKUP(A215,DG!$H$8:$P$2508,9,FALSE)) ->  | U215: =IF(A215="","",VLOOKUP(A215,DG!$H$8:$R$2508,11,FALSE)) ->  | AR215: =IF(AS215="","",VLOOKUP(AS215,DG!$H$8:$Q$2508,10,FALSE)) ->  | BA215: 0 | BB215: 0 | BC215: 0
A216: =IF(W177="","",IF(ISERROR(VLOOKUP(CONCATENATE(AB177,B216),DG!$B$8:$H$2508,7,FALSE)),"",VLOOKUP(CONCATENATE(AB177,B216),DG!$B$8:$H$2508,7,FALSE))) ->  | B216: 26 | C216: =IF(A216="","",VLOOKUP(A216,DG!$H$8:$P$2508,5,FALSE)) ->  | J216: =IF(A216="","",VLOOKUP(A216,DG!$H$8:$P$2508,6,FALSE)) ->  | K216: =IF(A216="","",VLOOKUP(A216,DG!$H$8:$P$2508,7,FALSE)) ->  | M216: =IF(A216="","",VLOOKUP(A216,DG!$H$8:$P$2508,8,FALSE)) ->  | P216: =IF(A216="","",VLOOKUP(A216,DG!$H$8:$P$2508,9,FALSE)) ->  | U216: =IF(A216="","",VLOOKUP(A216,DG!$H$8:$R$2508,11,FALSE)) ->  | AR216: =IF(AS216="","",VLOOKUP(AS216,DG!$H$8:$Q$2508,10,FALSE)) ->  | BA216: 0 | BB216: 0 | BC216: 0
A217: =IF(W177="","",IF(ISERROR(VLOOKUP(CONCATENATE(AB177,B217),DG!$B$8:$H$2508,7,FALSE)),"",VLOOKUP(CONCATENATE(AB177,B217),DG!$B$8:$H$2508,7,FALSE))) ->  | B217: 27 | C217: =IF(A217="","",VLOOKUP(A217,DG!$H$8:$P$2508,5,FALSE)) ->  | J217: =IF(A217="","",VLOOKUP(A217,DG!$H$8:$P$2508,6,FALSE)) ->  | K217: =IF(A217="","",VLOOKUP(A217,DG!$H$8:$P$2508,7,FALSE)) ->  | M217: =IF(A217="","",VLOOKUP(A217,DG!$H$8:$P$2508,8,FALSE)) ->  | P217: =IF(A217="","",VLOOKUP(A217,DG!$H$8:$P$2508,9,FALSE)) ->  | U217: =IF(A217="","",VLOOKUP(A217,DG!$H$8:$R$2508,11,FALSE)) ->  | AR217: =IF(AS217="","",VLOOKUP(AS217,DG!$H$8:$Q$2508,10,FALSE)) ->  | BA217: 0 | BB217: 0 | BC217: 0
A218: =IF(W177="","",IF(ISERROR(VLOOKUP(CONCATENATE(AB177,B218),DG!$B$8:$H$2508,7,FALSE)),"",VLOOKUP(CONCATENATE(AB177,B218),DG!$B$8:$H$2508,7,FALSE))) ->  | B218: 28 | C218: =IF(A218="","",VLOOKUP(A218,DG!$H$8:$P$2508,5,FALSE)) ->  | J218: =IF(A218="","",VLOOKUP(A218,DG!$H$8:$P$2508,6,FALSE)) ->  | K218: =IF(A218="","",VLOOKUP(A218,DG!$H$8:$P$2508,7,FALSE)) ->  | M218: =IF(A218="","",VLOOKUP(A218,DG!$H$8:$P$2508,8,FALSE)) ->  | P218: =IF(A218="","",VLOOKUP(A218,DG!$H$8:$P$2508,9,FALSE)) ->  | U218: =IF(A218="","",VLOOKUP(A218,DG!$H$8:$R$2508,11,FALSE)) ->  | AR218: =IF(AS218="","",VLOOKUP(AS218,DG!$H$8:$Q$2508,10,FALSE)) ->  | BA218: 0 | BB218: 0 | BC218: 0
A219: =IF(W177="","",IF(ISERROR(VLOOKUP(CONCATENATE(AB177,B219),DG!$B$8:$H$2508,7,FALSE)),"",VLOOKUP(CONCATENATE(AB177,B219),DG!$B$8:$H$2508,7,FALSE))) ->  | B219: 29 | C219: =IF(A219="","",VLOOKUP(A219,DG!$H$8:$P$2508,5,FALSE)) ->  | J219: =IF(A219="","",VLOOKUP(A219,DG!$H$8:$P$2508,6,FALSE)) ->  | K219: =IF(A219="","",VLOOKUP(A219,DG!$H$8:$P$2508,7,FALSE)) ->  | M219: =IF(A219="","",VLOOKUP(A219,DG!$H$8:$P$2508,8,FALSE)) ->  | P219: =IF(A219="","",VLOOKUP(A219,DG!$H$8:$P$2508,9,FALSE)) ->  | U219: =IF(A219="","",VLOOKUP(A219,DG!$H$8:$R$2508,11,FALSE)) ->  | AR219: =IF(AS219="","",VLOOKUP(AS219,DG!$H$8:$Q$2508,10,FALSE)) ->  | BA219: 0 | BB219: 0 | BC219: 0
A220: =IF(W177="","",IF(ISERROR(VLOOKUP(CONCATENATE(AB177,B220),DG!$B$8:$H$2508,7,FALSE)),"",VLOOKUP(CONCATENATE(AB177,B220),DG!$B$8:$H$2508,7,FALSE))) ->  | B220: 30 | C220: =IF(A220="","",VLOOKUP(A220,DG!$H$8:$P$2508,5,FALSE)) ->  | J220: =IF(A220="","",VLOOKUP(A220,DG!$H$8:$P$2508,6,FALSE)) ->  | K220: =IF(A220="","",VLOOKUP(A220,DG!$H$8:$P$2508,7,FALSE)) ->  | M220: =IF(A220="","",VLOOKUP(A220,DG!$H$8:$P$2508,8,FALSE)) ->  | P220: =IF(A220="","",VLOOKUP(A220,DG!$H$8:$P$2508,9,FALSE)) ->  | U220: =IF(A220="","",VLOOKUP(A220,DG!$H$8:$R$2508,11,FALSE)) ->  | AR220: =IF(AS220="","",VLOOKUP(AS220,DG!$H$8:$Q$2508,10,FALSE)) ->  | BA220: 0 | BB220: 0 | BC220: 0
N221: Totais | Q221: =COUNTIF(Q191:Q220,"s") -> 0 | R221: =SUM(R191:T220) -> 0
B223: Observações:
W225: O Professor Responsável
G229: =PLANO!$G$1 -> Agrupamento de Escolas Augusto Cabrita
G230: =PLANO!$G$2 -> Sede – Escola Secundária Augusto Cabrita
G231: =PLANO!$G$3 -> Rua Maria Lamas – Alto Seixalinho – 2830-088 Barreiro
G232: =PLANO!$G$4 -> Tel 212059220 - Fax 212059228 - E-mail: direcao@aeaugustocabrita.edu.pt
B234: LISTAGEM DE ALUNOS | Q234: =IF(W234=0,"A Turma não Participa","") ->  | W234: =VLOOKUP(X234,$AF$9:$AH$56,3,FALSE) ->  | X234: 5 | Y234: TURMA | AB234: =VLOOKUP(X234,$AF$9:$AH$56,2,FALSE) -> 5E
B236: =PLANO!$B$8 -> Designação da V. Estudo | J236: =IF(W234=0,"",PLANO!$J$8) -> Eco-ementas | AA236: Ano : | AB236: =DG!$EC$1 -> 15 | AC236: / | AD236: =DG!$EE$1 -> 16
... 2018 more rows

Sheet Imprimir Lista
G1: =PLANO!$G$1 -> Agrupamento de Escolas Augusto Cabrita
G2: =PLANO!$G$2 -> Sede – Escola Secundária Augusto Cabrita | AO2: SS | AP2: Sistema de Saúde
G3: =PLANO!$G$3 -> Rua Maria Lamas – Alto Seixalinho – 2830-088 Barreiro | AO3: MD | AP3: Aluno com medida disciplinar que o impede de participar na atividade
G4: =PLANO!$G$4 -> Tel 212059220 - Fax 212059228 - E-mail: direcao@aeaugustocabrita.edu.pt
AO5: S / N | AP5: Indicar se o aluno participa (S) ou não (N) na atividade
B6: LISTAGEM DE ALUNOS | R6: Total de Alunos | S6: =Listagens!AH7 -> 0 | W6: Ase A | X6: =COUNTIF(Y69:Y113,"=A")+COUNTIF(J69:J113,"=A")+COUNTIF(Y183:Y227,"=A")+COUNTIF(J126:J170,"=A")+COUNTIF(Y126:Y170,"=A")+COUNTIF(J183:J227,"=A")+COUNTIF(Y20:Y52,"=A")+COUNTIF(J20:J52,"=A") -> 0 | AB6: ASE B | AC6: =COUNTIF(Y69:Y113,"=B")+COUNTIF(J69:J113,"=B")+COUNTIF(Y183:Y227,"=B")+COUNTIF(J126:J170,"=B")+COUNTIF(Y126:Y170,"=B")+COUNTIF(J183:J227,"=B")+COUNTIF(Y20:Y52,"=B")+COUNTIF(J20:J52,"=B") -> 0
B8: =PLANO!$B$8 -> Designação da V. Estudo | J8: =IF(PLANO!$J$8="","",PLANO!$J$8) -> Eco-ementas | AA8: Ano : | AB8: =DG!$EC$1 -> 15 | AC8: / | AD8: =DG!$EE$1 -> 16
B9: Organizada por : | J9: =IF(PLANO!$J$9="","",PLANO!$J$9) -> 7º F | Z9: Nº Ativ : | AC9: =PLANO!AG9 -> 0
B11: =PLANO!$A$11 -> Locais | E11: - | F11: =IF(PLANO!$F$11="","",PLANO!$F$11) ->  | R11: - | S11: =IF(PLANO!$U$11="","",PLANO!$U$11) -> 
B12: =PLANO!$A$12 -> a visitar | E12: - | F12: =IF(PLANO!$F$12="","",PLANO!$F$12) ->  | R12: - | S12: =IF(PLANO!$U$12="","",PLANO!$U$12) -> 
B14: Início | F14: Local: | H14: =IF(PLANO!$H$14="","",PLANO!$H$14) -> EB23 P. Abílio Mendes | O14: Dia : | P14: =IF(PLANO!$R$14="","",PLANO!$R$14) ->  | Q14: / | R14: =IF(PLANO!$T$14="","",PLANO!$T$14) ->  | S14: / | T14: =IF(PLANO!$V$14="","",PLANO!$V$14) ->  | W14: Hora : | X14: =IF(PLANO!$AA$14="","",PLANO!$AA$14) ->  | Y14: h | Z14: e | AA14: =IF(PLANO!$AD$14="","",PLANO!$AD$14) ->  | AB14: minutos
B15: Fim | F15: Local: | H15: =IF(PLANO!$H$15="","",PLANO!$H$15) -> EB23 P. Abílio Mendes | O15: Dia : | P15: =IF(PLANO!$R$15="","",PLANO!$R$15) ->  | Q15: / | R15: =IF(PLANO!$T$15="","",PLANO!$T$15) ->  | S15: / | T15: =IF(PLANO!$V$15="","",PLANO!$V$15) ->  | W15: Hora : | X15: =IF(PLANO!$AA$15="","",PLANO!$AA$15) ->  | Y15: h | Z15: e | AA15: =IF(PLANO!$AD$15="","",PLANO!$AD$15) ->  | AB15: minutos
AO16: Antes de imprimir verifique quantas páginas ocupa a listagem de alunos e imprima da 1 até ???. NUNCA FAÇA IMPRIMIR TODAS
B17: Custo | F17: =IF(PLANO!$F$17="","",PLANO!$F$17) -> 0 | I17: Euros | N17: Transporte : | Q17: =IF(PLANO!$T$17="","",PLANO!$T$17) -> 
Q18: S | R18: N
